Workbook

Sheet Seznam
A1: Informační technologie ve zdravotnictví
B3: Vybavenost informačními technologiemi
B5: Tab. 1 | D5: Informační technologie v samostatných ordinacích lékaře
B6: Tab. 2 | D6: Informační technologie v samostatných ordinacích lékaře v okresech a krajích ČR
B7: Tab. 3 | D7: Samostatné ordinace praktického lékaře pro dospělé vybavené IT v okresech a krajích ČR; 2024
B8: Tab. 4 | D8: Samostatné ordinace praktického lékaře pro děti a dorost vybavené IT v okresech a krajích ČR; 2024
B9: Tab. 5 | D9: Samostatné ordinace zubního lékaře vybavené IT v okresech a krajích ČR; 2024
B10: Tab. 6 | D10: Samostatné ordinace gynekologa vybavené IT v okresech a krajích ČR; 2024
B11: Tab. 7 | D11: Samostatné ordinace lékaře specialisty vybavené IT v okresech a krajích ČR; 2024
B13: Výpisy z elektronického systému (pacienti na objednání k preventivním prohlídkám, testům; pacienti podle diagnóz nebo laboratorních výsledků)
B15: Tab. 8 | D15: Možnosti výpisů z elektronického systému v samostatných ordinacích lékaře
B16: Tab. 9 | D16: Možnosti výpisů z elektronického systému v samostatných ordinacích lékaře v okresech a krajích ČR
B17: Tab. 10 | D17: Možnosti výpisů z elektronického systému v samostatných ordinacích praktického lékaře pro dospělé v okresech a krajích ČR; 2024
B18: Tab. 11 | D18: Možnosti výpisů z elektronického systému v samostatných ordinacích praktického lékaře pro děti a dorost v okresech a krajích ČR; 2024
B19: Tab. 12 | D19: Možnosti výpisů z elektronického systému v samostatných ordinacích zubního lékaře v okresech a krajích ČR; 2024
B20: Tab. 13 | D20: Možnosti výpisů z elektronického systému v samostatných ordinacích gynekologa v okresech a krajích ČR; 2024
B21: Tab. 14 | D21: Možnosti výpisů z elektronického systému v samostatných ordinacích lékaře specialisty v okresech a krajích ČR; 2024
B23: Funkce elektronického systému (předepisování léků; upozornění na lékové interakce; objednání a obdržení výsledků laboratorních vyšetření)
B25: Tab. 15 | D25: Funkce elektronického systému v samostatných ordinacích lékaře
B26: Tab. 16 | D26: Funkce elektronického systému v samostatných ordinacích lékaře v okresech a krajích ČR
B27: Tab. 17 | D27: Funkce elektronického systému v samostatných ordinacích praktického lékaře pro dospělé v okresech a krajích ČR; 2024
B28: Tab. 18 | D28: Funkce elektronického systému v samostatných ordinacích praktického lékaře pro děti a dorost v okresech a krajích ČR; 2024
B29: Tab. 19 | D29: Funkce elektronického systému v samostatných ordinacích zubního lékaře v okresech a krajích ČR; 2024
B30: Tab. 20 | D30: Funkce elektronického systému v samostatných ordinacích gynekologa v okresech a krajích ČR; 2024
B31: Tab. 21 | D31: Funkce elektronického systému v samostatných ordinacích lékaře specialisty v okresech a krajích ČR; 2024
B33: Způsob vedení zdravotnické dokumentace
B35: Tab. 22 | D35: Vedení zdravotnické dokumentace samostatnými ordinacemi lékaře
B36: Tab. 23 | D36: Vedení zdravotnické dokumentace samostatnými ordinacemi lékaře v okresech a krajích ČR
B37: Tab. 24 | D37: Vedení zdravotnické dokumentace samostatnými ordinacemi praktického lékaře pro dospělé v okresech a krajích ČR; 2024
B38: Tab. 25 | D38: Vedení zdravotnické dokumentace samostatnými ordinacemi praktického lékaře pro děti a dorost v okresech a krajích ČR; 2024
B39: Tab. 26 | D39: Vedení zdravotnické dokumentace samostatnými ordinacemi zubního lékaře v okresech a krajích ČR; 2024
B40: Tab. 27 | D40: Vedení zdravotnické dokumentace samostatnými ordinacemi gynekologa v okresech a krajích ČR; 2024
B41: Tab. 28 | D41: Vedení zdravotnické dokumentace samostatnými ordinacemi lékaře specialisty v okresech a krajích ČR; 2024
B43: On-line služby poskytované pacientům (objednání na vyšetření, konzultace, zažádání o nové nebo opakované vystavení lékařského receptu)
B45: Tab. 29 | D45: On-line služby poskytované samostatnými ordinacemi lékaře
B46: Tab. 30 | D46: On-line služby poskytované samostatnými ordinacemi lékaře v okresech a krajích ČR
B47: Tab. 31 | D47: On-line služby poskytované samostatnými ordinacemi praktického lékaře pro dospělé v okresech a krajích ČR; 2024
B48: Tab. 32 | D48: On-line služby poskytované samostatnými ordinacemi praktického lékaře pro děti a dorost v okresech a krajích ČR; 2024
B49: Tab. 33 | D49: On-line služby poskytované samostatnými ordinacemi zubního lékaře v okresech a krajích ČR; 2024
B50: Tab. 34 | D50: On-line služby poskytované samostatnými ordinacemi gynekologa v okresech a krajích ČR; 2024
B51: Tab. 35 | D51: On-line služby poskytované samostatnými ordinacemi lékaře specialisty v okresech a krajích ČR; 2024
C56: Mgr. Jitka Wichová
C57: Český statistický úřad
C58: Odd. statistiky vzdělávání, zdravotnictví, kultury a sociálního zabezpečení
C59: Na padesátém 81, 100 82 Praha 10
C60: Telefon: +420 274 052 005
C61: Email: jitka.wichova@csu.gov.cz

Sheet Metodika
B1: Metodika
B3: Český statistický úřad sleduje, ve spolupráci s Ústavem zdravotnických informací a statistiky (ÚZIS), údaje o vybavenosti a využívání informačních technologií ve zdravotnictví od roku 2003. Sběr dat se provádí za pomoci ročního výkazu E (MZ) 1-01, který je zasílán všem zdravotnickým zařízením v České republice. Od roku 2014 je výkaz rozesílán pouze elektroniky a v důsledku přechodu na čistě elektronické řešení nejsou poskytnuta data za rok 2014. V roce 2023 dosáhla návratnost šetření 85,5 %, což je výrazně méně než v roce 2013, kdy byla návratnost 95,8%. Tato skutečnost vysvětluje nižší počty účastníků v jednotlivých tabulkách.
B5: Použité značky v tabulkách
B7: - ležatá čárka na místě čísla značí, že se jev nevyskytoval
B8: 0 nula se používá pro označení číselných údajů menších než polovina zvolené měřicí jednotky
B9: . tečka na místě čísla značí, že údaj není k dispozici
B11: Odkazy na podrobnější informace:
B12: Rozcestník: https://csu.gov.cz/ict-ve-zdravotnictvi
B15: Použité pojmy
B17: IT - informační technologie
B18: lékař specialista - např. alergolog, kožní lékař, oční lékař, urolog apod.
B19: PL – praktický lékař
B20: on-line konzultace - možnost zasílání dotazů týkajících se zdraví přes webové stránky, na které lékař odpoví elektronickou poštou nebo odpověď zveřejní na webových stránkách ordinace
B21: on-line objednání se k lékaři - objednání se na vyšetření/zákrok prostřednictvím on-line formuláře, který je odesílán přímo z webových stránek dané ordinace nebo prostřednictvím systému elektronického objednávání; nezahrnuje objednání se prostřednictvím elektronické pošty
B22: on-line žádanka o nové nebo opakované vystavení lékařského předpisu - pacient obdrží elektronický recept e-mailem nebo prostřednictvím SMS kódu, pomocí kterého se identifikuje lékárníkovi
B23: on-line služby - on-line objednání se k lékaři + on-line konzultace pacientů s lékařem + on-line žádanka o vystavení lékařského předpisu
B24: samostatné ordinace lékaře - zahrnuje samostatné ordinace praktického lékaře pro dospělé, praktického lékaře pro děti a dorost, zubního lékaře, gynekologa a lékaře specialisty
B25: připojení k internetu - internet s jakýmkoli typem připojením
B26: zdravotnické zařízení - pro potřeby této analýzy zahrnuje pouze samostatné ordinace lékaře a lékárny
B27: elektronické předepisování léků - lékař vystaví recept na počítači, odkud jej zašle do Centrálního úložiště elektronických receptů. Centrální úložiště přidělí receptu identifikační kód, který lékař sdělí pacientovi. Na základě tohoto kódu si pak lékárník při výdeji přípravku vyzvedne recept z úložiště.
B28: upozornění na lékové interakce - upozornění systému na to, zda nejsou určitému pacientovi předepisovány léky, které se navzájem ovlivňují.
B29: elektronická zdravotnická dokumentace - dokumentace je pořizována, zpracovávána, ukládána a zprostředkována v digitální formě s využitím informačních technologií. Každý zápis v elektronické podobě je opatřen identifikátorem záznamu.
B30: výpis pacientů podle diagnóz/laboratorních výsledků/na objednání k prohlídkám - výpis elektronických záznamů všech pacientů zdravotnického zařízení podle zadaného kritéria.

Sheet T1
A1: Tab. 1: Informační technologie v samostatných ordinacích lékaře
A2: zpět na seznam | D2: %*
B3: 2016 | C3: 2020 | D3: 2024
A4: POČÍTAČ
A5: Celkem | B5: 96.41581002 | C5: 96.75297494 | D5: 96.74574379
A6: Praktický lékař pro dospělé | B6: 96.78053576 | C6: 98.64039956 | D6: 98.80071447
A7: Praktický lékař pro děti a dorost | B7: 95.14237856 | C7: 98.71050935 | D7: 98.76140808
A8: Zubní lékař | B8: 96.09814964 | C8: 97.2469109 | D8: 98.10070671
A9: Gynekolog | B9: 97.053407 | C9: 96.96356275 | D9: 97.68064228
A10: Lékař specialista | B10: 96.68420214 | C10: 94.68744763 | D10: 94.05548217
A11: PŘIPOJENÍ K INTERNETU
A12: Celkem | B12: 92.25441152 | C12: 95.69455241 | D12: 95.7186715
A13: Praktický lékař pro dospělé | B13: 94.07716884 | C13: 97.58601554 | D13: 97.49936208
A14: Praktický lékař pro děti a dorost | B14: 93.46733668 | C14: 98.00128949 | D14: 98.2398957
A15: Zubní lékař | B15: 90.74818986 | C15: 96.03295036 | D15: 97.19522968
A16: Gynekolog | B16: 93.46224678 | C16: 96.15384615 | D16: 96.69937556
A17: Lékař specialista | B17: 91.71050534 | C17: 93.61488185 | D17: 92.98400117
A18: VLASTNÍ WEBOVÁ STRÁNKA
A19: Celkem | B19: 36.11126381 | C19: 46.60647013 | D19: 55.31677365
A20: Praktický lékař pro dospělé | B20: 34.01327107 | C20: 50.47169811 | D20: 63.30696606
A21: Praktický lékař pro děti a dorost | B21: 50.8654383 | C21: 65.89297228 | D21: 74.77183833
A22: Zubní lékař | B22: 22.9686243 | C22: 31.06438326 | D22: 39.42137809
A23: Gynekolog | B23: 56.35359116 | C23: 64.17004049 | D23: 71.72167707
A24: Lékař specialista | B24: 40.17216643 | C24: 48.36601307 | D24: 54.20519595
A25: Zdroj: Ústav zdravotnických informací a statistiky ČR a vlastní dopočty ČSÚ
A26: * % zdravotnických zařízení daného typu, která se zúčastnila šetření

Sheet T2
A1: Tab. 2: Informační technologie v samostatných ordinacích lékaře v okresech a krajích ČR
A2: zpět na seznam
B3: Celkový počet ordinací** | E3: Počítač | H3: Připojení k internetu | K3: Vlastní webová stránka
B4: 2016 | C4: 2020 | D4: 2024 | E4: 2016 | F4: 2020 | G4: 2024 | H4: 2016 | I4: 2020 | J4: 2024 | K4: 2016 | L4: 2020 | M4: 2024
E5: %* | F5: %* | G5: %* | H5: %* | I5: %* | J5: %* | K5: %* | L5: %* | M5: %*
A6: Celkem ČR | B6: 18191 | C6: 16723 | D6: 17915 | E6: 96.41581002 | F6: 96.75297494 | G6: 96.74574379 | H6: 92.25441152 | I6: 95.69455241 | J6: 95.7186715 | K6: 36.11126381 | L6: 46.60647013 | M6: 55.31677365
A7: Hl. m. Praha | B7: 2853 | C7: 2559 | D7: 3020 | E7: 95.51349457 | F7: 94.5681907 | G7: 95.03311258 | H7: 91.93831055 | I7: 93.43493552 | J7: 93.87417219 | K7: 46.58254469 | L7: 53.49745995 | M7: 61.42384106
A8: Středočeský kraj celkem | B8: 1745 | C8: 1542 | D8: 1786 | E8: 97.19197708 | F8: 97.08171206 | G8: 96.7525196 | H8: 93.58166189 | I8: 95.91439689 | J8: 95.68868981 | K8: 38.10888252 | L8: 49.22178988 | M8: 59.23852184
A9: Benešov | B9: 138 | C9: 113 | D9: 135 | E9: 98.55072464 | F9: 97.34513274 | G9: 96.2962963 | H9: 92.02898551 | I9: 94.69026549 | J9: 95.55555556 | K9: 36.95652174 | L9: 34.51327434 | M9: 49.62962963
A10: Beroun | B10: 129 | C10: 116 | D10: 129 | E10: 99.2248062 | F10: 97.4137931 | G10: 96.12403101 | H10: 96.89922481 | I10: 96.55172414 | J10: 93.79844961 | K10: 41.08527132 | L10: 50 | M10: 55.81395349
A11: Kladno | B11: 238 | C11: 191 | D11: 231 | E11: 97.05882353 | F11: 98.42931937 | G11: 96.1038961 | H11: 92.43697479 | I11: 96.33507853 | J11: 95.23809524 | K11: 37.39495798 | L11: 47.12041885 | M11: 61.47186147
A12: Kolín | B12: 127 | C12: 102 | D12: 128 | E12: 99.21259843 | F12: 99.01960784 | G12: 97.65625 | H12: 94.48818898 | I12: 98.03921569 | J12: 97.65625 | K12: 32.28346457 | L12: 46.07843137 | M12: 61.71875
A13: Kutná Hora | B13: 116 | C13: 108 | D13: 102 | E13: 92.24137931 | F13: 94.44444444 | G13: 98.03921569 | H13: 89.65517241 | I13: 94.44444444 | J13: 95.09803922 | K13: 33.62068966 | L13: 48.14814815 | M13: 62.74509804
A14: Mělník | B14: 137 | C14: 119 | D14: 143 | E14: 97.81021898 | F14: 99.15966387 | G14: 96.5034965 | H14: 94.89051095 | I14: 98.31932773 | J14: 95.1048951 | K14: 40.87591241 | L14: 52.94117647 | M14: 62.93706294
A15: Mladá Boleslav | B15: 163 | C15: 147 | D15: 174 | E15: 97.54601227 | F15: 97.95918367 | G15: 99.42528736 | H15: 93.86503067 | I15: 97.27891156 | J15: 98.27586207 | K15: 42.33128834 | L15: 52.38095238 | M15: 61.49425287
A16: Nymburk | B16: 139 | C16: 126 | D16: 149 | E16: 98.56115108 | F16: 94.44444444 | G16: 95.97315436 | H16: 94.24460432 | I16: 93.65079365 | J16: 93.95973154 | K16: 31.65467626 | L16: 41.26984127 | M16: 52.34899329
A17: Praha-východ | B17: 174 | C17: 152 | D17: 178 | E17: 97.70114943 | F17: 98.68421053 | G17: 98.31460674 | H17: 93.10344828 | I17: 96.71052632 | J17: 97.75280899 | K17: 41.37931034 | L17: 59.21052632 | M17: 67.97752809
A18: Praha-západ | B18: 142 | C18: 154 | D18: 177 | E18: 95.07042254 | F18: 95.45454545 | G18: 93.22033898 | H18: 95.77464789 | I18: 93.50649351 | J18: 92.65536723 | K18: 57.04225352 | L18: 64.93506494 | M18: 68.92655367
A19: Příbram | B19: 161 | C19: 146 | D19: 166 | E19: 96.27329193 | F19: 95.89041096 | G19: 95.78313253 | H19: 93.78881988 | I19: 95.89041096 | J19: 95.78313253 | K19: 25.46583851 | L19: 42.46575342 | M19: 44.57831325
A20: Rakovník | B20: 81 | C20: 65 | D20: 74 | E20: 96.2962963 | F20: 100 | G20: 100 | H20: 91.35802469 | I20: 100 | J20: 98.64864865 | K20: 35.80246914 | L20: 44.61538462 | M20: 56.75675676
A21: Jihočeský kraj celkem | B21: 1059 | C21: 954 | D21: 1030 | E21: 97.54485364 | F21: 97.58909853 | G21: 97.57281553 | H21: 92.35127479 | I21: 96.85534591 | J21: 96.40776699 | K21: 29.17847025 | L21: 37.84067086 | M21: 49.22330097
A22: České Budějovice | B22: 352 | C22: 304 | D22: 359 | E22: 97.44318182 | F22: 98.35526316 | G22: 96.93593315 | H22: 92.89772727 | I22: 97.36842105 | J22: 95.54317549 | K22: 29.26136364 | L22: 38.48684211 | M22: 47.07520891
A23: Český Krumlov | B23: 87 | C23: 75 | D23: 79 | E23: 97.70114943 | F23: 96 | G23: 96.20253165 | H23: 95.40229885 | I23: 94.66666667 | J23: 96.20253165 | K23: 26.43678161 | L23: 37.33333333 | M23: 49.36708861
A24: Jindřichův Hradec | B24: 160 | C24: 135 | D24: 152 | E24: 98.125 | F24: 94.07407407 | G24: 98.02631579 | H24: 88.75 | I24: 92.59259259 | J24: 97.36842105 | K24: 26.25 | L24: 40 | M24: 50.65789474
A25: Písek | B25: 104 | C25: 96 | D25: 105 | E25: 99.03846154 | F25: 98.95833333 | G25: 98.0952381 | H25: 97.11538462 | I25: 98.95833333 | J25: 96.19047619 | K25: 27.88461538 | L25: 35.41666667 | M25: 41.9047619
A26: Prachatice | B26: 77 | C26: 76 | D26: 73 | E26: 93.50649351 | F26: 100 | G26: 97.26027397 | H26: 89.61038961 | I26: 100 | J26: 97.26027397 | K26: 36.36363636 | L26: 42.10526316 | M26: 61.64383562
A27: Strakonice | B27: 108 | C27: 98 | D27: 97 | E27: 96.2962963 | F27: 95.91836735 | G27: 100 | H27: 89.81481481 | I27: 95.91836735 | J27: 97.93814433 | K27: 26.85185185 | L27: 32.65306122 | M27: 50.51546392
A28: Tábor | B28: 171 | C28: 170 | D28: 165 | E28: 98.83040936 | F28: 98.82352941 | G28: 97.57575758 | H28: 92.98245614 | I28: 98.23529412 | J28: 96.36363636 | K28: 32.16374269 | L28: 37.64705882 | M28: 50.90909091
A29: Plzeňský kraj celkem | B29: 976 | C29: 878 | D29: 965 | E29: 94.77459016 | F29: 96.69703872 | G29: 96.99481865 | H29: 90.16393443 | I29: 96.01366743 | J29: 96.26943005 | K29: 29.71311475 | L29: 40.31890661 | M29: 50.98445596
A30: Domažlice | B30: 86 | C30: 68 | D30: 72 | E30: 97.6744186 | F30: 97.05882353 | G30: 97.22222222 | H30: 91.86046512 | I30: 94.11764706 | J30: 95.83333333 | K30: 23.25581395 | L30: 32.35294118 | M30: 47.22222222
A31: Klatovy | B31: 133 | C31: 114 | D31: 127 | E31: 99.2481203 | F31: 99.12280702 | G31: 97.63779528 | H31: 94.73684211 | I31: 99.12280702 | J31: 97.63779528 | K31: 27.81954887 | L31: 39.47368421 | M31: 51.96850394
A32: Plzeň-město | B32: 428 | C32: 399 | D32: 447 | E32: 93.69158879 | F32: 95.98997494 | G32: 96.42058166 | H32: 89.71962617 | I32: 95.23809524 | J32: 95.97315436 | K32: 36.21495327 | L32: 45.61403509 | M32: 56.59955257
A33: Plzeň-jih | B33: 76 | C33: 72 | D33: 86 | E33: 92.10526316 | F33: 95.83333333 | G33: 96.51162791 | H33: 86.84210526 | I33: 95.83333333 | J33: 93.02325581 | K33: 22.36842105 | L33: 41.66666667 | M33: 43.02325581
A34: Plzeň-sever | B34: 97 | C34: 84 | D34: 83 | E34: 91.75257732 | F34: 97.61904762 | G34: 100 | H34: 89.69072165 | I34: 96.42857143 | J34: 98.79518072 | K34: 25.77319588 | L34: 34.52380952 | M34: 46.98795181
A35: Rokycany | B35: 70 | C35: 66 | D35: 65 | E35: 97.14285714 | F35: 98.48484848 | G35: 100 | H35: 88.57142857 | I35: 98.48484848 | J35: 100 | K35: 21.42857143 | L35: 37.87878788 | M35: 56.92307692
A36: Tachov | B36: 86 | C36: 75 | D36: 85 | E36: 94.18604651 | F36: 94.66666667 | G36: 94.11764706 | H36: 88.37209302 | I36: 94.66666667 | J36: 94.11764706 | K36: 24.41860465 | L36: 28 | M36: 30.58823529
A37: Karlovarský kraj celkem | B37: 534 | C37: 445 | D37: 522 | E37: 97.00374532 | F37: 94.15730337 | G37: 93.10344828 | H37: 92.88389513 | I37: 91.91011236 | J37: 91.57088123 | K37: 26.40449438 | L37: 35.05617978 | M37: 38.31417625
A38: Cheb | B38: 168 | C38: 140 | D38: 165 | E38: 97.02380952 | F38: 95 | G38: 92.12121212 | H38: 94.04761905 | I38: 92.14285714 | J38: 89.09090909 | K38: 27.97619048 | L38: 35.71428571 | M38: 38.18181818
A39: Karlovy Vary | B39: 238 | C39: 202 | D39: 243 | E39: 96.21848739 | F39: 93.06930693 | G39: 91.76954733 | H39: 93.27731092 | I39: 90.59405941 | J39: 90.94650206 | K39: 28.99159664 | L39: 38.61386139 | M39: 41.97530864
A40: Sokolov | B40: 128 | C40: 103 | D40: 114 | E40: 98.4375 | F40: 95.14563107 | G40: 97.36842105 | H40: 90.625 | I40: 94.17475728 | J40: 96.49122807 | K40: 19.53125 | L40: 27.18446602 | M40: 30.70175439
A41: Ústecký kraj celkem | B41: 1267 | C41: 1110 | D41: 1145 | E41: 96.68508287 | F41: 96.93693694 | G41: 96.33187773 | H41: 91.0023678 | I41: 95.4954955 | J41: 95.19650655 | K41: 30.38674033 | L41: 39.90990991 | M41: 47.16157205
A42: Děčín | B42: 212 | C42: 172 | D42: 177 | E42: 98.11320755 | F42: 97.6744186 | G42: 97.17514124 | H42: 93.39622642 | I42: 97.6744186 | J42: 94.91525424 | K42: 25 | L42: 30.81395349 | M42: 38.98305085
A43: Chomutov | B43: 180 | C43: 156 | D43: 169 | E43: 98.88888889 | F43: 98.07692308 | G43: 98.22485207 | H43: 96.11111111 | I43: 94.87179487 | J43: 97.04142012 | K43: 27.77777778 | L43: 39.1025641 | M43: 42.01183432
A44: Litoměřice | B44: 190 | C44: 156 | D44: 186 | E44: 98.94736842 | F44: 98.71794872 | G44: 96.77419355 | H44: 93.15789474 | I44: 95.51282051 | J44: 96.23655914 | K44: 28.94736842 | L44: 37.82051282 | M44: 50.53763441
A45: Louny | B45: 140 | C45: 121 | D45: 118 | E45: 91.42857143 | F45: 97.52066116 | G45: 97.45762712 | H45: 85 | I45: 96.69421488 | J45: 94.91525424 | K45: 23.57142857 | L45: 34.7107438 | M45: 38.98305085
A46: Most | B46: 169 | C46: 148 | D46: 139 | E46: 94.08284024 | F46: 94.59459459 | G46: 99.28057554 | H46: 87.5739645 | I46: 93.24324324 | J46: 98.56115108 | K46: 31.36094675 | L46: 33.78378378 | M46: 48.92086331
A47: Teplice | B47: 155 | C47: 145 | D47: 154 | E47: 94.19354839 | F47: 95.17241379 | G47: 93.50649351 | H47: 89.03225806 | I47: 93.10344828 | J47: 94.15584416 | K47: 39.35483871 | L47: 50.34482759 | M47: 53.8961039
A48: Ústí n/L | B48: 221 | C48: 212 | D48: 202 | E48: 98.64253394 | F48: 96.69811321 | G48: 93.06930693 | H48: 90.49773756 | I48: 96.69811321 | J48: 91.58415842 | K48: 36.19909502 | L48: 49.52830189 | M48: 53.96039604
A49: Liberecký kraj celkem | B49: 698 | C49: 598 | D49: 695 | E49: 97.56446991 | F49: 97.32441472 | G49: 95.97122302 | H49: 92.97994269 | I49: 96.32107023 | J49: 94.38848921 | K49: 31.94842407 | L49: 44.14715719 | M49: 54.82014388
A50: Česká Lípa | B50: 153 | C50: 136 | D50: 160 | E50: 95.4248366 | F50: 95.58823529 | G50: 93.75 | H50: 92.15686275 | I50: 94.11764706 | J50: 92.5 | K50: 19.60784314 | L50: 28.67647059 | M50: 39.375
A51: Jablonec n/N | B51: 141 | C51: 125 | D51: 143 | E51: 97.87234043 | F51: 97.6 | G51: 97.9020979 | H51: 90.07092199 | I51: 96.8 | J51: 96.5034965 | K51: 34.75177305 | L51: 44 | M51: 57.34265734
A52: Liberec | B52: 278 | C52: 232 | D52: 266 | E52: 98.92086331 | F52: 98.27586207 | G52: 95.86466165 | H52: 95.32374101 | I52: 97.4137931 | J52: 94.73684211 | K52: 39.56834532 | L52: 53.44827586 | M52: 65.03759398
A53: Semily | B53: 126 | C53: 105 | D53: 126 | E53: 96.82539683 | F53: 97.14285714 | G53: 96.82539683 | H53: 92.06349206 | I53: 96.19047619 | J53: 93.65079365 | K53: 26.98412698 | L53: 43.80952381 | M53: 50
A54: Královéhradecký kraj celkem | B54: 959 | C54: 898 | D54: 906 | E54: 96.55891554 | F54: 98.88641425 | G54: 97.79249448 | H54: 92.38790407 | I54: 97.55011136 | J54: 96.57836645 | K54: 34.20229406 | L54: 47.10467706 | M54: 56.07064018
A55: Hradec Králové | B55: 323 | C55: 305 | D55: 314 | E55: 96.59442724 | F55: 98.68852459 | G55: 98.40764331 | H55: 91.33126935 | I55: 96.72131148 | J55: 97.13375796 | K55: 37.77089783 | L55: 51.80327869 | M55: 58.91719745
A56: Jičín | B56: 140 | C56: 127 | D56: 125 | E56: 94.28571429 | F56: 97.63779528 | G56: 96.8 | H56: 90 | I56: 97.63779528 | J56: 96.8 | K56: 25.71428571 | L56: 37.79527559 | M56: 54.4
A57: Náchod | B57: 170 | C57: 161 | D57: 154 | E57: 97.05882353 | F57: 98.75776398 | G57: 97.4025974 | H57: 95.29411765 | I57: 96.89440994 | J57: 94.80519481 | K57: 32.94117647 | L57: 43.47826087 | M57: 54.54545455
A58: Rychnov n/K | B58: 132 | C58: 120 | D58: 122 | E58: 96.96969697 | F58: 100 | G58: 100 | H58: 93.93939394 | I58: 99.16666667 | J58: 99.18032787 | K58: 30.3030303 | L58: 44.16666667 | M58: 56.55737705
A59: Trutnov | B59: 194 | C59: 185 | D59: 191 | E59: 97.42268041 | F59: 99.45945946 | G59: 96.33507853 | H59: 92.26804124 | I59: 98.37837838 | J59: 95.28795812 | K59: 38.1443299 | L59: 50.81081081 | M59: 53.40314136
A60: Pardubický kraj celkem | B60: 842 | C60: 778 | D60: 824 | E60: 97.03087886 | F60: 98.20051414 | G60: 96.84466019 | H60: 93.70546318 | I60: 96.40102828 | J60: 96.23786408 | K60: 38.12351544 | L60: 49.10025707 | M60: 54.61165049
A61: Chrudim | B61: 172 | C61: 160 | D61: 158 | E61: 98.25581395 | F61: 98.75 | G61: 98.10126582 | H61: 96.51162791 | I61: 98.125 | J61: 96.83544304 | K61: 36.62790698 | L61: 48.75 | M61: 58.2278481
A62: Pardubice | B62: 290 | C62: 272 | D62: 304 | E62: 94.48275862 | F62: 98.52941176 | G62: 95.72368421 | H62: 91.03448276 | I62: 95.58823529 | J62: 95.06578947 | K62: 42.4137931 | L62: 52.94117647 | M62: 59.21052632
A63: Svitavy | B63: 163 | C63: 148 | D63: 150 | E63: 98.1595092 | F63: 97.2972973 | G63: 98.66666667 | H63: 95.09202454 | I63: 96.62162162 | J63: 98.66666667 | K63: 33.74233129 | L63: 45.94594595 | M63: 52
A64: Ústí n/Orl. | B64: 217 | C64: 198 | D64: 212 | E64: 98.61751152 | F64: 97.97979798 | G64: 96.22641509 | H64: 94.00921659 | I64: 95.95959596 | J64: 95.75471698 | K64: 36.86635945 | L64: 46.46464646 | M64: 47.16981132
A65: Vysočina celkem | B65: 822 | C65: 794 | D65: 814 | E65: 95.62043796 | F65: 96.59949622 | G65: 97.2972973 | H65: 90.51094891 | I65: 95.59193955 | J65: 96.31449631 | K65: 27.98053528 | L65: 39.79848866 | M65: 48.03439803
A66: Havlíčkův Brod | B66: 160 | C66: 154 | D66: 155 | E66: 97.5 | F66: 96.1038961 | G66: 98.70967742 | H66: 91.875 | I66: 94.15584416 | J66: 96.77419355 | K66: 29.375 | L66: 39.61038961 | M66: 43.22580645
A67: Jihlava | B67: 197 | C67: 189 | D67: 193 | E67: 94.41624365 | F67: 94.17989418 | G67: 96.37305699 | H67: 86.29441624 | I67: 93.65079365 | J67: 95.85492228 | K67: 30.96446701 | L67: 41.26984127 | M67: 52.84974093
A68: Pelhřimov | B68: 114 | C68: 108 | D68: 111 | E68: 96.49122807 | F68: 97.22222222 | G68: 97.2972973 | H68: 92.98245614 | I68: 97.22222222 | J68: 97.2972973 | K68: 21.05263158 | L68: 35.18518519 | M68: 45.04504505
A69: Třebíč | B69: 172 | C69: 155 | D69: 160 | E69: 92.44186047 | F69: 97.41935484 | G69: 98.75 | H69: 89.53488372 | I69: 96.77419355 | J69: 98.125 | K69: 30.81395349 | L69: 46.4516129 | M69: 58.125
A70: Žďár n/Sáz. | B70: 179 | C70: 188 | D70: 195 | E70: 97.76536313 | F70: 98.40425532 | G70: 95.8974359 | H70: 93.29608939 | I70: 96.80851064 | J70: 94.35897436 | K70: 25.1396648 | L70: 35.63829787 | M70: 40.51282051
A71: Jihomoravský kraj celkem | B71: 2189 | C71: 2086 | D71: 2121 | E71: 95.70580174 | F71: 96.74017258 | G71: 98.25553984 | H71: 92.05116492 | I71: 95.97315436 | J71: 97.35973597 | K71: 38.92188214 | L71: 48.99328859 | M71: 58.98161245
A72: Blansko | B72: 165 | C72: 148 | D72: 155 | E72: 95.75757576 | F72: 97.2972973 | G72: 99.35483871 | H72: 87.27272727 | I72: 97.97297297 | J72: 96.77419355 | K72: 36.36363636 | L72: 46.62162162 | M72: 52.25806452
A73: Brno-město | B73: 1056 | C73: 1022 | D73: 1035 | E73: 95.45454545 | F73: 95.59686888 | G73: 97.68115942 | H73: 92.42424242 | I73: 94.32485323 | J73: 97.19806763 | K73: 48.29545455 | L73: 57.53424658 | M73: 66.76328502
A74: Brno-venkov | B74: 261 | C74: 240 | D74: 247 | E74: 94.25287356 | F74: 97.08333333 | G74: 98.7854251 | H74: 88.88888889 | I74: 97.08333333 | J74: 97.5708502 | K74: 30.26819923 | L74: 42.5 | M74: 57.48987854
A75: Břeclav | B75: 155 | C75: 158 | D75: 158 | E75: 94.83870968 | F75: 97.46835443 | G75: 97.46835443 | H75: 90.32258065 | I75: 96.83544304 | J75: 95.56962025 | K75: 30.32258065 | L75: 42.40506329 | M75: 53.16455696
A76: Hodonín | B76: 254 | C76: 236 | D76: 242 | E76: 97.63779528 | F76: 98.72881356 | G76: 98.34710744 | H76: 93.7007874 | I76: 97.45762712 | J76: 97.9338843 | K76: 24.01574803 | L76: 30.08474576 | M76: 38.42975207
A77: Vyškov | B77: 131 | C77: 118 | D77: 124 | E77: 97.70992366 | F77: 99.15254237 | G77: 100 | H77: 97.70992366 | I77: 99.15254237 | J77: 100 | K77: 38.16793893 | L77: 56.77966102 | M77: 61.29032258
A78: Znojmo | B78: 167 | C78: 164 | D78: 160 | E78: 95.80838323 | F78: 97.56097561 | G78: 99.375 | H78: 94.01197605 | I78: 97.56097561 | J78: 97.5 | K78: 26.94610778 | L78: 35.36585366 | M78: 52.5
A79: Olomoucký kraj celkem | B79: 1140 | C79: 1128 | D79: 1119 | E79: 97.54385965 | F79: 97.78368794 | G79: 97.14030384 | H79: 93.85964912 | I79: 96.71985816 | J79: 96.06791778 | K79: 35.26315789 | L79: 47.69503546 | M79: 55.58534406
A80: Jeseník | B80: 55 | C80: 53 | D80: 51 | E80: 100 | F80: 100 | G80: 96.07843137 | H80: 98.18181818 | I80: 100 | J80: 96.07843137 | K80: 36.36363636 | L80: 43.39622642 | M80: 54.90196078
A81: Olomouc | B81: 458 | C81: 470 | D81: 478 | E81: 97.81659389 | F81: 96.80851064 | G81: 96.65271967 | H81: 93.66812227 | I81: 95.95744681 | J81: 96.44351464 | K81: 42.79475983 | L81: 55.31914894 | M81: 61.92468619
A82: Prostějov | B82: 200 | C82: 199 | D82: 200 | E82: 94 | F82: 96.98492462 | G82: 96 | H82: 90 | I82: 94.97487437 | J82: 92.5 | K82: 27.5 | L82: 37.18592965 | M82: 48
A83: Přerov | B83: 217 | C83: 211 | D83: 200 | E83: 100 | F83: 99.0521327 | G83: 98.5 | H83: 95.39170507 | I83: 98.1042654 | J83: 97.5 | K83: 30.41474654 | L83: 46.91943128 | M83: 55
A84: Šumperk | B84: 210 | C84: 195 | D84: 190 | E84: 97.14285714 | F84: 98.97435897 | G84: 98.42105263 | H84: 95.23809524 | I84: 97.94871795 | J84: 97.36842105 | K84: 30.95238095 | L84: 42.05128205 | M84: 48.42105263
A85: Zlínský kraj celkem | B85: 1056 | C85: 1007 | D85: 1006 | E85: 97.53787879 | F85: 97.02085402 | G85: 97.2166998 | H85: 93.65530303 | I85: 96.02780536 | J85: 96.32206759 | K85: 31.34469697 | L85: 43.99205561 | M85: 51.09343936
A86: Kroměříž | B86: 196 | C86: 179 | D86: 182 | E86: 98.97959184 | F86: 97.76536313 | G86: 98.35164835 | H86: 93.87755102 | I86: 97.20670391 | J86: 97.25274725 | K86: 33.16326531 | L86: 46.36871508 | M86: 56.04395604
A87: Uherské Hradiště | B87: 252 | C87: 233 | D87: 240 | E87: 97.22222222 | F87: 95.27896996 | G87: 97.91666667 | H87: 93.25396825 | I87: 95.70815451 | J87: 97.5 | K87: 27.77777778 | L87: 42.91845494 | M87: 51.25
A88: Vsetín | B88: 259 | C88: 245 | D88: 242 | E88: 96.91119691 | F88: 97.95918367 | G88: 96.69421488 | H88: 93.43629344 | I88: 96.73469388 | J88: 95.8677686 | K88: 26.25482625 | L88: 34.69387755 | M88: 40.49586777
A89: Zlín | B89: 349 | C89: 350 | D89: 342 | E89: 97.42120344 | F89: 97.14285714 | G89: 96.49122807 | H89: 93.98280802 | I89: 95.14285714 | J89: 95.32163743 | K89: 36.67621777 | L89: 50 | M89: 55.84795322
A90: Moravskoslezský kraj celkem | B90: 2051 | C90: 1946 | D90: 1962 | E90: 96.05070697 | F90: 97.0709147 | G90: 97.45158002 | H90: 91.5163335 | I90: 96.4028777 | J90: 96.68705403 | K90: 37.20136519 | L90: 49.53751285 | M90: 58.15494393
A91: Bruntál | B91: 149 | C91: 137 | D91: 130 | E91: 97.98657718 | F91: 97.81021898 | G91: 99.23076923 | H91: 91.94630872 | I91: 97.08029197 | J91: 98.46153846 | K91: 36.91275168 | L91: 44.52554745 | M91: 57.69230769
A92: Frýdek-Místek | B92: 336 | C92: 320 | D92: 335 | E92: 97.32142857 | F92: 98.75 | G92: 98.20895522 | H92: 92.55952381 | I92: 97.5 | J92: 96.71641791 | K92: 35.11904762 | L92: 47.5 | M92: 56.71641791
A93: Karviná | B93: 391 | C93: 382 | D93: 367 | E93: 97.18670077 | F93: 97.38219895 | G93: 96.1852861 | H93: 93.86189258 | I93: 97.12041885 | J93: 95.09536785 | K93: 35.8056266 | L93: 45.02617801 | M93: 53.13351499
A94: Nový Jičín | B94: 232 | C94: 227 | D94: 213 | E94: 96.98275862 | F94: 99.11894273 | G94: 99.06103286 | H94: 92.24137931 | I94: 97.35682819 | J94: 97.65258216 | K94: 32.75862069 | L94: 46.69603524 | M94: 53.99061033
A95: Opava | B95: 293 | C95: 251 | D95: 269 | E95: 97.6109215 | F95: 97.60956175 | G95: 98.51301115 | H95: 91.46757679 | I95: 97.60956175 | J95: 98.14126394 | K95: 39.59044369 | L95: 49.00398406 | M95: 64.68401487
A96: Ostrava-město | B96: 650 | C96: 629 | D96: 648 | E96: 93.23076923 | F96: 94.91255962 | G96: 96.45061728 | H96: 89.23076923 | I96: 94.43561208 | J96: 96.2962963 | K96: 39.69230769 | L96: 55.64387917 | M96: 60.49382716
K97: 36.11126381 | L97: 46.60647013 | M97: Zdroj: Ústav zdravotnických informací a statistiky ČR a vlastní dopočty ČSÚ
A98: * % zdravotnických zařízení daného typu, která se zúčastnila šetření
A99: ** celkový počet ordinací, které odevzdaly výkaz

Sheet T3
A1: Tab. 3: Samostatné ordinace praktického lékaře pro dospělé vybavené IT v okresech a krajích ČR; 2024
A2: zpět na seznam
B3: Celkový počet ordinací** | C3: Počítač | E3: Připojení k internetu | G3: Vlastní webová stránka
C4: počet | D4: %* | E4: počet | F4: %* | G4: počet | H4: %*
A5: Celkem ČR | B5: 3919 | C5: 3872 | D5: =C5/B5*100 -> 98.80071447 | E5: 3821 | F5: =E5/B5*100 -> 97.49936208 | G5: 2481 | H5: =G5/B5*100 -> 63.30696606
A6: Hl. m. Praha | B6: 508 | C6: 497 | D6: =C6/B6*100 -> 97.83464567 | E6: 491 | F6: =E6/B6*100 -> 96.65354331 | G6: 372 | H6: =G6/B6*100 -> 73.22834646
A7: Středočeský kraj celkem | B7: 448 | C7: 444 | D7: 99.10714286 | E7: 438 | F7: 97.76785714 | G7: 312 | H7: 69.64285714
A8: Benešov | B8: 37 | C8: 37 | D8: 100 | E8: 37 | F8: 100 | G8: 18 | H8: 48.64864865
A9: Beroun | B9: 27 | C9: 27 | D9: 100 | E9: 27 | F9: 100 | G9: 21 | H9: 77.77777778
A10: Kladno | B10: 50 | C10: 49 | D10: 98 | E10: 48 | F10: 96 | G10: 32 | H10: 64
A11: Kolín | B11: 36 | C11: 36 | D11: 100 | E11: 36 | F11: 100 | G11: 29 | H11: 80.55555556
A12: Kutná Hora | B12: 34 | C12: 34 | D12: 100 | E12: 34 | F12: 100 | G12: 27 | H12: 79.41176471
A13: Mělník | B13: 37 | C13: 37 | D13: 100 | E13: 35 | F13: 94.59459459 | G13: 25 | H13: 67.56756757
A14: Mladá Boleslav | B14: 43 | C14: 43 | D14: 100 | E14: 43 | F14: 100 | G14: 31 | H14: 72.09302326
A15: Nymburk | B15: 35 | C15: 35 | D15: 100 | E15: 34 | F15: 97.14285714 | G15: 21 | H15: 60
A16: Praha-východ | B16: 50 | C16: 50 | D16: 100 | E16: 49 | F16: 98 | G16: 35 | H16: 70
A17: Praha-západ | B17: 40 | C17: 37 | D17: 92.5 | E17: 37 | F17: 92.5 | G17: 31 | H17: 77.5
A18: Příbram | B18: 39 | C18: 39 | D18: 100 | E18: 39 | F18: 100 | G18: 29 | H18: 74.35897436
A19: Rakovník | B19: 20 | C19: 20 | D19: 100 | E19: 19 | F19: 95 | G19: 13 | H19: 65
A20: Jihočeský kraj celkem | B20: 241 | C20: 238 | D20: 98.75518672 | E20: 238 | F20: 98.75518672 | G20: 146 | H20: 60.58091286
A21: České Budějovice | B21: 64 | C21: 62 | D21: 96.875 | E21: 63 | F21: 98.4375 | G21: 36 | H21: 56.25
A22: Český Krumlov | B22: 17 | C22: 17 | D22: 100 | E22: 17 | F22: 100 | G22: 10 | H22: 58.82352941
A23: Jindřichův Hradec | B23: 34 | C23: 34 | D23: 100 | E23: 34 | F23: 100 | G23: 21 | H23: 61.76470588
A24: Písek | B24: 31 | C24: 30 | D24: 96.77419355 | E24: 29 | F24: 93.5483871 | G24: 14 | H24: 45.16129032
A25: Prachatice | B25: 24 | C25: 24 | D25: 100 | E25: 24 | F25: 100 | G25: 19 | H25: 79.16666667
A26: Strakonice | B26: 26 | C26: 26 | D26: 100 | E26: 26 | F26: 100 | G26: 17 | H26: 65.38461538
A27: Tábor | B27: 45 | C27: 45 | D27: 100 | E27: 45 | F27: 100 | G27: 29 | H27: 64.44444444
A28: Plzeňský kraj celkem | B28: 215 | C28: 208 | D28: 96.74418605 | E28: 207 | F28: 96.27906977 | G28: 120 | H28: 55.81395349
A29: Domažlice | B29: 17 | C29: 16 | D29: 94.11764706 | E29: 15 | F29: 88.23529412 | G29: 10 | H29: 58.82352941
A30: Klatovy | B30: 34 | C30: 34 | D30: 100 | E30: 34 | F30: 100 | G30: 22 | H30: 64.70588235
A31: Plzeň-město | B31: 76 | C31: 72 | D31: 94.73684211 | E31: 72 | F31: 94.73684211 | G31: 46 | H31: 60.52631579
A32: Plzeň-jih | B32: 25 | C32: 24 | D32: 96 | E32: 24 | F32: 96 | G32: 10 | H32: 40
A33: Plzeň-sever | B33: 26 | C33: 26 | D33: 100 | E33: 26 | F33: 100 | G33: 14 | H33: 53.84615385
A34: Rokycany | B34: 18 | C34: 18 | D34: 100 | E34: 18 | F34: 100 | G34: 11 | H34: 61.11111111
A35: Tachov | B35: 19 | C35: 18 | D35: 94.73684211 | E35: 18 | F35: 94.73684211 | G35: 7 | H35: 36.84210526
A36: Karlovarský kraj celkem | B36: 101 | C36: 100 | D36: 99.00990099 | E36: 98 | F36: 97.02970297 | G36: 46 | H36: 45.54455446
A37: Cheb | B37: 31 | C37: 30 | D37: 96.77419355 | E37: 29 | F37: 93.5483871 | G37: 12 | H37: 38.70967742
A38: Karlovy Vary | B38: 43 | C38: 43 | D38: 100 | E38: 42 | F38: 97.6744186 | G38: 23 | H38: 53.48837209
A39: Sokolov | B39: 27 | C39: 27 | D39: 100 | E39: 27 | F39: 100 | G39: 11 | H39: 40.74074074
A40: Ústecký kraj celkem | B40: 263 | C40: 258 | D40: 98.09885932 | E40: 252 | F40: 95.81749049 | G40: 136 | H40: 51.71102662
A41: Děčín | B41: 44 | C41: 43 | D41: 97.72727273 | E41: 40 | F41: 90.90909091 | G41: 19 | H41: 43.18181818
A42: Chomutov | B42: 37 | C42: 37 | D42: 100 | E42: 36 | F42: 97.2972973 | G42: 15 | H42: 40.54054054
A43: Litoměřice | B43: 44 | C43: 44 | D43: 100 | E43: 44 | F43: 100 | G43: 25 | H43: 56.81818182
A44: Louny | B44: 30 | C44: 29 | D44: 96.66666667 | E44: 29 | F44: 96.66666667 | G44: 10 | H44: 33.33333333
A45: Most | B45: 34 | C45: 34 | D45: 100 | E45: 34 | F45: 100 | G45: 21 | H45: 61.76470588
A46: Teplice | B46: 35 | C46: 34 | D46: 97.14285714 | E46: 33 | F46: 94.28571429 | G46: 20 | H46: 57.14285714
A47: Ústí n/L | B47: 39 | C47: 37 | D47: 94.87179487 | E47: 36 | F47: 92.30769231 | G47: 26 | H47: 66.66666667
A48: Liberecký kraj celkem | B48: 169 | C48: 167 | D48: 98.81656805 | E48: 165 | F48: 97.63313609 | G48: 111 | H48: 65.68047337
A49: Česká Lípa | B49: 37 | C49: 36 | D49: 97.2972973 | E49: 36 | F49: 97.2972973 | G49: 21 | H49: 56.75675676
A50: Jablonec n/N | B50: 36 | C50: 36 | D50: 100 | E50: 36 | F50: 100 | G50: 23 | H50: 63.88888889
A51: Liberec | B51: 64 | C51: 64 | D51: 100 | E51: 63 | F51: 98.4375 | G51: 48 | H51: 75
A52: Semily | B52: 32 | C52: 31 | D52: 96.875 | E52: 30 | F52: 93.75 | G52: 19 | H52: 59.375
A53: Královéhradecký kraj celkem | B53: 208 | C53: 207 | D53: 99.51923077 | E53: 203 | F53: 97.59615385 | G53: 141 | H53: 67.78846154
A54: Hradec Králové | B54: 62 | C54: 62 | D54: 100 | E54: 60 | F54: 96.77419355 | G54: 49 | H54: 79.03225806
A55: Jičín | B55: 32 | C55: 32 | D55: 100 | E55: 32 | F55: 100 | G55: 22 | H55: 68.75
A56: Náchod | B56: 41 | C56: 40 | D56: 97.56097561 | E56: 39 | F56: 95.12195122 | G56: 21 | H56: 51.2195122
A57: Rychnov n/K | B57: 31 | C57: 31 | D57: 100 | E57: 31 | F57: 100 | G57: 19 | H57: 61.29032258
A58: Trutnov | B58: 42 | C58: 42 | D58: 100 | E58: 41 | F58: 97.61904762 | G58: 30 | H58: 71.42857143
A59: Pardubický kraj celkem | B59: 186 | C59: 184 | D59: 98.92473118 | E59: 182 | F59: 97.84946237 | G59: 115 | H59: 61.82795699
A60: Chrudim | B60: 37 | C60: 37 | D60: 100 | E60: 36 | F60: 97.2972973 | G60: 22 | H60: 59.45945946
A61: Pardubice | B61: 61 | C61: 60 | D61: 98.36065574 | E61: 60 | F61: 98.36065574 | G61: 46 | H61: 75.40983607
A62: Svitavy | B62: 34 | C62: 34 | D62: 100 | E62: 34 | F62: 100 | G62: 16 | H62: 47.05882353
A63: Ústí n/Orl. | B63: 54 | C63: 53 | D63: 98.14814815 | E63: 52 | F63: 96.2962963 | G63: 31 | H63: 57.40740741
A64: Vysočina celkem | B64: 191 | C64: 189 | D64: 98.95287958 | E64: 187 | F64: 97.90575916 | G64: 112 | H64: 58.63874346
A65: Havlíčkův Brod | B65: 33 | C65: 33 | D65: 100 | E65: 33 | F65: 100 | G65: 14 | H65: 42.42424242
A66: Jihlava | B66: 46 | C66: 45 | D66: 97.82608696 | E66: 45 | F66: 97.82608696 | G66: 33 | H66: 71.73913043
A67: Pelhřimov | B67: 30 | C67: 30 | D67: 100 | E67: 30 | F67: 100 | G67: 15 | H67: 50
A68: Třebíč | B68: 39 | C68: 38 | D68: 97.43589744 | E68: 38 | F68: 97.43589744 | G68: 32 | H68: 82.05128205
A69: Žďár n/Sáz. | B69: 43 | C69: 43 | D69: 100 | E69: 41 | F69: 95.34883721 | G69: 18 | H69: 41.86046512
A70: Jihomoravský kraj celkem | B70: 480 | C70: 474 | D70: =C70/B70*100 -> 98.75 | E70: 468 | F70: =E70/B70*100 -> 97.5 | G70: 312 | H70: =G70/B70*100 -> 65
A71: Blansko | B71: 45 | C71: 45 | D71: 100 | E71: 43 | F71: 95.55555556 | G71: 30 | H71: 66.66666667
A72: Brno-město | B72: 191 | C72: 188 | D72: 98.42931937 | E72: 189 | F72: 98.95287958 | G72: 137 | H72: 71.72774869
A73: Brno-venkov | B73: 69 | C73: 67 | D73: 97.10144928 | E73: 66 | F73: 95.65217391 | G73: 46 | H73: 66.66666667
A74: Břeclav | B74: 43 | C74: 42 | D74: 97.6744186 | E74: 40 | F74: 93.02325581 | G74: 26 | H74: 60.46511628
A75: Hodonín | B75: 60 | C75: 60 | D75: 100 | E75: 60 | F75: 100 | G75: 26 | H75: 43.33333333
A76: Vyškov | B76: 33 | C76: 33 | D76: 100 | E76: 33 | F76: 100 | G76: 21 | H76: 63.63636364
A77: Znojmo | B77: 39 | C77: 39 | D77: 100 | E77: 37 | F77: 94.87179487 | G77: 26 | H77: 66.66666667
A78: Olomoucký kraj celkem | B78: 250 | C78: 249 | D78: 99.6 | E78: 246 | F78: 98.4 | G78: 170 | H78: 68
A79: Jeseník | B79: 11 | C79: 11 | D79: 100 | E79: 11 | F79: 100 | G79: 7 | H79: 63.63636364
A80: Olomouc | B80: 97 | C80: 96 | D80: 98.96907216 | E80: 96 | F80: 98.96907216 | G80: 70 | H80: 72.16494845
A81: Prostějov | B81: 43 | C81: 43 | D81: 100 | E81: 42 | F81: 97.6744186 | G81: 26 | H81: 60.46511628
A82: Přerov | B82: 48 | C82: 48 | D82: 100 | E82: 48 | F82: 100 | G82: 33 | H82: 68.75
A83: Šumperk | B83: 51 | C83: 51 | D83: 100 | E83: 49 | F83: 96.07843137 | G83: 34 | H83: 66.66666667
A84: Zlínský kraj celkem | B84: 227 | C84: 226 | D84: 99.55947137 | E84: 223 | F84: 98.23788546 | G84: 109 | H84: 48.01762115
A85: Kroměříž | B85: 41 | C85: 41 | D85: 100 | E85: 41 | F85: 100 | G85: 23 | H85: 56.09756098
A86: Uherské Hradiště | B86: 64 | C86: 64 | D86: 100 | E86: 63 | F86: 98.4375 | G86: 29 | H86: 45.3125
A87: Vsetín | B87: 51 | C87: 50 | D87: 98.03921569 | E87: 50 | F87: 98.03921569 | G87: 20 | H87: 39.21568627
A88: Zlín | B88: 71 | C88: 71 | D88: 100 | E88: 69 | F88: 97.18309859 | G88: 37 | H88: 52.11267606
A89: Moravskoslezský kraj celkem | B89: 432 | C89: 431 | D89: 99.76851852 | E89: 423 | F89: 97.91666667 | G89: 279 | H89: 64.58333333
A90: Bruntál | B90: 31 | C90: 31 | D90: 100 | E90: 30 | F90: 96.77419355 | G90: 18 | H90: 58.06451613
A91: Frýdek-Místek | B91: 75 | C91: 74 | D91: 98.66666667 | E91: 71 | F91: 94.66666667 | G91: 47 | H91: 62.66666667
A92: Karviná | B92: 86 | C92: 86 | D92: 100 | E92: 85 | F92: 98.8372093 | G92: 50 | H92: 58.13953488
A93: Nový Jičín | B93: 57 | C93: 57 | D93: 100 | E93: 54 | F93: 94.73684211 | G93: 34 | H93: 59.64912281
A94: Opava | B94: 65 | C94: 65 | D94: 100 | E94: 65 | F94: 100 | G94: 42 | H94: 64.61538462
A95: Ostrava-město | B95: 118 | C95: 118 | D95: 100 | E95: 118 | F95: 100 | G95: 88 | H95: 74.57627119
A96: Zdroj: Ústav zdravotnických informací a statistiky ČR a vlastní dopočty ČSÚ
A97: * % zdravotnických zařízení daného typu, která se zúčastnila šetření
A98: ** celkový počet ordinací, které odevzdaly výkaz

Sheet T4
A1: Tab. 4: Samostatné ordinace praktického lékaře pro děti a dorost vybavené IT v okresech a krajích ČR; 2024
A2: zpět na seznam
B3: Celkový počet ordinací** | C3: Počítač | E3: Připojení k internetu | G3: Vlastní webová stránka
C4: počet | D4: %* | E4: počet | F4: %* | G4: počet | H4: %*
A5: Celkem ČR | B5: 1534 | C5: 1515 | D5: =C5/B5*100 -> 98.76140808 | E5: 1507 | F5: =E5/B5*100 -> 98.2398957 | G5: 1147 | H5: =G5/B5*100 -> 74.77183833
A6: Hl. m. Praha | B6: 184 | C6: 181 | D6: =C6/B6*100 -> 98.36956522 | E6: 180 | F6: =E6/B6*100 -> 97.82608696 | G6: 147 | H6: =G6/B6*100 -> 79.89130435
A7: Středočeský kraj celkem | B7: 197 | C7: 195 | D7: 98.98477157 | E7: 195 | F7: 98.98477157 | G7: 158 | H7: 80.20304569
A8: Benešov | B8: 15 | C8: 15 | D8: 100 | E8: 15 | F8: 100 | G8: 11 | H8: 73.33333333
A9: Beroun | B9: 13 | C9: 13 | D9: 100 | E9: 13 | F9: 100 | G9: 11 | H9: 84.61538462
A10: Kladno | B10: 25 | C10: 24 | D10: 96 | E10: 25 | F10: 100 | G10: 20 | H10: 80
A11: Kolín | B11: 15 | C11: 15 | D11: 100 | E11: 15 | F11: 100 | G11: 11 | H11: 73.33333333
A12: Kutná Hora | B12: 9 | C12: 9 | D12: 100 | E12: 9 | F12: 100 | G12: 7 | H12: 77.77777778
A13: Mělník | B13: 15 | C13: 15 | D13: 100 | E13: 15 | F13: 100 | G13: 12 | H13: 80
A14: Mladá Boleslav | B14: 24 | C14: 24 | D14: 100 | E14: 24 | F14: 100 | G14: 16 | H14: 66.66666667
A15: Nymburk | B15: 13 | C15: 13 | D15: 100 | E15: 12 | F15: 92.30769231 | G15: 10 | H15: 76.92307692
A16: Praha-východ | B16: 21 | C16: 21 | D16: 100 | E16: 21 | F16: 100 | G16: 18 | H16: 85.71428571
A17: Praha-západ | B17: 26 | C17: 25 | D17: 96.15384615 | E17: 25 | F17: 96.15384615 | G17: 23 | H17: 88.46153846
A18: Příbram | B18: 14 | C18: 14 | D18: 100 | E18: 14 | F18: 100 | G18: 13 | H18: 92.85714286
A19: Rakovník | B19: 7 | C19: 7 | D19: 100 | E19: 7 | F19: 100 | G19: 6 | H19: 85.71428571
A20: Jihočeský kraj celkem | B20: 90 | C20: 87 | D20: 96.66666667 | E20: 87 | F20: 96.66666667 | G20: 60 | H20: 66.66666667
A21: České Budějovice | B21: 21 | C21: 21 | D21: 100 | E21: 21 | F21: 100 | G21: 15 | H21: 71.42857143
A22: Český Krumlov | B22: 9 | C22: 8 | D22: 88.88888889 | E22: 8 | F22: 88.88888889 | G22: 7 | H22: 77.77777778
A23: Jindřichův Hradec | B23: 18 | C23: 17 | D23: 94.44444444 | E23: 17 | F23: 94.44444444 | G23: 11 | H23: 61.11111111
A24: Písek | B24: 10 | C24: 10 | D24: 100 | E24: 10 | F24: 100 | G24: 6 | H24: 60
A25: Prachatice | B25: 8 | C25: 8 | D25: 100 | E25: 8 | F25: 100 | G25: 7 | H25: 87.5
A26: Strakonice | B26: 11 | C26: 11 | D26: 100 | E26: 11 | F26: 100 | G26: 6 | H26: 54.54545455
A27: Tábor | B27: 13 | C27: 12 | D27: 92.30769231 | E27: 12 | F27: 92.30769231 | G27: 8 | H27: 61.53846154
A28: Plzeňský kraj celkem | B28: 82 | C28: 82 | D28: 100 | E28: 81 | F28: 98.7804878 | G28: 58 | H28: 70.73170732
A29: Domažlice | B29: 6 | C29: 6 | D29: 100 | E29: 6 | F29: 100 | G29: 4 | H29: 66.66666667
A30: Klatovy | B30: 11 | C30: 11 | D30: 100 | E30: 11 | F30: 100 | G30: 8 | H30: 72.72727273
A31: Plzeň-město | B31: 33 | C31: 33 | D31: 100 | E31: 33 | F31: 100 | G31: 24 | H31: 72.72727273
A32: Plzeň-jih | B32: 9 | C32: 9 | D32: 100 | E32: 8 | F32: 88.88888889 | G32: 8 | H32: 88.88888889
A33: Plzeň-sever | B33: 12 | C33: 12 | D33: 100 | E33: 12 | F33: 100 | G33: 6 | H33: 50
A34: Rokycany | B34: 7 | C34: 7 | D34: 100 | E34: 7 | F34: 100 | G34: 4 | H34: 57.14285714
A35: Tachov | B35: 4 | C35: 4 | D35: 100 | E35: 4 | F35: 100 | G35: 4 | H35: 100
A36: Karlovarský kraj celkem | B36: 41 | C36: 41 | D36: 100 | E36: 41 | F36: 100 | G36: 19 | H36: 46.34146341
A37: Cheb | B37: 14 | C37: 14 | D37: 100 | E37: 14 | F37: 100 | G37: 7 | H37: 50
A38: Karlovy Vary | B38: 17 | C38: 17 | D38: 100 | E38: 17 | F38: 100 | G38: 7 | H38: 41.17647059
A39: Sokolov | B39: 10 | C39: 10 | D39: 100 | E39: 10 | F39: 100 | G39: 5 | H39: 50
A40: Ústecký kraj celkem | B40: 113 | C40: 109 | D40: 96.46017699 | E40: 109 | F40: 96.46017699 | G40: 76 | H40: 67.25663717
A41: Děčín | B41: 19 | C41: 19 | D41: 100 | E41: 18 | F41: 94.73684211 | G41: 14 | H41: 73.68421053
A42: Chomutov | B42: 19 | C42: 18 | D42: 94.73684211 | E42: 18 | F42: 94.73684211 | G42: 13 | H42: 68.42105263
A43: Litoměřice | B43: 17 | C43: 16 | D43: 94.11764706 | E43: 16 | F43: 94.11764706 | G43: 14 | H43: 82.35294118
A44: Louny | B44: 8 | C44: 8 | D44: 100 | E44: 8 | F44: 100 | G44: 1 | H44: 12.5
A45: Most | B45: 19 | C45: 19 | D45: 100 | E45: 19 | F45: 100 | G45: 11 | H45: 57.89473684
A46: Teplice | B46: 16 | C46: 14 | D46: 87.5 | E46: 15 | F46: 93.75 | G46: 12 | H46: 75
A47: Ústí n/L | B47: 15 | C47: 15 | D47: 100 | E47: 15 | F47: 100 | G47: 11 | H47: 73.33333333
A48: Liberecký kraj celkem | B48: 68 | C48: 67 | D48: 98.52941176 | E48: 65 | F48: 95.58823529 | G48: 54 | H48: 79.41176471
A49: Česká Lípa | B49: 15 | C49: 15 | D49: 100 | E49: 15 | F49: 100 | G49: 8 | H49: 53.33333333
A50: Jablonec n/N | B50: 15 | C50: 15 | D50: 100 | E50: 15 | F50: 100 | G50: 13 | H50: 86.66666667
A51: Liberec | B51: 25 | C51: 24 | D51: 96 | E51: 23 | F51: 92 | G51: 22 | H51: 88
A52: Semily | B52: 13 | C52: 13 | D52: 100 | E52: 12 | F52: 92.30769231 | G52: 11 | H52: 84.61538462
A53: Královéhradecký kraj celkem | B53: 86 | C53: 84 | D53: 97.6744186 | E53: 84 | F53: 97.6744186 | G53: 65 | H53: 75.58139535
A54: Hradec Králové | B54: 28 | C54: 28 | D54: 100 | E54: 28 | F54: 100 | G54: 22 | H54: 78.57142857
A55: Jičín | B55: 11 | C55: 11 | D55: 100 | E55: 11 | F55: 100 | G55: 9 | H55: 81.81818182
A56: Náchod | B56: 12 | C56: 12 | D56: 100 | E56: 12 | F56: 100 | G56: 11 | H56: 91.66666667
A57: Rychnov n/K | B57: 13 | C57: 13 | D57: 100 | E57: 13 | F57: 100 | G57: 11 | H57: 84.61538462
A58: Trutnov | B58: 22 | C58: 20 | D58: 90.90909091 | E58: 20 | F58: 90.90909091 | G58: 12 | H58: 54.54545455
A59: Pardubický kraj celkem | B59: 80 | C59: 80 | D59: 100 | E59: 79 | F59: 98.75 | G59: 61 | H59: 76.25
A60: Chrudim | B60: 17 | C60: 17 | D60: 100 | E60: 16 | F60: 94.11764706 | G60: 13 | H60: 76.47058824
A61: Pardubice | B61: 25 | C61: 25 | D61: 100 | E61: 25 | F61: 100 | G61: 17 | H61: 68
A62: Svitavy | B62: 16 | C62: 16 | D62: 100 | E62: 16 | F62: 100 | G62: 14 | H62: 87.5
A63: Ústí n/Orl. | B63: 22 | C63: 22 | D63: 100 | E63: 22 | F63: 100 | G63: 17 | H63: 77.27272727
A64: Vysočina celkem | B64: 73 | C64: 73 | D64: 100 | E64: 73 | F64: 100 | G64: 55 | H64: 75.34246575
A65: Havlíčkův Brod | B65: 13 | C65: 13 | D65: 100 | E65: 13 | F65: 100 | G65: 12 | H65: 92.30769231
A66: Jihlava | B66: 14 | C66: 14 | D66: 100 | E66: 14 | F66: 100 | G66: 12 | H66: 85.71428571
A67: Pelhřimov | B67: 9 | C67: 9 | D67: 100 | E67: 9 | F67: 100 | G67: 7 | H67: 77.77777778
A68: Třebíč | B68: 17 | C68: 17 | D68: 100 | E68: 17 | F68: 100 | G68: 11 | H68: 64.70588235
A69: Žďár n/Sáz. | B69: 20 | C69: 20 | D69: 100 | E69: 20 | F69: 100 | G69: 13 | H69: 65
A70: Jihomoravský kraj celkem | B70: 178 | C70: 178 | D70: =C70/B70*100 -> 100 | E70: 177 | F70: =E70/B70*100 -> 99.43820225 | G70: 144 | H70: =G70/B70*100 -> 80.8988764
A71: Blansko | B71: 13 | C71: 13 | D71: 100 | E71: 13 | F71: 100 | G71: 11 | H71: 84.61538462
A72: Brno-město | B72: 68 | C72: 68 | D72: 100 | E72: 67 | F72: 98.52941176 | G72: 61 | H72: 89.70588235
A73: Brno-venkov | B73: 32 | C73: 32 | D73: 100 | E73: 32 | F73: 100 | G73: 25 | H73: 78.125
A74: Břeclav | B74: 16 | C74: 16 | D74: 100 | E74: 16 | F74: 100 | G74: 12 | H74: 75
A75: Hodonín | B75: 25 | C75: 25 | D75: 100 | E75: 25 | F75: 100 | G75: 19 | H75: 76
A76: Vyškov | B76: 13 | C76: 13 | D76: 100 | E76: 13 | F76: 100 | G76: 9 | H76: 69.23076923
A77: Znojmo | B77: 11 | C77: 11 | D77: 100 | E77: 11 | F77: 100 | G77: 7 | H77: 63.63636364
A78: Olomoucký kraj celkem | B78: 95 | C78: 93 | D78: 97.89473684 | E78: 91 | F78: 95.78947368 | G78: 65 | H78: 68.42105263
A79: Jeseník | B79: 7 | C79: 7 | D79: 100 | E79: 7 | F79: 100 | G79: 4 | H79: 57.14285714
A80: Olomouc | B80: 41 | C80: 40 | D80: 97.56097561 | E80: 40 | F80: 97.56097561 | G80: 29 | H80: 70.73170732
A81: Prostějov | B81: 19 | C81: 18 | D81: 94.73684211 | E81: 17 | F81: 89.47368421 | G81: 11 | H81: 57.89473684
A82: Přerov | B82: 16 | C82: 16 | D82: 100 | E82: 15 | F82: 93.75 | G82: 13 | H82: 81.25
A83: Šumperk | B83: 12 | C83: 12 | D83: 100 | E83: 12 | F83: 100 | G83: 8 | H83: 66.66666667
A84: Zlínský kraj celkem | B84: 85 | C84: 84 | D84: 98.82352941 | E84: 85 | F84: 100 | G84: 64 | H84: 75.29411765
A85: Kroměříž | B85: 17 | C85: 17 | D85: 100 | E85: 17 | F85: 100 | G85: 12 | H85: 70.58823529
A86: Uherské Hradiště | B86: 18 | C86: 17 | D86: 94.44444444 | E86: 18 | F86: 100 | G86: 12 | H86: 66.66666667
A87: Vsetín | B87: 21 | C87: 21 | D87: 100 | E87: 21 | F87: 100 | G87: 14 | H87: 66.66666667
A88: Zlín | B88: 29 | C88: 29 | D88: 100 | E88: 29 | F88: 100 | G88: 26 | H88: 89.65517241
A89: Moravskoslezský kraj celkem | B89: 162 | C89: 161 | D89: 99.38271605 | E89: 160 | F89: 98.7654321 | G89: 121 | H89: 74.69135802
A90: Bruntál | B90: 14 | C90: 14 | D90: 100 | E90: 14 | F90: 100 | G90: 11 | H90: 78.57142857
A91: Frýdek-Místek | B91: 28 | C91: 28 | D91: 100 | E91: 27 | F91: 96.42857143 | G91: 22 | H91: 78.57142857
A92: Karviná | B92: 34 | C92: 33 | D92: 97.05882353 | E92: 33 | F92: 97.05882353 | G92: 21 | H92: 61.76470588
A93: Nový Jičín | B93: 20 | C93: 20 | D93: 100 | E93: 20 | F93: 100 | G93: 14 | H93: 70
A94: Opava | B94: 21 | C94: 21 | D94: 100 | E94: 21 | F94: 100 | G94: 17 | H94: 80.95238095
A95: Ostrava-město | B95: 45 | C95: 45 | D95: 100 | E95: 45 | F95: 100 | G95: 36 | H95: 80
A96: Zdroj: Ústav zdravotnických informací a statistiky ČR a vlastní dopočty ČSÚ
A97: * % zdravotnických zařízení daného typu, která se zúčastnila šetření
A98: ** celkový počet ordinací, které odevzdaly výkaz

Sheet T5
A1: Tab. 5: Samostatné ordinace zubního lékaře vybavené IT v okresech a krajích ČR; 2024
A2: zpět na seznam
B3: Celkový počet ordinací** | C3: Počítač | E3: Připojení k internetu | G3: Vlastní webová stránka
C4: počet | D4: %* | E4: počet | F4: %* | G4: počet | H4: %*
A5: Celkem ČR | B5: 4528 | C5: 4442 | D5: =C5/B5*100 -> 98.10070671 | E5: 4401 | F5: =E5/B5*100 -> 97.19522968 | G5: 1785 | H5: =G5/B5*100 -> 39.42137809
A6: Hl. m. Praha | B6: 840 | C6: 818 | D6: =C6/B6*100 -> 97.38095238 | E6: 813 | F6: =E6/B6*100 -> 96.78571429 | G6: 441 | H6: =G6/B6*100 -> 52.5
A7: Středočeský kraj celkem | B7: 445 | C7: 441 | D7: 99.1011236 | E7: 433 | F7: 97.30337079 | G7: 168 | H7: 37.75280899
A8: Benešov | B8: 32 | C8: 32 | D8: 100 | E8: 31 | F8: 96.875 | G8: 13 | H8: 40.625
A9: Beroun | B9: 33 | C9: 33 | D9: 100 | E9: 32 | F9: 96.96969697 | G9: 11 | H9: 33.33333333
A10: Kladno | B10: 58 | C10: 57 | D10: 98.27586207 | E10: 56 | F10: 96.55172414 | G10: 25 | H10: 43.10344828
A11: Kolín | B11: 33 | C11: 33 | D11: 100 | E11: 32 | F11: 96.96969697 | G11: 14 | H11: 42.42424242
A12: Kutná Hora | B12: 26 | C12: 26 | D12: 100 | E12: 24 | F12: 92.30769231 | G12: 8 | H12: 30.76923077
A13: Mělník | B13: 30 | C13: 30 | D13: 100 | E13: 30 | F13: 100 | G13: 13 | H13: 43.33333333
A14: Mladá Boleslav | B14: 47 | C14: 47 | D14: 100 | E14: 47 | F14: 100 | G14: 21 | H14: 44.68085106
A15: Nymburk | B15: 35 | C15: 34 | D15: 97.14285714 | E15: 33 | F15: 94.28571429 | G15: 10 | H15: 28.57142857
A16: Praha-východ | B16: 43 | C16: 42 | D16: 97.6744186 | E16: 42 | F16: 97.6744186 | G16: 22 | H16: 51.1627907
A17: Praha-západ | B17: 40 | C17: 40 | D17: 100 | E17: 39 | F17: 97.5 | G17: 17 | H17: 42.5
A18: Příbram | B18: 48 | C18: 47 | D18: 97.91666667 | E18: 47 | F18: 97.91666667 | G18: 7 | H18: 14.58333333
A19: Rakovník | B19: 20 | C19: 20 | D19: 100 | E19: 20 | F19: 100 | G19: 7 | H19: 35
A20: Jihočeský kraj celkem | B20: 267 | C20: 265 | D20: 99.25093633 | E20: 261 | F20: 97.75280899 | G20: 82 | H20: 30.71161049
A21: České Budějovice | B21: 110 | C21: 109 | D21: 99.09090909 | E21: 107 | F21: 97.27272727 | G21: 32 | H21: 29.09090909
A22: Český Krumlov | B22: 21 | C22: 21 | D22: 100 | E22: 21 | F22: 100 | G22: 9 | H22: 42.85714286
A23: Jindřichův Hradec | B23: 40 | C23: 39 | D23: 97.5 | E23: 39 | F23: 97.5 | G23: 11 | H23: 27.5
A24: Písek | B24: 24 | C24: 24 | D24: 100 | E24: 23 | F24: 95.83333333 | G24: 5 | H24: 20.83333333
A25: Prachatice | B25: 11 | C25: 11 | D25: 100 | E25: 11 | F25: 100 | G25: 5 | H25: 45.45454545
A26: Strakonice | B26: 21 | C26: 21 | D26: 100 | E26: 21 | F26: 100 | G26: 7 | H26: 33.33333333
A27: Tábor | B27: 40 | C27: 40 | D27: 100 | E27: 39 | F27: 97.5 | G27: 13 | H27: 32.5
A28: Plzeňský kraj celkem | B28: 242 | C28: 239 | D28: 98.76033058 | E28: 239 | F28: 98.76033058 | G28: 76 | H28: 31.40495868
A29: Domažlice | B29: 18 | C29: 18 | D29: 100 | E29: 18 | F29: 100 | G29: 3 | H29: 16.66666667
A30: Klatovy | B30: 35 | C30: 34 | D30: 97.14285714 | E30: 35 | F30: 100 | G30: 11 | H30: 31.42857143
A31: Plzeň-město | B31: 116 | C31: 114 | D31: 98.27586207 | E31: 114 | F31: 98.27586207 | G31: 45 | H31: 38.79310345
A32: Plzeň-jih | B32: 21 | C32: 21 | D32: 100 | E32: 21 | F32: 100 | G32: 5 | H32: 23.80952381
A33: Plzeň-sever | B33: 19 | C33: 19 | D33: 100 | E33: 18 | F33: 94.73684211 | G33: 5 | H33: 26.31578947
A34: Rokycany | B34: 12 | C34: 12 | D34: 100 | E34: 12 | F34: 100 | G34: 4 | H34: 33.33333333
A35: Tachov | B35: 21 | C35: 21 | D35: 100 | E35: 21 | F35: 100 | G35: 3 | H35: 14.28571429
A36: Karlovarský kraj celkem | B36: 106 | C36: 103 | D36: 97.16981132 | E36: 100 | F36: 94.33962264 | G36: 30 | H36: 28.30188679
A37: Cheb | B37: 33 | C37: 33 | D37: 100 | E37: 31 | F37: 93.93939394 | G37: 5 | H37: 15.15151515
A38: Karlovy Vary | B38: 53 | C38: 50 | D38: 94.33962264 | E38: 50 | F38: 94.33962264 | G38: 20 | H38: 37.73584906
A39: Sokolov | B39: 20 | C39: 20 | D39: 100 | E39: 19 | F39: 95 | G39: 5 | H39: 25
A40: Ústecký kraj celkem | B40: 232 | C40: 228 | D40: 98.27586207 | E40: 225 | F40: 96.98275862 | G40: 64 | H40: 27.5862069
A41: Děčín | B41: 38 | C41: 37 | D41: 97.36842105 | E41: 37 | F41: 97.36842105 | G41: 6 | H41: 15.78947368
A42: Chomutov | B42: 39 | C42: 39 | D42: 100 | E42: 38 | F42: 97.43589744 | G42: 9 | H42: 23.07692308
A43: Litoměřice | B43: 35 | C43: 34 | D43: 97.14285714 | E43: 33 | F43: 94.28571429 | G43: 8 | H43: 22.85714286
A44: Louny | B44: 23 | C44: 23 | D44: 100 | E44: 22 | F44: 95.65217391 | G44: 4 | H44: 17.39130435
A45: Most | B45: 28 | C45: 27 | D45: 96.42857143 | E45: 27 | F45: 96.42857143 | G45: 9 | H45: 32.14285714
A46: Teplice | B46: 37 | C46: 36 | D46: 97.2972973 | E46: 37 | F46: 100 | G46: 10 | H46: 27.02702703
A47: Ústí n/L | B47: 32 | C47: 32 | D47: 100 | E47: 31 | F47: 96.875 | G47: 18 | H47: 56.25
A48: Liberecký kraj celkem | B48: 176 | C48: 167 | D48: 94.88636364 | E48: 165 | F48: 93.75 | G48: 67 | H48: 38.06818182
A49: Česká Lípa | B49: 39 | C49: 35 | D49: 89.74358974 | E49: 34 | F49: 87.17948718 | G49: 8 | H49: 20.51282051
A50: Jablonec n/N | B50: 33 | C50: 33 | D50: 100 | E50: 33 | F50: 100 | G50: 14 | H50: 42.42424242
A51: Liberec | B51: 80 | C51: 76 | D51: 95 | E51: 75 | F51: 93.75 | G51: 39 | H51: 48.75
A52: Semily | B52: 24 | C52: 23 | D52: 95.83333333 | E52: 23 | F52: 95.83333333 | G52: 6 | H52: 25
A53: Královéhradecký kraj celkem | B53: 238 | C53: 236 | D53: 99.15966387 | E53: 233 | F53: 97.89915966 | G53: 89 | H53: 37.39495798
A54: Hradec Králové | B54: 91 | C54: 91 | D54: 100 | E54: 90 | F54: 98.9010989 | G54: 40 | H54: 43.95604396
A55: Jičín | B55: 27 | C55: 27 | D55: 100 | E55: 27 | F55: 100 | G55: 7 | H55: 25.92592593
A56: Náchod | B56: 45 | C56: 44 | D56: 97.77777778 | E56: 42 | F56: 93.33333333 | G56: 16 | H56: 35.55555556
A57: Rychnov n/K | B57: 23 | C57: 23 | D57: 100 | E57: 23 | F57: 100 | G57: 8 | H57: 34.7826087
A58: Trutnov | B58: 52 | C58: 51 | D58: 98.07692308 | E58: 51 | F58: 98.07692308 | G58: 18 | H58: 34.61538462
A59: Pardubický kraj celkem | B59: 190 | C59: 186 | D59: 97.89473684 | E59: 186 | F59: 97.89473684 | G59: 65 | H59: 34.21052632
A60: Chrudim | B60: 36 | C60: 35 | D60: 97.22222222 | E60: 35 | F60: 97.22222222 | G60: 12 | H60: 33.33333333
A61: Pardubice | B61: 73 | C61: 71 | D61: 97.26027397 | E61: 71 | F61: 97.26027397 | G61: 29 | H61: 39.7260274
A62: Svitavy | B62: 30 | C62: 30 | D62: 100 | E62: 30 | F62: 100 | G62: 7 | H62: 23.33333333
A63: Ústí n/Orl. | B63: 51 | C63: 50 | D63: 98.03921569 | E63: 50 | F63: 98.03921569 | G63: 17 | H63: 33.33333333
A64: Vysočina celkem | B64: 199 | C64: 193 | D64: 96.98492462 | E64: 189 | F64: 94.97487437 | G64: 51 | H64: 25.6281407
A65: Havlíčkův Brod | B65: 43 | C65: 42 | D65: 97.6744186 | E65: 40 | F65: 93.02325581 | G65: 10 | H65: 23.25581395
A66: Jihlava | B66: 49 | C66: 48 | D66: 97.95918367 | E66: 47 | F66: 95.91836735 | G66: 14 | H66: 28.57142857
A67: Pelhřimov | B67: 26 | C67: 25 | D67: 96.15384615 | E67: 25 | F67: 96.15384615 | G67: 3 | H67: 11.53846154
A68: Třebíč | B68: 31 | C68: 30 | D68: 96.77419355 | E68: 30 | F68: 96.77419355 | G68: 8 | H68: 25.80645161
A69: Žďár n/Sáz. | B69: 50 | C69: 48 | D69: 96 | E69: 47 | F69: 94 | G69: 16 | H69: 32
A70: Jihomoravský kraj celkem | B70: 541 | C70: 529 | D70: =C70/B70*100 -> 97.7818854 | E70: 528 | F70: =E70/B70*100 -> 97.59704251 | G70: 252 | H70: =G70/B70*100 -> 46.58040665
A71: Blansko | B71: 45 | C71: 45 | D71: 100 | E71: 44 | F71: 97.77777778 | G71: 10 | H71: 22.22222222
A72: Brno-město | B72: 259 | C72: 250 | D72: 96.52509653 | E72: 251 | F72: 96.91119691 | G72: 158 | H72: 61.003861
A73: Brno-venkov | B73: 56 | C73: 55 | D73: 98.21428571 | E73: 54 | F73: 96.42857143 | G73: 21 | H73: 37.5
A74: Břeclav | B74: 33 | C74: 33 | D74: 100 | E74: 33 | F74: 100 | G74: 11 | H74: 33.33333333
A75: Hodonín | B75: 70 | C75: 68 | D75: 97.14285714 | E75: 69 | F75: 98.57142857 | G75: 18 | H75: 25.71428571
A76: Vyškov | B76: 29 | C76: 29 | D76: 100 | E76: 29 | F76: 100 | G76: 18 | H76: 62.06896552
A77: Znojmo | B77: 49 | C77: 49 | D77: 100 | E77: 48 | F77: 97.95918367 | G77: 16 | H77: 32.65306122
A78: Olomoucký kraj celkem | B78: 293 | C78: 290 | D78: 98.97610922 | E78: 287 | F78: 97.95221843 | G78: 104 | H78: 35.49488055
A79: Jeseník | B79: 12 | C79: 12 | D79: 100 | E79: 12 | F79: 100 | G79: 3 | H79: 25
A80: Olomouc | B80: 131 | C80: 129 | D80: 98.47328244 | E80: 128 | F80: 97.70992366 | G80: 60 | H80: 45.80152672
A81: Prostějov | B81: 49 | C81: 49 | D81: 100 | E81: 47 | F81: 95.91836735 | G81: 15 | H81: 30.6122449
A82: Přerov | B82: 48 | C82: 48 | D82: 100 | E82: 48 | F82: 100 | G82: 13 | H82: 27.08333333
A83: Šumperk | B83: 53 | C83: 52 | D83: 98.11320755 | E83: 52 | F83: 98.11320755 | G83: 13 | H83: 24.52830189
A84: Zlínský kraj celkem | B84: 269 | C84: 265 | D84: 98.51301115 | E84: 261 | F84: 97.0260223 | G84: 112 | H84: 41.63568773
A85: Kroměříž | B85: 42 | C85: 42 | D85: 100 | E85: 41 | F85: 97.61904762 | G85: 20 | H85: 47.61904762
A86: Uherské Hradiště | B86: 67 | C86: 65 | D86: 97.01492537 | E86: 65 | F86: 97.01492537 | G86: 34 | H86: 50.74626866
A87: Vsetín | B87: 62 | C87: 62 | D87: 100 | E87: 60 | F87: 96.77419355 | G87: 17 | H87: 27.41935484
A88: Zlín | B88: 98 | C88: 96 | D88: 97.95918367 | E88: 95 | F88: 96.93877551 | G88: 41 | H88: 41.83673469
A89: Moravskoslezský kraj celkem | B89: 490 | C89: 482 | D89: 98.36734694 | E89: 481 | F89: 98.16326531 | G89: 184 | H89: 37.55102041
A90: Bruntál | B90: 23 | C90: 23 | D90: 100 | E90: 23 | F90: 100 | G90: 4 | H90: 17.39130435
A91: Frýdek-Místek | B91: 93 | C91: 92 | D91: 98.92473118 | E91: 92 | F91: 98.92473118 | G91: 35 | H91: 37.6344086
A92: Karviná | B92: 87 | C92: 85 | D92: 97.70114943 | E92: 83 | F92: 95.40229885 | G92: 26 | H92: 29.88505747
A93: Nový Jičín | B93: 50 | C93: 50 | D93: 100 | E93: 50 | F93: 100 | G93: 12 | H93: 24
A94: Opava | B94: 69 | C94: 68 | D94: 98.55072464 | E94: 68 | F94: 98.55072464 | G94: 32 | H94: 46.37681159
A95: Ostrava-město | B95: 168 | C95: 164 | D95: 97.61904762 | E95: 165 | F95: 98.21428571 | G95: 75 | H95: =G95/B95*100 -> 44.64285714
H96: Zdroj: Ústav zdravotnických informací a statistiky ČR a vlastní dopočty ČSÚ
A97: * % zdravotnických zařízení daného typu, která se zúčastnila šetření
A98: ** celkový počet ordinací, které odevzdaly výkaz

Sheet T6
A1: Tab. 6: Samostatné ordinace gynekologa vybavené IT v okresech a krajích ČR; 2024
A2: zpět na seznam
B3: Celkový počet ordinací** | C3: Počítač | E3: Připojení k internetu | G3: Vlastní webová stránka
C4: počet | D4: %* | E4: počet | F4: %* | G4: počet | H4: %*
A5: Celkem ČR | B5: 1121 | C5: 1095 | D5: =C5/B5*100 -> 97.68064228 | E5: 1084 | F5: =E5/B5*100 -> 96.69937556 | G5: 804 | H5: =G5/B5*100 -> 71.72167707
A6: Hl. m. Praha | B6: 152 | C6: 149 | D6: =C6/B6*100 -> 98.02631579 | E6: 148 | F6: =E6/B6*100 -> 97.36842105 | G6: 121 | H6: =G6/B6*100 -> 79.60526316
A7: Středočeský kraj celkem | B7: 112 | C7: 111 | D7: 99.10714286 | E7: 110 | F7: 98.21428571 | G7: 87 | H7: 77.67857143
A8: Benešov | B8: 9 | C8: 9 | D8: 100 | E8: 9 | F8: 100 | G8: 6 | H8: 66.66666667
A9: Beroun | B9: 8 | C9: 8 | D9: 100 | E9: 8 | F9: 100 | G9: 5 | H9: 62.5
A10: Kladno | B10: 19 | C10: 19 | D10: 100 | E10: 18 | F10: 94.73684211 | G10: 13 | H10: 68.42105263
A11: Kolín | B11: 10 | C11: 10 | D11: 100 | E11: 10 | F11: 100 | G11: 9 | H11: 90
A12: Kutná Hora | B12: 6 | C12: 6 | D12: 100 | E12: 6 | F12: 100 | G12: 5 | H12: 83.33333333
A13: Mělník | B13: 10 | C13: 10 | D13: 100 | E13: 10 | F13: 100 | G13: 9 | H13: 90
A14: Mladá Boleslav | B14: 7 | C14: 7 | D14: 100 | E14: 7 | F14: 100 | G14: 6 | H14: 85.71428571
A15: Nymburk | B15: 10 | C15: 10 | D15: 100 | E15: 10 | F15: 100 | G15: 8 | H15: 80
A16: Praha-východ | B16: 10 | C16: 10 | D16: 100 | E16: 10 | F16: 100 | G16: 8 | H16: 80
A17: Praha-západ | B17: 7 | C17: 7 | D17: 100 | E17: 7 | F17: 100 | G17: 6 | H17: 85.71428571
A18: Příbram | B18: 11 | C18: 10 | D18: 90.90909091 | E18: 10 | F18: 90.90909091 | G18: 8 | H18: 72.72727273
A19: Rakovník | B19: 5 | C19: 5 | D19: 100 | E19: 5 | F19: 100 | G19: 4 | H19: 80
A20: Jihočeský kraj celkem | B20: 73 | C20: 73 | D20: 100 | E20: 71 | F20: 97.26027397 | G20: 49 | H20: 67.12328767
A21: České Budějovice | B21: 20 | C21: 20 | D21: 100 | E21: 19 | F21: 95 | G21: 16 | H21: 80
A22: Český Krumlov | B22: 7 | C22: 7 | D22: 100 | E22: 7 | F22: 100 | G22: 3 | H22: 42.85714286
A23: Jindřichův Hradec | B23: 11 | C23: 11 | D23: 100 | E23: 11 | F23: 100 | G23: 8 | H23: 72.72727273
A24: Písek | B24: 8 | C24: 8 | D24: 100 | E24: 8 | F24: 100 | G24: 5 | H24: 62.5
A25: Prachatice | B25: 6 | C25: 6 | D25: 100 | E25: 6 | F25: 100 | G25: 1 | H25: 16.66666667
A26: Strakonice | B26: 9 | C26: 9 | D26: 100 | E26: 8 | F26: 88.88888889 | G26: 7 | H26: 77.77777778
A27: Tábor | B27: 12 | C27: 12 | D27: 100 | E27: 12 | F27: 100 | G27: 9 | H27: 75
A28: Plzeňský kraj celkem | B28: 61 | C28: 61 | D28: 100 | E28: 61 | F28: 100 | G28: 41 | H28: 67.21311475
A29: Domažlice | B29: 6 | C29: 6 | D29: 100 | E29: 6 | F29: 100 | G29: 4 | H29: 66.66666667
A30: Klatovy | B30: 9 | C30: 9 | D30: 100 | E30: 9 | F30: 100 | G30: 5 | H30: 55.55555556
A31: Plzeň-město | B31: 27 | C31: 27 | D31: 100 | E31: 27 | F31: 100 | G31: 20 | H31: 74.07407407
A32: Plzeň-jih | B32: 4 | C32: 4 | D32: 100 | E32: 4 | F32: 100 | G32: 4 | H32: 100
A33: Plzeň-sever | B33: 5 | C33: 5 | D33: 100 | E33: 5 | F33: 100 | G33: 3 | H33: 60
A34: Rokycany | B34: 4 | C34: 4 | D34: 100 | E34: 4 | F34: 100 | G34: 3 | H34: 75
A35: Tachov | B35: 6 | C35: 6 | D35: 100 | E35: 6 | F35: 100 | G35: 2 | H35: 33.33333333
A36: Karlovarský kraj celkem | B36: 35 | C36: 31 | D36: 88.57142857 | E36: 31 | F36: 88.57142857 | G36: 12 | H36: 34.28571429
A37: Cheb | B37: 11 | C37: 9 | D37: 81.81818182 | E37: 9 | F37: 81.81818182 | G37: 5 | H37: 45.45454545
A38: Karlovy Vary | B38: 14 | C38: 13 | D38: 92.85714286 | E38: 13 | F38: 92.85714286 | G38: 3 | H38: 21.42857143
A39: Sokolov | B39: 10 | C39: 9 | D39: 90 | E39: 9 | F39: 90 | G39: 4 | H39: 40
A40: Ústecký kraj celkem | B40: 101 | C40: 98 | D40: 97.02970297 | E40: 97 | F40: 96.03960396 | G40: 62 | H40: 61.38613861
A41: Děčín | B41: 15 | C41: 15 | D41: 100 | E41: 15 | F41: 100 | G41: 6 | H41: 40
A42: Chomutov | B42: 16 | C42: 16 | D42: 100 | E42: 16 | F42: 100 | G42: 12 | H42: 75
A43: Litoměřice | B43: 14 | C43: 14 | D43: 100 | E43: 14 | F43: 100 | G43: 10 | H43: 71.42857143
A44: Louny | B44: 7 | C44: 7 | D44: 100 | E44: 7 | F44: 100 | G44: 7 | H44: 100
A45: Most | B45: 14 | C45: 14 | D45: 100 | E45: 13 | F45: 92.85714286 | G45: 7 | H45: 50
A46: Teplice | B46: 12 | C46: 12 | D46: 100 | E46: 12 | F46: 100 | G46: 10 | H46: 83.33333333
A47: Ústí n/L | B47: 23 | C47: 20 | D47: 86.95652174 | E47: 20 | F47: 86.95652174 | G47: 10 | H47: 43.47826087
A48: Liberecký kraj celkem | B48: 43 | C48: 43 | D48: 100 | E48: 43 | F48: 100 | G48: 27 | H48: 62.79069767
A49: Česká Lípa | B49: 9 | C49: 9 | D49: 100 | E49: 9 | F49: 100 | G49: 2 | H49: 22.22222222
A50: Jablonec n/N | B50: 10 | C50: 10 | D50: 100 | E50: 10 | F50: 100 | G50: 7 | H50: 70
A51: Liberec | B51: 17 | C51: 17 | D51: 100 | E51: 17 | F51: 100 | G51: 13 | H51: 76.47058824
A52: Semily | B52: 7 | C52: 7 | D52: 100 | E52: 7 | F52: 100 | G52: 5 | H52: 71.42857143
A53: Královéhradecký kraj celkem | B53: 56 | C53: 55 | D53: 98.21428571 | E53: 55 | F53: 98.21428571 | G53: 42 | H53: 75
A54: Hradec Králové | B54: 16 | C54: 16 | D54: 100 | E54: 16 | F54: 100 | G54: 12 | H54: 75
A55: Jičín | B55: 9 | C55: 8 | D55: 88.88888889 | E55: 8 | F55: 88.88888889 | G55: 6 | H55: 66.66666667
A56: Náchod | B56: 11 | C56: 11 | D56: 100 | E56: 11 | F56: 100 | G56: 8 | H56: 72.72727273
A57: Rychnov n/K | B57: 10 | C57: 10 | D57: 100 | E57: 10 | F57: 100 | G57: 6 | H57: 60
A58: Trutnov | B58: 10 | C58: 10 | D58: 100 | E58: 10 | F58: 100 | G58: 10 | H58: 100
A59: Pardubický kraj celkem | B59: 49 | C59: 47 | D59: 95.91836735 | E59: 47 | F59: 95.91836735 | G59: 35 | H59: 71.42857143
A60: Chrudim | B60: 12 | C60: 11 | D60: 91.66666667 | E60: 11 | F60: 91.66666667 | G60: 9 | H60: 75
A61: Pardubice | B61: 16 | C61: 15 | D61: 93.75 | E61: 15 | F61: 93.75 | G61: 12 | H61: 75
A62: Svitavy | B62: 9 | C62: 9 | D62: 100 | E62: 9 | F62: 100 | G62: 7 | H62: 77.77777778
A63: Ústí n/Orl. | B63: 12 | C63: 12 | D63: 100 | E63: 12 | F63: 100 | G63: 7 | H63: 58.33333333
A64: Vysočina celkem | B64: 52 | C64: 50 | D64: 96.15384615 | E64: 50 | F64: 96.15384615 | G64: 35 | H64: 67.30769231
A65: Havlíčkův Brod | B65: 8 | C65: 8 | D65: 100 | E65: 8 | F65: 100 | G65: 6 | H65: 75
A66: Jihlava | B66: 10 | C66: 9 | D66: 90 | E66: 9 | F66: 90 | G66: 5 | H66: 50
A67: Pelhřimov | B67: 9 | C67: 8 | D67: 88.88888889 | E67: 8 | F67: 88.88888889 | G67: 7 | H67: 77.77777778
A68: Třebíč | B68: 14 | C68: 14 | D68: 100 | E68: 14 | F68: 100 | G68: 10 | H68: 71.42857143
A69: Žďár n/Sáz. | B69: 11 | C69: 11 | D69: 100 | E69: 11 | F69: 100 | G69: 7 | H69: 63.63636364
A70: Jihomoravský kraj celkem | B70: 125 | C70: 121 | D70: =C70/B70*100 -> 96.8 | E70: 118 | F70: =E70/B70*100 -> 94.4 | G70: 89 | H70: =G70/B70*100 -> 71.2
A71: Blansko | B71: 8 | C71: 8 | D71: 100 | E71: 7 | F71: 87.5 | G71: 7 | H71: 87.5
A72: Brno-město | B72: 59 | C72: 58 | D72: 98.30508475 | E72: 56 | F72: 94.91525424 | G72: 48 | H72: 81.3559322
A73: Brno-venkov | B73: 16 | C73: 16 | D73: 100 | E73: 16 | F73: 100 | G73: 13 | H73: 81.25
A74: Břeclav | B74: 11 | C74: 10 | D74: 90.90909091 | E74: 10 | F74: 90.90909091 | G74: 4 | H74: 36.36363636
A75: Hodonín | B75: 14 | C75: 13 | D75: 92.85714286 | E75: 13 | F75: 92.85714286 | G75: 5 | H75: 35.71428571
A76: Vyškov | B76: 7 | C76: 7 | D76: 100 | E76: 7 | F76: 100 | G76: 5 | H76: 71.42857143
A77: Znojmo | B77: 10 | C77: 9 | D77: 90 | E77: 9 | F77: 90 | G77: 7 | H77: 70
A78: Olomoucký kraj celkem | B78: 61 | C78: 60 | D78: 98.36065574 | E78: 60 | F78: 98.36065574 | G78: 49 | H78: 80.32786885
A79: Jeseník | B79: 4 | C79: 4 | D79: 100 | E79: 4 | F79: 100 | G79: 3 | H79: 75
A80: Olomouc | B80: 23 | C80: 23 | D80: 100 | E80: 23 | F80: 100 | G80: 23 | H80: 100
A81: Prostějov | B81: 10 | C81: 10 | D81: 100 | E81: 10 | F81: 100 | G81: 7 | H81: 70
A82: Přerov | B82: 15 | C82: 14 | D82: 93.33333333 | E82: 14 | F82: 93.33333333 | G82: 9 | H82: 60
A83: Šumperk | B83: 9 | C83: 9 | D83: 100 | E83: 9 | F83: 100 | G83: 7 | H83: 77.77777778
A84: Zlínský kraj celkem | B84: 63 | C84: 62 | D84: 98.41269841 | E84: 62 | F84: 98.41269841 | G84: 40 | H84: 63.49206349
A85: Kroměříž | B85: 10 | C85: 10 | D85: 100 | E85: 10 | F85: 100 | G85: 7 | H85: 70
A86: Uherské Hradiště | B86: 16 | C86: 16 | D86: 100 | E86: 16 | F86: 100 | G86: 10 | H86: 62.5
A87: Vsetín | B87: 18 | C87: 18 | D87: 100 | E87: 18 | F87: 100 | G87: 11 | H87: 61.11111111
A88: Zlín | B88: 19 | C88: 18 | D88: 94.73684211 | E88: 18 | F88: 94.73684211 | G88: 12 | H88: 63.15789474
A89: Moravskoslezský kraj celkem | B89: 138 | C89: 134 | D89: 97.10144928 | E89: 131 | F89: 94.92753623 | G89: 115 | H89: 83.33333333
A90: Bruntál | B90: 12 | C90: 12 | D90: 100 | E90: 12 | F90: 100 | G90: 9 | H90: 75
A91: Frýdek-Místek | B91: 20 | C91: 20 | D91: 100 | E91: 19 | F91: 95 | G91: 19 | H91: 95
A92: Karviná | B92: 27 | C92: 25 | D92: 92.59259259 | E92: 25 | F92: 92.59259259 | G92: 23 | H92: 85.18518519
A93: Nový Jičín | B93: 18 | C93: 18 | D93: 100 | E93: 18 | F93: 100 | G93: 12 | H93: 66.66666667
A94: Opava | B94: 18 | C94: 18 | D94: 100 | E94: 18 | F94: 100 | G94: 17 | H94: 94.44444444
A95: Ostrava-město | B95: 43 | C95: 41 | D95: 95.34883721 | E95: 39 | F95: 90.69767442 | G95: 35 | H95: 81.39534884
H96: Zdroj: Ústav zdravotnických informací a statistiky ČR a vlastní dopočty ČSÚ
A97: * % zdravotnických zařízení daného typu, která se zúčastnila šetření
A98: ** celkový počet ordinací, které odevzdaly výkaz

Sheet T7
A1: Tab. 7: Samostatné ordinace lékaře specialisty vybavené IT v okresech a krajích ČR; 2024
A2: zpět na seznam
B3: Celkový počet ordinací** | C3: Počítač | E3: Připojení k internetu | G3: Vlastní webová stránka
C4: počet | D4: %* | E4: počet | F4: %* | G4: počet | H4: %*
A5: Celkem ČR | B5: 6813 | C5: 6408 | D5: =C5/B5*100 -> 94.05548217 | E5: 6335 | F5: =E5/B5*100 -> 92.98400117 | G5: 3693 | H5: =G5/B5*100 -> 54.20519595
A6: Hl. m. Praha | B6: 1336 | C6: 1225 | D6: =C6/B6*100 -> 91.69161677 | E6: 1203 | F6: =E6/B6*100 -> 90.04491018 | G6: 774 | H6: =G6/B6*100 -> 57.93413174
A7: Středočeský kraj celkem | B7: 584 | C7: 537 | D7: 91.95205479 | E7: 533 | F7: 91.26712329 | G7: 333 | H7: 57.02054795
A8: Benešov | B8: 42 | C8: 37 | D8: 88.0952381 | E8: 37 | F8: 88.0952381 | G8: 19 | H8: 45.23809524
A9: Beroun | B9: 48 | C9: 43 | D9: 89.58333333 | E9: 41 | F9: 85.41666667 | G9: 24 | H9: 50
A10: Kladno | B10: 79 | C10: 73 | D10: 92.40506329 | E10: 73 | F10: 92.40506329 | G10: 52 | H10: 65.82278481
A11: Kolín | B11: 34 | C11: 31 | D11: 91.17647059 | E11: 32 | F11: 94.11764706 | G11: 16 | H11: 47.05882353
A12: Kutná Hora | B12: 27 | C12: 25 | D12: 92.59259259 | E12: 24 | F12: 88.88888889 | G12: 17 | H12: 62.96296296
A13: Mělník | B13: 51 | C13: 46 | D13: 90.19607843 | E13: 46 | F13: 90.19607843 | G13: 31 | H13: 60.78431373
A14: Mladá Boleslav | B14: 53 | C14: 52 | D14: 98.11320755 | E14: 50 | F14: 94.33962264 | G14: 33 | H14: 62.26415094
A15: Nymburk | B15: 56 | C15: 51 | D15: 91.07142857 | E15: 51 | F15: 91.07142857 | G15: 29 | H15: 51.78571429
A16: Praha-východ | B16: 54 | C16: 52 | D16: 96.2962963 | E16: 52 | F16: 96.2962963 | G16: 38 | H16: 70.37037037
A17: Praha-západ | B17: 64 | C17: 56 | D17: 87.5 | E17: 56 | F17: 87.5 | G17: 45 | H17: 70.3125
A18: Příbram | B18: 54 | C18: 49 | D18: 90.74074074 | E18: 49 | F18: 90.74074074 | G18: 17 | H18: 31.48148148
A19: Rakovník | B19: 22 | C19: 22 | D19: 100 | E19: 22 | F19: 100 | G19: 12 | H19: 54.54545455
A20: Jihočeský kraj celkem | B20: 359 | C20: 342 | D20: 95.26462396 | E20: 336 | F20: 93.59331476 | G20: 170 | H20: 47.35376045
A21: České Budějovice | B21: 144 | C21: 136 | D21: 94.44444444 | E21: 133 | F21: 92.36111111 | G21: 70 | H21: 48.61111111
A22: Český Krumlov | B22: 25 | C22: 23 | D22: 92 | E22: 23 | F22: 92 | G22: 10 | H22: 40
A23: Jindřichův Hradec | B23: 49 | C23: 48 | D23: 97.95918367 | E23: 47 | F23: 95.91836735 | G23: 26 | H23: 53.06122449
A24: Písek | B24: 32 | C24: 31 | D24: 96.875 | E24: 31 | F24: 96.875 | G24: 14 | H24: 43.75
A25: Prachatice | B25: 24 | C25: 22 | D25: 91.66666667 | E25: 22 | F25: 91.66666667 | G25: 13 | H25: 54.16666667
A26: Strakonice | B26: 30 | C26: 30 | D26: 100 | E26: 29 | F26: 96.66666667 | G26: 12 | H26: 40
A27: Tábor | B27: 55 | C27: 52 | D27: 94.54545455 | E27: 51 | F27: 92.72727273 | G27: 25 | H27: 45.45454545
A28: Plzeňský kraj celkem | B28: 365 | C28: 346 | D28: 94.79452055 | E28: 341 | F28: 93.42465753 | G28: 197 | H28: 53.97260274
A29: Domažlice | B29: 25 | C29: 24 | D29: 96 | E29: 24 | F29: 96 | G29: 13 | H29: 52
A30: Klatovy | B30: 38 | C30: 36 | D30: 94.73684211 | E30: 35 | F30: 92.10526316 | G30: 20 | H30: 52.63157895
A31: Plzeň-město | B31: 195 | C31: 185 | D31: 94.87179487 | E31: 183 | F31: 93.84615385 | G31: 118 | H31: 60.51282051
A32: Plzeň-jih | B32: 27 | C32: 25 | D32: 92.59259259 | E32: 23 | F32: 85.18518519 | G32: 10 | H32: 37.03703704
A33: Plzeň-sever | B33: 21 | C33: 21 | D33: 100 | E33: 21 | F33: 100 | G33: 11 | H33: 52.38095238
A34: Rokycany | B34: 24 | C34: 24 | D34: 100 | E34: 24 | F34: 100 | G34: 15 | H34: 62.5
A35: Tachov | B35: 35 | C35: 31 | D35: 88.57142857 | E35: 31 | F35: 88.57142857 | G35: 10 | H35: 28.57142857
A36: Karlovarský kraj celkem | B36: 239 | C36: 211 | D36: 88.28451883 | E36: 208 | F36: 87.0292887 | G36: 93 | H36: 38.91213389
A37: Cheb | B37: 76 | C37: 66 | D37: 86.84210526 | E37: 64 | F37: 84.21052632 | G37: 34 | H37: 44.73684211
A38: Karlovy Vary | B38: 116 | C38: 100 | D38: 86.20689655 | E38: 99 | F38: 85.34482759 | G38: 49 | H38: 42.24137931
A39: Sokolov | B39: 47 | C39: 45 | D39: 95.74468085 | E39: 45 | F39: 95.74468085 | G39: 10 | H39: 21.27659574
A40: Ústecký kraj celkem | B40: 436 | C40: 410 | D40: 94.03669725 | E40: 407 | F40: 93.34862385 | G40: 202 | H40: 46.33027523
A41: Děčín | B41: 61 | C41: 58 | D41: 95.08196721 | E41: 58 | F41: 95.08196721 | G41: 24 | H41: 39.3442623
A42: Chomutov | B42: 58 | C42: 56 | D42: 96.55172414 | E42: 56 | F42: 96.55172414 | G42: 22 | H42: 37.93103448
A43: Litoměřice | B43: 76 | C43: 72 | D43: 94.73684211 | E43: 72 | F43: 94.73684211 | G43: 37 | H43: 48.68421053
A44: Louny | B44: 50 | C44: 48 | D44: 96 | E44: 46 | F44: 92 | G44: 24 | H44: 48
A45: Most | B45: 44 | C45: 44 | D45: 100 | E45: 44 | F45: 100 | G45: 20 | H45: 45.45454545
A46: Teplice | B46: 54 | C46: 48 | D46: 88.88888889 | E46: 48 | F46: 88.88888889 | G46: 31 | H46: 57.40740741
A47: Ústí n/L | B47: 93 | C47: 84 | D47: 90.32258065 | E47: 83 | F47: 89.24731183 | G47: 44 | H47: 47.31182796
A48: Liberecký kraj celkem | B48: 239 | C48: 223 | D48: 93.30543933 | E48: 218 | F48: 91.21338912 | G48: 122 | H48: 51.0460251
A49: Česká Lípa | B49: 60 | C49: 55 | D49: 91.66666667 | E49: 54 | F49: 90 | G49: 24 | H49: 40
A50: Jablonec n/N | B50: 49 | C50: 46 | D50: 93.87755102 | E50: 44 | F50: 89.79591837 | G50: 25 | H50: 51.02040816
A51: Liberec | B51: 80 | C51: 74 | D51: 92.5 | E51: 74 | F51: 92.5 | G51: 51 | H51: 63.75
A52: Semily | B52: 50 | C52: 48 | D52: 96 | E52: 46 | F52: 92 | G52: 22 | H52: 44
A53: Královéhradecký kraj celkem | B53: 318 | C53: 304 | D53: 95.59748428 | E53: 300 | F53: 94.33962264 | G53: 171 | H53: 53.77358491
A54: Hradec Králové | B54: 117 | C54: 112 | D54: 95.72649573 | E54: 111 | F54: 94.87179487 | G54: 62 | H54: 52.99145299
A55: Jičín | B55: 46 | C55: 43 | D55: 93.47826087 | E55: 43 | F55: 93.47826087 | G55: 24 | H55: 52.17391304
A56: Náchod | B56: 45 | C56: 43 | D56: 95.55555556 | E56: 42 | F56: 93.33333333 | G56: 28 | H56: 62.22222222
A57: Rychnov n/K | B57: 45 | C57: 45 | D57: 100 | E57: 44 | F57: 97.77777778 | G57: 25 | H57: 55.55555556
A58: Trutnov | B58: 65 | C58: 61 | D58: 93.84615385 | E58: 60 | F58: 92.30769231 | G58: 32 | H58: 49.23076923
A59: Pardubický kraj celkem | B59: 319 | C59: 301 | D59: 94.35736677 | E59: 299 | F59: 93.73040752 | G59: 174 | H59: 54.54545455
A60: Chrudim | B60: 56 | C60: 55 | D60: 98.21428571 | E60: 55 | F60: 98.21428571 | G60: 36 | H60: 64.28571429
A61: Pardubice | B61: 129 | C61: 120 | D61: 93.02325581 | E61: 118 | F61: 91.47286822 | G61: 76 | H61: 58.91472868
A62: Svitavy | B62: 61 | C62: 59 | D62: 96.72131148 | E62: 59 | F62: 96.72131148 | G62: 34 | H62: 55.73770492
A63: Ústí n/Orl. | B63: 73 | C63: 67 | D63: 91.78082192 | E63: 67 | F63: 91.78082192 | G63: 28 | H63: 38.35616438
A64: Vysočina celkem | B64: 299 | C64: 287 | D64: 95.98662207 | E64: 285 | F64: 95.31772575 | G64: 138 | H64: 46.15384615
A65: Havlíčkův Brod | B65: 58 | C65: 57 | D65: 98.27586207 | E65: 56 | F65: 96.55172414 | G65: 25 | H65: 43.10344828
A66: Jihlava | B66: 74 | C66: 70 | D66: 94.59459459 | E66: 70 | F66: 94.59459459 | G66: 38 | H66: 51.35135135
A67: Pelhřimov | B67: 37 | C67: 36 | D67: 97.2972973 | E67: 36 | F67: 97.2972973 | G67: 18 | H67: 48.64864865
A68: Třebíč | B68: 59 | C68: 59 | D68: 100 | E68: 58 | F68: 98.30508475 | G68: 32 | H68: 54.23728814
A69: Žďár n/Sáz. | B69: 71 | C69: 65 | D69: 91.54929577 | E69: 65 | F69: 91.54929577 | G69: 25 | H69: 35.21126761
A70: Jihomoravský kraj celkem | B70: 797 | C70: 782 | D70: =C70/B70*100 -> 98.11794228 | E70: 774 | F70: =E70/B70*100 -> 97.11417817 | G70: 454 | H70: =G70/B70*100 -> 56.96361355
A71: Blansko | B71: 44 | C71: 43 | D71: 97.72727273 | E71: 43 | F71: 97.72727273 | G71: 23 | H71: 52.27272727
A72: Brno-město | B72: 458 | C72: 447 | D72: 97.59825328 | E72: 443 | F72: 96.72489083 | G72: 287 | H72: 62.66375546
A73: Brno-venkov | B73: 74 | C73: 74 | D73: 100 | E73: 73 | F73: 98.64864865 | G73: 37 | H73: 50
A74: Břeclav | B74: 55 | C74: 53 | D74: 96.36363636 | E74: 52 | F74: 94.54545455 | G74: 31 | H74: 56.36363636
A75: Hodonín | B75: 73 | C75: 72 | D75: 98.63013699 | E75: 70 | F75: 95.89041096 | G75: 25 | H75: 34.24657534
A76: Vyškov | B76: 42 | C76: 42 | D76: 100 | E76: 42 | F76: 100 | G76: 23 | H76: 54.76190476
A77: Znojmo | B77: 51 | C77: 51 | D77: 100 | E77: 51 | F77: 100 | G77: 28 | H77: 54.90196078
A78: Olomoucký kraj celkem | B78: 420 | C78: 395 | D78: 94.04761905 | E78: 391 | F78: 93.0952381 | G78: 234 | H78: 55.71428571
A79: Jeseník | B79: 17 | C79: 15 | D79: 88.23529412 | E79: 15 | F79: 88.23529412 | G79: 11 | H79: 64.70588235
A80: Olomouc | B80: 186 | C80: 174 | D80: 93.5483871 | E80: 174 | F80: 93.5483871 | G80: 114 | H80: 61.29032258
A81: Prostějov | B81: 79 | C81: 72 | D81: 91.13924051 | E81: 69 | F81: 87.34177215 | G81: 37 | H81: 46.83544304
A82: Přerov | B82: 73 | C82: 71 | D82: 97.26027397 | E82: 70 | F82: 95.89041096 | G82: 42 | H82: 57.53424658
A83: Šumperk | B83: 65 | C83: 63 | D83: 96.92307692 | E83: 63 | F83: 96.92307692 | G83: 30 | H83: 46.15384615
A84: Zlínský kraj celkem | B84: 362 | C84: 341 | D84: 94.19889503 | E84: 338 | F84: 93.37016575 | G84: 189 | H84: 52.20994475
A85: Kroměříž | B85: 72 | C85: 69 | D85: 95.83333333 | E85: 68 | F85: 94.44444444 | G85: 40 | H85: 55.55555556
A86: Uherské Hradiště | B86: 75 | C86: 73 | D86: 97.33333333 | E86: 72 | F86: 96 | G86: 38 | H86: 50.66666667
A87: Vsetín | B87: 90 | C87: 83 | D87: 92.22222222 | E87: 83 | F87: 92.22222222 | G87: 36 | H87: 40
A88: Zlín | B88: 125 | C88: 116 | D88: 92.8 | E88: 115 | F88: 92 | G88: 75 | H88: 60
A89: Moravskoslezský kraj celkem | B89: 740 | C89: 704 | D89: 95.13513514 | E89: 702 | F89: 94.86486486 | G89: 442 | H89: 59.72972973
A90: Bruntál | B90: 50 | C90: 49 | D90: 98 | E90: 49 | F90: 98 | G90: 33 | H90: 66
A91: Frýdek-Místek | B91: 119 | C91: 115 | D91: 96.63865546 | E91: 115 | F91: 96.63865546 | G91: 67 | H91: 56.30252101
A92: Karviná | B92: 133 | C92: 124 | D92: 93.23308271 | E92: 123 | F92: 92.48120301 | G92: 75 | H92: 56.39097744
A93: Nový Jičín | B93: 68 | C93: 66 | D93: 97.05882353 | E93: 66 | F93: 97.05882353 | G93: 43 | H93: 63.23529412
A94: Opava | B94: 96 | C94: 93 | D94: 96.875 | E94: 92 | F94: 95.83333333 | G94: 66 | H94: 68.75
A95: Ostrava-město | B95: 274 | C95: 257 | D95: 93.79562044 | E95: 257 | F95: 93.79562044 | G95: 158 | H95: 57.66423358
H96: Zdroj: Ústav zdravotnických informací a statistiky ČR a vlastní dopočty ČSÚ
A97: * % zdravotnických zařízení daného typu, která se zúčastnila šetření
A98: ** celkový počet ordinací, které odevzdaly výkaz

Sheet T8
A1: Tab. 8: Možnosti výpisů z elektronického systému v samostatných ordinacích lékaře
A2: zpět na seznam | D2: %*
B3: 2016 | C3: 2020 | D3: 2024
A4: PACIENTI NA OBJEDNÁNÍ K PREVENTIVNÍM PROHLÍDKÁM, TESTŮM
A5: Celkem | B5: 36.17173327 | C5: 48.63959816 | D5: 49.85766118
A6: Praktický lékař pro dospělé | B6: 49.96313591 | C6: 66.42619312 | D6: 68.61444246
A7: Praktický lékař pro děti a dorost | B7: 47.45951982 | C7: 60.73500967 | D7: 66.55801825
A8: Zubní lékař | B8: 28.09734513 | C8: 37.97962281 | D8: 38.05212014
A9: Gynekolog | B9: 51.65745856 | C9: 68.11740891 | D9: 67.61819804
A10: Lékař specialista | B10: 27.7219831 | C10: 39.768728 | D10: 40.23190958
A11: PACIENTI PODLE DIAGNÓZ
A12: Celkem | B12: 44.38458578 | C12: 55.28912277 | D12: 56.96902037
A13: Praktický lékař pro dospělé | B13: 56.69697714 | C13: 72.50277469 | D13: 72.85021689
A14: Praktický lékař pro děti a dorost | B14: 45.28196538 | C14: 59.83236622 | D14: 64.863103
A15: Zubní lékař | B15: 24.37650845 | C15: 33.12378062 | D15: 31.97879859
A16: Gynekolog | B16: 60.49723757 | C16: 70.5465587 | D16: 73.41659233
A17: Lékař specialista | B17: 49.21090387 | C17: 58.3207642 | D17: 59.9589021
A18: PACIENTI PODLE LABORATORNÍCH VÝSLEDKŮ
A19: Celkem | B19: 21.49964268 | C19: 29.26508402 | D19: 31.40385152
A20: Praktický lékař pro dospělé | B20: 34.67682477 | C20: 47.47502775 | D20: 50.59964277
A21: Praktický lékař pro děti a dorost | B21: 29.70407594 | C21: 39.52288846 | D21: 44.00260756
A22: Zubní lékař | B22: 7.341110217 | C22: 10.29698678 | D22: 9.408127208
A23: Gynekolog | B23: 35.63535912 | C23: 44.83805668 | D23: 47.72524532
A24: Lékař specialista | B24: 19.38466443 | C24: 27.68560416 | D24: 29.45838838
A25: PACIENTI PODLE PŘEDEPSANÝCH LÉKŮ
A26: Celkem | B26: . | C26: 41.68510435 | D26: 43.69522746
A27: Praktický lékař pro dospělé | B27: . | C27: 64.20643729 | D27: 65.32278643
A28: Praktický lékař pro děti a dorost | B28: . | C28: 43.77820761 | D28: 49.08735332
A29: Zubní lékař | B29: . | C29: 15.28289616 | D29: 15.6360424
A30: Gynekolog | B30: . | C30: 59.71659919 | D30: 62.17662801
A31: Lékař specialista | B31: . | C31: 44.96396849 | D31: 45.64802583
D32: Zdroj: Ústav zdravotnických informací a statistiky ČR a vlastní dopočty ČSÚ
A33: * % zdravotnických zařízení daného typu, která se zúčastnila šetření

Sheet T9
A1: Tab. 9: Možnosti výpisů z elektronického systému v samostatných ordinacích lékaře v okresech a krajích
A2: zpět na seznam
B3: Celkový počet ordinací** | E3: Pacienti na objednání k preventivním prohlídkám, testům | H3: Pacienti podle diagnóz | K3: Pacienti podle laboratorních výsledků | N3: Pacienti podle předepsaných léků
B4: 2016 | C4: 2020 | D4: 2024 | E4: 2016 | F4: 2020 | G4: 2024 | H4: 2016 | I4: 2020 | J4: 2024 | K4: 2016 | L4: 2020 | M4: 2024 | N4: 2016 | O4: 2020 | P4: 2024
E5: %* | F5: %* | G5: %* | H5: %* | I5: %* | J5: %* | K5: %* | L5: %* | M5: %* | N5: %* | O5: %* | P5: %*
A6: Celkem ČR | B6: 18191 | C6: 16723 | D6: 17915 | E6: 36.17173327 | F6: 48.63959816 | G6: 49.85766118 | H6: 44.38458578 | I6: 55.28912277 | J6: 56.96902037 | K6: 21.49964268 | L6: 29.26508402 | M6: 31.40385152 | N6: . | O6: 41.68510435 | P6: 43.69522746
A7: Hl. m. Praha | B7: 2853 | C7: 2559 | D7: 3020 | E7: 33.36838416 | F7: 42.7901524 | G7: 45.86092715 | H7: 39.29197336 | I7: 45.91637358 | J7: 49.07284768 | K7: 17.94602173 | L7: 23.13403673 | M7: 26.85430464 | N7: . | O7: 34.50566628 | P7: 37.48344371
A8: Středočeský kraj celkem | B8: 1745 | C8: 1542 | D8: 1786 | E8: 36.16045845 | F8: 48.37872892 | G8: 50.78387458 | H8: 44.52722063 | I8: 54.28015564 | J8: 56.77491601 | K8: 21.14613181 | L8: 28.85862516 | M8: 30.96304591 | N8: . | O8: 41.76394293 | P8: 44.73684211
A9: Benešov | B9: 138 | C9: 113 | D9: 135 | E9: 35.50724638 | F9: 47.78761062 | G9: 43.7037037 | H9: 42.75362319 | I9: 50.44247788 | J9: 51.11111111 | K9: 21.01449275 | L9: 26.54867257 | M9: 28.88888889 | N9: . | O9: 41.59292035 | P9: 42.96296296
A10: Beroun | B10: 129 | C10: 116 | D10: 129 | E10: 37.98449612 | F10: 46.55172414 | G10: 48.0620155 | H10: 44.96124031 | I10: 46.55172414 | J10: 53.48837209 | K10: 18.60465116 | L10: 25.86206897 | M10: 27.90697674 | N10: . | O10: 37.06896552 | P10: 39.53488372
A11: Kladno | B11: 238 | C11: 191 | D11: 231 | E11: 37.81512605 | F11: 48.69109948 | G11: 55.84415584 | H11: 50 | I11: 55.4973822 | J11: 64.06926407 | K11: 20.58823529 | L11: 30.89005236 | M11: 36.36363636 | N11: . | O11: 44.5026178 | P11: 51.51515152
A12: Kolín | B12: 127 | C12: 102 | D12: 128 | E12: 41.73228346 | F12: 48.03921569 | G12: 53.125 | H12: 44.88188976 | I12: 53.92156863 | J12: 58.59375 | K12: 21.25984252 | L12: 30.39215686 | M12: 35.15625 | N12: . | O12: 40.19607843 | P12: 50
A13: Kutná Hora | B13: 116 | C13: 108 | D13: 102 | E13: 33.62068966 | F13: 50.92592593 | G13: 51.96078431 | H13: 46.55172414 | I13: 60.18518519 | J13: 58.82352941 | K13: 18.10344828 | L13: 34.25925926 | M13: 36.2745098 | N13: . | O13: 48.14814815 | P13: 44.11764706
A14: Mělník | B14: 137 | C14: 119 | D14: 143 | E14: 35.03649635 | F14: 56.30252101 | G14: 46.15384615 | H14: 41.60583942 | I14: 61.34453782 | J14: 55.94405594 | K14: 22.62773723 | L14: 30.25210084 | M14: 31.46853147 | N14: . | O14: 43.69747899 | P14: 39.16083916
A15: Mladá Boleslav | B15: 163 | C15: 147 | D15: 174 | E15: 38.03680982 | F15: 48.29931973 | G15: 54.02298851 | H15: 48.46625767 | I15: 54.42176871 | J15: 58.04597701 | K15: 25.15337423 | L15: 20.40816327 | M15: 26.43678161 | N15: . | O15: 38.0952381 | P15: 45.97701149
A16: Nymburk | B16: 139 | C16: 126 | D16: 149 | E16: 30.9352518 | F16: 40.47619048 | G16: 43.62416107 | H16: 35.97122302 | I16: 49.20634921 | J16: 50.33557047 | K16: 13.66906475 | L16: 21.42857143 | M16: 20.13422819 | N16: . | O16: 41.26984127 | P16: 38.25503356
A17: Praha-východ | B17: 174 | C17: 152 | D17: 178 | E17: 38.50574713 | F17: 54.60526316 | G17: 55.05617978 | H17: 48.27586207 | I17: 61.18421053 | J17: 58.42696629 | K17: 25.28735632 | L17: 32.89473684 | M17: 33.70786517 | N17: . | O17: 51.97368421 | P17: 48.31460674
A18: Praha-západ | B18: 142 | C18: 154 | D18: 177 | E18: 39.43661972 | F18: 51.2987013 | G18: 51.97740113 | H18: 45.07042254 | I18: 57.14285714 | J18: 54.23728814 | K18: 23.23943662 | L18: 33.11688312 | M18: 35.59322034 | N18: . | O18: 41.55844156 | P18: 45.19774011
A19: Příbram | B19: 161 | C19: 146 | D19: 166 | E19: 30.43478261 | F19: 39.04109589 | G19: 49.39759036 | H19: 40.37267081 | I19: 48.63013699 | J19: 57.8313253 | K19: 22.36024845 | L19: 29.45205479 | M19: 30.72289157 | N19: . | O19: 35.61643836 | P19: 43.37349398
A20: Rakovník | B20: 81 | C20: 65 | D20: 74 | E20: 32.09876543 | F20: 50.76923077 | G20: 52.7027027 | H20: 38.27160494 | I20: 50.76923077 | J20: 55.40540541 | K20: 18.51851852 | L20: 32.30769231 | M20: 22.97297297 | N20: . | O20: 32.30769231 | P20: 41.89189189
A21: Jihočeský kraj celkem | B21: 1059 | C21: 954 | D21: 1030 | E21: 36.54390935 | F21: 48.42767296 | G21: 51.06796117 | H21: 48.25306893 | I21: 56.81341719 | J21: 59.90291262 | K21: 20.20774315 | L21: 29.14046122 | M21: 32.42718447 | N21: . | O21: 42.9769392 | P21: 46.7961165
A22: České Budějovice | B22: 352 | C22: 304 | D22: 359 | E22: 30.39772727 | F22: 45.72368421 | G22: 44.84679666 | H22: 45.17045455 | I22: 53.94736842 | J22: 52.64623955 | K22: 17.04545455 | L22: 27.63157895 | M22: 28.6908078 | N22: . | O22: 40.13157895 | P22: 39.55431755
A23: Český Krumlov | B23: 87 | C23: 75 | D23: 79 | E23: 26.43678161 | F23: 38.66666667 | G23: 41.7721519 | H23: 41.37931034 | I23: 45.33333333 | J23: 53.16455696 | K23: 18.3908046 | L23: 22.66666667 | M23: 25.3164557 | N23: . | O23: 33.33333333 | P23: 35.44303797
A24: Jindřichův Hradec | B24: 160 | C24: 135 | D24: 152 | E24: 39.375 | F24: 56.2962963 | G24: 58.55263158 | H24: 50 | I24: 65.18518519 | J24: 69.73684211 | K24: 21.875 | L24: 34.81481481 | M24: 35.52631579 | N24: . | O24: 49.62962963 | P24: 53.94736842
A25: Písek | B25: 104 | C25: 96 | D25: 105 | E25: 50 | F25: 55.20833333 | G25: 50.47619048 | H25: 62.5 | I25: 63.54166667 | J25: 68.57142857 | K25: 29.80769231 | L25: 38.54166667 | M25: 42.85714286 | N25: . | O25: 51.04166667 | P25: 57.14285714
A26: Prachatice | B26: 77 | C26: 76 | D26: 73 | E26: 42.85714286 | F26: 52.63157895 | G26: 58.90410959 | H26: 53.24675325 | I26: 60.52631579 | J26: 60.2739726 | K26: 19.48051948 | L26: 26.31578947 | M26: 35.61643836 | N26: . | O26: 43.42105263 | P26: 54.79452055
A27: Strakonice | B27: 108 | C27: 98 | D27: 97 | E27: 40.74074074 | F27: 50 | G27: 52.57731959 | H27: 52.77777778 | I27: 61.2244898 | J27: 61.8556701 | K27: 24.07407407 | L27: 25.51020408 | M27: 31.95876289 | N27: . | O27: 46.93877551 | P27: 51.54639175
A28: Tábor | B28: 171 | C28: 170 | D28: 165 | E28: 38.01169591 | F28: 44.70588235 | G28: 58.18181818 | H28: 42.69005848 | I28: 52.35294118 | J28: 63.03030303 | K28: 18.12865497 | L28: 28.23529412 | M28: 33.33333333 | N28: . | O28: 40 | P28: 48.48484848
A29: Plzeňský kraj celkem | B29: 976 | C29: 878 | D29: 965 | E29: 38.52459016 | F29: 49.65831435 | G29: 54.09326425 | H29: 45.69672131 | I29: 56.9476082 | J29: 61.76165803 | K29: 21.51639344 | L29: 29.49886105 | M29: 34.71502591 | N29: . | O29: 40.20501139 | P29: 44.76683938
A30: Domažlice | B30: 86 | C30: 68 | D30: 72 | E30: 39.53488372 | F30: 55.88235294 | G30: 55.55555556 | H30: 50 | I30: 64.70588235 | J30: 68.05555556 | K30: 17.44186047 | L30: 35.29411765 | M30: 36.11111111 | N30: . | O30: 39.70588235 | P30: 45.83333333
A31: Klatovy | B31: 133 | C31: 114 | D31: 127 | E31: 48.87218045 | F31: 55.26315789 | G31: 61.41732283 | H31: 51.12781955 | I31: 57.89473684 | J31: 60.62992126 | K31: 36.09022556 | L31: 42.98245614 | M31: 42.51968504 | N31: . | O31: 45.61403509 | P31: 53.54330709
A32: Plzeň-město | B32: 428 | C32: 399 | D32: 447 | E32: 34.34579439 | F32: 50.12531328 | G32: 53.46756152 | H32: 43.69158879 | I32: 57.14285714 | J32: 61.96868009 | K32: 18.22429907 | L32: 27.06766917 | M32: 33.10961969 | N32: . | O32: 39.09774436 | P32: 42.95302013
A33: Plzeň-jih | B33: 76 | C33: 72 | D33: 86 | E33: 42.10526316 | F33: 41.66666667 | G33: 51.1627907 | H33: 48.68421053 | I33: 51.38888889 | J33: 60.46511628 | K33: 18.42105263 | L33: 27.77777778 | M33: 31.39534884 | N33: . | O33: 34.72222222 | P33: 37.20930233
A34: Plzeň-sever | B34: 97 | C34: 84 | D34: 83 | E34: 37.11340206 | F34: 47.61904762 | G34: 49.39759036 | H34: 37.11340206 | I34: 50 | J34: 57.8313253 | K34: 20.6185567 | L34: 26.19047619 | M34: 31.3253012 | N34: . | O34: 42.85714286 | P34: 43.37349398
A35: Rokycany | B35: 70 | C35: 66 | D35: 65 | E35: 32.85714286 | F35: 42.42424242 | G35: 53.84615385 | H35: 44.28571429 | I35: 54.54545455 | J35: 63.07692308 | K35: 22.85714286 | L35: 27.27272727 | M35: 40 | N35: . | O35: 42.42424242 | P35: 49.23076923
A36: Tachov | B36: 86 | C36: 75 | D36: 85 | E36: 45.34883721 | F36: 49.33333333 | G36: 52.94117647 | H36: 51.1627907 | I36: 62.66666667 | J36: 61.17647059 | K36: 22.09302326 | L36: 24 | M36: 32.94117647 | N36: . | O36: 38.66666667 | P36: 45.88235294
A37: Karlovarský kraj celkem | B37: 534 | C37: 445 | D37: 522 | E37: 31.08614232 | F37: 45.39325843 | G37: 44.25287356 | H37: 39.70037453 | I37: 51.01123596 | J37: 54.02298851 | K37: 19.1011236 | L37: 26.51685393 | M37: 28.73563218 | N37: . | O37: 36.17977528 | P37: 39.65517241
A38: Cheb | B38: 168 | C38: 140 | D38: 165 | E38: 32.73809524 | F38: 47.14285714 | G38: 49.09090909 | H38: 39.88095238 | I38: 54.28571429 | J38: 56.36363636 | K38: 22.02380952 | L38: 23.57142857 | M38: 30.3030303 | N38: . | O38: 40.71428571 | P38: 43.63636364
A39: Karlovy Vary | B39: 238 | C39: 202 | D39: 243 | E39: 31.09243697 | F39: 43.56435644 | G39: 40.74074074 | H39: 38.23529412 | I39: 47.02970297 | J39: 51.85185185 | K39: 17.64705882 | L39: 25.74257426 | M39: 28.80658436 | N39: . | O39: 31.18811881 | P39: 35.80246914
A40: Sokolov | B40: 128 | C40: 103 | D40: 114 | E40: 28.90625 | F40: 46.60194175 | G40: 44.73684211 | H40: 42.1875 | I40: 54.36893204 | J40: 55.26315789 | K40: 17.96875 | L40: 32.03883495 | M40: 26.31578947 | N40: . | O40: 39.80582524 | P40: 42.10526316
A41: Ústecký kraj celkem | B41: 1267 | C41: 1110 | D41: 1145 | E41: 35.83267561 | F41: 49.72972973 | G41: 48.90829694 | H41: 46.72454617 | I41: 57.47747748 | J41: 56.33187773 | K41: 20.36306235 | L41: 30.36036036 | M41: 31.26637555 | N41: . | O41: 41.8018018 | P41: 42.70742358
A42: Děčín | B42: 212 | C42: 172 | D42: 177 | E42: 36.32075472 | F42: 45.93023256 | G42: 38.98305085 | H42: 49.05660377 | I42: 55.81395349 | J42: 50.28248588 | K42: 20.75471698 | L42: 30.23255814 | M42: 27.68361582 | N42: . | O42: 40.69767442 | P42: 40.11299435
A43: Chomutov | B43: 180 | C43: 156 | D43: 169 | E43: 36.11111111 | F43: 48.07692308 | G43: 49.11242604 | H43: 39.44444444 | I43: 57.05128205 | J43: 59.76331361 | K43: 23.33333333 | L43: 27.56410256 | M43: 36.68639053 | N43: . | O43: 46.15384615 | P43: 45.56213018
A44: Litoměřice | B44: 190 | C44: 156 | D44: 186 | E44: 36.31578947 | F44: 53.20512821 | G44: 48.38709677 | H44: 44.21052632 | I44: 56.41025641 | J44: 56.4516129 | K44: 18.42105263 | L44: 28.84615385 | M44: 25.2688172 | N44: . | O44: 39.1025641 | P44: 39.24731183
A45: Louny | B45: 140 | C45: 121 | D45: 118 | E45: 34.28571429 | F45: 51.23966942 | G45: 48.30508475 | H45: 45.71428571 | I45: 55.37190083 | J45: 52.54237288 | K45: 17.85714286 | L45: 27.27272727 | M45: 27.96610169 | N45: . | O45: 37.19008264 | P45: 42.37288136
A46: Most | B46: 169 | C46: 148 | D46: 139 | E46: 36.68639053 | F46: 50.67567568 | G46: 56.11510791 | H46: 52.07100592 | I46: 53.37837838 | J46: 61.15107914 | K46: 23.66863905 | L46: 31.08108108 | M46: 38.1294964 | N46: . | O46: 39.86486486 | P46: 47.48201439
A47: Teplice | B47: 155 | C47: 145 | D47: 154 | E47: 41.29032258 | F47: 51.72413793 | G47: 52.5974026 | H47: 47.09677419 | I47: 60.68965517 | J47: 58.44155844 | K47: 23.22580645 | L47: 36.55172414 | M47: 31.16883117 | N47: . | O47: 48.27586207 | P47: 42.20779221
A48: Ústí n/L | B48: 221 | C48: 212 | D48: 202 | E48: 31.22171946 | F48: 48.58490566 | G48: 50.4950495 | H48: 48.86877828 | I48: 61.79245283 | J48: 55.94059406 | K48: 16.28959276 | L48: 30.66037736 | M48: 32.67326733 | N48: . | O48: 41.03773585 | P48: 43.06930693
A49: Liberecký kraj celkem | B49: 698 | C49: 598 | D49: 695 | E49: 36.24641834 | F49: 46.98996656 | G49: 48.34532374 | H49: 45.12893983 | I49: 56.52173913 | J49: 56.54676259 | K49: 21.34670487 | L49: 29.59866221 | M49: 30.07194245 | N49: . | O49: 44.48160535 | P49: 44.46043165
A50: Česká Lípa | B50: 153 | C50: 136 | D50: 160 | E50: 33.9869281 | F50: 36.76470588 | G50: 43.75 | H50: 45.75163399 | I50: 54.41176471 | J50: 57.5 | K50: 17.64705882 | L50: 22.79411765 | M50: 31.25 | N50: . | O50: 41.91176471 | P50: 45.625
A51: Jablonec n/N | B51: 141 | C51: 125 | D51: 143 | E51: 39.71631206 | F51: 44.8 | G51: 46.15384615 | H51: 45.39007092 | I51: 52 | J51: 53.14685315 | K51: 19.85815603 | L51: 26.4 | M51: 25.87412587 | N51: . | O51: 43.2 | P51: 44.05594406
A52: Liberec | B52: 278 | C52: 232 | D52: 266 | E52: 38.48920863 | F52: 50 | G52: 49.62406015 | H52: 48.20143885 | I52: 56.46551724 | J52: 58.64661654 | K52: 24.46043165 | L52: 34.05172414 | M52: 33.45864662 | N52: . | O52: 45.68965517 | P52: 45.11278195
A53: Semily | B53: 126 | C53: 105 | D53: 126 | E53: 30.15873016 | F53: 56.19047619 | G53: 53.96825397 | H53: 37.3015873 | I53: 64.76190476 | J53: 54.76190476 | K53: 20.63492063 | L53: 32.38095238 | M53: 26.19047619 | N53: . | O53: 46.66666667 | P53: 42.06349206
A54: Královéhradecký kraj celkem | B54: 959 | C54: 898 | D54: 906 | E54: 38.26903024 | F54: 50.8908686 | G54: 51.54525386 | H54: 46.29822732 | I54: 56.90423163 | J54: 57.50551876 | K54: 22.8362878 | L54: 32.51670379 | M54: 33.33333333 | N54: . | O54: 45.54565702 | P54: 45.80573951
A55: Hradec Králové | B55: 323 | C55: 305 | D55: 314 | E55: 39.00928793 | F55: 51.47540984 | G55: 50.95541401 | H55: 46.43962848 | I55: 57.04918033 | J55: 55.41401274 | K55: 19.19504644 | L55: 35.40983607 | M55: 31.52866242 | N55: . | O55: 46.2295082 | P55: 45.22292994
A56: Jičín | B56: 140 | C56: 127 | D56: 125 | E56: 33.57142857 | F56: 46.45669291 | G56: 50.4 | H56: 43.57142857 | I56: 52.75590551 | J56: 67.2 | K56: 22.85714286 | L56: 26.77165354 | M56: 44.8 | N56: . | O56: 44.09448819 | P56: 52.8
A57: Náchod | B57: 170 | C57: 161 | D57: 154 | E57: 40 | F57: 54.03726708 | G57: 55.19480519 | H57: 45.29411765 | I57: 56.52173913 | J57: 57.14285714 | K57: 25.88235294 | L57: 34.16149068 | M57: 35.71428571 | N57: . | O57: 44.72049689 | P57: 46.1038961
A58: Rychnov n/K | B58: 132 | C58: 120 | D58: 122 | E58: 43.93939394 | F58: 49.16666667 | G58: 54.09836066 | H58: 56.06060606 | I58: 60.83333333 | J58: 63.1147541 | K58: 31.06060606 | L58: 35.83333333 | M58: 35.24590164 | N58: . | O58: 44.16666667 | P58: 47.54098361
A59: Trutnov | B59: 194 | C59: 185 | D59: 191 | E59: 35.05154639 | F59: 51.35135135 | G59: 48.69109948 | H59: 42.26804124 | I59: 57.2972973 | J59: 51.30890052 | K59: 20.6185567 | L59: 28.10810811 | M59: 25.65445026 | N59: . | O59: 47.02702703 | P59: 40.83769634
A60: Pardubický kraj celkem | B60: 842 | C60: 778 | D60: 824 | E60: 38.83610451 | F60: 48.58611825 | G60: 51.45631068 | H60: 46.79334917 | I60: 59.89717224 | J60: 61.04368932 | K60: 23.51543943 | L60: 31.23393316 | M60: 33.13106796 | N60: . | O60: 44.73007712 | P60: 46.48058252
A61: Chrudim | B61: 172 | C61: 160 | D61: 158 | E61: 37.79069767 | F61: 48.75 | G61: 53.16455696 | H61: 45.93023256 | I61: 61.875 | J61: 65.18987342 | K61: 25.58139535 | L61: 35.625 | M61: 37.34177215 | N61: . | O61: 45 | P61: 49.36708861
A62: Pardubice | B62: 290 | C62: 272 | D62: 304 | E62: 41.03448276 | F62: 51.83823529 | G62: 53.94736842 | H62: 47.24137931 | I62: 61.76470588 | J62: 58.55263158 | K62: 23.10344828 | L62: 29.04411765 | M62: 29.27631579 | N62: . | O62: 46.32352941 | P62: 46.05263158
A63: Svitavy | B63: 163 | C63: 148 | D63: 150 | E63: 32.51533742 | F63: 40.54054054 | G63: 45.33333333 | H63: 45.39877301 | I63: 58.10810811 | J63: 63.33333333 | K63: 17.79141104 | L63: 29.05405405 | M63: 34 | N63: . | O63: 45.27027027 | P63: 48
A64: Ústí n/Orl. | B64: 217 | C64: 198 | D64: 212 | E64: 41.47465438 | F64: 50 | G64: 50.94339623 | H64: 47.92626728 | I64: 57.07070707 | J64: 59.90566038 | K64: 26.7281106 | L64: 32.32323232 | M64: 34.90566038 | N64: . | O64: 41.91919192 | P64: 43.86792453
A65: Vysočina celkem | B65: 822 | C65: 794 | D65: 814 | E65: 36.25304136 | F65: 50.25188917 | G65: 49.01719902 | H65: 43.18734793 | I65: 57.43073048 | J65: 57.98525799 | K65: 24.45255474 | L65: 32.61964736 | M65: 33.53808354 | N65: . | O65: 44.83627204 | P65: 45.33169533
A66: Havlíčkův Brod | B66: 160 | C66: 154 | D66: 155 | E66: 36.25 | F66: 50 | G66: 47.74193548 | H66: 46.875 | I66: 60.38961039 | J66: 54.83870968 | K66: 26.25 | L66: 35.06493506 | M66: 36.12903226 | N66: . | O66: 42.85714286 | P66: 41.93548387
A67: Jihlava | B67: 197 | C67: 189 | D67: 193 | E67: 38.5786802 | F67: 48.67724868 | G67: 51.8134715 | H67: 43.14720812 | I67: 57.14285714 | J67: 57.51295337 | K67: 27.41116751 | L67: 30.68783069 | M67: 31.60621762 | N67: . | O67: 44.44444444 | P67: 45.59585492
A68: Pelhřimov | B68: 114 | C68: 108 | D68: 111 | E68: 42.98245614 | F68: 54.62962963 | G68: 56.75675676 | H68: 47.36842105 | I68: 65.74074074 | J68: 67.56756757 | K68: 24.56140351 | L68: 31.48148148 | M68: 31.53153153 | N68: . | O68: 53.7037037 | P68: 53.15315315
A69: Třebíč | B69: 172 | C69: 155 | D69: 160 | E69: 32.55813953 | F69: 56.77419355 | G69: 53.75 | H69: 38.37209302 | I69: 58.70967742 | J69: 67.5 | K69: 22.09302326 | L69: 36.77419355 | M69: 43.125 | N69: . | O69: 49.03225806 | P69: 56.25
A70: Žďár n/Sáz. | B70: 179 | C70: 188 | D70: 195 | E70: 32.96089385 | F70: 44.14893617 | G70: 38.97435897 | H70: 41.89944134 | I70: 49.46808511 | J70: 47.69230769 | K70: 21.7877095 | L70: 29.78723404 | M70: 26.66666667 | N70: . | O70: 38.29787234 | P70: 34.35897436
A71: Jihomoravský kraj celkem | B71: 2189 | C71: 2086 | D71: 2121 | E71: 33.25719507 | F71: 48.60977948 | G71: 50.25931165 | H71: 43.03334856 | I71: 56.32790029 | J71: 57.23715229 | K71: 21.97350388 | L71: 30.00958773 | M71: 33.28618576 | N71: . | O71: 42.9050815 | P71: 45.68599717
A72: Blansko | B72: 165 | C72: 148 | D72: 155 | E72: 33.33333333 | F72: 51.35135135 | G72: 47.74193548 | H72: 40.60606061 | I72: 59.45945946 | J72: 56.77419355 | K72: 21.81818182 | L72: 31.75675676 | M72: 31.61290323 | N72: . | O72: 43.24324324 | P72: 48.38709677
A73: Brno-město | B73: 1056 | C73: 1022 | D73: 1035 | E73: 32.00757576 | F73: 46.37964775 | G73: 48.98550725 | H73: 43.08712121 | I73: 54.69667319 | J73: 56.8115942 | K73: 20.9280303 | L73: 27.49510763 | M73: 31.5942029 | N73: . | O73: 40.50880626 | P73: 42.51207729
A74: Brno-venkov | B74: 261 | C74: 240 | D74: 247 | E74: 29.11877395 | F74: 49.58333333 | G74: 54.25101215 | H74: 37.16475096 | I74: 53.75 | J74: 55.46558704 | K74: 21.4559387 | L74: 31.25 | M74: 35.22267206 | N74: . | O74: 42.91666667 | P74: 46.55870445
A75: Břeclav | B75: 155 | C75: 158 | D75: 158 | E75: 40 | F75: 56.96202532 | G75: 59.49367089 | H75: 47.09677419 | I75: 63.92405063 | J75: 58.2278481 | K75: 21.29032258 | L75: 38.60759494 | M75: 40.50632911 | N75: . | O75: 53.16455696 | P75: 53.79746835
A76: Hodonín | B76: 254 | C76: 236 | D76: 242 | E76: 37.4015748 | F76: 48.30508475 | G76: 42.56198347 | H76: 48.03149606 | I76: 55.08474576 | J76: 50.82644628 | K76: 25.19685039 | L76: 32.20338983 | M76: 33.88429752 | N76: . | O76: 41.94915254 | P76: 45.04132231
A77: Vyškov | B77: 131 | C77: 118 | D77: 124 | E77: 35.11450382 | F77: 59.3220339 | G77: 59.67741935 | H77: 42.7480916 | I77: 66.10169492 | J77: 64.51612903 | K77: 23.66412214 | L77: 36.44067797 | M77: 35.48387097 | N77: . | O77: 48.30508475 | P77: 52.41935484
A78: Znojmo | B78: 167 | C78: 164 | D78: 160 | E78: 33.53293413 | F78: 43.29268293 | G78: 50 | H78: 43.11377246 | I78: 54.87804878 | J78: 66.25 | K78: 23.95209581 | L78: 26.2195122 | M78: 33.125 | N78: . | O78: 45.12195122 | P78: 50
A79: Olomoucký kraj celkem | B79: 1140 | C79: 1128 | D79: 1119 | E79: 38.24561404 | F79: 48.84751773 | G79: 48.43610366 | H79: 47.54385965 | I79: 55.40780142 | J79: 58.35567471 | K79: 22.63157895 | L79: 29.5212766 | M79: 30.38427167 | N79: . | O79: 39.89361702 | P79: 42.98480786
A80: Jeseník | B80: 55 | C80: 53 | D80: 51 | E80: 49.09090909 | F80: 54.71698113 | G80: 52.94117647 | H80: 50.90909091 | I80: 62.26415094 | J80: 66.66666667 | K80: 23.63636364 | L80: 26.41509434 | M80: 35.29411765 | N80: . | O80: 43.39622642 | P80: 47.05882353
A81: Olomouc | B81: 458 | C81: 470 | D81: 478 | E81: 39.08296943 | F81: 48.72340426 | G81: 46.65271967 | H81: 48.90829694 | I81: 55.74468085 | J81: 57.74058577 | K81: 22.05240175 | L81: 29.78723404 | M81: 28.0334728 | N81: . | O81: 40.85106383 | P81: 41.84100418
A82: Prostějov | B82: 200 | C82: 199 | D82: 200 | E82: 35 | F82: 45.22613065 | G82: 43 | H82: 42.5 | I82: 49.24623116 | J82: 49.5 | K82: 20.5 | L82: 26.13065327 | M82: 27.5 | N82: . | O82: 35.67839196 | P82: 38
A83: Přerov | B83: 217 | C83: 211 | D83: 200 | E83: 34.56221198 | F83: 44.07582938 | G83: 47.5 | H83: 47.00460829 | I83: 56.39810427 | J83: 61.5 | K83: 21.65898618 | L83: 29.85781991 | M83: 33.5 | N83: . | O83: 39.33649289 | P83: 47
A84: Šumperk | B84: 210 | C84: 195 | D84: 190 | E84: 40.47619048 | F84: 56.41025641 | G84: 58.42105263 | H84: 49.04761905 | I84: 57.94871795 | J84: 63.68421053 | K84: 26.66666667 | L84: 32.82051282 | M84: 34.73684211 | N84: . | O84: 41.53846154 | P84: 45.78947368
A85: Zlínský kraj celkem | B85: 1056 | C85: 1007 | D85: 1006 | E85: 37.02651515 | F85: 49.25521351 | G85: 49.80119284 | H85: 42.8030303 | I85: 55.01489573 | J85: 56.4612326 | K85: 21.49621212 | L85: 30.18867925 | M85: 32.60437376 | N85: . | O85: 42.30387289 | P85: 43.33996024
A86: Kroměříž | B86: 196 | C86: 179 | D86: 182 | E86: 35.71428571 | F86: 50.27932961 | G86: 51.64835165 | H86: 40.30612245 | I86: 50.27932961 | J86: 50 | K86: 22.95918367 | L86: 28.49162011 | M86: 27.47252747 | N86: . | O86: 40.78212291 | P86: 39.56043956
A87: Uherské Hradiště | B87: 252 | C87: 233 | D87: 240 | E87: 36.9047619 | F87: 46.78111588 | G87: 50.41666667 | H87: 43.65079365 | I87: 54.07725322 | J87: 58.75 | K87: 24.6031746 | L87: 33.47639485 | M87: 33.75 | N87: . | O87: 42.06008584 | P87: 41.25
A88: Vsetín | B88: 259 | C88: 245 | D88: 242 | E88: 35.52123552 | F88: 48.57142857 | G88: 51.65289256 | H88: 40.92664093 | I88: 57.14285714 | J88: 58.67768595 | K88: 19.69111969 | L88: 32.65306122 | M88: 38.01652893 | N88: . | O88: 42.44897959 | P88: 46.69421488
A89: Zlín | B89: 349 | C89: 350 | D89: 342 | E89: 38.96848138 | F89: 50.85714286 | G89: 47.07602339 | H89: 44.98567335 | I89: 56.57142857 | J89: 56.7251462 | K89: 19.77077364 | L89: 27.14285714 | M89: 30.70175439 | N89: . | O89: 43.14285714 | P89: 44.44444444
A90: Moravskoslezský kraj celkem | B90: 2051 | C90: 1946 | D90: 1962 | E90: 39.68795709 | F90: 54.72764645 | G90: 54.33231397 | H90: 47.34275963 | I90: 61.76772867 | J90: 63.50662589 | K90: 25.01218918 | L90: 32.42548818 | M90: 33.33333333 | N90: . | O90: 46.55704008 | P90: 47.14576962
A91: Bruntál | B91: 149 | C91: 137 | D91: 130 | E91: 37.58389262 | F91: 52.55474453 | G91: 50.76923077 | H91: 44.96644295 | I91: 62.04379562 | J91: 66.92307692 | K91: 16.77852349 | L91: 27.73722628 | M91: 32.30769231 | N91: . | O91: 40.87591241 | P91: 46.92307692
A92: Frýdek-Místek | B92: 336 | C92: 320 | D92: 335 | E92: 41.07142857 | F92: 52.1875 | G92: 57.01492537 | H92: 48.51190476 | I92: 59.375 | J92: 62.3880597 | K92: 26.48809524 | L92: 31.25 | M92: 34.32835821 | N92: . | O92: 45.9375 | P92: 42.98507463
A93: Karviná | B93: 391 | C93: 382 | D93: 367 | E93: 37.8516624 | F93: 49.21465969 | G93: 52.31607629 | H93: 46.2915601 | I93: 57.32984293 | J93: 61.58038147 | K93: 25.83120205 | L93: 29.05759162 | M93: 34.60490463 | N93: . | O93: 43.97905759 | P93: 45.77656676
A94: Nový Jičín | B94: 232 | C94: 227 | D94: 213 | E94: 37.5 | F94: 58.59030837 | G94: 53.99061033 | H94: 47.84482759 | I94: 66.51982379 | J94: 64.78873239 | K94: 25.86206897 | L94: 37.44493392 | M94: 35.21126761 | N94: . | O94: 50.66079295 | P94: 52.58215962
A95: Opava | B95: 293 | C95: 251 | D95: 269 | E95: 40.27303754 | F95: 56.97211155 | G95: 50.55762082 | H95: 52.55972696 | I95: 67.33067729 | J95: 63.56877323 | K95: 22.52559727 | L95: 32.66932271 | M95: 27.88104089 | N95: . | O95: 46.61354582 | P95: 42.00743494
A96: Ostrava-město | B96: 650 | C96: 629 | D96: 648 | E96: 41.07692308 | F96: 57.55166932 | G96: 56.48148148 | H96: 45.38461538 | I96: 61.68521463 | J96: 64.04320988 | K96: 26.46153846 | L96: 34.18124006 | M96: 33.95061728 | N96: . | O96: 48.17170111 | P96: 50.46296296
A98: * % zdravotnických zařízení daného typu, která se zúčastnila šetření
A99: ** celkový počet ordinací, které odevzdaly výkaz

Sheet T10
A1: Tab. 10: Možnosti výpisů z elektronického systému v samostatných ordinacích PL pro dospělé v okresech a krajích ČR; 2024
A2: zpět na seznam
B3: Celkový počet ordinací** | C3: Pacienti na objednání k preventivním prohlídkám, testům | E3: Pacienti podle diagnóz | G3: Pacienti podle laboratorních výsledků | I3: Pacienti podle předepsaných léků
C4: počet | D4: %* | E4: počet | F4: %* | G4: počet | H4: %* | I4: počet | J4: %*
A5: Celkem ČR | B5: 3919 | C5: 2689 | D5: 68.61444246 | E5: 2855 | F5: 72.85021689 | G5: 1983 | H5: 50.59964277 | I5: 2560 | J5: 65.32278643
A6: Hl. m. Praha | B6: 508 | C6: 350 | D6: 68.8976378 | E6: 362 | F6: 71.25984252 | G6: 246 | H6: 48.42519685 | I6: 316 | J6: 62.20472441
A7: Středočeský kraj celkem | B7: 448 | C7: 317 | D7: 70.75892857 | E7: 326 | F7: 72.76785714 | G7: 234 | H7: 52.23214286 | I7: 296 | J7: 66.07142857
A8: Benešov | B8: 37 | C8: 21 | D8: 56.75675676 | E8: 28 | F8: 75.67567568 | G8: 18 | H8: 48.64864865 | I8: 21 | J8: 56.75675676
A9: Beroun | B9: 27 | C9: 20 | D9: 74.07407407 | E9: 20 | F9: 74.07407407 | G9: 15 | H9: 55.55555556 | I9: 21 | J9: 77.77777778
A10: Kladno | B10: 50 | C10: 41 | D10: 82 | E10: 39 | F10: 78 | G10: 28 | H10: 56 | I10: 36 | J10: 72
A11: Kolín | B11: 36 | C11: 30 | D11: 83.33333333 | E11: 28 | F11: 77.77777778 | G11: 20 | H11: 55.55555556 | I11: 26 | J11: 72.22222222
A12: Kutná Hora | B12: 34 | C12: 25 | D12: 73.52941176 | E12: 24 | F12: 70.58823529 | G12: 18 | H12: 52.94117647 | I12: 19 | J12: 55.88235294
A13: Mělník | B13: 37 | C13: 22 | D13: 59.45945946 | E13: 28 | F13: 75.67567568 | G13: 23 | H13: 62.16216216 | I13: 24 | J13: 64.86486486
A14: Mladá Boleslav | B14: 43 | C14: 32 | D14: 74.41860465 | E14: 33 | F14: 76.74418605 | G14: 20 | H14: 46.51162791 | I14: 30 | J14: 69.76744186
A15: Nymburk | B15: 35 | C15: 15 | D15: 42.85714286 | E15: 18 | F15: 51.42857143 | G15: 8 | H15: 22.85714286 | I15: 15 | J15: 42.85714286
A16: Praha-východ | B16: 50 | C16: 35 | D16: 70 | E16: 38 | F16: 76 | G16: 27 | H16: 54 | I16: 36 | J16: 72
A17: Praha-západ | B17: 40 | C17: 32 | D17: 80 | E17: 27 | F17: 67.5 | G17: 26 | H17: 65 | I17: 27 | J17: 67.5
A18: Příbram | B18: 39 | C18: 30 | D18: 76.92307692 | E18: 31 | F18: 79.48717949 | G18: 22 | H18: 56.41025641 | I18: 28 | J18: 71.79487179
A19: Rakovník | B19: 20 | C19: 14 | D19: 70 | E19: 12 | F19: 60 | G19: 9 | H19: 45 | I19: 13 | J19: 65
A20: Jihočeský kraj celkem | B20: 241 | C20: 174 | D20: 72.19917012 | E20: 187 | F20: 77.593361 | G20: 130 | H20: 53.94190871 | I20: 182 | J20: 75.5186722
A21: České Budějovice | B21: 64 | C21: 46 | D21: 71.875 | E21: 47 | F21: 73.4375 | G21: 35 | H21: 54.6875 | I21: 47 | J21: 73.4375
A22: Český Krumlov | B22: 17 | C22: 8 | D22: 47.05882353 | E22: 11 | F22: 64.70588235 | G22: 7 | H22: 41.17647059 | I22: 8 | J22: 47.05882353
A23: Jindřichův Hradec | B23: 34 | C23: 28 | D23: 82.35294118 | E23: 30 | F23: 88.23529412 | G23: 20 | H23: 58.82352941 | I23: 29 | J23: 85.29411765
A24: Písek | B24: 31 | C24: 22 | D24: 70.96774194 | E24: 26 | F24: 83.87096774 | G24: 19 | H24: 61.29032258 | I24: 24 | J24: 77.41935484
A25: Prachatice | B25: 24 | C25: 20 | D25: 83.33333333 | E25: 18 | F25: 75 | G25: 13 | H25: 54.16666667 | I25: 18 | J25: 75
A26: Strakonice | B26: 26 | C26: 16 | D26: 61.53846154 | E26: 19 | F26: 73.07692308 | G26: 10 | H26: 38.46153846 | I26: 19 | J26: 73.07692308
A27: Tábor | B27: 45 | C27: 34 | D27: 75.55555556 | E27: 36 | F27: 80 | G27: 26 | H27: 57.77777778 | I27: 37 | J27: 82.22222222
A28: Plzeňský kraj celkem | B28: 215 | C28: 150 | D28: 69.76744186 | E28: 163 | F28: 75.81395349 | G28: 120 | H28: 55.81395349 | I28: 139 | J28: 64.65116279
A29: Domažlice | B29: 17 | C29: 9 | D29: 52.94117647 | E29: 12 | F29: 70.58823529 | G29: 8 | H29: 47.05882353 | I29: 10 | J29: 58.82352941
A30: Klatovy | B30: 34 | C30: 28 | D30: 82.35294118 | E30: 27 | F30: 79.41176471 | G30: 20 | H30: 58.82352941 | I30: 26 | J30: 76.47058824
A31: Plzeň-město | B31: 76 | C31: 50 | D31: 65.78947368 | E31: 58 | F31: 76.31578947 | G31: 42 | H31: 55.26315789 | I31: 48 | J31: 63.15789474
A32: Plzeň-jih | B32: 25 | C32: 18 | D32: 72 | E32: 19 | F32: 76 | G32: 13 | H32: 52 | I32: 15 | J32: 60
A33: Plzeň-sever | B33: 26 | C33: 19 | D33: 73.07692308 | E33: 18 | F33: 69.23076923 | G33: 16 | H33: 61.53846154 | I33: 16 | J33: 61.53846154
A34: Rokycany | B34: 18 | C34: 14 | D34: 77.77777778 | E34: 14 | F34: 77.77777778 | G34: 13 | H34: 72.22222222 | I34: 11 | J34: 61.11111111
A35: Tachov | B35: 19 | C35: 12 | D35: 63.15789474 | E35: 15 | F35: 78.94736842 | G35: 8 | H35: 42.10526316 | I35: 13 | J35: 68.42105263
A36: Karlovarský kraj celkem | B36: 101 | C36: 68 | D36: 67.32673267 | E36: 71 | F36: 70.2970297 | G36: 44 | H36: 43.56435644 | I36: 63 | J36: 62.37623762
A37: Cheb | B37: 31 | C37: 21 | D37: 67.74193548 | E37: 23 | F37: 74.19354839 | G37: 15 | H37: 48.38709677 | I37: 20 | J37: 64.51612903
A38: Karlovy Vary | B38: 43 | C38: 28 | D38: 65.11627907 | E38: 29 | F38: 67.44186047 | G38: 19 | H38: 44.18604651 | I38: 26 | J38: 60.46511628
A39: Sokolov | B39: 27 | C39: 19 | D39: 70.37037037 | E39: 19 | F39: 70.37037037 | G39: 10 | H39: 37.03703704 | I39: 17 | J39: 62.96296296
A40: Ústecký kraj celkem | B40: 263 | C40: 157 | D40: 59.69581749 | E40: 179 | F40: 68.0608365 | G40: 114 | H40: 43.3460076 | I40: 153 | J40: 58.17490494
A41: Děčín | B41: 44 | C41: 20 | D41: 45.45454545 | E41: 22 | F41: 50 | G41: 8 | H41: 18.18181818 | I41: 20 | J41: 45.45454545
A42: Chomutov | B42: 37 | C42: 23 | D42: 62.16216216 | E42: 26 | F42: 70.27027027 | G42: 20 | H42: 54.05405405 | I42: 22 | J42: 59.45945946
A43: Litoměřice | B43: 44 | C43: 27 | D43: 61.36363636 | E43: 28 | F43: 63.63636364 | G43: 14 | H43: 31.81818182 | I43: 25 | J43: 56.81818182
A44: Louny | B44: 30 | C44: 18 | D44: 60 | E44: 21 | F44: 70 | G44: 15 | H44: 50 | I44: 20 | J44: 66.66666667
A45: Most | B45: 34 | C45: 22 | D45: 64.70588235 | E45: 25 | F45: 73.52941176 | G45: 19 | H45: 55.88235294 | I45: 19 | J45: 55.88235294
A46: Teplice | B46: 35 | C46: 22 | D46: 62.85714286 | E46: 29 | F46: 82.85714286 | G46: 21 | H46: 60 | I46: 24 | J46: 68.57142857
A47: Ústí n/L | B47: 39 | C47: 25 | D47: 64.1025641 | E47: 28 | F47: 71.79487179 | G47: 17 | H47: 43.58974359 | I47: 23 | J47: 58.97435897
A48: Liberecký kraj celkem | B48: 169 | C48: 120 | D48: 71.00591716 | E48: 132 | F48: 78.10650888 | G48: 87 | H48: 51.47928994 | I48: 122 | J48: 72.18934911
A49: Česká Lípa | B49: 37 | C49: 24 | D49: 64.86486486 | E49: 29 | F49: 78.37837838 | G49: 21 | H49: 56.75675676 | I49: 26 | J49: 70.27027027
A50: Jablonec n/N | B50: 36 | C50: 23 | D50: 63.88888889 | E50: 27 | F50: 75 | G50: 14 | H50: 38.88888889 | I50: 25 | J50: 69.44444444
A51: Liberec | B51: 64 | C51: 50 | D51: 78.125 | E51: 51 | F51: 79.6875 | G51: 38 | H51: 59.375 | I51: 47 | J51: 73.4375
A52: Semily | B52: 32 | C52: 23 | D52: 71.875 | E52: 25 | F52: 78.125 | G52: 14 | H52: 43.75 | I52: 24 | J52: 75
A53: Královéhradecký kraj celkem | B53: 208 | C53: 148 | D53: 71.15384615 | E53: 161 | F53: 77.40384615 | G53: 110 | H53: 52.88461538 | I53: 148 | J53: 71.15384615
A54: Hradec Králové | B54: 62 | C54: 41 | D54: 66.12903226 | E54: 47 | F54: 75.80645161 | G54: 35 | H54: 56.4516129 | I54: 47 | J54: 75.80645161
A55: Jičín | B55: 32 | C55: 24 | D55: 75 | E55: 29 | F55: 90.625 | G55: 19 | H55: 59.375 | I55: 22 | J55: 68.75
A56: Náchod | B56: 41 | C56: 31 | D56: 75.6097561 | E56: 29 | F56: 70.73170732 | G56: 24 | H56: 58.53658537 | I56: 29 | J56: 70.73170732
A57: Rychnov n/K | B57: 31 | C57: 24 | D57: 77.41935484 | E57: 24 | F57: 77.41935484 | G57: 16 | H57: 51.61290323 | I57: 21 | J57: 67.74193548
A58: Trutnov | B58: 42 | C58: 28 | D58: 66.66666667 | E58: 32 | F58: 76.19047619 | G58: 16 | H58: 38.0952381 | I58: 29 | J58: 69.04761905
A59: Pardubický kraj celkem | B59: 186 | C59: 139 | D59: 74.7311828 | E59: 142 | F59: 76.34408602 | G59: 110 | H59: 59.13978495 | I59: 130 | J59: 69.89247312
A60: Chrudim | B60: 37 | C60: 29 | D60: 78.37837838 | E60: 28 | F60: 75.67567568 | G60: 25 | H60: 67.56756757 | I60: 27 | J60: 72.97297297
A61: Pardubice | B61: 61 | C61: 45 | D61: 73.7704918 | E61: 44 | F61: 72.13114754 | G61: 28 | H61: 45.90163934 | I61: 37 | J61: 60.6557377
A62: Svitavy | B62: 34 | C62: 26 | D62: 76.47058824 | E62: 27 | F62: 79.41176471 | G62: 23 | H62: 67.64705882 | I62: 29 | J62: 85.29411765
A63: Ústí n/Orl. | B63: 54 | C63: 39 | D63: 72.22222222 | E63: 43 | F63: 79.62962963 | G63: 34 | H63: 62.96296296 | I63: 37 | J63: 68.51851852
A64: Vysočina celkem | B64: 191 | C64: 134 | D64: 70.15706806 | E64: 147 | F64: 76.96335079 | G64: 103 | H64: 53.92670157 | I64: 129 | J64: 67.53926702
A65: Havlíčkův Brod | B65: 33 | C65: 27 | D65: 81.81818182 | E65: 28 | F65: 84.84848485 | G65: 22 | H65: 66.66666667 | I65: 25 | J65: 75.75757576
A66: Jihlava | B66: 46 | C66: 31 | D66: 67.39130435 | E66: 33 | F66: 71.73913043 | G66: 20 | H66: 43.47826087 | I66: 30 | J66: 65.2173913
A67: Pelhřimov | B67: 30 | C67: 19 | D67: 63.33333333 | E67: 25 | F67: 83.33333333 | G67: 13 | H67: 43.33333333 | I67: 20 | J67: 66.66666667
A68: Třebíč | B68: 39 | C68: 30 | D68: 76.92307692 | E68: 33 | F68: 84.61538462 | G68: 27 | H68: 69.23076923 | I68: 30 | J68: 76.92307692
A69: Žďár n/Sáz. | B69: 43 | C69: 27 | D69: 62.79069767 | E69: 28 | F69: 65.11627907 | G69: 21 | H69: 48.8372093 | I69: 24 | J69: 55.81395349
A70: Jihomoravský kraj celkem | B70: 480 | C70: 329 | D70: 68.54166667 | E70: 339 | F70: 70.625 | G70: 239 | H70: 49.79166667 | I70: 311 | J70: 64.79166667
A71: Blansko | B71: 45 | C71: 29 | D71: 64.44444444 | E71: 29 | F71: 64.44444444 | G71: 23 | H71: 51.11111111 | I71: 30 | J71: 66.66666667
A72: Brno-město | B72: 191 | C72: 124 | D72: 64.92146597 | E72: 133 | F72: 69.63350785 | G72: 87 | H72: 45.54973822 | I72: 114 | J72: 59.68586387
A73: Brno-venkov | B73: 69 | C73: 53 | D73: 76.8115942 | E73: 48 | F73: 69.56521739 | G73: 37 | H73: 53.62318841 | I73: 45 | J73: 65.2173913
A74: Břeclav | B74: 43 | C74: 25 | D74: 58.13953488 | E74: 24 | F74: 55.81395349 | G74: 19 | H74: 44.18604651 | I74: 25 | J74: 58.13953488
A75: Hodonín | B75: 60 | C75: 44 | D75: 73.33333333 | E75: 46 | F75: 76.66666667 | G75: 34 | H75: 56.66666667 | I75: 45 | J75: 75
A76: Vyškov | B76: 33 | C76: 24 | D76: 72.72727273 | E76: 26 | F76: 78.78787879 | G76: 16 | H76: 48.48484848 | I76: 21 | J76: 63.63636364
A77: Znojmo | B77: 39 | C77: 30 | D77: 76.92307692 | E77: 33 | F77: 84.61538462 | G77: 23 | H77: 58.97435897 | I77: 31 | J77: 79.48717949
A78: Olomoucký kraj celkem | B78: 250 | C78: 162 | D78: 64.8 | E78: 179 | F78: 71.6 | G78: 121 | H78: 48.4 | I78: 161 | J78: 64.4
A79: Jeseník | B79: 11 | C79: 9 | D79: 81.81818182 | E79: 11 | F79: 100 | G79: 9 | H79: 81.81818182 | I79: 11 | J79: 100
A80: Olomouc | B80: 97 | C80: 62 | D80: 63.91752577 | E80: 72 | F80: 74.22680412 | G80: 49 | H80: 50.51546392 | I80: 62 | J80: 63.91752577
A81: Prostějov | B81: 43 | C81: 19 | D81: 44.18604651 | E81: 22 | F81: 51.1627907 | G81: 14 | H81: 32.55813953 | I81: 23 | J81: 53.48837209
A82: Přerov | B82: 48 | C82: 32 | D82: 66.66666667 | E82: 36 | F82: 75 | G82: 25 | H82: 52.08333333 | I82: 33 | J82: 68.75
A83: Šumperk | B83: 51 | C83: 40 | D83: 78.43137255 | E83: 38 | F83: 74.50980392 | G83: 24 | H83: 47.05882353 | I83: 32 | J83: 62.74509804
A84: Zlínský kraj celkem | B84: 227 | C84: 138 | D84: 60.79295154 | E84: 146 | F84: 64.31718062 | G84: 99 | H84: 43.6123348 | I84: 123 | J84: 54.18502203
A85: Kroměříž | B85: 41 | C85: 20 | D85: 48.7804878 | E85: 18 | F85: 43.90243902 | G85: 12 | H85: 29.26829268 | I85: 16 | J85: 39.02439024
A86: Uherské Hradiště | B86: 64 | C86: 44 | D86: 68.75 | E86: 47 | F86: 73.4375 | G86: 32 | H86: 50 | I86: 34 | J86: 53.125
A87: Vsetín | B87: 51 | C87: 30 | D87: 58.82352941 | E87: 34 | F87: 66.66666667 | G87: 23 | H87: 45.09803922 | I87: 26 | J87: 50.98039216
A88: Zlín | B88: 71 | C88: 44 | D88: 61.97183099 | E88: 47 | F88: 66.1971831 | G88: 32 | H88: 45.07042254 | I88: 47 | J88: 66.1971831
A89: Moravskoslezský kraj celkem | B89: 432 | C89: 303 | D89: 70.13888889 | E89: 321 | F89: 74.30555556 | G89: 226 | H89: 52.31481481 | I89: 287 | J89: 66.43518519
A90: Bruntál | B90: 31 | C90: 24 | D90: 77.41935484 | E90: 25 | F90: 80.64516129 | G90: 17 | H90: 54.83870968 | I90: 23 | J90: 74.19354839
A91: Frýdek-Místek | B91: 75 | C91: 59 | D91: 78.66666667 | E91: 58 | F91: 77.33333333 | G91: 41 | H91: 54.66666667 | I91: 47 | J91: 62.66666667
A92: Karviná | B92: 86 | C92: 57 | D92: 66.27906977 | E92: 60 | F92: 69.76744186 | G92: 41 | H92: 47.6744186 | I92: 52 | J92: 60.46511628
A93: Nový Jičín | B93: 57 | C93: 37 | D93: 64.9122807 | E93: 42 | F93: 73.68421053 | G93: 31 | H93: 54.38596491 | I93: 37 | J93: 64.9122807
A94: Opava | B94: 65 | C94: 40 | D94: 61.53846154 | E94: 45 | F94: 69.23076923 | G94: 32 | H94: 49.23076923 | I94: 43 | J94: 66.15384615
A95: Ostrava-město | B95: 118 | C95: 86 | D95: 72.88135593 | E95: 91 | F95: 77.11864407 | G95: 64 | H95: 54.23728814 | I95: 85 | J95: 72.03389831
J96: Zdroj: Ústav zdravotnických informací a statistiky ČR a vlastní dopočty ČSÚ
A97: * % zdravotnických zařízení daného typu, která se zúčastnila šetření
A98: ** celkový počet ordinací, které odevzdaly výkaz

Sheet T11
A1: Tab. 11: Možnosti výpisů z elektronického systému v samostatných ordinacích PL pro děti a dorost v okresech a krajích ČR; 2024
A2: zpět na seznam
B3: Celkový počet ordinací** | C3: Pacienti na objednání k preventivním prohlídkám, testům | E3: Pacienti podle diagnóz | G3: Pacienti podle laboratorních výsledků | I3: Pacienti podle předepsaných léků
C4: počet | D4: %* | E4: počet | F4: %* | G4: počet | H4: %* | I4: počet | J4: %*
A5: Celkem ČR | B5: 1534 | C5: 1021 | D5: =C5/B5*100 -> 66.55801825 | E5: 995 | F5: =E5/B5*100 -> 64.863103 | G5: 675 | H5: =G5/B5*100 -> 44.00260756 | I5: 753 | J5: =I5/B5*100 -> 49.08735332
A6: Hl. m. Praha | B6: 184 | C6: 115 | D6: =C6/B6*100 -> 62.5 | E6: 111 | F6: =E6/B6*100 -> 60.32608696 | G6: 78 | H6: =G6/B6*100 -> 42.39130435 | I6: 90 | J6: =I6/B6*100 -> 48.91304348
A7: Středočeský kraj celkem | B7: 197 | C7: 128 | D7: 64.97461929 | E7: 121 | F7: 61.4213198 | G7: 76 | H7: 38.5786802 | I7: 87 | J7: 44.16243655
A8: Benešov | B8: 15 | C8: 9 | D8: 60 | E8: 7 | F8: 46.66666667 | G8: 6 | H8: 40 | I8: 6 | J8: 40
A9: Beroun | B9: 13 | C9: 6 | D9: 46.15384615 | E9: 5 | F9: 38.46153846 | G9: 2 | H9: 15.38461538 | I9: 3 | J9: 23.07692308
A10: Kladno | B10: 25 | C10: 17 | D10: 68 | E10: 18 | F10: 72 | G10: 13 | H10: 52 | I10: 14 | J10: 56
A11: Kolín | B11: 15 | C11: 9 | D11: 60 | E11: 8 | F11: 53.33333333 | G11: 5 | H11: 33.33333333 | I11: 7 | J11: 46.66666667
A12: Kutná Hora | B12: 9 | C12: 7 | D12: 77.77777778 | E12: 6 | F12: 66.66666667 | G12: 2 | H12: 22.22222222 | I12: 4 | J12: 44.44444444
A13: Mělník | B13: 15 | C13: 7 | D13: 46.66666667 | E13: 8 | F13: 53.33333333 | G13: 2 | H13: 13.33333333 | I13: 4 | J13: 26.66666667
A14: Mladá Boleslav | B14: 24 | C14: 15 | D14: 62.5 | E14: 14 | F14: 58.33333333 | G14: 10 | H14: 41.66666667 | I14: 11 | J14: 45.83333333
A15: Nymburk | B15: 13 | C15: 8 | D15: 61.53846154 | E15: 9 | F15: 69.23076923 | G15: 4 | H15: 30.76923077 | I15: 5 | J15: 38.46153846
A16: Praha-východ | B16: 21 | C16: 16 | D16: 76.19047619 | E16: 15 | F16: 71.42857143 | G16: 11 | H16: 52.38095238 | I16: 12 | J16: 57.14285714
A17: Praha-západ | B17: 26 | C17: 17 | D17: 65.38461538 | E17: 16 | F17: 61.53846154 | G17: 12 | H17: 46.15384615 | I17: 11 | J17: 42.30769231
A18: Příbram | B18: 14 | C18: 12 | D18: 85.71428571 | E18: 11 | F18: 78.57142857 | G18: 7 | H18: 50 | I18: 7 | J18: 50
A19: Rakovník | B19: 7 | C19: 5 | D19: 71.42857143 | E19: 4 | F19: 57.14285714 | G19: 2 | H19: 28.57142857 | I19: 3 | J19: 42.85714286
A20: Jihočeský kraj celkem | B20: 90 | C20: 60 | D20: 66.66666667 | E20: 61 | F20: 67.77777778 | G20: 43 | H20: 47.77777778 | I20: 45 | J20: 50
A21: České Budějovice | B21: 21 | C21: 11 | D21: 52.38095238 | E21: 11 | F21: 52.38095238 | G21: 9 | H21: 42.85714286 | I21: 9 | J21: 42.85714286
A22: Český Krumlov | B22: 9 | C22: 4 | D22: 44.44444444 | E22: 4 | F22: 44.44444444 | G22: 3 | H22: 33.33333333 | I22: 2 | J22: 22.22222222
A23: Jindřichův Hradec | B23: 18 | C23: 13 | D23: 72.22222222 | E23: 14 | F23: 77.77777778 | G23: 9 | H23: 50 | I23: 10 | J23: 55.55555556
A24: Písek | B24: 10 | C24: 8 | D24: 80 | E24: 10 | F24: 100 | G24: 8 | H24: 80 | I24: 7 | J24: 70
A25: Prachatice | B25: 8 | C25: 6 | D25: 75 | E25: 7 | F25: 87.5 | G25: 4 | H25: 50 | I25: 5 | J25: 62.5
A26: Strakonice | B26: 11 | C26: 9 | D26: 81.81818182 | E26: 8 | F26: 72.72727273 | G26: 6 | H26: 54.54545455 | I26: 7 | J26: 63.63636364
A27: Tábor | B27: 13 | C27: 9 | D27: 69.23076923 | E27: 7 | F27: 53.84615385 | G27: 4 | H27: 30.76923077 | I27: 5 | J27: 38.46153846
A28: Plzeňský kraj celkem | B28: 82 | C28: 57 | D28: 69.51219512 | E28: 60 | F28: 73.17073171 | G28: 35 | H28: 42.68292683 | I28: 41 | J28: 50
A29: Domažlice | B29: 6 | C29: 5 | D29: 83.33333333 | E29: 5 | F29: 83.33333333 | G29: 3 | H29: 50 | I29: 3 | J29: 50
A30: Klatovy | B30: 11 | C30: 8 | D30: 72.72727273 | E30: 9 | F30: 81.81818182 | G30: 6 | H30: 54.54545455 | I30: 5 | J30: 45.45454545
A31: Plzeň-město | B31: 33 | C31: 25 | D31: 75.75757576 | E31: 27 | F31: 81.81818182 | G31: 16 | H31: 48.48484848 | I31: 18 | J31: 54.54545455
A32: Plzeň-jih | B32: 9 | C32: 5 | D32: 55.55555556 | E32: 6 | F32: 66.66666667 | G32: 3 | H32: 33.33333333 | I32: 3 | J32: 33.33333333
A33: Plzeň-sever | B33: 12 | C33: 6 | D33: 50 | E33: 6 | F33: 50 | G33: 2 | H33: 16.66666667 | I33: 6 | J33: 50
A34: Rokycany | B34: 7 | C34: 4 | D34: 57.14285714 | E34: 4 | F34: 57.14285714 | G34: 2 | H34: 28.57142857 | I34: 4 | J34: 57.14285714
A35: Tachov | B35: 4 | C35: 4 | D35: 100 | E35: 3 | F35: 75 | G35: 3 | H35: 75 | I35: 2 | J35: 50
A36: Karlovarský kraj celkem | B36: 41 | C36: 23 | D36: 56.09756098 | E36: 22 | F36: 53.65853659 | G36: 15 | H36: 36.58536585 | I36: 17 | J36: 41.46341463
A37: Cheb | B37: 14 | C37: 9 | D37: 64.28571429 | E37: 9 | F37: 64.28571429 | G37: 7 | H37: 50 | I37: 8 | J37: 57.14285714
A38: Karlovy Vary | B38: 17 | C38: 10 | D38: 58.82352941 | E38: 7 | F38: 41.17647059 | G38: 4 | H38: 23.52941176 | I38: 5 | J38: 29.41176471
A39: Sokolov | B39: 10 | C39: 4 | D39: 40 | E39: 6 | F39: 60 | G39: 4 | H39: 40 | I39: 4 | J39: 40
A40: Ústecký kraj celkem | B40: 113 | C40: 79 | D40: 69.91150442 | E40: 75 | F40: 66.37168142 | G40: 44 | H40: 38.9380531 | I40: 53 | J40: 46.90265487
A41: Děčín | B41: 19 | C41: 11 | D41: 57.89473684 | E41: 13 | F41: 68.42105263 | G41: 8 | H41: 42.10526316 | I41: 8 | J41: 42.10526316
A42: Chomutov | B42: 19 | C42: 14 | D42: 73.68421053 | E42: 12 | F42: 63.15789474 | G42: 11 | H42: 57.89473684 | I42: 11 | J42: 57.89473684
A43: Litoměřice | B43: 17 | C43: 11 | D43: 64.70588235 | E43: 12 | F43: 70.58823529 | G43: 5 | H43: 29.41176471 | I43: 7 | J43: 41.17647059
A44: Louny | B44: 8 | C44: 3 | D44: 37.5 | E44: 2 | F44: 25 | G44: 2 | H44: 25 | I44: 2 | J44: 25
A45: Most | B45: 19 | C45: 15 | D45: 78.94736842 | E45: 11 | F45: 57.89473684 | G45: 8 | H45: 42.10526316 | I45: 8 | J45: 42.10526316
A46: Teplice | B46: 16 | C46: 13 | D46: 81.25 | E46: 13 | F46: 81.25 | G46: 5 | H46: 31.25 | I46: 8 | J46: 50
A47: Ústí n/L | B47: 15 | C47: 12 | D47: 80 | E47: 12 | F47: 80 | G47: 5 | H47: 33.33333333 | I47: 9 | J47: 60
A48: Liberecký kraj celkem | B48: 68 | C48: 46 | D48: 67.64705882 | E48: 38 | F48: 55.88235294 | G48: 25 | H48: 36.76470588 | I48: 30 | J48: 44.11764706
A49: Česká Lípa | B49: 15 | C49: 8 | D49: 53.33333333 | E49: 9 | F49: 60 | G49: 5 | H49: 33.33333333 | I49: 8 | J49: 53.33333333
A50: Jablonec n/N | B50: 15 | C50: 9 | D50: 60 | E50: 5 | F50: 33.33333333 | G50: 3 | H50: 20 | I50: 6 | J50: 40
A51: Liberec | B51: 25 | C51: 18 | D51: 72 | E51: 17 | F51: 68 | G51: 13 | H51: 52 | I51: 13 | J51: 52
A52: Semily | B52: 13 | C52: 11 | D52: 84.61538462 | E52: 7 | F52: 53.84615385 | G52: 4 | H52: 30.76923077 | I52: 3 | J52: 23.07692308
A53: Královéhradecký kraj celkem | B53: 86 | C53: 53 | D53: 61.62790698 | E53: 55 | F53: 63.95348837 | G53: 45 | H53: 52.3255814 | I53: 47 | J53: 54.65116279
A54: Hradec Králové | B54: 28 | C54: 18 | D54: 64.28571429 | E54: 18 | F54: 64.28571429 | G54: 16 | H54: 57.14285714 | I54: 16 | J54: 57.14285714
A55: Jičín | B55: 11 | C55: 7 | D55: 63.63636364 | E55: 8 | F55: 72.72727273 | G55: 7 | H55: 63.63636364 | I55: 7 | J55: 63.63636364
A56: Náchod | B56: 12 | C56: 8 | D56: 66.66666667 | E56: 7 | F56: 58.33333333 | G56: 7 | H56: 58.33333333 | I56: 7 | J56: 58.33333333
A57: Rychnov n/K | B57: 13 | C57: 9 | D57: 69.23076923 | E57: 10 | F57: 76.92307692 | G57: 8 | H57: 61.53846154 | I57: 7 | J57: 53.84615385
A58: Trutnov | B58: 22 | C58: 11 | D58: 50 | E58: 12 | F58: 54.54545455 | G58: 7 | H58: 31.81818182 | I58: 10 | J58: 45.45454545
A59: Pardubický kraj celkem | B59: 80 | C59: 60 | D59: 75 | E59: 58 | F59: 72.5 | G59: 33 | H59: 41.25 | I59: 37 | J59: 46.25
A60: Chrudim | B60: 17 | C60: 10 | D60: 58.82352941 | E60: 12 | F60: 70.58823529 | G60: 7 | H60: 41.17647059 | I60: 7 | J60: 41.17647059
A61: Pardubice | B61: 25 | C61: 18 | D61: 72 | E61: 16 | F61: 64 | G61: 10 | H61: 40 | I61: 11 | J61: 44
A62: Svitavy | B62: 16 | C62: 15 | D62: 93.75 | E62: 13 | F62: 81.25 | G62: 8 | H62: 50 | I62: 8 | J62: 50
A63: Ústí n/Orl. | B63: 22 | C63: 17 | D63: 77.27272727 | E63: 17 | F63: 77.27272727 | G63: 8 | H63: 36.36363636 | I63: 11 | J63: 50
A64: Vysočina celkem | B64: 73 | C64: 48 | D64: 65.75342466 | E64: 44 | F64: 60.2739726 | G64: 37 | H64: 50.68493151 | I64: 38 | J64: 52.05479452
A65: Havlíčkův Brod | B65: 13 | C65: 9 | D65: 69.23076923 | E65: 8 | F65: 61.53846154 | G65: 5 | H65: 38.46153846 | I65: 5 | J65: 38.46153846
A66: Jihlava | B66: 14 | C66: 12 | D66: 85.71428571 | E66: 9 | F66: 64.28571429 | G66: 9 | H66: 64.28571429 | I66: 9 | J66: 64.28571429
A67: Pelhřimov | B67: 9 | C67: 7 | D67: 77.77777778 | E67: 7 | F67: 77.77777778 | G67: 6 | H67: 66.66666667 | I67: 5 | J67: 55.55555556
A68: Třebíč | B68: 17 | C68: 10 | D68: 58.82352941 | E68: 10 | F68: 58.82352941 | G68: 8 | H68: 47.05882353 | I68: 9 | J68: 52.94117647
A69: Žďár n/Sáz. | B69: 20 | C69: 10 | D69: 50 | E69: 10 | F69: 50 | G69: 9 | H69: 45 | I69: 10 | J69: 50
A70: Jihomoravský kraj celkem | B70: 178 | C70: 124 | D70: =C70/B70*100 -> 69.66292135 | E70: 122 | F70: =E70/B70*100 -> 68.53932584 | G70: 85 | H70: =G70/B70*100 -> 47.75280899 | I70: 97 | J70: =I70/B70*100 -> 54.49438202
A71: Blansko | B71: 13 | C71: 9 | D71: 69.23076923 | E71: 10 | F71: 76.92307692 | G71: 6 | H71: 46.15384615 | I71: 9 | J71: 69.23076923
A72: Brno-město | B72: 68 | C72: 54 | D72: 79.41176471 | E72: 54 | F72: 79.41176471 | G72: 37 | H72: 54.41176471 | I72: 41 | J72: 60.29411765
A73: Brno-venkov | B73: 32 | C73: 19 | D73: 59.375 | E73: 17 | F73: 53.125 | G73: 14 | H73: 43.75 | I73: 16 | J73: 50
A74: Břeclav | B74: 16 | C74: 14 | D74: 87.5 | E74: 13 | F74: 81.25 | G74: 10 | H74: 62.5 | I74: 11 | J74: 68.75
A75: Hodonín | B75: 25 | C75: 11 | D75: 44 | E75: 11 | F75: 44 | G75: 10 | H75: 40 | I75: 8 | J75: 32
A76: Vyškov | B76: 13 | C76: 9 | D76: 69.23076923 | E76: 9 | F76: 69.23076923 | G76: 4 | H76: 30.76923077 | I76: 6 | J76: 46.15384615
A77: Znojmo | B77: 11 | C77: 8 | D77: 72.72727273 | E77: 8 | F77: 72.72727273 | G77: 4 | H77: 36.36363636 | I77: 6 | J77: 54.54545455
A78: Olomoucký kraj celkem | B78: 95 | C78: 61 | D78: 64.21052632 | E78: 61 | F78: 64.21052632 | G78: 44 | H78: 46.31578947 | I78: 42 | J78: 44.21052632
A79: Jeseník | B79: 7 | C79: 3 | D79: 42.85714286 | E79: 5 | F79: 71.42857143 | G79: 3 | H79: 42.85714286 | I79: 3 | J79: 42.85714286
A80: Olomouc | B80: 41 | C80: 31 | D80: 75.6097561 | E80: 28 | F80: 68.29268293 | G80: 21 | H80: 51.2195122 | I80: 23 | J80: 56.09756098
A81: Prostějov | B81: 19 | C81: 10 | D81: 52.63157895 | E81: 9 | F81: 47.36842105 | G81: 10 | H81: 52.63157895 | I81: 6 | J81: 31.57894737
A82: Přerov | B82: 16 | C82: 9 | D82: 56.25 | E82: 10 | F82: 62.5 | G82: 6 | H82: 37.5 | I82: 6 | J82: 37.5
A83: Šumperk | B83: 12 | C83: 8 | D83: 66.66666667 | E83: 9 | F83: 75 | G83: 4 | H83: 33.33333333 | I83: 4 | J83: 33.33333333
A84: Zlínský kraj celkem | B84: 85 | C84: 55 | D84: 64.70588235 | E84: 54 | F84: 63.52941176 | G84: 36 | H84: 42.35294118 | I84: 43 | J84: 50.58823529
A85: Kroměříž | B85: 17 | C85: 13 | D85: 76.47058824 | E85: 10 | F85: 58.82352941 | G85: 7 | H85: 41.17647059 | I85: 9 | J85: 52.94117647
A86: Uherské Hradiště | B86: 18 | C86: 12 | D86: 66.66666667 | E86: 11 | F86: 61.11111111 | G86: 8 | H86: 44.44444444 | I86: 9 | J86: 50
A87: Vsetín | B87: 21 | C87: 10 | D87: 47.61904762 | E87: 13 | F87: 61.9047619 | G87: 8 | H87: 38.0952381 | I87: 8 | J87: 38.0952381
A88: Zlín | B88: 29 | C88: 20 | D88: 68.96551724 | E88: 20 | F88: 68.96551724 | G88: 13 | H88: 44.82758621 | I88: 17 | J88: 58.62068966
A89: Moravskoslezský kraj celkem | B89: 162 | C89: 112 | D89: 69.13580247 | E89: 113 | F89: 69.75308642 | G89: 79 | H89: 48.7654321 | I89: 86 | J89: 53.08641975
A90: Bruntál | B90: 14 | C90: 8 | D90: 57.14285714 | E90: 9 | F90: 64.28571429 | G90: 6 | H90: 42.85714286 | I90: 7 | J90: 50
A91: Frýdek-Místek | B91: 28 | C91: 17 | D91: 60.71428571 | E91: 18 | F91: 64.28571429 | G91: 14 | H91: 50 | I91: 14 | J91: 50
A92: Karviná | B92: 34 | C92: 25 | D92: 73.52941176 | E92: 22 | F92: 64.70588235 | G92: 16 | H92: 47.05882353 | I92: 14 | J92: 41.17647059
A93: Nový Jičín | B93: 20 | C93: 13 | D93: 65 | E93: 12 | F93: 60 | G93: 6 | H93: 30 | I93: 7 | J93: 35
A94: Opava | B94: 21 | C94: 15 | D94: 71.42857143 | E94: 18 | F94: 85.71428571 | G94: 10 | H94: 47.61904762 | I94: 12 | J94: 57.14285714
A95: Ostrava-město | B95: 45 | C95: 34 | D95: 75.55555556 | E95: 34 | F95: 75.55555556 | G95: 27 | H95: 60 | I95: 32 | J95: 71.11111111
J96: Zdroj: Ústav zdravotnických informací a statistiky ČR a vlastní dopočty ČSÚ
A97: * % zdravotnických zařízení daného typu, která se zúčastnila šetření
A98: ** celkový počet ordinací, které odevzdaly výkaz

Sheet T12
A1: Tab. 12: Možnosti výpisů z elektronického systému v samostatných ordinacích zubního lékaře v okresech a krajích ČR; 2024
A2: zpět na seznam
B3: Celkový počet ordinací** | C3: Pacienti na objednání k preventivním prohlídkám, testům | E3: Pacienti podle diagnóz | G3: Pacienti podle laboratorních výsledků | I3: Pacienti podle předepsaných léků
C4: počet | D4: %* | E4: počet | F4: %* | G4: počet | H4: %* | I4: počet | J4: %*
A5: Celkem ČR | B5: 4528 | C5: 1723 | D5: =C5/B5*100 -> 38.05212014 | E5: 1448 | F5: =E5/B5*100 -> 31.97879859 | G5: 426 | H5: =G5/B5*100 -> 9.408127208 | I5: 708 | J5: =I5/B5*100 -> 15.6360424
A6: Hl. m. Praha | B6: 840 | C6: 324 | D6: =C6/B6*100 -> 38.57142857 | E6: 234 | F6: =E6/B6*100 -> 27.85714286 | G6: 76 | H6: =G6/B6*100 -> 9.047619048 | I6: 140 | J6: =I6/B6*100 -> 16.66666667
A7: Středočeský kraj celkem | B7: 445 | C7: 173 | D7: 38.87640449 | E7: 147 | F7: =E7/B7*100 -> 33.03370787 | G7: 37 | H7: 8.314606742 | I7: 83 | J7: 18.65168539
A8: Benešov | B8: 32 | C8: 12 | D8: 37.5 | E8: 10 | F8: =E8/B8*100 -> 31.25 | G8: 3 | H8: 9.375 | I8: 11 | J8: 34.375
A9: Beroun | B9: 33 | C9: 16 | D9: 48.48484848 | E9: 14 | F9: 42.42424242 | G9: 2 | H9: 6.060606061 | I9: 4 | J9: 12.12121212
A10: Kladno | B10: 58 | C10: 25 | D10: 43.10344828 | E10: 22 | F10: 37.93103448 | G10: 10 | H10: 17.24137931 | I10: 13 | J10: 22.4137931
A11: Kolín | B11: 33 | C11: 13 | D11: 39.39393939 | E11: 11 | F11: 33.33333333 | G11: 6 | H11: 18.18181818 | I11: 10 | J11: 30.3030303
A12: Kutná Hora | B12: 26 | C12: 9 | D12: 34.61538462 | E12: 10 | F12: 38.46153846 | G12: 3 | H12: 11.53846154 | I12: 5 | J12: 19.23076923
A13: Mělník | B13: 30 | C13: 10 | D13: 33.33333333 | E13: 9 | F13: 30 | G13: 2 | H13: 6.666666667 | I13: 4 | J13: 13.33333333
A14: Mladá Boleslav | B14: 47 | C14: 21 | D14: 44.68085106 | E14: 17 | F14: 36.17021277 | G14: 3 | H14: 6.382978723 | I14: 7 | J14: 14.89361702
A15: Nymburk | B15: 35 | C15: 14 | D15: 40 | E15: 12 | F15: 34.28571429 | G15: 2 | H15: 5.714285714 | I15: 8 | J15: 22.85714286
A16: Praha-východ | B16: 43 | C16: 19 | D16: 44.18604651 | E16: 13 | F16: 30.23255814 | G16: 3 | H16: 6.976744186 | I16: 8 | J16: 18.60465116
A17: Praha-západ | B17: 40 | C17: 14 | D17: 35 | E17: 10 | F17: 25 | G17: 1 | H17: 2.5 | I17: 4 | J17: 10
A18: Příbram | B18: 48 | C18: 14 | D18: 29.16666667 | E18: 14 | F18: 29.16666667 | G18: 2 | H18: 4.166666667 | I18: 8 | J18: 16.66666667
A19: Rakovník | B19: 20 | C19: 6 | D19: 30 | E19: 5 | F19: 25 | G19: - | H19: - | I19: 1 | J19: 5
A20: Jihočeský kraj celkem | B20: 267 | C20: 101 | D20: 37.82771536 | E20: 82 | F20: 30.71161049 | G20: 23 | H20: 8.61423221 | I20: 35 | J20: 13.10861423
A21: České Budějovice | B21: 110 | C21: 39 | D21: 35.45454545 | E21: 31 | F21: 28.18181818 | G21: 9 | H21: 8.181818182 | I21: 12 | J21: 10.90909091
A22: Český Krumlov | B22: 21 | C22: 7 | D22: 33.33333333 | E22: 6 | F22: 28.57142857 | G22: - | H22: - | I22: 3 | J22: 14.28571429
A23: Jindřichův Hradec | B23: 40 | C23: 19 | D23: 47.5 | E23: 17 | F23: 42.5 | G23: 6 | H23: 15 | I23: 8 | J23: 20
A24: Písek | B24: 24 | C24: 8 | D24: 33.33333333 | E24: 8 | F24: 33.33333333 | G24: 2 | H24: 8.333333333 | I24: 3 | J24: 12.5
A25: Prachatice | B25: 11 | C25: 6 | D25: 54.54545455 | E25: 4 | F25: 36.36363636 | G25: 1 | H25: 9.090909091 | I25: 2 | J25: 18.18181818
A26: Strakonice | B26: 21 | C26: 6 | D26: 28.57142857 | E26: 4 | F26: 19.04761905 | G26: 2 | H26: 9.523809524 | I26: 3 | J26: 14.28571429
A27: Tábor | B27: 40 | C27: 16 | D27: 40 | E27: 12 | F27: 30 | G27: 3 | H27: 7.5 | I27: 4 | J27: 10
A28: Plzeňský kraj celkem | B28: 242 | C28: 113 | D28: 46.69421488 | E28: 90 | F28: 37.19008264 | G28: 19 | H28: 7.851239669 | I28: 32 | J28: 13.2231405
A29: Domažlice | B29: 18 | C29: 11 | D29: 61.11111111 | E29: 10 | F29: 55.55555556 | G29: 2 | H29: 11.11111111 | I29: 4 | J29: 22.22222222
A30: Klatovy | B30: 35 | C30: 17 | D30: 48.57142857 | E30: 6 | F30: 17.14285714 | G30: 1 | H30: 2.857142857 | I30: 2 | J30: 5.714285714
A31: Plzeň-město | B31: 116 | C31: 54 | D31: 46.55172414 | E31: 45 | F31: 38.79310345 | G31: 12 | H31: 10.34482759 | I31: 16 | J31: 13.79310345
A32: Plzeň-jih | B32: 21 | C32: 7 | D32: 33.33333333 | E32: 8 | F32: 38.0952381 | G32: - | H32: - | I32: 1 | J32: 4.761904762
A33: Plzeň-sever | B33: 19 | C33: 7 | D33: 36.84210526 | E33: 7 | F33: 36.84210526 | G33: - | H33: - | I33: 1 | J33: 5.263157895
A34: Rokycany | B34: 12 | C34: 6 | D34: 50 | E34: 3 | F34: 25 | G34: 1 | H34: 8.333333333 | I34: 1 | J34: 8.333333333
A35: Tachov | B35: 21 | C35: 11 | D35: 52.38095238 | E35: 11 | F35: 52.38095238 | G35: 3 | H35: 14.28571429 | I35: 7 | J35: 33.33333333
A36: Karlovarský kraj celkem | B36: 106 | C36: 31 | D36: 29.24528302 | E36: 31 | F36: 29.24528302 | G36: 9 | H36: 8.490566038 | I36: 10 | J36: 9.433962264
A37: Cheb | B37: 33 | C37: 15 | D37: 45.45454545 | E37: 11 | F37: 33.33333333 | G37: 2 | H37: 6.060606061 | I37: 6 | J37: 18.18181818
A38: Karlovy Vary | B38: 53 | C38: 14 | D38: 26.41509434 | E38: 17 | F38: 32.0754717 | G38: 6 | H38: 11.32075472 | I38: 4 | J38: 7.547169811
A39: Sokolov | B39: 20 | C39: 2 | D39: 10 | E39: 3 | F39: 15 | G39: 1 | H39: 5 | I39: - | J39: -
A40: Ústecký kraj celkem | B40: 232 | C40: 78 | D40: 33.62068966 | E40: 61 | F40: 26.29310345 | G40: 19 | H40: 8.189655172 | I40: 24 | J40: 10.34482759
A41: Děčín | B41: 38 | C41: 6 | D41: 15.78947368 | E41: 6 | F41: 15.78947368 | G41: 2 | H41: 5.263157895 | I41: 4 | J41: 10.52631579
A42: Chomutov | B42: 39 | C42: 13 | D42: 33.33333333 | E42: 11 | F42: 28.20512821 | G42: 5 | H42: 12.82051282 | I42: 3 | J42: 7.692307692
A43: Litoměřice | B43: 35 | C43: 13 | D43: 37.14285714 | E43: 9 | F43: 25.71428571 | G43: 2 | H43: 5.714285714 | I43: 3 | J43: 8.571428571
A44: Louny | B44: 23 | C44: 8 | D44: 34.7826087 | E44: 5 | F44: 21.73913043 | G44: 2 | H44: 8.695652174 | I44: 1 | J44: 4.347826087
A45: Most | B45: 28 | C45: 7 | D45: 25 | E45: 8 | F45: 28.57142857 | G45: 2 | H45: 7.142857143 | I45: 4 | J45: 14.28571429
A46: Teplice | B46: 37 | C46: 15 | D46: 40.54054054 | E46: 12 | F46: 32.43243243 | G46: 3 | H46: 8.108108108 | I46: 5 | J46: 13.51351351
A47: Ústí n/L | B47: 32 | C47: 16 | D47: 50 | E47: 10 | F47: 31.25 | G47: 3 | H47: 9.375 | I47: 4 | J47: 12.5
A48: Liberecký kraj celkem | B48: 176 | C48: 57 | D48: 32.38636364 | E48: 55 | F48: 31.25 | G48: 21 | H48: 11.93181818 | I48: 25 | J48: 14.20454545
A49: Česká Lípa | B49: 39 | C49: 15 | D49: 38.46153846 | E49: 13 | F49: 33.33333333 | G49: 6 | H49: 15.38461538 | I49: 7 | J49: 17.94871795
A50: Jablonec n/N | B50: 33 | C50: 13 | D50: 39.39393939 | E50: 10 | F50: 30.3030303 | G50: 5 | H50: 15.15151515 | I50: 4 | J50: 12.12121212
A51: Liberec | B51: 80 | C51: 19 | D51: 23.75 | E51: 24 | F51: 30 | G51: 9 | H51: 11.25 | I51: 11 | J51: 13.75
A52: Semily | B52: 24 | C52: 10 | D52: 41.66666667 | E52: 8 | F52: 33.33333333 | G52: 1 | H52: 4.166666667 | I52: 3 | J52: 12.5
A53: Královéhradecký kraj celkem | B53: 238 | C53: 84 | D53: 35.29411765 | E53: 65 | F53: 27.31092437 | G53: 17 | H53: 7.142857143 | I53: 37 | J53: 15.54621849
A54: Hradec Králové | B54: 91 | C54: 36 | D54: 39.56043956 | E54: 29 | F54: 31.86813187 | G54: 4 | H54: 4.395604396 | I54: 19 | J54: 20.87912088
A55: Jičín | B55: 27 | C55: 5 | D55: 18.51851852 | E55: 5 | F55: 18.51851852 | G55: 2 | H55: 7.407407407 | I55: 3 | J55: 11.11111111
A56: Náchod | B56: 45 | C56: 16 | D56: 35.55555556 | E56: 14 | F56: 31.11111111 | G56: 5 | H56: 11.11111111 | I56: 7 | J56: 15.55555556
A57: Rychnov n/K | B57: 23 | C57: 9 | D57: 39.13043478 | E57: 7 | F57: 30.43478261 | G57: 2 | H57: 8.695652174 | I57: 4 | J57: 17.39130435
A58: Trutnov | B58: 52 | C58: 18 | D58: 34.61538462 | E58: 10 | F58: 19.23076923 | G58: 4 | H58: 7.692307692 | I58: 4 | J58: 7.692307692
A59: Pardubický kraj celkem | B59: 190 | C59: 59 | D59: 31.05263158 | E59: 49 | F59: 25.78947368 | G59: 17 | H59: 8.947368421 | I59: 24 | J59: 12.63157895
A60: Chrudim | B60: 36 | C60: 13 | D60: 36.11111111 | E60: 12 | F60: 33.33333333 | G60: 3 | H60: 8.333333333 | I60: 4 | J60: 11.11111111
A61: Pardubice | B61: 73 | C61: 26 | D61: 35.61643836 | E61: 14 | F61: 19.17808219 | G61: 7 | H61: 9.589041096 | I61: 11 | J61: 15.06849315
A62: Svitavy | B62: 30 | C62: 7 | D62: 23.33333333 | E62: 11 | F62: 36.66666667 | G62: 3 | H62: 10 | I62: 1 | J62: 3.333333333
A63: Ústí n/Orl. | B63: 51 | C63: 13 | D63: 25.49019608 | E63: 12 | F63: 23.52941176 | G63: 4 | H63: 7.843137255 | I63: 8 | J63: 15.68627451
A64: Vysočina celkem | B64: 199 | C64: 65 | D64: 32.66331658 | E64: 58 | F64: 29.14572864 | G64: 23 | H64: 11.55778894 | I64: 33 | J64: 16.58291457
A65: Havlíčkův Brod | B65: 43 | C65: 11 | D65: 25.58139535 | E65: 9 | F65: 20.93023256 | G65: 6 | H65: 13.95348837 | I65: 4 | J65: 9.302325581
A66: Jihlava | B66: 49 | C66: 24 | D66: 48.97959184 | E66: 21 | F66: 42.85714286 | G66: 7 | H66: 14.28571429 | I66: 14 | J66: 28.57142857
A67: Pelhřimov | B67: 26 | C67: 8 | D67: 30.76923077 | E67: 7 | F67: 26.92307692 | G67: 3 | H67: 11.53846154 | I67: 6 | J67: 23.07692308
A68: Třebíč | B68: 31 | C68: 10 | D68: 32.25806452 | E68: 13 | F68: 41.93548387 | G68: 6 | H68: 19.35483871 | I68: 7 | J68: 22.58064516
A69: Žďár n/Sáz. | B69: 50 | C69: 12 | D69: 24 | E69: 8 | F69: 16 | G69: 1 | H69: 2 | I69: 2 | J69: 4
A70: Jihomoravský kraj celkem | B70: 541 | C70: 198 | D70: =C70/B70*100 -> 36.59889094 | E70: 171 | F70: 31.60813309 | G70: 54 | H70: =G70/B70*100 -> 9.981515712 | I70: 81 | J70: =I70/B70*100 -> 14.97227357
A71: Blansko | B71: 45 | C71: 10 | D71: 22.22222222 | E71: 17 | F71: =E71/B71*100 -> 37.77777778 | G71: 3 | H71: 6.666666667 | I71: 7 | J71: 15.55555556
A72: Brno-město | B72: 259 | C72: 104 | D72: 40.15444015 | E72: 85 | F72: 32.81853282 | G72: 29 | H72: 11.1969112 | I72: 36 | J72: 13.8996139
A73: Brno-venkov | B73: 56 | C73: 19 | D73: 33.92857143 | E73: 15 | F73: 26.78571429 | G73: 4 | H73: 7.142857143 | I73: 6 | J73: 10.71428571
A74: Břeclav | B74: 33 | C74: 12 | D74: 36.36363636 | E74: 7 | F74: 21.21212121 | G74: 3 | H74: 9.090909091 | I74: 4 | J74: 12.12121212
A75: Hodonín | B75: 70 | C75: 19 | D75: 27.14285714 | E75: 15 | F75: 21.42857143 | G75: 7 | H75: 10 | I75: 14 | J75: 20
A76: Vyškov | B76: 29 | C76: 17 | D76: 58.62068966 | E76: 12 | F76: 41.37931034 | G76: 3 | H76: 10.34482759 | I76: 7 | J76: 24.13793103
A77: Znojmo | B77: 49 | C77: 17 | D77: 34.69387755 | E77: 20 | F77: 40.81632653 | G77: 5 | H77: 10.20408163 | I77: 7 | J77: 14.28571429
A78: Olomoucký kraj celkem | B78: 293 | C78: 114 | D78: 38.90784983 | E78: 100 | F78: 34.12969283 | G78: 30 | H78: 10.23890785 | I78: 52 | J78: 17.74744027
A79: Jeseník | B79: 12 | C79: 7 | D79: 58.33333333 | E79: 3 | F79: 25 | G79: - | H79: - | I79: 1 | J79: 8.333333333
A80: Olomouc | B80: 131 | C80: 47 | D80: 35.8778626 | E80: 41 | F80: 31.29770992 | G80: 12 | H80: 9.160305344 | I80: 19 | J80: 14.50381679
A81: Prostějov | B81: 49 | C81: 21 | D81: 42.85714286 | E81: 19 | F81: 38.7755102 | G81: 3 | H81: 6.12244898 | I81: 8 | J81: 16.32653061
A82: Přerov | B82: 48 | C82: 18 | D82: 37.5 | E82: 18 | F82: 37.5 | G82: 5 | H82: 10.41666667 | I82: 10 | J82: 20.83333333
A83: Šumperk | B83: 53 | C83: 21 | D83: 39.62264151 | E83: 19 | F83: 35.8490566 | G83: 10 | H83: 18.86792453 | I83: 14 | J83: 26.41509434
A84: Zlínský kraj celkem | B84: 269 | C84: 108 | D84: 40.14869888 | E84: 92 | F84: 34.20074349 | G84: 31 | H84: 11.52416357 | I84: 44 | J84: 16.35687732
A85: Kroměříž | B85: 42 | C85: 21 | D85: 50 | E85: 12 | F85: 28.57142857 | G85: 6 | H85: 14.28571429 | I85: 7 | J85: 16.66666667
A86: Uherské Hradiště | B86: 67 | C86: 23 | D86: 34.32835821 | E86: 20 | F86: 29.85074627 | G86: 8 | H86: 11.94029851 | I86: 11 | J86: 16.41791045
A87: Vsetín | B87: 62 | C87: 25 | D87: 40.32258065 | E87: 21 | F87: 33.87096774 | G87: 7 | H87: 11.29032258 | I87: 9 | J87: 14.51612903
A88: Zlín | B88: 98 | C88: 39 | D88: 39.79591837 | E88: 39 | F88: 39.79591837 | G88: 10 | H88: 10.20408163 | I88: 17 | J88: 17.34693878
A89: Moravskoslezský kraj celkem | B89: 490 | C89: 218 | D89: 44.48979592 | E89: 213 | F89: 43.46938776 | G89: 50 | H89: 10.20408163 | I89: 88 | J89: 17.95918367
A90: Bruntál | B90: 23 | C90: 12 | D90: 52.17391304 | E90: 14 | F90: 60.86956522 | G90: 3 | H90: 13.04347826 | I90: 4 | J90: 17.39130435
A91: Frýdek-Místek | B91: 93 | C91: 42 | D91: 45.16129032 | E91: 38 | F91: 40.86021505 | G91: 9 | H91: 9.677419355 | I91: 14 | J91: 15.05376344
A92: Karviná | B92: 87 | C92: 32 | D92: 36.7816092 | E92: 38 | F92: 43.67816092 | G92: 12 | H92: 13.79310345 | I92: 19 | J92: 21.83908046
A93: Nový Jičín | B93: 50 | C93: 24 | D93: 48 | E93: 24 | F93: 48 | G93: 8 | H93: 16 | I93: 13 | J93: 26
A94: Opava | B94: 69 | C94: 26 | D94: 37.68115942 | E94: 25 | F94: 36.23188406 | G94: - | H94: - | I94: 6 | J94: 8.695652174
A95: Ostrava-město | B95: 168 | C95: 82 | D95: 48.80952381 | E95: 74 | F95: 44.04761905 | G95: 18 | H95: 10.71428571 | I95: 32 | J95: 19.04761905
J96: Zdroj: Ústav zdravotnických informací a statistiky ČR a vlastní dopočty ČSÚ
A97: * % zdravotnických zařízení daného typu, která se zúčastnila šetření
A98: ** celkový počet ordinací, které odevzdaly výkaz

Sheet T13
A1: Tab. 13: Možnosti výpisů z elektronického systému v samostatných ordinacích gynekologa v okresech a krajích ČR; 2024
A2: zpět na seznam
B3: Celkový počet ordinací** | C3: Pacienti na objednání k preventivním prohlídkám, testům | E3: Pacienti podle diagnóz | G3: Pacienti podle laboratorních výsledků | I3: Pacienti podle předepsaných léků
C4: počet | D4: %* | E4: počet | F4: %* | G4: počet | H4: %* | I4: počet | J4: %*
A5: Celkem ČR | B5: 1121 | C5: 758 | D5: =C5/B5*100 -> 67.61819804 | E5: 823 | F5: =E5/B5*100 -> 73.41659233 | G5: 535 | H5: =G5/B5*100 -> 47.72524532 | I5: 697 | J5: =I5/B5*100 -> 62.17662801
A6: Hl. m. Praha | B6: 152 | C6: 106 | D6: =C6/B6*100 -> 69.73684211 | E6: 113 | F6: =E6/B6*100 -> 74.34210526 | G6: 77 | H6: =G6/B6*100 -> 50.65789474 | I6: 99 | J6: 65.13157895
A7: Středočeský kraj celkem | B7: 112 | C7: 72 | D7: 64.28571429 | E7: 85 | F7: =E7/B7*100 -> 75.89285714 | G7: 54 | H7: 48.21428571 | I7: 70 | J7: 62.5
A8: Benešov | B8: 9 | C8: 5 | D8: 55.55555556 | E8: 6 | F8: =E8/B8*100 -> 66.66666667 | G8: 3 | H8: 33.33333333 | I8: 4 | J8: 44.44444444
A9: Beroun | B9: 8 | C9: 6 | D9: 75 | E9: 6 | F9: 75 | G9: 3 | H9: 37.5 | I9: 4 | J9: 50
A10: Kladno | B10: 19 | C10: 13 | D10: 68.42105263 | E10: 14 | F10: 73.68421053 | G10: 10 | H10: 52.63157895 | I10: 13 | J10: 68.42105263
A11: Kolín | B11: 10 | C11: 6 | D11: 60 | E11: 8 | F11: 80 | G11: 5 | H11: 50 | I11: 6 | J11: 60
A12: Kutná Hora | B12: 6 | C12: 4 | D12: 66.66666667 | E12: 6 | F12: 100 | G12: 5 | H12: 83.33333333 | I12: 5 | J12: 83.33333333
A13: Mělník | B13: 10 | C13: 9 | D13: 90 | E13: 10 | F13: 100 | G13: 6 | H13: 60 | I13: 7 | J13: 70
A14: Mladá Boleslav | B14: 7 | C14: 4 | D14: 57.14285714 | E14: 4 | F14: 57.14285714 | G14: 1 | H14: 14.28571429 | I14: 4 | J14: 57.14285714
A15: Nymburk | B15: 10 | C15: 6 | D15: 60 | E15: 6 | F15: 60 | G15: 4 | H15: 40 | I15: 6 | J15: 60
A16: Praha-východ | B16: 10 | C16: 6 | D16: 60 | E16: 9 | F16: 90 | G16: 5 | H16: 50 | I16: 7 | J16: 70
A17: Praha-západ | B17: 7 | C17: 4 | D17: 57.14285714 | E17: 5 | F17: 71.42857143 | G17: 5 | H17: 71.42857143 | I17: 5 | J17: 71.42857143
A18: Příbram | B18: 11 | C18: 6 | D18: 54.54545455 | E18: 8 | F18: 72.72727273 | G18: 5 | H18: 45.45454545 | I18: 6 | J18: 54.54545455
A19: Rakovník | B19: 5 | C19: 3 | D19: 60 | E19: 3 | F19: 60 | G19: 2 | H19: 40 | I19: 3 | J19: 60
A20: Jihočeský kraj celkem | B20: 73 | C20: 48 | D20: 65.75342466 | E20: 51 | F20: 69.8630137 | G20: 33 | H20: 45.20547945 | I20: 45 | J20: 61.64383562
A21: České Budějovice | B21: 20 | C21: 11 | D21: 55 | E21: 11 | F21: 55 | G21: 8 | H21: 40 | I21: 9 | J21: 45
A22: Český Krumlov | B22: 7 | C22: 4 | D22: 57.14285714 | E22: 4 | F22: 57.14285714 | G22: 2 | H22: 28.57142857 | I22: 4 | J22: 57.14285714
A23: Jindřichův Hradec | B23: 11 | C23: 8 | D23: 72.72727273 | E23: 9 | F23: 81.81818182 | G23: 5 | H23: 45.45454545 | I23: 8 | J23: 72.72727273
A24: Písek | B24: 8 | C24: 5 | D24: 62.5 | E24: 7 | F24: 87.5 | G24: 4 | H24: 50 | I24: 7 | J24: 87.5
A25: Prachatice | B25: 6 | C25: 3 | D25: 50 | E25: 4 | F25: 66.66666667 | G25: 3 | H25: 50 | I25: 4 | J25: 66.66666667
A26: Strakonice | B26: 9 | C26: 6 | D26: 66.66666667 | E26: 7 | F26: 77.77777778 | G26: 4 | H26: 44.44444444 | I26: 6 | J26: 66.66666667
A27: Tábor | B27: 12 | C27: 11 | D27: 91.66666667 | E27: 9 | F27: 75 | G27: 7 | H27: 58.33333333 | I27: 7 | J27: 58.33333333
A28: Plzeňský kraj celkem | B28: 61 | C28: 46 | D28: =C28/B28*100 -> 75.40983607 | E28: 47 | F28: 77.04918033 | G28: 32 | H28: 52.45901639 | I28: 41 | J28: 67.21311475
A29: Domažlice | B29: 6 | C29: 5 | D29: 83.33333333 | E29: 5 | F29: 83.33333333 | G29: 3 | H29: 50 | I29: 4 | J29: 66.66666667
A30: Klatovy | B30: 9 | C30: 7 | D30: 77.77777778 | E30: 8 | F30: 88.88888889 | G30: 7 | H30: 77.77777778 | I30: 7 | J30: 77.77777778
A31: Plzeň-město | B31: 27 | C31: 19 | D31: 70.37037037 | E31: 18 | F31: 66.66666667 | G31: 9 | H31: 33.33333333 | I31: 16 | J31: 59.25925926
A32: Plzeň-jih | B32: 4 | C32: 2 | D32: 50 | E32: 3 | F32: 75 | G32: 2 | H32: 50 | I32: 2 | J32: 50
A33: Plzeň-sever | B33: 5 | C33: 5 | D33: 100 | E33: 5 | F33: 100 | G33: 4 | H33: 80 | I33: 4 | J33: 80
A34: Rokycany | B34: 4 | C34: 3 | D34: 75 | E34: 3 | F34: 75 | G34: 2 | H34: 50 | I34: 2 | J34: 50
A35: Tachov | B35: 6 | C35: 5 | D35: 83.33333333 | E35: 5 | F35: 83.33333333 | G35: 5 | H35: 83.33333333 | I35: 6 | J35: 100
A36: Karlovarský kraj celkem | B36: 35 | C36: 17 | D36: 48.57142857 | E36: 22 | F36: 62.85714286 | G36: 12 | H36: 34.28571429 | I36: 16 | J36: 45.71428571
A37: Cheb | B37: 11 | C37: 2 | D37: 18.18181818 | E37: 6 | F37: 54.54545455 | G37: 2 | H37: 18.18181818 | I37: 2 | J37: 18.18181818
A38: Karlovy Vary | B38: 14 | C38: 9 | D38: 64.28571429 | E38: 10 | F38: 71.42857143 | G38: 8 | H38: 57.14285714 | I38: 9 | J38: 64.28571429
A39: Sokolov | B39: 10 | C39: 6 | D39: 60 | E39: 6 | F39: 60 | G39: 2 | H39: 20 | I39: 5 | J39: 50
A40: Ústecký kraj celkem | B40: 101 | C40: 58 | D40: 57.42574257 | E40: 70 | F40: 69.30693069 | G40: 43 | H40: 42.57425743 | I40: 58 | J40: 57.42574257
A41: Děčín | B41: 15 | C41: 10 | D41: 66.66666667 | E41: 10 | F41: 66.66666667 | G41: 8 | H41: 53.33333333 | I41: 8 | J41: 53.33333333
A42: Chomutov | B42: 16 | C42: 12 | D42: 75 | E42: 14 | F42: 87.5 | G42: 11 | H42: 68.75 | I42: 12 | J42: 75
A43: Litoměřice | B43: 14 | C43: 9 | D43: 64.28571429 | E43: 11 | F43: 78.57142857 | G43: 7 | H43: 50 | I43: 7 | J43: 50
A44: Louny | B44: 7 | C44: 3 | D44: 42.85714286 | E44: 5 | F44: 71.42857143 | G44: 1 | H44: 14.28571429 | I44: 4 | J44: 57.14285714
A45: Most | B45: 14 | C45: 7 | D45: 50 | E45: 11 | F45: 78.57142857 | G45: 4 | H45: 28.57142857 | I45: 9 | J45: 64.28571429
A46: Teplice | B46: 12 | C46: 9 | D46: 75 | E46: 9 | F46: 75 | G46: 5 | H46: 41.66666667 | I46: 9 | J46: 75
A47: Ústí n/L | B47: 23 | C47: 8 | D47: 34.7826087 | E47: 10 | F47: 43.47826087 | G47: 7 | H47: 30.43478261 | I47: 9 | J47: 39.13043478
A48: Liberecký kraj celkem | B48: 43 | C48: 27 | D48: 62.79069767 | E48: 31 | F48: 72.09302326 | G48: 18 | H48: 41.86046512 | I48: 27 | J48: 62.79069767
A49: Česká Lípa | B49: 9 | C49: 3 | D49: 33.33333333 | E49: 5 | F49: 55.55555556 | G49: 3 | H49: 33.33333333 | I49: 4 | J49: 44.44444444
A50: Jablonec n/N | B50: 10 | C50: 6 | D50: 60 | E50: 8 | F50: 80 | G50: 5 | H50: 50 | I50: 5 | J50: 50
A51: Liberec | B51: 17 | C51: 12 | D51: 70.58823529 | E51: 13 | F51: 76.47058824 | G51: 7 | H51: 41.17647059 | I51: 13 | J51: 76.47058824
A52: Semily | B52: 7 | C52: 6 | D52: 85.71428571 | E52: 5 | F52: 71.42857143 | G52: 3 | H52: 42.85714286 | I52: 5 | J52: 71.42857143
A53: Královéhradecký kraj celkem | B53: 56 | C53: 42 | D53: 75 | E53: 42 | F53: 75 | G53: 28 | H53: 50 | I53: 35 | J53: 62.5
A54: Hradec Králové | B54: 16 | C54: 12 | D54: 75 | E54: 12 | F54: 75 | G54: 11 | H54: 68.75 | I54: 11 | J54: 68.75
A55: Jičín | B55: 9 | C55: 6 | D55: 66.66666667 | E55: 6 | F55: 66.66666667 | G55: 4 | H55: 44.44444444 | I55: 4 | J55: 44.44444444
A56: Náchod | B56: 11 | C56: 10 | D56: 90.90909091 | E56: 9 | F56: 81.81818182 | G56: 6 | H56: 54.54545455 | I56: 9 | J56: 81.81818182
A57: Rychnov n/K | B57: 10 | C57: 8 | D57: 80 | E57: 8 | F57: 80 | G57: 5 | H57: 50 | I57: 6 | J57: 60
A58: Trutnov | B58: 10 | C58: 6 | D58: 60 | E58: 7 | F58: 70 | G58: 2 | H58: 20 | I58: 5 | J58: 50
A59: Pardubický kraj celkem | B59: 49 | C59: 36 | D59: 73.46938776 | E59: 41 | F59: 83.67346939 | G59: 20 | H59: 40.81632653 | I59: 35 | J59: 71.42857143
A60: Chrudim | B60: 12 | C60: 8 | D60: 66.66666667 | E60: 9 | F60: 75 | G60: 3 | H60: 25 | I60: 7 | J60: 58.33333333
A61: Pardubice | B61: 16 | C61: 13 | D61: 81.25 | E61: 14 | F61: 87.5 | G61: 7 | H61: 43.75 | I61: 13 | J61: 81.25
A62: Svitavy | B62: 9 | C62: 5 | D62: 55.55555556 | E62: 7 | F62: 77.77777778 | G62: 4 | H62: 44.44444444 | I62: 7 | J62: 77.77777778
A63: Ústí n/Orl. | B63: 12 | C63: 10 | D63: 83.33333333 | E63: 11 | F63: 91.66666667 | G63: 6 | H63: 50 | I63: 8 | J63: 66.66666667
A64: Vysočina celkem | B64: 52 | C64: 36 | D64: 69.23076923 | E64: 40 | F64: 76.92307692 | G64: 30 | H64: 57.69230769 | I64: 33 | J64: 63.46153846
A65: Havlíčkův Brod | B65: 8 | C65: 7 | D65: 87.5 | E65: 8 | F65: 100 | G65: 7 | H65: 87.5 | I65: 7 | J65: 87.5
A66: Jihlava | B66: 10 | C66: 5 | D66: 50 | E66: 4 | F66: 40 | G66: 4 | H66: 40 | I66: 5 | J66: 50
A67: Pelhřimov | B67: 9 | C67: 7 | D67: 77.77777778 | E67: 8 | F67: 88.88888889 | G67: 4 | H67: 44.44444444 | I67: 6 | J67: 66.66666667
A68: Třebíč | B68: 14 | C68: 9 | D68: 64.28571429 | E68: 11 | F68: 78.57142857 | G68: 9 | H68: 64.28571429 | I68: 9 | J68: 64.28571429
A69: Žďár n/Sáz. | B69: 11 | C69: 8 | D69: 72.72727273 | E69: 9 | F69: 81.81818182 | G69: 6 | H69: 54.54545455 | I69: 6 | J69: =I69/B69*100 -> 54.54545455
A70: Jihomoravský kraj celkem | B70: 125 | C70: 83 | D70: =C70/B70*100 -> 66.4 | E70: 79 | F70: 63.2 | G70: 48 | H70: =G70/B70*100 -> 38.4 | I70: 71 | J70: 56.8
A71: Blansko | B71: 8 | C71: 5 | D71: 62.5 | E71: 5 | F71: 62.5 | G71: 3 | H71: 37.5 | I71: 5 | J71: 62.5
A72: Brno-město | B72: 59 | C72: 37 | D72: 62.71186441 | E72: 35 | F72: =E72/B72*100 -> 59.3220339 | G72: 18 | H72: 30.50847458 | I72: 29 | J72: 49.15254237
A73: Brno-venkov | B73: 16 | C73: 12 | D73: 75 | E73: 10 | F73: 62.5 | G73: 5 | H73: 31.25 | I73: 8 | J73: 50
A74: Břeclav | B74: 11 | C74: 8 | D74: 72.72727273 | E74: 7 | F74: 63.63636364 | G74: 5 | H74: 45.45454545 | I74: 7 | J74: 63.63636364
A75: Hodonín | B75: 14 | C75: 7 | D75: 50 | E75: 8 | F75: 57.14285714 | G75: 7 | H75: 50 | I75: 9 | J75: 64.28571429
A76: Vyškov | B76: 7 | C76: 7 | D76: 100 | E76: 7 | F76: 100 | G76: 5 | H76: 71.42857143 | I76: 6 | J76: 85.71428571
A77: Znojmo | B77: 10 | C77: 7 | D77: 70 | E77: 7 | F77: 70 | G77: 5 | H77: 50 | I77: 7 | J77: 70
A78: Olomoucký kraj celkem | B78: 61 | C78: 48 | D78: 78.68852459 | E78: 54 | F78: 88.52459016 | G78: 30 | H78: 49.18032787 | I78: 41 | J78: 67.21311475
A79: Jeseník | B79: 4 | C79: 3 | D79: 75 | E79: 4 | F79: 100 | G79: 2 | H79: 50 | I79: 2 | J79: 50
A80: Olomouc | B80: 23 | C80: 18 | D80: 78.26086957 | E80: 21 | F80: 91.30434783 | G80: 11 | H80: 47.82608696 | I80: 16 | J80: 69.56521739
A81: Prostějov | B81: 10 | C81: 9 | D81: 90 | E81: 9 | F81: 90 | G81: 6 | H81: 60 | I81: 7 | J81: 70
A82: Přerov | B82: 15 | C82: 11 | D82: 73.33333333 | E82: 12 | F82: 80 | G82: 8 | H82: 53.33333333 | I82: 11 | J82: 73.33333333
A83: Šumperk | B83: 9 | C83: 7 | D83: 77.77777778 | E83: 8 | F83: 88.88888889 | G83: 3 | H83: 33.33333333 | I83: 5 | J83: 55.55555556
A84: Zlínský kraj celkem | B84: 63 | C84: 45 | D84: 71.42857143 | E84: 46 | F84: 73.01587302 | G84: 33 | H84: 52.38095238 | I84: 39 | J84: 61.9047619
A85: Kroměříž | B85: 10 | C85: 9 | D85: 90 | E85: 9 | F85: 90 | G85: 6 | H85: 60 | I85: 6 | J85: 60
A86: Uherské Hradiště | B86: 16 | C86: 12 | D86: 75 | E86: 11 | F86: 68.75 | G86: 8 | H86: 50 | I86: 10 | J86: 62.5
A87: Vsetín | B87: 18 | C87: 15 | D87: 83.33333333 | E87: 15 | F87: 83.33333333 | G87: 12 | H87: 66.66666667 | I87: 15 | J87: 83.33333333
A88: Zlín | B88: 19 | C88: 9 | D88: 47.36842105 | E88: 11 | F88: 57.89473684 | G88: 7 | H88: 36.84210526 | I88: 8 | J88: 42.10526316
A89: Moravskoslezský kraj celkem | B89: 138 | C89: 94 | D89: 68.11594203 | E89: 102 | F89: 73.91304348 | G89: 77 | H89: 55.79710145 | I89: 87 | J89: 63.04347826
A90: Bruntál | B90: 12 | C90: 5 | D90: 41.66666667 | E90: 6 | F90: 50 | G90: 4 | H90: 33.33333333 | I90: 4 | J90: 33.33333333
A91: Frýdek-Místek | B91: 20 | C91: 15 | D91: 75 | E91: 15 | F91: 75 | G91: 13 | H91: 65 | I91: 14 | J91: 70
A92: Karviná | B92: 27 | C92: 17 | D92: 62.96296296 | E92: 19 | F92: 70.37037037 | G92: 13 | H92: 48.14814815 | I92: 15 | J92: 55.55555556
A93: Nový Jičín | B93: 18 | C93: 12 | D93: 66.66666667 | E93: 12 | F93: 66.66666667 | G93: 9 | H93: 50 | I93: 10 | J93: 55.55555556
A94: Opava | B94: 18 | C94: 9 | D94: 50 | E94: 11 | F94: 61.11111111 | G94: 5 | H94: 27.77777778 | I94: 9 | J94: 50
A95: Ostrava-město | B95: 43 | C95: 36 | D95: 83.72093023 | E95: 39 | F95: 90.69767442 | G95: 33 | H95: =G95/B95*100 -> 76.74418605 | I95: 35 | J95: 81.39534884
J96: Zdroj: Ústav zdravotnických informací a statistiky ČR a vlastní dopočty ČSÚ
A97: * % zdravotnických zařízení daného typu, která se zúčastnila šetření
A98: ** celkový počet ordinací, které odevzdaly výkaz

Sheet T14
A1: Tab: 14: Možnosti výpisů z elektronického systému v samostatných ordinacích lékaře specialisty v okresech a krajích ČR; 2024
A2: zpět na seznam
B3: Celkový počet ordinací** | C3: Pacienti na objednání k preventivním prohlídkám, testům | E3: Pacienti podle diagnóz | G3: Pacienti podle laboratorních výsledků | I3: Pacienti podle předepsaných léků
C4: počet | D4: %* | E4: počet | F4: %* | G4: počet | H4: %* | I4: počet | J4: %*
A5: Celkem ČR | B5: 6813 | C5: 2741 | D5: =C5/B5*100 -> 40.23190958 | E5: 4085 | F5: =E5/B5*100 -> 59.9589021 | G5: 2007 | H5: =G5/B5*100 -> 29.45838838 | I5: 3110 | J5: =I5/B5*100 -> 45.64802583
A6: Hl. m. Praha | B6: 1336 | C6: 490 | D6: =C6/B6*100 -> 36.67664671 | E6: 662 | F6: =E6/B6*100 -> 49.5508982 | G6: 334 | H6: =G6/B6*100 -> 25 | I6: 487 | J6: =I6/B6*100 -> 36.45209581
A7: Středočeský kraj celkem | B7: 584 | C7: 217 | D7: 37.15753425 | E7: 335 | F7: =E7/B7*100 -> 57.3630137 | G7: 152 | H7: 26.02739726 | I7: 263 | J7: 45.03424658
A8: Benešov | B8: 42 | C8: 12 | D8: 28.57142857 | E8: 18 | F8: =E8/B8*100 -> 42.85714286 | G8: 9 | H8: 21.42857143 | I8: 16 | J8: 38.0952381
A9: Beroun | B9: 48 | C9: 14 | D9: 29.16666667 | E9: 24 | F9: 50 | G9: 14 | H9: 29.16666667 | I9: 19 | J9: 39.58333333
A10: Kladno | B10: 79 | C10: 33 | D10: 41.7721519 | E10: 55 | F10: 69.62025316 | G10: 23 | H10: 29.11392405 | I10: 43 | J10: 54.43037975
A11: Kolín | B11: 34 | C11: 10 | D11: 29.41176471 | E11: 20 | F11: 58.82352941 | G11: 9 | H11: 26.47058824 | I11: 15 | J11: 44.11764706
A12: Kutná Hora | B12: 27 | C12: 8 | D12: 29.62962963 | E12: 14 | F12: 51.85185185 | G12: 9 | H12: 33.33333333 | I12: 12 | J12: 44.44444444
A13: Mělník | B13: 51 | C13: 18 | D13: 35.29411765 | E13: 25 | F13: 49.01960784 | G13: 12 | H13: 23.52941176 | I13: 17 | J13: 33.33333333
A14: Mladá Boleslav | B14: 53 | C14: 22 | D14: 41.50943396 | E14: 33 | F14: 62.26415094 | G14: 12 | H14: 22.64150943 | I14: 28 | J14: 52.83018868
A15: Nymburk | B15: 56 | C15: 22 | D15: 39.28571429 | E15: 30 | F15: 53.57142857 | G15: 12 | H15: 21.42857143 | I15: 23 | J15: 41.07142857
A16: Praha-východ | B16: 54 | C16: 22 | D16: 40.74074074 | E16: 29 | F16: 53.7037037 | G16: 14 | H16: 25.92592593 | I16: 23 | J16: 42.59259259
A17: Praha-západ | B17: 64 | C17: 25 | D17: 39.0625 | E17: 38 | F17: 59.375 | G17: 19 | H17: 29.6875 | I17: 33 | J17: 51.5625
A18: Příbram | B18: 54 | C18: 20 | D18: 37.03703704 | E18: 32 | F18: 59.25925926 | G18: 15 | H18: 27.77777778 | I18: 23 | J18: 42.59259259
A19: Rakovník | B19: 22 | C19: 11 | D19: 50 | E19: 17 | F19: 77.27272727 | G19: 4 | H19: 18.18181818 | I19: 11 | J19: 50
A20: Jihočeský kraj celkem | B20: 359 | C20: 143 | D20: 39.83286908 | E20: 236 | F20: 65.73816156 | G20: 105 | H20: 29.24791086 | I20: 175 | J20: 48.74651811
A21: České Budějovice | B21: 144 | C21: 54 | D21: 37.5 | E21: 89 | F21: 61.80555556 | G21: 42 | H21: 29.16666667 | I21: 65 | J21: 45.13888889
A22: Český Krumlov | B22: 25 | C22: 10 | D22: 40 | E22: 17 | F22: 68 | G22: 8 | H22: 32 | I22: 11 | J22: 44
A23: Jindřichův Hradec | B23: 49 | C23: 21 | D23: 42.85714286 | E23: 36 | F23: 73.46938776 | G23: 14 | H23: 28.57142857 | I23: 27 | J23: 55.10204082
A24: Písek | B24: 32 | C24: 10 | D24: 31.25 | E24: 21 | F24: 65.625 | G24: 12 | H24: 37.5 | I24: 19 | J24: 59.375
A25: Prachatice | B25: 24 | C25: 8 | D25: 33.33333333 | E25: 11 | F25: 45.83333333 | G25: 5 | H25: 20.83333333 | I25: 11 | J25: 45.83333333
A26: Strakonice | B26: 30 | C26: 14 | D26: 46.66666667 | E26: 22 | F26: 73.33333333 | G26: 9 | H26: 30 | I26: 15 | J26: 50
A27: Tábor | B27: 55 | C27: 26 | D27: 47.27272727 | E27: 40 | F27: 72.72727273 | G27: 15 | H27: 27.27272727 | I27: 27 | J27: 49.09090909
A28: Plzeňský kraj celkem | B28: 365 | C28: 156 | D28: =C28/B28*100 -> 42.73972603 | E28: 236 | F28: 64.65753425 | G28: 129 | H28: 35.34246575 | I28: 179 | J28: 49.04109589
A29: Domažlice | B29: 25 | C29: 10 | D29: 40 | E29: 17 | F29: 68 | G29: 10 | H29: 40 | I29: 12 | J29: 48
A30: Klatovy | B30: 38 | C30: 18 | D30: 47.36842105 | E30: 27 | F30: 71.05263158 | G30: 20 | H30: 52.63157895 | I30: 28 | J30: 73.68421053
A31: Plzeň-město | B31: 195 | C31: 91 | D31: 46.66666667 | E31: 129 | F31: 66.15384615 | G31: 69 | H31: 35.38461538 | I31: 94 | J31: 48.20512821
A32: Plzeň-jih | B32: 27 | C32: 12 | D32: 44.44444444 | E32: 16 | F32: 59.25925926 | G32: 9 | H32: 33.33333333 | I32: 11 | J32: 40.74074074
A33: Plzeň-sever | B33: 21 | C33: 4 | D33: 19.04761905 | E33: 12 | F33: 57.14285714 | G33: 4 | H33: 19.04761905 | I33: 9 | J33: 42.85714286
A34: Rokycany | B34: 24 | C34: 8 | D34: 33.33333333 | E34: 17 | F34: 70.83333333 | G34: 8 | H34: 33.33333333 | I34: 14 | J34: 58.33333333
A35: Tachov | B35: 35 | C35: 13 | D35: 37.14285714 | E35: 18 | F35: 51.42857143 | G35: 9 | H35: 25.71428571 | I35: 11 | J35: 31.42857143
A36: Karlovarský kraj celkem | B36: 239 | C36: 92 | D36: 38.49372385 | E36: 136 | F36: 56.90376569 | G36: 70 | H36: 29.28870293 | I36: 101 | J36: 42.25941423
A37: Cheb | B37: 76 | C37: 34 | D37: 44.73684211 | E37: 44 | F37: 57.89473684 | G37: 24 | H37: 31.57894737 | I37: 36 | J37: 47.36842105
A38: Karlovy Vary | B38: 116 | C38: 38 | D38: 32.75862069 | E38: 63 | F38: 54.31034483 | G38: 33 | H38: 28.44827586 | I38: 43 | J38: 37.06896552
A39: Sokolov | B39: 47 | C39: 20 | D39: 42.55319149 | E39: 29 | F39: 61.70212766 | G39: 13 | H39: 27.65957447 | I39: 22 | J39: 46.80851064
A40: Ústecký kraj celkem | B40: 436 | C40: 188 | D40: 43.11926606 | E40: 260 | F40: 59.63302752 | G40: 138 | H40: 31.65137615 | I40: 201 | J40: 46.10091743
A41: Děčín | B41: 61 | C41: 22 | D41: 36.06557377 | E41: 38 | F41: 62.29508197 | G41: 23 | H41: 37.70491803 | I41: 31 | J41: 50.81967213
A42: Chomutov | B42: 58 | C42: 21 | D42: 36.20689655 | E42: 38 | F42: 65.51724138 | G42: 15 | H42: 25.86206897 | I42: 29 | J42: 50
A43: Litoměřice | B43: 76 | C43: 30 | D43: 39.47368421 | E43: 45 | F43: 59.21052632 | G43: 19 | H43: 25 | I43: 31 | J43: 40.78947368
A44: Louny | B44: 50 | C44: 25 | D44: 50 | E44: 29 | F44: 58 | G44: 13 | H44: 26 | I44: 23 | J44: 46
A45: Most | B45: 44 | C45: 27 | D45: 61.36363636 | E45: 30 | F45: 68.18181818 | G45: 20 | H45: 45.45454545 | I45: 26 | J45: 59.09090909
A46: Teplice | B46: 54 | C46: 22 | D46: 40.74074074 | E46: 27 | F46: 50 | G46: 14 | H46: 25.92592593 | I46: 19 | J46: 35.18518519
A47: Ústí n/L | B47: 93 | C47: 41 | D47: 44.08602151 | E47: 53 | F47: 56.98924731 | G47: 34 | H47: 36.55913978 | I47: 42 | J47: 45.16129032
A48: Liberecký kraj celkem | B48: 239 | C48: 86 | D48: 35.9832636 | E48: 137 | F48: 57.32217573 | G48: 58 | H48: 24.26778243 | I48: 105 | J48: 43.93305439
A49: Česká Lípa | B49: 60 | C49: 20 | D49: 33.33333333 | E49: 36 | F49: 60 | G49: 15 | H49: 25 | I49: 28 | J49: 46.66666667
A50: Jablonec n/N | B50: 49 | C50: 15 | D50: 30.6122449 | E50: 26 | F50: 53.06122449 | G50: 10 | H50: 20.40816327 | I50: 23 | J50: 46.93877551
A51: Liberec | B51: 80 | C51: 33 | D51: 41.25 | E51: 51 | F51: 63.75 | G51: 22 | H51: 27.5 | I51: 36 | J51: 45
A52: Semily | B52: 50 | C52: 18 | D52: 36 | E52: 24 | F52: 48 | G52: 11 | H52: 22 | I52: 18 | J52: 36
A53: Královéhradecký kraj celkem | B53: 318 | C53: 140 | D53: 44.02515723 | E53: 198 | F53: 62.26415094 | G53: 102 | H53: 32.0754717 | I53: 148 | J53: 46.5408805
A54: Hradec Králové | B54: 117 | C54: 53 | D54: 45.2991453 | E54: 68 | F54: 58.11965812 | G54: 33 | H54: 28.20512821 | I54: 49 | J54: 41.88034188
A55: Jičín | B55: 46 | C55: 21 | D55: 45.65217391 | E55: 36 | F55: 78.26086957 | G55: 24 | H55: 52.17391304 | I55: 30 | J55: 65.2173913
A56: Náchod | B56: 45 | C56: 20 | D56: 44.44444444 | E56: 29 | F56: 64.44444444 | G56: 13 | H56: 28.88888889 | I56: 19 | J56: 42.22222222
A57: Rychnov n/K | B57: 45 | C57: 16 | D57: 35.55555556 | E57: 28 | F57: 62.22222222 | G57: 12 | H57: 26.66666667 | I57: 20 | J57: 44.44444444
A58: Trutnov | B58: 65 | C58: 30 | D58: 46.15384615 | E58: 37 | F58: 56.92307692 | G58: 20 | H58: 30.76923077 | I58: 30 | J58: 46.15384615
A59: Pardubický kraj celkem | B59: 319 | C59: 130 | D59: 40.7523511 | E59: 213 | F59: 66.77115987 | G59: 93 | H59: 29.15360502 | I59: 157 | J59: 49.21630094
A60: Chrudim | B60: 56 | C60: 24 | D60: 42.85714286 | E60: 42 | F60: 75 | G60: 21 | H60: 37.5 | I60: 33 | J60: 58.92857143
A61: Pardubice | B61: 129 | C61: 62 | D61: 48.0620155 | E61: 90 | F61: 69.76744186 | G61: 37 | H61: 28.68217054 | I61: 68 | J61: 52.71317829
A62: Svitavy | B62: 61 | C62: 15 | D62: 24.59016393 | E62: 37 | F62: 60.6557377 | G62: 13 | H62: 21.31147541 | I62: 27 | J62: 44.26229508
A63: Ústí n/Orl. | B63: 73 | C63: 29 | D63: 39.7260274 | E63: 44 | F63: 60.2739726 | G63: 22 | H63: 30.1369863 | I63: 29 | J63: 39.7260274
A64: Vysočina celkem | B64: 299 | C64: 116 | D64: 38.79598662 | E64: 183 | F64: 61.20401338 | G64: 80 | H64: 26.75585284 | I64: 136 | J64: 45.48494983
A65: Havlíčkův Brod | B65: 58 | C65: 20 | D65: 34.48275862 | E65: 32 | F65: 55.17241379 | G65: 16 | H65: 27.5862069 | I65: 24 | J65: 41.37931034
A66: Jihlava | B66: 74 | C66: 28 | D66: 37.83783784 | E66: 44 | F66: 59.45945946 | G66: 21 | H66: 28.37837838 | I66: 30 | J66: 40.54054054
A67: Pelhřimov | B67: 37 | C67: 22 | D67: 59.45945946 | E67: 28 | F67: 75.67567568 | G67: 9 | H67: 24.32432432 | I67: 22 | J67: 59.45945946
A68: Třebíč | B68: 59 | C68: 27 | D68: 45.76271186 | E68: 41 | F68: 69.49152542 | G68: 19 | H68: 32.20338983 | I68: 35 | J68: 59.3220339
A69: Žďár n/Sáz. | B69: 71 | C69: 19 | D69: 26.76056338 | E69: 38 | F69: 53.52112676 | G69: 15 | H69: 21.12676056 | I69: 25 | J69: =I69/B69*100 -> 35.21126761
A70: Jihomoravský kraj celkem | B70: 797 | C70: 332 | D70: =C70/B70*100 -> 41.65621079 | E70: 503 | F70: 63.11166876 | G70: 280 | H70: =G70/B70*100 -> 35.13174404 | I70: 409 | J70: 51.3174404
A71: Blansko | B71: 44 | C71: 21 | D71: 47.72727273 | E71: 27 | F71: 61.36363636 | G71: 14 | H71: 31.81818182 | I71: 24 | J71: 54.54545455
A72: Brno-město | B72: 458 | C72: 188 | D72: 41.04803493 | E72: 281 | F72: =E72/B72*100 -> 61.35371179 | G72: 156 | H72: 34.06113537 | I72: 220 | J72: 48.0349345
A73: Brno-venkov | B73: 74 | C73: 31 | D73: 41.89189189 | E73: 47 | F73: 63.51351351 | G73: 27 | H73: 36.48648649 | I73: 40 | J73: 54.05405405
A74: Břeclav | B74: 55 | C74: 35 | D74: 63.63636364 | E74: 41 | F74: 74.54545455 | G74: 27 | H74: 49.09090909 | I74: 38 | J74: 69.09090909
A75: Hodonín | B75: 73 | C75: 22 | D75: 30.1369863 | E75: 43 | F75: 58.90410959 | G75: 24 | H75: 32.87671233 | I75: 33 | J75: 45.20547945
A76: Vyškov | B76: 42 | C76: 17 | D76: 40.47619048 | E76: 26 | F76: 61.9047619 | G76: 16 | H76: 38.0952381 | I76: 25 | J76: 59.52380952
A77: Znojmo | B77: 51 | C77: 18 | D77: 35.29411765 | E77: 38 | F77: 74.50980392 | G77: 16 | H77: 31.37254902 | I77: 29 | J77: 56.8627451
A78: Olomoucký kraj celkem | B78: 420 | C78: 157 | D78: 37.38095238 | E78: 259 | F78: 61.66666667 | G78: 115 | H78: 27.38095238 | I78: 185 | J78: 44.04761905
A79: Jeseník | B79: 17 | C79: 5 | D79: 29.41176471 | E79: 11 | F79: 64.70588235 | G79: 4 | H79: 23.52941176 | I79: 7 | J79: 41.17647059
A80: Olomouc | B80: 186 | C80: 65 | D80: 34.94623656 | E80: 114 | F80: 61.29032258 | G80: 41 | H80: 22.04301075 | I80: 80 | J80: 43.01075269
A81: Prostějov | B81: 79 | C81: 27 | D81: 34.17721519 | E81: 40 | F81: 50.63291139 | G81: 22 | H81: 27.84810127 | I81: 32 | J81: 40.50632911
A82: Přerov | B82: 73 | C82: 25 | D82: 34.24657534 | E82: 47 | F82: 64.38356164 | G82: 23 | H82: 31.50684932 | I82: 34 | J82: 46.57534247
A83: Šumperk | B83: 65 | C83: 35 | D83: 53.84615385 | E83: 47 | F83: 72.30769231 | G83: 25 | H83: 38.46153846 | I83: 32 | J83: 49.23076923
A84: Zlínský kraj celkem | B84: 362 | C84: 155 | D84: 42.81767956 | E84: 230 | F84: 63.5359116 | G84: 129 | H84: 35.63535912 | I84: 187 | J84: 51.65745856
A85: Kroměříž | B85: 72 | C85: 31 | D85: 43.05555556 | E85: 42 | F85: 58.33333333 | G85: 19 | H85: 26.38888889 | I85: 34 | J85: 47.22222222
A86: Uherské Hradiště | B86: 75 | C86: 30 | D86: 40 | E86: 52 | F86: 69.33333333 | G86: 25 | H86: 33.33333333 | I86: 35 | J86: 46.66666667
A87: Vsetín | B87: 90 | C87: 45 | D87: 50 | E87: 59 | F87: 65.55555556 | G87: 42 | H87: 46.66666667 | I87: 55 | J87: 61.11111111
A88: Zlín | B88: 125 | C88: 49 | D88: 39.2 | E88: 77 | F88: 61.6 | G88: 43 | H88: 34.4 | I88: 63 | J88: 50.4
A89: Moravskoslezský kraj celkem | B89: 740 | C89: 339 | D89: 45.81081081 | E89: 497 | F89: 67.16216216 | G89: 222 | H89: 30 | I89: 377 | J89: 50.94594595
A90: Bruntál | B90: 50 | C90: 17 | D90: 34 | E90: 33 | F90: 66 | G90: 12 | H90: 24 | I90: 23 | J90: 46
A91: Frýdek-Místek | B91: 119 | C91: 58 | D91: 48.7394958 | E91: 80 | F91: 67.22689076 | G91: 38 | H91: 31.93277311 | I91: 55 | J91: 46.21848739
A92: Karviná | B92: 133 | C92: 61 | D92: 45.86466165 | E92: 87 | F92: 65.41353383 | G92: 45 | H92: 33.83458647 | I92: 68 | J92: 51.12781955
A93: Nový Jičín | B93: 68 | C93: 29 | D93: 42.64705882 | E93: 48 | F93: 70.58823529 | G93: 21 | H93: 30.88235294 | I93: 45 | J93: 66.17647059
A94: Opava | B94: 96 | C94: 46 | D94: 47.91666667 | E94: 72 | F94: 75 | G94: 28 | H94: 29.16666667 | I94: 43 | J94: 44.79166667
A95: Ostrava-město | B95: 274 | C95: 128 | D95: 46.71532847 | E95: 177 | F95: 64.59854015 | G95: 78 | H95: =G95/B95*100 -> 28.46715328 | I95: 143 | J95: =I95/B95*100 -> 52.18978102
J96: Zdroj: Ústav zdravotnických informací a statistiky ČR a vlastní dopočty ČSÚ
A97: * % zdravotnických zařízení daného typu, která se zúčastnila šetření
A98: ** celkový počet ordinací, které odevzdaly výkaz

Sheet T15
A1: Tab. 15: Funkce elektronického systému v samostatných ordinacích lékaře
A2: zpět na seznam | D2: %*
B3: 2016 | C3: 2020 | D3: 2024
A4: PŘEDEPISOVÁNÍ LÉKŮ
A5: Celkem | B5: 46.07223352 | C5: 74.29289003 | D5: 76.63968741
A6: Praktický lékař pro dospělé | B6: 64.65962153 | C6: 86.12652608 | D6: 86.65475887
A7: Praktický lékař pro děti a dorost | B7: 51.08877722 | C7: 79.49709865 | D7: 83.5071708
A8: Zubní lékař | B8: 20.91713596 | C8: 66.89789725 | D8: 72.83568905
A9: Gynekolog | B9: 60.77348066 | C9: 82.48987854 | D9: 84.65655665
A10: Lékař specialista | B10: 49.976088 | C10: 70.15250545 | D10: 70.54161162
A11: UPOZORNĚNÍ NA LÉKOVÉ INTERAKCE
A12: Celkem | B12: 26.76598318 | C12: 34.93990313 | D12: 38.72174156
A13: Praktický lékař pro dospělé | B13: 46.79282379 | C13: 59.01775805 | D13: 60.44909416
A14: Praktický lékař pro děti a dorost | B14: 31.49078727 | C14: 43.32688588 | D14: 49.15254237
A15: Zubní lékař | B15: 9.553499598 | C15: 15.4563191 | D15: 18.94876325
A16: Gynekolog | B16: 31.86003683 | C16: 41.59919028 | D16: 44.33541481
A17: Lékař specialista | B17: 25.1873107 | C17: 32.17697335 | D17: 36.09276383
A18: OBJEDNÁNÍ A OBDRŽENÍ VÝSLEDKŮ LABORATORNÍCH VYŠETŘENÍ
A19: Celkem | B19: 29.96536749 | C19: 38.33642289 | D19: 43.39380407
A20: Praktický lékař pro dospělé | B20: 54.21479479 | C20: 69.50610433 | D20: 76.39704006
A21: Praktický lékař pro děti a dorost | B21: 46.56616415 | C21: 62.28239845 | D21: 70.99087353
A22: Zubní lékař | B22: 3.419147224 | C22: 5.766312595 | D22: 6.426678445
A23: Gynekolog | B23: 54.23572744 | C23: 64.37246964 | D23: 71.00802855
A24: Lékař specialista | B24: 26.33508688 | C24: 34.15451651 | D24: 38.221048
D25: Zdroj: Ústav zdravotnických informací a statistiky ČR a vlastní dopočty ČSÚ
A26: * % zdravotnických zařízení daného typu, která se zúčastnila šetření

Sheet T16
A1: Tab. 16: Funkce elektronického systému v samostatných ordinacích lékaře v okresech a krajích ČR
A2: zpět na seznam
B3: Celkový počet ordinací** | E3: Předepisování léků | H3: Upozornění na lékové interakce | K3: Objednání a obdržení výsledků laboratorních vyšetření
B4: 2016 | C4: 2020 | D4: 2024 | E4: 2016 | F4: 2020 | G4: 2024 | H4: 2016 | I4: 2020 | J4: 2024 | K4: 2016 | L4: 2020 | M4: 2024
E5: %* | F5: %* | G5: %* | H5: %* | I5: %* | J5: %* | K5: %* | L5: %* | M5: %*
A6: Celkem ČR | B6: 18191 | C6: 16723 | D6: 17915 | E6: 46.07223352 | F6: 74.29289003 | G6: 76.63968741 | H6: 26.76598318 | I6: 34.93990313 | J6: 38.72174156 | K6: 29.96536749 | L6: 38.33642289 | M6: 43.39380407
A7: Hl. m. Praha | B7: 2853 | C7: 2559 | D7: 3020 | E7: 40.69400631 | F7: 67.21375537 | G7: 71.02649007 | H7: 24.07991588 | I7: 30.12895662 | J7: 35.43046358 | K7: 24.81598318 | L7: 29.11293474 | M7: 36.78807947
A8: Středočeský kraj celkem | B8: 1745 | C8: 1542 | D8: 1786 | E8: 46.07449857 | F8: 73.86511025 | G8: 76.37178052 | H8: 27.56446991 | I8: 35.92736706 | J8: 40.31354983 | K8: 31.86246418 | L8: 38.65110246 | M8: 43.44904815
A9: Benešov | B9: 138 | C9: 113 | D9: 135 | E9: 50 | F9: 69.02654867 | G9: 67.40740741 | H9: 28.98550725 | I9: 38.05309735 | J9: 35.55555556 | K9: 32.60869565 | L9: 38.05309735 | M9: 41.48148148
A10: Beroun | B10: 129 | C10: 116 | D10: 129 | E10: 46.51162791 | F10: 67.24137931 | G10: 65.89147287 | H10: 25.58139535 | I10: 31.03448276 | J10: 36.43410853 | K10: 33.33333333 | L10: 36.20689655 | M10: 37.98449612
A11: Kladno | B11: 238 | C11: 191 | D11: 231 | E11: 48.7394958 | F11: 71.20418848 | G11: 78.35497835 | H11: 26.8907563 | I11: 40.31413613 | J11: 44.15584416 | K11: 31.93277311 | L11: 38.21989529 | M11: 43.72294372
A12: Kolín | B12: 127 | C12: 102 | D12: 128 | E12: 46.45669291 | F12: 75.49019608 | G12: 78.125 | H12: 29.13385827 | I12: 43.1372549 | J12: 50.78125 | K12: 29.13385827 | L12: 41.17647059 | M12: 46.875
A13: Kutná Hora | B13: 116 | C13: 108 | D13: 102 | E13: 45.68965517 | F13: 74.07407407 | G13: 75.49019608 | H13: 23.27586207 | I13: 37.96296296 | J13: 33.33333333 | K13: 33.62068966 | L13: 40.74074074 | M13: 46.07843137
A14: Mělník | B14: 137 | C14: 119 | D14: 143 | E14: 43.79562044 | F14: 81.51260504 | G14: 74.12587413 | H14: 29.19708029 | I14: 37.81512605 | J14: 39.86013986 | K14: 32.84671533 | L14: 41.17647059 | M14: 42.65734266
A15: Mladá Boleslav | B15: 163 | C15: 147 | D15: 174 | E15: 53.37423313 | F15: 78.23129252 | G15: 85.63218391 | H15: 35.58282209 | I15: 38.7755102 | J15: 48.27586207 | K15: 40.49079755 | L15: 41.49659864 | M15: 47.12643678
A16: Nymburk | B16: 139 | C16: 126 | D16: 149 | E16: 39.56834532 | F16: 69.04761905 | G16: 72.48322148 | H16: 28.05755396 | I16: 29.36507937 | J16: 34.22818792 | K16: 20.86330935 | L16: 33.33333333 | M16: 33.55704698
A17: Praha-východ | B17: 174 | C17: 152 | D17: 178 | E17: 45.97701149 | F17: 80.92105263 | G17: 85.39325843 | H17: 27.5862069 | I17: 33.55263158 | J17: 44.38202247 | K17: 31.6091954 | L17: 42.10526316 | M17: 52.24719101
A18: Praha-západ | B18: 142 | C18: 154 | D18: 177 | E18: 43.66197183 | F18: 75.32467532 | G18: 73.44632768 | H18: 26.05633803 | I18: 33.76623377 | J18: 35.59322034 | K18: 30.98591549 | L18: 37.66233766 | M18: 45.19774011
A19: Příbram | B19: 161 | C19: 146 | D19: 166 | E19: 43.47826087 | F19: 67.80821918 | G19: 76.5060241 | H19: 23.60248447 | I19: 32.19178082 | J19: 36.14457831 | K19: 32.29813665 | L19: 34.24657534 | M19: 39.15662651
A20: Rakovník | B20: 81 | C20: 65 | D20: 74 | E20: 40.74074074 | F20: 81.53846154 | G20: 78.37837838 | H20: 24.69135802 | I20: 36.92307692 | J20: 40.54054054 | K20: 30.86419753 | L20: 43.07692308 | M20: 43.24324324
A21: Jihočeský kraj celkem | B21: 1059 | C21: 954 | D21: 1030 | E21: 48.15864023 | F21: 75.26205451 | G21: 78.15533981 | H21: 29.65061379 | I21: 35.7442348 | J21: 39.90291262 | K21: 30.97261568 | L21: 37.42138365 | M21: 44.46601942
A22: České Budějovice | B22: 352 | C22: 304 | D22: 359 | E22: 44.31818182 | F22: 76.31578947 | G22: 74.93036212 | H22: 24.14772727 | I22: 32.23684211 | J22: 32.03342618 | K22: 25.85227273 | L22: 35.19736842 | M22: 37.88300836
A23: Český Krumlov | B23: 87 | C23: 75 | D23: 79 | E23: 34.48275862 | F23: 70.66666667 | G23: 69.62025316 | H23: 32.18390805 | I23: 32 | J23: 36.70886076 | K23: 26.43678161 | L23: 25.33333333 | M23: 37.97468354
A24: Jindřichův Hradec | B24: 160 | C24: 135 | D24: 152 | E24: 52.5 | F24: 76.2962963 | G24: 82.23684211 | H24: 37.5 | I24: 44.44444444 | J24: 46.71052632 | K24: 31.25 | L24: 37.03703704 | M24: 46.71052632
A25: Písek | B25: 104 | C25: 96 | D25: 105 | E25: 59.61538462 | F25: 77.08333333 | G25: 84.76190476 | H25: 39.42307692 | I25: 43.75 | J25: 50.47619048 | K25: 38.46153846 | L25: 40.625 | M25: 49.52380952
A26: Prachatice | B26: 77 | C26: 76 | D26: 73 | E26: 54.54545455 | F26: 78.94736842 | G26: 79.45205479 | H26: 32.46753247 | I26: 42.10526316 | J26: 42.46575342 | K26: 40.25974026 | L26: 51.31578947 | M26: 57.53424658
A27: Strakonice | B27: 108 | C27: 98 | D27: 97 | E27: 50 | F27: 76.53061224 | G27: 81.44329897 | H27: 31.48148148 | I27: 28.57142857 | J27: 43.29896907 | K27: 35.18518519 | L27: 42.85714286 | M27: 47.42268041
A28: Tábor | B28: 171 | C28: 170 | D28: 165 | E28: 47.95321637 | F28: 71.17647059 | G28: 78.78787879 | H28: 23.97660819 | I28: 33.52941176 | J28: 42.42424242 | K28: 32.16374269 | L28: 35.88235294 | M28: 49.09090909
A29: Plzeňský kraj celkem | B29: 976 | C29: 878 | D29: 965 | E29: 46.31147541 | F29: 75.05694761 | G29: 78.34196891 | H29: 25.30737705 | I29: 35.87699317 | J29: 38.75647668 | K29: 31.35245902 | L29: 41.11617312 | M29: 46.63212435
A30: Domažlice | B30: 86 | C30: 68 | D30: 72 | E30: 52.3255814 | F30: 79.41176471 | G30: 87.5 | H30: 19.76744186 | I30: 32.35294118 | J30: 37.5 | K30: 31.39534884 | L30: 42.64705882 | M30: 44.44444444
A31: Klatovy | B31: 133 | C31: 114 | D31: 127 | E31: 51.12781955 | F31: 74.56140351 | G31: 81.88976378 | H31: 33.83458647 | I31: 42.98245614 | J31: 49.60629921 | K31: 37.59398496 | L31: 44.73684211 | M31: 52.75590551
A32: Plzeň-město | B32: 428 | C32: 399 | D32: 447 | E32: 45.3271028 | F32: 75.43859649 | G32: 76.51006711 | H32: 23.8317757 | I32: 36.09022556 | J32: 36.68903803 | K32: 26.40186916 | L32: 40.10025063 | M32: 44.51901566
A33: Plzeň-jih | B33: 76 | C33: 72 | D33: 86 | E33: 46.05263158 | F33: 69.44444444 | G33: 72.09302326 | H33: 25 | I33: 29.16666667 | J33: 38.37209302 | K33: 35.52631579 | L33: 38.88888889 | M33: 47.6744186
A34: Plzeň-sever | B34: 97 | C34: 84 | D34: 83 | E34: 44.32989691 | F34: 77.38095238 | G34: 81.92771084 | H34: 29.89690722 | I34: 42.85714286 | J34: 40.96385542 | K34: 43.29896907 | L34: 46.42857143 | M34: 51.80722892
A35: Rokycany | B35: 70 | C35: 66 | D35: 65 | E35: 35.71428571 | F35: 71.21212121 | G35: 84.61538462 | H35: 18.57142857 | I35: 31.81818182 | J35: 35.38461538 | K35: 22.85714286 | L35: 39.39393939 | M35: 49.23076923
A36: Tachov | B36: 86 | C36: 75 | D36: 85 | E36: 48.8372093 | F36: 76 | G36: 72.94117647 | H36: 25.58139535 | I36: 29.33333333 | J36: 35.29411765 | K36: 36.04651163 | L36: 37.33333333 | M36: 42.35294118
A37: Karlovarský kraj celkem | B37: 534 | C37: 445 | D37: 522 | E37: 43.44569288 | F37: 67.64044944 | G37: 68.77394636 | H37: 28.08988764 | I37: 34.15730337 | J37: 33.90804598 | K37: 30.71161049 | L37: 38.42696629 | M37: 42.14559387
A38: Cheb | B38: 168 | C38: 140 | D38: 165 | E38: 41.66666667 | F38: 67.85714286 | G38: 72.12121212 | H38: 26.19047619 | I38: 31.42857143 | J38: 35.75757576 | K38: 26.78571429 | L38: 33.57142857 | M38: 38.18181818
A39: Karlovy Vary | B39: 238 | C39: 202 | D39: 243 | E39: 41.59663866 | F39: 67.32673267 | G39: 64.6090535 | H39: 27.73109244 | I39: 31.68316832 | J39: 32.9218107 | K39: 30.25210084 | L39: 37.62376238 | M39: 41.56378601
A40: Sokolov | B40: 128 | C40: 103 | D40: 114 | E40: 49.21875 | F40: 67.96116505 | G40: 72.80701754 | H40: 31.25 | I40: 42.7184466 | J40: 33.33333333 | K40: 36.71875 | L40: 46.60194175 | M40: 49.12280702
A41: Ústecký kraj celkem | B41: 1267 | C41: 1110 | D41: 1145 | E41: 46.32991318 | F41: 77.02702703 | G41: 76.24454148 | H41: 24.94080505 | I41: 35.13513514 | J41: 37.99126638 | K41: 29.04498816 | L41: 40.27027027 | M41: 44.10480349
A42: Děčín | B42: 212 | C42: 172 | D42: 177 | E42: 47.64150943 | F42: 72.6744186 | G42: 71.75141243 | H42: 26.41509434 | I42: 36.04651163 | J42: 37.28813559 | K42: 22.16981132 | L42: 34.30232558 | M42: 39.5480226
A43: Chomutov | B43: 180 | C43: 156 | D43: 169 | E43: 42.77777778 | F43: 73.71794872 | G43: 72.78106509 | H43: 26.11111111 | I43: 33.97435897 | J43: 38.46153846 | K43: 33.88888889 | L43: 39.74358974 | M43: 46.74556213
A44: Litoměřice | B44: 190 | C44: 156 | D44: 186 | E44: 50.52631579 | F44: 81.41025641 | G44: 79.03225806 | H44: 28.42105263 | I44: 35.8974359 | J44: 39.24731183 | K44: 26.84210526 | L44: 41.66666667 | M44: 46.77419355
A45: Louny | B45: 140 | C45: 121 | D45: 118 | E45: 45 | F45: 79.33884298 | G45: 75.42372881 | H45: 22.85714286 | I45: 36.36363636 | J45: 39.83050847 | K45: 28.57142857 | L45: 38.01652893 | M45: 41.52542373
A46: Most | B46: 169 | C46: 148 | D46: 139 | E46: 49.70414201 | F46: 77.7027027 | G46: 84.17266187 | H46: 17.75147929 | I46: 32.43243243 | J46: 37.41007194 | K46: 40.82840237 | L46: 52.02702703 | M46: 51.79856115
A47: Teplice | B47: 155 | C47: 145 | D47: 154 | E47: 48.38709677 | F47: 80.68965517 | G47: 76.62337662 | H47: 23.87096774 | I47: 35.86206897 | J47: 36.36363636 | K47: 30.32258065 | L47: 42.75862069 | M47: 42.85714286
A48: Ústí n/L | B48: 221 | C48: 212 | D48: 202 | E48: 41.17647059 | F48: 75.47169811 | G48: 75.24752475 | H48: 27.14932127 | I48: 35.37735849 | J48: 37.62376238 | K48: 23.98190045 | L48: 35.8490566 | M48: 40.59405941
A49: Liberecký kraj celkem | B49: 698 | C49: 598 | D49: 695 | E49: 48.56733524 | F49: 74.24749164 | G49: 77.26618705 | H49: 29.22636103 | I49: 36.62207358 | J49: 40.86330935 | K49: 29.65616046 | L49: 35.78595318 | M49: 41.29496403
A50: Česká Lípa | B50: 153 | C50: 136 | D50: 160 | E50: 47.7124183 | F50: 67.64705882 | G50: 72.5 | H50: 25.49019608 | I50: 35.29411765 | J50: 40.625 | K50: 18.95424837 | L50: 25.73529412 | M50: 36.25
A51: Jablonec n/N | B51: 141 | C51: 125 | D51: 143 | E51: 50.35460993 | F51: 72.8 | G51: 80.41958042 | H51: 31.20567376 | I51: 34.4 | J51: 39.86013986 | K51: 35.46099291 | L51: 40 | M51: 44.05594406
A52: Liberec | B52: 278 | C52: 232 | D52: 266 | E52: 53.5971223 | F52: 76.72413793 | G52: 81.95488722 | H52: 29.85611511 | I52: 34.48275862 | J52: 41.35338346 | K52: 33.81294964 | L52: 38.79310345 | M52: 43.23308271
A53: Semily | B53: 126 | C53: 105 | D53: 126 | E53: 36.50793651 | F53: 79.04761905 | G53: 69.84126984 | H53: 30.15873016 | I53: 45.71428571 | J53: 41.26984127 | K53: 26.98412698 | L53: 37.14285714 | M53: 40.47619048
A54: Královéhradecký kraj celkem | B54: 959 | C54: 898 | D54: 906 | E54: 46.61105318 | F54: 76.50334076 | G54: 77.81456954 | H54: 30.23983316 | I54: 40.20044543 | J54: 42.38410596 | K54: 30.55265902 | L54: 43.98663697 | M54: 47.68211921
A55: Hradec Králové | B55: 323 | C55: 305 | D55: 314 | E55: 46.43962848 | F55: 82.62295082 | G55: 79.29936306 | H55: 31.57894737 | I55: 41.96721311 | J55: 41.71974522 | K55: 28.17337461 | L55: 44.26229508 | M55: 43.94904459
A56: Jičín | B56: 140 | C56: 127 | D56: 125 | E56: 42.85714286 | F56: 69.29133858 | G56: 77.6 | H56: 24.28571429 | I56: 40.94488189 | J56: 44 | K56: 30.71428571 | L56: 39.37007874 | M56: 51.2
A57: Náchod | B57: 170 | C57: 161 | D57: 154 | E57: 50.58823529 | F57: 73.91304348 | G57: 83.11688312 | H57: 34.70588235 | I57: 39.7515528 | J57: 49.35064935 | K57: 30 | L57: 47.20496894 | M57: 55.84415584
A58: Rychnov n/K | B58: 132 | C58: 120 | D58: 122 | E58: 53.78787879 | F58: 75.83333333 | G58: 79.50819672 | H58: 25.75757576 | I58: 36.66666667 | J58: 39.3442623 | K58: 40.15151515 | L58: 51.66666667 | M58: 57.37704918
A59: Trutnov | B59: 194 | C59: 185 | D59: 191 | E59: 41.2371134 | F59: 74.05405405 | G59: 70.15706806 | H59: 31.44329897 | I59: 39.45945946 | J59: 38.7434555 | K59: 28.35051546 | L59: 38.91891892 | M59: 38.7434555
A60: Pardubický kraj celkem | B60: 842 | C60: 778 | D60: 824 | E60: 47.74346793 | F60: 77.50642674 | G60: 78.88349515 | H60: 29.45368171 | I60: 38.1748072 | J60: 43.93203883 | K60: 33.49168646 | L60: 43.18766067 | M60: 47.45145631
A61: Chrudim | B61: 172 | C61: 160 | D61: 158 | E61: 48.25581395 | F61: 82.5 | G61: 84.81012658 | H61: 27.90697674 | I61: 42.5 | J61: 43.03797468 | K61: 31.97674419 | L61: 46.875 | M61: 50
A62: Pardubice | B62: 290 | C62: 272 | D62: 304 | E62: 49.31034483 | F62: 80.51470588 | G62: 77.63157895 | H62: 32.4137931 | I62: 39.70588235 | J62: 46.05263158 | K62: 35.17241379 | L62: 47.42647059 | M62: 45.39473684
A63: Svitavy | B63: 163 | C63: 148 | D63: 150 | E63: 44.17177914 | F63: 73.64864865 | G63: 78.66666667 | H63: 25.15337423 | I63: 33.10810811 | J63: 40.66666667 | K63: 25.76687117 | L63: 36.48648649 | M63: 46.66666667
A64: Ústí n/Orl. | B64: 217 | C64: 198 | D64: 212 | E64: 47.92626728 | F64: 72.22222222 | G64: 76.41509434 | H64: 29.95391705 | I64: 36.36363636 | J64: 43.86792453 | K64: 38.24884793 | L64: 39.39393939 | M64: 49.05660377
A65: Vysočina celkem | B65: 822 | C65: 794 | D65: 814 | E65: 44.89051095 | F65: 75.44080605 | G65: 77.76412776 | H65: 26.03406326 | I65: 35.89420655 | J65: 39.8034398 | K65: 28.83211679 | L65: 37.78337531 | M65: 45.20884521
A66: Havlíčkův Brod | B66: 160 | C66: 154 | D66: 155 | E66: 44.375 | F66: 72.07792208 | G66: 76.12903226 | H66: 26.875 | I66: 35.06493506 | J66: 38.70967742 | K66: 28.125 | L66: 32.46753247 | M66: 42.58064516
A67: Jihlava | B67: 197 | C67: 189 | D67: 193 | E67: 49.74619289 | F67: 77.24867725 | G67: 79.79274611 | H67: 30.96446701 | I67: 44.97354497 | J67: 48.1865285 | K67: 33.50253807 | L67: 38.0952381 | M67: 47.15025907
A68: Pelhřimov | B68: 114 | C68: 108 | D68: 111 | E68: 52.63157895 | F68: 85.18518519 | G68: 88.28828829 | H68: 27.19298246 | I68: 37.03703704 | J68: 40.54054054 | K68: 32.45614035 | L68: 40.74074074 | M68: 39.63963964
A69: Třebíč | B69: 172 | C69: 155 | D69: 160 | E69: 37.20930233 | F69: 74.83870968 | G69: 76.875 | H69: 19.76744186 | I69: 28.38709677 | J69: 31.875 | K69: 26.74418605 | L69: 42.58064516 | M69: 51.875
A70: Žďár n/Sáz. | B70: 179 | C70: 188 | D70: 195 | E70: 42.45810056 | F70: 71.27659574 | G70: 71.79487179 | H70: 25.1396648 | I70: 32.9787234 | J70: 38.46153846 | K70: 24.02234637 | L70: 36.17021277 | M70: 43.07692308
A71: Jihomoravský kraj celkem | B71: 2189 | C71: 2086 | D71: 2121 | E71: 45.6372773 | F71: 73.72962608 | G71: 77.32201792 | H71: 26.26770215 | I71: 33.98849473 | J71: 38.00094295 | K71: 31.06441297 | L71: 41.03547459 | M71: 45.82743989
A72: Blansko | B72: 165 | C72: 148 | D72: 155 | E72: 36.36363636 | F72: 77.7027027 | G72: 76.12903226 | H72: 23.63636364 | I72: 41.21621622 | J72: 40 | K72: 29.6969697 | L72: 42.56756757 | M72: 40
A73: Brno-město | B73: 1056 | C73: 1022 | D73: 1035 | E73: 46.59090909 | F73: 70.64579256 | G73: 75.16908213 | H73: 26.32575758 | I73: 29.94129159 | J73: 34.68599034 | K73: 29.45075758 | L73: 37.96477495 | M73: 43.09178744
A74: Brno-venkov | B74: 261 | C74: 240 | D74: 247 | E74: 40.61302682 | F74: 76.66666667 | G74: 80.97165992 | H74: 24.5210728 | I74: 38.75 | J74: 42.51012146 | K74: 31.80076628 | L74: 47.08333333 | M74: 48.17813765
A75: Břeclav | B75: 155 | C75: 158 | D75: 158 | E75: 53.5483871 | F75: 79.11392405 | G75: 84.81012658 | H75: 30.96774194 | I75: 43.03797468 | J75: 43.03797468 | K75: 37.41935484 | L75: 53.79746835 | M75: 55.69620253
A76: Hodonín | B76: 254 | C76: 236 | D76: 242 | E76: 48.81889764 | F76: 75 | G76: 74.38016529 | H76: 29.92125984 | I76: 34.3220339 | J76: 42.97520661 | K76: 33.46456693 | L76: 36.44067797 | M76: 45.8677686
A77: Vyškov | B77: 131 | C77: 118 | D77: 124 | E77: 45.80152672 | F77: 83.89830508 | G77: 83.87096774 | H77: 26.71755725 | I77: 42.37288136 | J77: 37.09677419 | K77: 27.48091603 | L77: 46.61016949 | M77: 49.19354839
A78: Znojmo | B78: 167 | C78: 164 | D78: 160 | E78: 44.31137725 | F78: 70.73170732 | G78: 78.75 | H78: 20.95808383 | I78: 30.48780488 | J78: 38.75 | K78: 34.73053892 | L78: 40.24390244 | M78: 53.125
A79: Olomoucký kraj celkem | B79: 1140 | C79: 1128 | D79: 1119 | E79: 49.03508772 | F79: 76.24113475 | G79: 79.53529937 | H79: 28.24561404 | I79: 35.28368794 | J79: 37.98033959 | K79: 30.0877193 | L79: 38.82978723 | M79: 42.89544236
A80: Jeseník | B80: 55 | C80: 53 | D80: 51 | E80: 58.18181818 | F80: 84.90566038 | G80: 86.2745098 | H80: 29.09090909 | I80: 41.50943396 | J80: 47.05882353 | K80: 32.72727273 | L80: 37.73584906 | M80: 54.90196078
A81: Olomouc | B81: 458 | C81: 470 | D81: 478 | E81: 48.47161572 | F81: 76.17021277 | G81: 79.49790795 | H81: 28.16593886 | I81: 35.74468085 | J81: 36.19246862 | K81: 31.44104803 | L81: 38.08510638 | M81: 40.37656904
A82: Prostějov | B82: 200 | C82: 199 | D82: 200 | E82: 43 | F82: 76.38190955 | G82: 80.5 | H82: 25 | I82: 28.14070352 | J82: 34 | K82: 29.5 | L82: 43.2160804 | M82: 46.5
A83: Přerov | B83: 217 | C83: 211 | D83: 200 | E83: 50.69124424 | F83: 72.51184834 | G83: 73 | H83: 28.57142857 | I83: 30.8056872 | J83: 35.5 | K83: 28.57142857 | L83: 39.81042654 | M83: 41.5
A84: Šumperk | B84: 210 | C84: 195 | D84: 190 | E84: 51.9047619 | F84: 77.94871795 | G84: 83.68421053 | H84: 30.95238095 | I84: 44.61538462 | J84: 46.84210526 | K84: 28.57142857 | L84: 35.38461538 | M84: 43.68421053
A85: Zlínský kraj celkem | B85: 1056 | C85: 1007 | D85: 1006 | E85: 46.96969697 | F85: 76.06752731 | G85: 78.33001988 | H85: 23.86363636 | I85: 31.08242304 | J85: 35.68588469 | K85: 28.69318182 | L85: 35.8490566 | M85: 43.43936382
A86: Kroměříž | B86: 196 | C86: 179 | D86: 182 | E86: 46.42857143 | F86: 70.94972067 | G86: 73.07692308 | H86: 19.89795918 | I86: 28.49162011 | J86: 33.51648352 | K86: 20.91836735 | L86: 29.60893855 | M86: 39.01098901
A87: Uherské Hradiště | B87: 252 | C87: 233 | D87: 240 | E87: 48.80952381 | F87: 81.54506438 | G87: 84.16666667 | H87: 24.20634921 | I87: 30.90128755 | J87: 35 | K87: 35.31746032 | L87: 42.06008584 | M87: 50
A88: Vsetín | B88: 259 | C88: 245 | D88: 242 | E88: 45.94594595 | F88: 76.73469388 | G88: 78.51239669 | H88: 26.64092664 | I88: 33.87755102 | J88: 42.97520661 | K88: 27.02702703 | L88: 34.28571429 | M88: 45.45454545
A89: Zlín | B89: 349 | C89: 350 | D89: 342 | E89: 46.70487106 | F89: 74.57142857 | G89: 76.9005848 | H89: 23.78223496 | I89: 30.57142857 | J89: 32.16374269 | K89: 29.51289398 | L89: 36 | M89: 39.76608187
A90: Moravskoslezský kraj celkem | B90: 2051 | C90: 1946 | D90: 1962 | E90: 49.92686494 | F90: 78.87975334 | G90: 80.78491335 | H90: 27.7425646 | I90: 37.92394656 | J90: 41.08053007 | K90: 32.95953194 | L90: 42.85714286 | M90: 45.20897044
A91: Bruntál | B91: 149 | C91: 137 | D91: 130 | E91: 47.65100671 | F91: 79.5620438 | G91: 80 | H91: 24.83221477 | I91: 32.84671533 | J91: 42.30769231 | K91: 24.16107383 | L91: 36.49635036 | M91: 43.07692308
A92: Frýdek-Místek | B92: 336 | C92: 320 | D92: 335 | E92: 52.97619048 | F92: 77.8125 | G92: 83.28358209 | H92: 30.95238095 | I92: 35.9375 | J92: 42.98507463 | K92: 34.22619048 | L92: 42.1875 | M92: 43.88059701
A93: Karviná | B93: 391 | C93: 382 | D93: 367 | E93: 58.56777494 | F93: 79.05759162 | G93: 80.38147139 | H93: 27.62148338 | I93: 35.86387435 | J93: 38.96457766 | K93: 36.06138107 | L93: 44.2408377 | M93: 45.77656676
A94: Nový Jičín | B94: 232 | C94: 227 | D94: 213 | E94: 53.87931034 | F94: 82.81938326 | G94: 82.15962441 | H94: 31.03448276 | I94: 43.6123348 | J94: 46.47887324 | K94: 35.34482759 | L94: 44.05286344 | M94: 47.41784038
A95: Opava | B95: 293 | C95: 251 | D95: 269 | E95: 38.90784983 | F95: 80.07968127 | G95: 78.81040892 | H95: 22.18430034 | I95: 35.05976096 | J95: 32.71375465 | K95: 30.03412969 | L95: 43.02788845 | M95: 43.12267658
A96: Ostrava-město | B96: 650 | C96: 629 | D96: 648 | E96: 47.23076923 | F96: 77.26550079 | G96: 80.24691358 | H96: 28.15384615 | I96: 40.38155803 | J96: 42.74691358 | K96: 32.92307692 | L96: 43.24324324 | M96: 46.14197531
M97: Zdroj: Ústav zdravotnických informací a statistiky ČR a vlastní dopočty ČSÚ
A98: * % zdravotnických zařízení daného typu, která se zúčastnila šetření
A99: ** celkový počet ordinací, které odevzdaly výkaz

Sheet T17
A1: Tab. 17: Funkce elektronického systému v samostatných ordinacích PL pro dospělé v okresech a krajích ČR; 2024
A2: zpět na seznam
B3: Celkový počet ordinací** | C3: Předepisování léků | E3: Upozornění na lékové interakce | G3: Objednání a obdržení výsledků laboratorních vyšetření
C4: počet | D4: %* | E4: počet | F4: %* | G4: počet | H4: %*
A5: Celkem ČR | B5: 3919 | C5: 3396 | D5: =C5/B5*100 -> 86.65475887 | E5: 2369 | F5: =E5/B5*100 -> 60.44909416 | G5: 2994 | H5: =G5/B5*100 -> 76.39704006
A6: Hl. m. Praha | B6: 508 | C6: 432 | D6: =C6/B6*100 -> 85.03937008 | E6: 320 | F6: =E6/B6*100 -> 62.99212598 | G6: 375 | H6: =G6/B6*100 -> 73.81889764
A7: Středočeský kraj celkem | B7: 448 | C7: 383 | D7: 85.49107143 | E7: 267 | F7: =E7/B7*100 -> 59.59821429 | G7: 335 | H7: 74.77678571
A8: Benešov | B8: 37 | C8: 30 | D8: 81.08108108 | E8: 22 | F8: 59.45945946 | G8: 29 | H8: 78.37837838
A9: Beroun | B9: 27 | C9: 24 | D9: 88.88888889 | E9: 13 | F9: 48.14814815 | G9: 20 | H9: 74.07407407
A10: Kladno | B10: 50 | C10: 44 | D10: =C10/B10*100 -> 88 | E10: 34 | F10: 68 | G10: 42 | H10: 84
A11: Kolín | B11: 36 | C11: 32 | D11: 88.88888889 | E11: 28 | F11: 77.77777778 | G11: 26 | H11: 72.22222222
A12: Kutná Hora | B12: 34 | C12: 30 | D12: 88.23529412 | E12: 17 | F12: 50 | G12: 27 | H12: 79.41176471
A13: Mělník | B13: 37 | C13: 31 | D13: 83.78378378 | E13: 21 | F13: 56.75675676 | G13: 29 | H13: 78.37837838
A14: Mladá Boleslav | B14: 43 | C14: 40 | D14: 93.02325581 | E14: 29 | F14: 67.44186047 | G14: 31 | H14: 72.09302326
A15: Nymburk | B15: 35 | C15: 23 | D15: 65.71428571 | E15: 16 | F15: 45.71428571 | G15: 18 | H15: 51.42857143
A16: Praha-východ | B16: 50 | C16: 44 | D16: 88 | E16: 34 | F16: 68 | G16: 40 | H16: 80
A17: Praha-západ | B17: 40 | C17: 34 | D17: 85 | E17: 22 | F17: 55 | G17: 29 | H17: 72.5
A18: Příbram | B18: 39 | C18: 34 | D18: 87.17948718 | E18: 21 | F18: 53.84615385 | G18: 30 | H18: 76.92307692
A19: Rakovník | B19: 20 | C19: 17 | D19: 85 | E19: 10 | F19: 50 | G19: 14 | H19: 70
A20: Jihočeský kraj celkem | B20: 241 | C20: 218 | D20: 90.45643154 | E20: 156 | F20: 64.73029046 | G20: 193 | H20: 80.08298755
A21: České Budějovice | B21: 64 | C21: 57 | D21: 89.0625 | E21: 39 | F21: 60.9375 | G21: 50 | H21: 78.125
A22: Český Krumlov | B22: 17 | C22: 14 | D22: 82.35294118 | E22: 8 | F22: 47.05882353 | G22: 11 | H22: 64.70588235
A23: Jindřichův Hradec | B23: 34 | C23: 32 | D23: 94.11764706 | E23: 27 | F23: 79.41176471 | G23: 29 | H23: 85.29411765
A24: Písek | B24: 31 | C24: 27 | D24: 87.09677419 | E24: 21 | F24: 67.74193548 | G24: 23 | H24: 74.19354839
A25: Prachatice | B25: 24 | C25: 22 | D25: 91.66666667 | E25: 17 | F25: 70.83333333 | G25: 22 | H25: 91.66666667
A26: Strakonice | B26: 26 | C26: 24 | D26: 92.30769231 | E26: 14 | F26: 53.84615385 | G26: 20 | H26: 76.92307692
A27: Tábor | B27: 45 | C27: 42 | D27: 93.33333333 | E27: 30 | F27: 66.66666667 | G27: 38 | H27: 84.44444444
A28: Plzeňský kraj celkem | B28: 215 | C28: 188 | D28: 87.44186047 | E28: 132 | F28: 61.39534884 | G28: 172 | H28: 80
A29: Domažlice | B29: 17 | C29: 16 | D29: 94.11764706 | E29: 8 | F29: 47.05882353 | G29: 13 | H29: 76.47058824
A30: Klatovy | B30: 34 | C30: 29 | D30: 85.29411765 | E30: 23 | F30: 67.64705882 | G30: 29 | H30: 85.29411765
A31: Plzeň-město | B31: 76 | C31: 66 | D31: 86.84210526 | E31: 47 | F31: 61.84210526 | G31: 60 | H31: 78.94736842
A32: Plzeň-jih | B32: 25 | C32: 20 | D32: 80 | E32: 17 | F32: 68 | G32: 17 | H32: 68
A33: Plzeň-sever | B33: 26 | C33: 24 | D33: 92.30769231 | E33: 16 | F33: 61.53846154 | G33: 24 | H33: 92.30769231
A34: Rokycany | B34: 18 | C34: 18 | D34: 100 | E34: 12 | F34: 66.66666667 | G34: 15 | H34: 83.33333333
A35: Tachov | B35: 19 | C35: 15 | D35: 78.94736842 | E35: 9 | F35: 47.36842105 | G35: 14 | H35: 73.68421053
A36: Karlovarský kraj celkem | B36: 101 | C36: 87 | D36: 86.13861386 | E36: 60 | F36: 59.40594059 | G36: 71 | H36: 70.2970297
A37: Cheb | B37: 31 | C37: 28 | D37: 90.32258065 | E37: 22 | F37: 70.96774194 | G37: 21 | H37: 67.74193548
A38: Karlovy Vary | B38: 43 | C38: 37 | D38: 86.04651163 | E38: 22 | F38: 51.1627907 | G38: 33 | H38: 76.74418605
A39: Sokolov | B39: 27 | C39: 22 | D39: 81.48148148 | E39: 16 | F39: 59.25925926 | G39: 17 | H39: 62.96296296
A40: Ústecký kraj celkem | B40: 263 | C40: 211 | D40: 80.22813688 | E40: 147 | F40: 55.89353612 | G40: 180 | H40: 68.44106464
A41: Děčín | B41: 44 | C41: 32 | D41: 72.72727273 | E41: 20 | F41: 45.45454545 | G41: 22 | H41: 50
A42: Chomutov | B42: 37 | C42: 27 | D42: 72.97297297 | E42: 24 | F42: 64.86486486 | G42: 26 | H42: 70.27027027
A43: Litoměřice | B43: 44 | C43: 33 | D43: 75 | E43: 18 | F43: 40.90909091 | G43: 32 | H43: 72.72727273
A44: Louny | B44: 30 | C44: 25 | D44: 83.33333333 | E44: 19 | F44: 63.33333333 | G44: 22 | H44: 73.33333333
A45: Most | B45: 34 | C45: 32 | D45: 94.11764706 | E45: 23 | F45: 67.64705882 | G45: 29 | H45: 85.29411765
A46: Teplice | B46: 35 | C46: 30 | D46: 85.71428571 | E46: 22 | F46: 62.85714286 | G46: 24 | H46: 68.57142857
A47: Ústí n/L | B47: 39 | C47: 32 | D47: 82.05128205 | E47: 21 | F47: 53.84615385 | G47: 25 | H47: 64.1025641
A48: Liberecký kraj celkem | B48: 169 | C48: 155 | D48: 91.71597633 | E48: 112 | F48: 66.27218935 | G48: 129 | H48: 76.33136095
A49: Česká Lípa | B49: 37 | C49: 33 | D49: 89.18918919 | E49: 25 | F49: 67.56756757 | G49: 27 | H49: 72.97297297
A50: Jablonec n/N | B50: 36 | C50: 35 | D50: 97.22222222 | E50: 23 | F50: 63.88888889 | G50: 27 | H50: 75
A51: Liberec | B51: 64 | C51: 62 | D51: 96.875 | E51: 46 | F51: 71.875 | G51: 55 | H51: 85.9375
A52: Semily | B52: 32 | C52: 25 | D52: 78.125 | E52: 18 | F52: 56.25 | G52: 20 | H52: 62.5
A53: Královéhradecký kraj celkem | B53: 208 | C53: 187 | D53: 89.90384615 | E53: 155 | F53: 74.51923077 | G53: 174 | H53: 83.65384615
A54: Hradec Králové | B54: 62 | C54: 56 | D54: 90.32258065 | E54: 46 | F54: 74.19354839 | G54: 50 | H54: 80.64516129
A55: Jičín | B55: 32 | C55: 30 | D55: 93.75 | E55: 25 | F55: 78.125 | G55: 29 | H55: 90.625
A56: Náchod | B56: 41 | C56: 37 | D56: 90.24390244 | E56: 35 | F56: 85.36585366 | G56: 35 | H56: 85.36585366
A57: Rychnov n/K | B57: 31 | C57: 28 | D57: 90.32258065 | E57: 22 | F57: 70.96774194 | G57: 28 | H57: 90.32258065
A58: Trutnov | B58: 42 | C58: 36 | D58: 85.71428571 | E58: 27 | F58: 64.28571429 | G58: 32 | H58: 76.19047619
A59: Pardubický kraj celkem | B59: 186 | C59: 163 | D59: 87.6344086 | E59: 122 | F59: 65.59139785 | G59: 149 | H59: 80.10752688
A60: Chrudim | B60: 37 | C60: 34 | D60: 91.89189189 | E60: 23 | F60: 62.16216216 | G60: 31 | H60: 83.78378378
A61: Pardubice | B61: 61 | C61: 50 | D61: 81.96721311 | E61: 37 | F61: 60.6557377 | G61: 46 | H61: 75.40983607
A62: Svitavy | B62: 34 | C62: 31 | D62: 91.17647059 | E62: 26 | F62: 76.47058824 | G62: 27 | H62: 79.41176471
A63: Ústí n/Orl. | B63: 54 | C63: 48 | D63: 88.88888889 | E63: 36 | F63: 66.66666667 | G63: 45 | H63: 83.33333333
A64: Vysočina celkem | B64: 191 | C64: 174 | D64: 91.09947644 | E64: 112 | F64: 58.63874346 | G64: 158 | H64: 82.72251309
A65: Havlíčkův Brod | B65: 33 | C65: 32 | D65: 96.96969697 | E65: 18 | F65: 54.54545455 | G65: 31 | H65: 93.93939394
A66: Jihlava | B66: 46 | C66: 41 | D66: 89.13043478 | E66: 32 | F66: 69.56521739 | G66: 36 | H66: 78.26086957
A67: Pelhřimov | B67: 30 | C67: 28 | D67: 93.33333333 | E67: 18 | F67: 60 | G67: 23 | H67: 76.66666667
A68: Třebíč | B68: 39 | C68: 35 | D68: 89.74358974 | E68: 20 | F68: 51.28205128 | G68: 34 | H68: 87.17948718
A69: Žďár n/Sáz. | B69: 43 | C69: 38 | D69: 88.37209302 | E69: 24 | F69: 55.81395349 | G69: 34 | H69: 79.06976744
A70: Jihomoravský kraj celkem | B70: 480 | C70: 417 | D70: =C70/B70*100 -> 86.875 | E70: 262 | F70: =E70/B70*100 -> 54.58333333 | G70: 373 | H70: =G70/B70*100 -> 77.70833333
A71: Blansko | B71: 45 | C71: 38 | D71: 84.44444444 | E71: 23 | F71: 51.11111111 | G71: 31 | H71: 68.88888889
A72: Brno-město | B72: 191 | C72: 167 | D72: 87.43455497 | E72: 92 | F72: 48.16753927 | G72: 147 | H72: 76.96335079
A73: Brno-venkov | B73: 69 | C73: 61 | D73: 88.4057971 | E73: 44 | F73: 63.76811594 | G73: 56 | H73: 81.15942029
A74: Břeclav | B74: 43 | C74: 35 | D74: 81.39534884 | E74: 23 | F74: 53.48837209 | G74: 33 | H74: 76.74418605
A75: Hodonín | B75: 60 | C75: 53 | D75: 88.33333333 | E75: 38 | F75: 63.33333333 | G75: 49 | H75: 81.66666667
A76: Vyškov | B76: 33 | C76: 27 | D76: 81.81818182 | E76: 18 | F76: 54.54545455 | G76: 24 | H76: 72.72727273
A77: Znojmo | B77: 39 | C77: 36 | D77: 92.30769231 | E77: 24 | F77: 61.53846154 | G77: 33 | H77: 84.61538462
A78: Olomoucký kraj celkem | B78: 250 | C78: 220 | D78: 88 | E78: 151 | F78: 60.4 | G78: 200 | H78: 80
A79: Jeseník | B79: 11 | C79: 11 | D79: 100 | E79: 8 | F79: 72.72727273 | G79: 10 | H79: 90.90909091
A80: Olomouc | B80: 97 | C80: 82 | D80: 84.53608247 | E80: 54 | F80: 55.67010309 | G80: 74 | H80: 76.28865979
A81: Prostějov | B81: 43 | C81: 39 | D81: 90.69767442 | E81: 24 | F81: 55.81395349 | G81: 36 | H81: 83.72093023
A82: Přerov | B82: 48 | C82: 41 | D82: 85.41666667 | E82: 28 | F82: 58.33333333 | G82: 38 | H82: 79.16666667
A83: Šumperk | B83: 51 | C83: 47 | D83: 92.15686275 | E83: 37 | F83: 72.54901961 | G83: 42 | H83: 82.35294118
A84: Zlínský kraj celkem | B84: 227 | C84: 183 | D84: 80.61674009 | E84: 113 | F84: 49.77973568 | G84: 158 | H84: 69.60352423
A85: Kroměříž | B85: 41 | C85: 28 | D85: 68.29268293 | E85: 15 | F85: 36.58536585 | G85: 25 | H85: 60.97560976
A86: Uherské Hradiště | B86: 64 | C86: 59 | D86: 92.1875 | E86: 36 | F86: 56.25 | G86: 51 | H86: 79.6875
A87: Vsetín | B87: 51 | C87: 39 | D87: 76.47058824 | E87: 27 | F87: 52.94117647 | G87: 34 | H87: 66.66666667
A88: Zlín | B88: 71 | C88: 57 | D88: 80.28169014 | E88: 35 | F88: 49.29577465 | G88: 48 | H88: 67.6056338
A89: Moravskoslezský kraj celkem | B89: 432 | C89: 378 | D89: 87.5 | E89: 260 | F89: 60.18518519 | G89: 327 | H89: 75.69444444
A90: Bruntál | B90: 31 | C90: 27 | D90: 87.09677419 | E90: 18 | F90: 58.06451613 | G90: 24 | H90: 77.41935484
A91: Frýdek-Místek | B91: 75 | C91: 67 | D91: 89.33333333 | E91: 48 | F91: 64 | G91: 59 | H91: 78.66666667
A92: Karviná | B92: 86 | C92: 76 | D92: 88.37209302 | E92: 42 | F92: 48.8372093 | G92: 64 | H92: 74.41860465
A93: Nový Jičín | B93: 57 | C93: 49 | D93: 85.96491228 | E93: 38 | F93: 66.66666667 | G93: 44 | H93: 77.19298246
A94: Opava | B94: 65 | C94: 54 | D94: 83.07692308 | E94: 34 | F94: 52.30769231 | G94: 45 | H94: 69.23076923
A95: Ostrava-město | B95: 118 | C95: 105 | D95: 88.98305085 | E95: 80 | F95: 67.79661017 | G95: 91 | H95: 77.11864407
H96: Zdroj: Ústav zdravotnických informací a statistiky ČR a vlastní dopočty ČSÚ
A97: * % zdravotnických zařízení daného typu, která se zúčastnila šetření
A98: ** celkový počet ordinací, které odevzdaly výkaz

Sheet T18
A1: Tab. 18: Funkce elektronického systému v samostatných ordinacích PL pro děti a dorost v okresech a krajích ČR; 2024
A2: zpět na seznam
B3: Celkový počet ordinací** | C3: Předepisování léků | E3: Upozornění na lékové interakce | G3: Objednání a obdržení výsledků laboratorních vyšetření
C4: počet | D4: %* | E4: počet | F4: %* | G4: počet | H4: %*
A5: Celkem ČR | B5: 1534 | C5: 1281 | D5: =C5/B5*100 -> 83.5071708 | E5: 754 | F5: =E5/B5*100 -> 49.15254237 | G5: 1089 | H5: =G5/B5*100 -> 70.99087353
A6: Hl. m. Praha | B6: 184 | C6: 148 | D6: =C6/B6*100 -> 80.43478261 | E6: 85 | F6: =E6/B6*100 -> 46.19565217 | G6: 121 | H6: =G6/B6*100 -> 65.76086957
A7: Středočeský kraj celkem | B7: 197 | C7: 157 | D7: =C7/B7*100 -> 79.69543147 | E7: 91 | F7: =E7/B7*100 -> 46.1928934 | G7: 136 | H7: 69.03553299
A8: Benešov | B8: 15 | C8: 11 | D8: 73.33333333 | E8: 6 | F8: 40 | G8: 9 | H8: 60
A9: Beroun | B9: 13 | C9: 8 | D9: 61.53846154 | E9: 6 | F9: 46.15384615 | G9: 5 | H9: 38.46153846
A10: Kladno | B10: 25 | C10: 21 | D10: =C10/B10*100 -> 84 | E10: 17 | F10: 68 | G10: 18 | H10: 72
A11: Kolín | B11: 15 | C11: 11 | D11: 73.33333333 | E11: 9 | F11: 60 | G11: 10 | H11: 66.66666667
A12: Kutná Hora | B12: 9 | C12: 7 | D12: 77.77777778 | E12: 3 | F12: 33.33333333 | G12: 6 | H12: 66.66666667
A13: Mělník | B13: 15 | C13: 8 | D13: 53.33333333 | E13: 2 | F13: 13.33333333 | G13: 7 | H13: 46.66666667
A14: Mladá Boleslav | B14: 24 | C14: 20 | D14: 83.33333333 | E14: 10 | F14: 41.66666667 | G14: 18 | H14: 75
A15: Nymburk | B15: 13 | C15: 12 | D15: 92.30769231 | E15: 4 | F15: 30.76923077 | G15: 8 | H15: 61.53846154
A16: Praha-východ | B16: 21 | C16: 19 | D16: 90.47619048 | E16: 10 | F16: 47.61904762 | G16: 20 | H16: 95.23809524
A17: Praha-západ | B17: 26 | C17: 21 | D17: 80.76923077 | E17: 11 | F17: 42.30769231 | G17: 19 | H17: 73.07692308
A18: Příbram | B18: 14 | C18: 14 | D18: 100 | E18: 9 | F18: 64.28571429 | G18: 11 | H18: 78.57142857
A19: Rakovník | B19: 7 | C19: 5 | D19: 71.42857143 | E19: 4 | F19: 57.14285714 | G19: 5 | H19: 71.42857143
A20: Jihočeský kraj celkem | B20: 90 | C20: 71 | D20: 78.88888889 | E20: 45 | F20: 50 | G20: 64 | H20: 71.11111111
A21: České Budějovice | B21: 21 | C21: 12 | D21: 57.14285714 | E21: 7 | F21: 33.33333333 | G21: 12 | H21: 57.14285714
A22: Český Krumlov | B22: 9 | C22: 6 | D22: 66.66666667 | E22: 4 | F22: 44.44444444 | G22: 3 | H22: 33.33333333
A23: Jindřichův Hradec | B23: 18 | C23: 15 | D23: 83.33333333 | E23: 8 | F23: 44.44444444 | G23: 15 | H23: 83.33333333
A24: Písek | B24: 10 | C24: 10 | D24: 100 | E24: 9 | F24: 90 | G24: 9 | H24: 90
A25: Prachatice | B25: 8 | C25: 8 | D25: 100 | E25: 4 | F25: 50 | G25: 8 | H25: 100
A26: Strakonice | B26: 11 | C26: 9 | D26: 81.81818182 | E26: 6 | F26: 54.54545455 | G26: 9 | H26: 81.81818182
A27: Tábor | B27: 13 | C27: 11 | D27: 84.61538462 | E27: 7 | F27: 53.84615385 | G27: 8 | H27: 61.53846154
A28: Plzeňský kraj celkem | B28: 82 | C28: 71 | D28: 86.58536585 | E28: 39 | F28: 47.56097561 | G28: 56 | H28: 68.29268293
A29: Domažlice | B29: 6 | C29: 6 | D29: 100 | E29: 1 | F29: 16.66666667 | G29: 3 | H29: 50
A30: Klatovy | B30: 11 | C30: 11 | D30: 100 | E30: 6 | F30: 54.54545455 | G30: 10 | H30: 90.90909091
A31: Plzeň-město | B31: 33 | C31: 31 | D31: 93.93939394 | E31: 20 | F31: 60.60606061 | G31: 25 | H31: 75.75757576
A32: Plzeň-jih | B32: 9 | C32: 7 | D32: 77.77777778 | E32: 6 | F32: 66.66666667 | G32: 6 | H32: 66.66666667
A33: Plzeň-sever | B33: 12 | C33: 8 | D33: 66.66666667 | E33: 2 | F33: 16.66666667 | G33: 5 | H33: 41.66666667
A34: Rokycany | B34: 7 | C34: 4 | D34: 57.14285714 | E34: 1 | F34: 14.28571429 | G34: 4 | H34: 57.14285714
A35: Tachov | B35: 4 | C35: 4 | D35: 100 | E35: 3 | F35: 75 | G35: 3 | H35: 75
A36: Karlovarský kraj celkem | B36: 41 | C36: 33 | D36: 80.48780488 | E36: 14 | F36: 34.14634146 | G36: 29 | H36: 70.73170732
A37: Cheb | B37: 14 | C37: 11 | D37: 78.57142857 | E37: 9 | F37: 64.28571429 | G37: 11 | H37: 78.57142857
A38: Karlovy Vary | B38: 17 | C38: 13 | D38: 76.47058824 | E38: 2 | F38: 11.76470588 | G38: 10 | H38: 58.82352941
A39: Sokolov | B39: 10 | C39: 9 | D39: 90 | E39: 3 | F39: 30 | G39: 8 | H39: 80
A40: Ústecký kraj celkem | B40: 113 | C40: 88 | D40: 77.87610619 | E40: 50 | F40: 44.24778761 | G40: 78 | H40: 69.02654867
A41: Děčín | B41: 19 | C41: 15 | D41: 78.94736842 | E41: 12 | F41: 63.15789474 | G41: 14 | H41: 73.68421053
A42: Chomutov | B42: 19 | C42: 16 | D42: 84.21052632 | E42: 7 | F42: 36.84210526 | G42: 15 | H42: 78.94736842
A43: Litoměřice | B43: 17 | C43: 13 | D43: 76.47058824 | E43: 11 | F43: 64.70588235 | G43: 13 | H43: 76.47058824
A44: Louny | B44: 8 | C44: 3 | D44: 37.5 | E44: 2 | F44: 25 | G44: 3 | H44: 37.5
A45: Most | B45: 19 | C45: 16 | D45: 84.21052632 | E45: 5 | F45: 26.31578947 | G45: 13 | H45: 68.42105263
A46: Teplice | B46: 16 | C46: 12 | D46: 75 | E46: 8 | F46: 50 | G46: 11 | H46: 68.75
A47: Ústí n/L | B47: 15 | C47: 13 | D47: 86.66666667 | E47: 5 | F47: 33.33333333 | G47: 9 | H47: 60
A48: Liberecký kraj celkem | B48: 68 | C48: 58 | D48: 85.29411765 | E48: 37 | F48: 54.41176471 | G48: 49 | H48: =G48/B48*100 -> 72.05882353
A49: Česká Lípa | B49: 15 | C49: 12 | D49: 80 | E49: 6 | F49: 40 | G49: 9 | H49: 60
A50: Jablonec n/N | B50: 15 | C50: 11 | D50: 73.33333333 | E50: 5 | F50: 33.33333333 | G50: 9 | H50: 60
A51: Liberec | B51: 25 | C51: 23 | D51: 92 | E51: 17 | F51: 68 | G51: 19 | H51: 76
A52: Semily | B52: 13 | C52: 12 | D52: 92.30769231 | E52: 9 | F52: 69.23076923 | G52: 12 | H52: 92.30769231
A53: Královéhradecký kraj celkem | B53: 86 | C53: 66 | D53: 76.74418605 | E53: 40 | F53: 46.51162791 | G53: 62 | H53: 72.09302326
A54: Hradec Králové | B54: 28 | C54: 24 | D54: 85.71428571 | E54: 14 | F54: 50 | G54: 23 | H54: 82.14285714
A55: Jičín | B55: 11 | C55: 8 | D55: 72.72727273 | E55: 5 | F55: 45.45454545 | G55: 8 | H55: 72.72727273
A56: Náchod | B56: 12 | C56: 10 | D56: 83.33333333 | E56: 6 | F56: 50 | G56: 10 | H56: 83.33333333
A57: Rychnov n/K | B57: 13 | C57: 11 | D57: 84.61538462 | E57: 8 | F57: 61.53846154 | G57: 10 | H57: 76.92307692
A58: Trutnov | B58: 22 | C58: 13 | D58: 59.09090909 | E58: 7 | F58: 31.81818182 | G58: 11 | H58: 50
A59: Pardubický kraj celkem | B59: 80 | C59: 72 | D59: 90 | E59: 45 | F59: 56.25 | G59: 65 | H59: 81.25
A60: Chrudim | B60: 17 | C60: 16 | D60: 94.11764706 | E60: 7 | F60: 41.17647059 | G60: 13 | H60: 76.47058824
A61: Pardubice | B61: 25 | C61: 22 | D61: 88 | E61: 13 | F61: 52 | G61: 20 | H61: 80
A62: Svitavy | B62: 16 | C62: 15 | D62: 93.75 | E62: 10 | F62: 62.5 | G62: 15 | H62: 93.75
A63: Ústí n/Orl. | B63: 22 | C63: 19 | D63: 86.36363636 | E63: 15 | F63: 68.18181818 | G63: 17 | H63: 77.27272727
A64: Vysočina celkem | B64: 73 | C64: 61 | D64: 83.56164384 | E64: 36 | F64: 49.31506849 | G64: 51 | H64: 69.8630137
A65: Havlíčkův Brod | B65: 13 | C65: 11 | D65: 84.61538462 | E65: 9 | F65: 69.23076923 | G65: 8 | H65: 61.53846154
A66: Jihlava | B66: 14 | C66: 14 | D66: 100 | E66: 7 | F66: 50 | G66: 13 | H66: 92.85714286
A67: Pelhřimov | B67: 9 | C67: 9 | D67: 100 | E67: 5 | F67: 55.55555556 | G67: 8 | H67: 88.88888889
A68: Třebíč | B68: 17 | C68: 10 | D68: 58.82352941 | E68: 4 | F68: 23.52941176 | G68: 9 | H68: 52.94117647
A69: Žďár n/Sáz. | B69: 20 | C69: 17 | D69: 85 | E69: 11 | F69: 55 | G69: 13 | H69: 65
A70: Jihomoravský kraj celkem | B70: 178 | C70: 158 | D70: =C70/B70*100 -> 88.76404494 | E70: 94 | F70: =E70/B70*100 -> 52.80898876 | G70: 129 | H70: =G70/B70*100 -> 72.47191011
A71: Blansko | B71: 13 | C71: 13 | D71: 100 | E71: 8 | F71: 61.53846154 | G71: 10 | H71: 76.92307692
A72: Brno-město | B72: 68 | C72: 62 | D72: 91.17647059 | E72: 39 | F72: 57.35294118 | G72: 52 | H72: 76.47058824
A73: Brno-venkov | B73: 32 | C73: 27 | D73: 84.375 | E73: 19 | F73: 59.375 | G73: 21 | H73: 65.625
A74: Břeclav | B74: 16 | C74: 16 | D74: 100 | E74: 9 | F74: 56.25 | G74: 15 | H74: 93.75
A75: Hodonín | B75: 25 | C75: 17 | D75: 68 | E75: 11 | F75: 44 | G75: 14 | H75: 56
A76: Vyškov | B76: 13 | C76: 12 | D76: 92.30769231 | E76: 3 | F76: 23.07692308 | G76: 9 | H76: 69.23076923
A77: Znojmo | B77: 11 | C77: 11 | D77: 100 | E77: 5 | F77: 45.45454545 | G77: 8 | H77: 72.72727273
A78: Olomoucký kraj celkem | B78: 95 | C78: 82 | D78: 86.31578947 | E78: 50 | F78: 52.63157895 | G78: 64 | H78: 67.36842105
A79: Jeseník | B79: 7 | C79: 6 | D79: 85.71428571 | E79: 5 | F79: 71.42857143 | G79: 6 | H79: 85.71428571
A80: Olomouc | B80: 41 | C80: 35 | D80: 85.36585366 | E80: 20 | F80: 48.7804878 | G80: 30 | H80: 73.17073171
A81: Prostějov | B81: 19 | C81: 17 | D81: 89.47368421 | E81: 9 | F81: 47.36842105 | G81: 15 | H81: 78.94736842
A82: Přerov | B82: 16 | C82: 13 | D82: 81.25 | E82: 8 | F82: 50 | G82: 9 | H82: 56.25
A83: Šumperk | B83: 12 | C83: 11 | D83: 91.66666667 | E83: 8 | F83: 66.66666667 | G83: 4 | H83: 33.33333333
A84: Zlínský kraj celkem | B84: 85 | C84: 73 | D84: 85.88235294 | E84: 39 | F84: 45.88235294 | G84: 61 | H84: 71.76470588
A85: Kroměříž | B85: 17 | C85: 15 | D85: 88.23529412 | E85: 9 | F85: 52.94117647 | G85: 13 | H85: 76.47058824
A86: Uherské Hradiště | B86: 18 | C86: 16 | D86: 88.88888889 | E86: 7 | F86: 38.88888889 | G86: 13 | H86: 72.22222222
A87: Vsetín | B87: 21 | C87: 16 | D87: 76.19047619 | E87: 7 | F87: 33.33333333 | G87: 16 | H87: 76.19047619
A88: Zlín | B88: 29 | C88: 26 | D88: 89.65517241 | E88: 16 | F88: 55.17241379 | G88: 19 | H88: 65.51724138
A89: Moravskoslezský kraj celkem | B89: 162 | C89: 143 | D89: 88.27160494 | E89: 89 | F89: 54.9382716 | G89: 124 | H89: 76.54320988
A90: Bruntál | B90: 14 | C90: 10 | D90: 71.42857143 | E90: 8 | F90: 57.14285714 | G90: 8 | H90: 57.14285714
A91: Frýdek-Místek | B91: 28 | C91: 24 | D91: 85.71428571 | E91: 15 | F91: 53.57142857 | G91: 18 | H91: 64.28571429
A92: Karviná | B92: 34 | C92: 32 | D92: 94.11764706 | E92: 20 | F92: 58.82352941 | G92: 26 | H92: 76.47058824
A93: Nový Jičín | B93: 20 | C93: 16 | D93: 80 | E93: 9 | F93: 45 | G93: 14 | H93: 70
A94: Opava | B94: 21 | C94: 20 | D94: 95.23809524 | E94: 12 | F94: 57.14285714 | G94: 19 | H94: 90.47619048
A95: Ostrava-město | B95: 45 | C95: 41 | D95: 91.11111111 | E95: 25 | F95: 55.55555556 | G95: 39 | H95: 86.66666667
H96: Zdroj: Ústav zdravotnických informací a statistiky ČR a vlastní dopočty ČSÚ
A97: * % zdravotnických zařízení daného typu, která se zúčastnila šetření
A98: ** celkový počet ordinací, které odevzdaly výkaz

Sheet T19
A1: Tab. 19: Funkce elektronického systému v samostatných ordinacích zubního lékaře v okresech a krajích ČR; 2024
A2: zpět na seznam
B3: Celkový počet ordinací** | C3: Předepisování léků | E3: Upozornění na lékové interakce | G3: Objednání a obdržení výsledků laboratorních vyšetření
C4: počet | D4: %* | E4: počet | F4: %* | G4: počet | H4: %*
A5: Celkem ČR | B5: 4528 | C5: 3298 | D5: =C5/B5*100 -> 72.83568905 | E5: 858 | F5: =E5/B5*100 -> 18.94876325 | G5: 291 | H5: =G5/B5*100 -> 6.426678445
A6: Hl. m. Praha | B6: 840 | C6: 623 | D6: =C6/B6*100 -> 74.16666667 | E6: 175 | F6: =E6/B6*100 -> 20.83333333 | G6: 59 | H6: =G6/B6*100 -> 7.023809524
A7: Středočeský kraj celkem | B7: 445 | C7: 332 | D7: =C7/B7*100 -> 74.60674157 | E7: 93 | F7: =E7/B7*100 -> 20.8988764 | G7: 24 | H7: 5.393258427
A8: Benešov | B8: 32 | C8: 19 | D8: 59.375 | E8: 8 | F8: 25 | G8: 3 | H8: 9.375
A9: Beroun | B9: 33 | C9: 25 | D9: 75.75757576 | E9: 5 | F9: 15.15151515 | G9: 1 | H9: 3.03030303
A10: Kladno | B10: 58 | C10: 42 | D10: =C10/B10*100 -> 72.4137931 | E10: 14 | F10: 24.13793103 | G10: 4 | H10: 6.896551724
A11: Kolín | B11: 33 | C11: 27 | D11: 81.81818182 | E11: 9 | F11: 27.27272727 | G11: 3 | H11: 9.090909091
A12: Kutná Hora | B12: 26 | C12: 18 | D12: 69.23076923 | E12: 2 | F12: 7.692307692 | G12: 1 | H12: 3.846153846
A13: Mělník | B13: 30 | C13: 22 | D13: 73.33333333 | E13: 8 | F13: 26.66666667 | G13: 1 | H13: 3.333333333
A14: Mladá Boleslav | B14: 47 | C14: 42 | D14: 89.36170213 | E14: 16 | F14: 34.04255319 | G14: 3 | H14: 6.382978723
A15: Nymburk | B15: 35 | C15: 29 | D15: 82.85714286 | E15: 8 | F15: 22.85714286 | G15: 1 | H15: 2.857142857
A16: Praha-východ | B16: 43 | C16: 37 | D16: 86.04651163 | E16: 8 | F16: 18.60465116 | G16: 3 | H16: 6.976744186
A17: Praha-západ | B17: 40 | C17: 25 | D17: 62.5 | E17: 6 | F17: 15 | G17: 1 | H17: 2.5
A18: Příbram | B18: 48 | C18: 33 | D18: 68.75 | E18: 5 | F18: 10.41666667 | G18: 2 | H18: 4.166666667
A19: Rakovník | B19: 20 | C19: 13 | D19: 65 | E19: 4 | F19: 20 | G19: 1 | H19: 5
A20: Jihočeský kraj celkem | B20: 267 | C20: 192 | D20: 71.91011236 | E20: 52 | F20: 19.47565543 | G20: 16 | H20: 5.992509363
A21: České Budějovice | B21: 110 | C21: 83 | D21: 75.45454545 | E21: 20 | F21: 18.18181818 | G21: 9 | H21: 8.181818182
A22: Český Krumlov | B22: 21 | C22: 12 | D22: 57.14285714 | E22: 3 | F22: 14.28571429 | G22: 1 | H22: 4.761904762
A23: Jindřichův Hradec | B23: 40 | C23: 32 | D23: 80 | E23: 10 | F23: 25 | G23: 2 | H23: 5
A24: Písek | B24: 24 | C24: 17 | D24: 70.83333333 | E24: 5 | F24: 20.83333333 | G24: 1 | H24: 4.166666667
A25: Prachatice | B25: 11 | C25: 9 | D25: 81.81818182 | E25: 1 | F25: 9.090909091 | G25: 1 | H25: 9.090909091
A26: Strakonice | B26: 21 | C26: 14 | D26: 66.66666667 | E26: 5 | F26: 23.80952381 | G26: 1 | H26: 4.761904762
A27: Tábor | B27: 40 | C27: 25 | D27: 62.5 | E27: 8 | F27: 20 | G27: 1 | H27: 2.5
A28: Plzeňský kraj celkem | B28: 242 | C28: 184 | D28: 76.03305785 | E28: 47 | F28: 19.4214876 | G28: 23 | H28: 9.504132231
A29: Domažlice | B29: 18 | C29: 16 | D29: 88.88888889 | E29: 4 | F29: 22.22222222 | G29: 1 | H29: 5.555555556
A30: Klatovy | B30: 35 | C30: 25 | D30: 71.42857143 | E30: 9 | F30: 25.71428571 | G30: 1 | H30: 2.857142857
A31: Plzeň-město | B31: 116 | C31: 87 | D31: 75 | E31: 22 | F31: 18.96551724 | G31: 15 | H31: 12.93103448
A32: Plzeň-jih | B32: 21 | C32: 15 | D32: 71.42857143 | E32: 2 | F32: 9.523809524 | G32: 2 | H32: 9.523809524
A33: Plzeň-sever | B33: 19 | C33: 14 | D33: 73.68421053 | E33: 6 | F33: 31.57894737 | G33: 1 | H33: 5.263157895
A34: Rokycany | B34: 12 | C34: 10 | D34: 83.33333333 | E34: - | F34: - | G34: 1 | H34: 8.333333333
A35: Tachov | B35: 21 | C35: 17 | D35: 80.95238095 | E35: 4 | F35: 19.04761905 | G35: 2 | H35: 9.523809524
A36: Karlovarský kraj celkem | B36: 106 | C36: 65 | D36: 61.32075472 | E36: 17 | F36: 16.03773585 | G36: 4 | H36: 3.773584906
A37: Cheb | B37: 33 | C37: 24 | D37: 72.72727273 | E37: 6 | F37: 18.18181818 | G37: 2 | H37: 6.060606061
A38: Karlovy Vary | B38: 53 | C38: 31 | D38: 58.49056604 | E38: 10 | F38: 18.86792453 | G38: 1 | H38: 1.886792453
A39: Sokolov | B39: 20 | C39: 10 | D39: 50 | E39: 1 | F39: 5 | G39: 1 | H39: 5
A40: Ústecký kraj celkem | B40: 232 | C40: 156 | D40: 67.24137931 | E40: 41 | F40: 17.67241379 | G40: 14 | H40: 6.034482759
A41: Děčín | B41: 38 | C41: 21 | D41: 55.26315789 | E41: 5 | F41: 13.15789474 | G41: 2 | H41: 5.263157895
A42: Chomutov | B42: 39 | C42: 20 | D42: 51.28205128 | E42: 3 | F42: 7.692307692 | G42: 3 | H42: 7.692307692
A43: Litoměřice | B43: 35 | C43: 26 | D43: 74.28571429 | E43: 10 | F43: 28.57142857 | G43: 4 | H43: 11.42857143
A44: Louny | B44: 23 | C44: 17 | D44: 73.91304348 | E44: 4 | F44: 17.39130435 | G44: 1 | H44: 4.347826087
A45: Most | B45: 28 | C45: 22 | D45: 78.57142857 | E45: 5 | F45: 17.85714286 | G45: 1 | H45: 3.571428571
A46: Teplice | B46: 37 | C46: 26 | D46: 70.27027027 | E46: 6 | F46: 16.21621622 | G46: 1 | H46: 2.702702703
A47: Ústí n/L | B47: 32 | C47: 24 | D47: 75 | E47: 8 | F47: 25 | G47: 2 | H47: 6.25
A48: Liberecký kraj celkem | B48: 176 | C48: 125 | D48: 71.02272727 | E48: 37 | F48: 21.02272727 | G48: 11 | H48: =G48/B48*100 -> 6.25
A49: Česká Lípa | B49: 39 | C49: 23 | D49: 58.97435897 | E49: 11 | F49: 28.20512821 | G49: 2 | H49: 5.128205128
A50: Jablonec n/N | B50: 33 | C50: 28 | D50: 84.84848485 | E50: 11 | F50: 33.33333333 | G50: 1 | H50: 3.03030303
A51: Liberec | B51: 80 | C51: 59 | D51: 73.75 | E51: 13 | F51: 16.25 | G51: 6 | H51: 7.5
A52: Semily | B52: 24 | C52: 15 | D52: 62.5 | E52: 2 | F52: 8.333333333 | G52: 2 | H52: 8.333333333
A53: Královéhradecký kraj celkem | B53: 238 | C53: 173 | D53: 72.68907563 | E53: 45 | F53: 18.90756303 | G53: 13 | H53: 5.462184874
A54: Hradec Králové | B54: 91 | C54: 77 | D54: 84.61538462 | E54: 25 | F54: 27.47252747 | G54: 4 | H54: 4.395604396
A55: Jičín | B55: 27 | C55: 16 | D55: 59.25925926 | E55: 2 | F55: 7.407407407 | G55: 2 | H55: 7.407407407
A56: Náchod | B56: 45 | C56: 33 | D56: 73.33333333 | E56: 9 | F56: 20 | G56: 4 | H56: 8.888888889
A57: Rychnov n/K | B57: 23 | C57: 17 | D57: 73.91304348 | E57: 3 | F57: 13.04347826 | G57: 1 | H57: 4.347826087
A58: Trutnov | B58: 52 | C58: 30 | D58: 57.69230769 | E58: 6 | F58: 11.53846154 | G58: 2 | H58: 3.846153846
A59: Pardubický kraj celkem | B59: 190 | C59: 132 | D59: 69.47368421 | E59: 39 | F59: 20.52631579 | G59: 13 | H59: 6.842105263
A60: Chrudim | B60: 36 | C60: 26 | D60: 72.22222222 | E60: 10 | F60: 27.77777778 | G60: 3 | H60: 8.333333333
A61: Pardubice | B61: 73 | C61: 55 | D61: 75.34246575 | E61: 20 | F61: 27.39726027 | G61: 5 | H61: 6.849315068
A62: Svitavy | B62: 30 | C62: 18 | D62: 60 | E62: 3 | F62: 10 | G62: 2 | H62: 6.666666667
A63: Ústí n/Orl. | B63: 51 | C63: 33 | D63: 64.70588235 | E63: 6 | F63: 11.76470588 | G63: 3 | H63: 5.882352941
A64: Vysočina celkem | B64: 199 | C64: 128 | D64: 64.32160804 | E64: 43 | F64: 21.6080402 | G64: 13 | H64: 6.532663317
A65: Havlíčkův Brod | B65: 43 | C65: 26 | D65: 60.46511628 | E65: 9 | F65: 20.93023256 | G65: 2 | H65: 4.651162791
A66: Jihlava | B66: 49 | C66: 36 | D66: 73.46938776 | E66: 17 | F66: 34.69387755 | G66: 7 | H66: 14.28571429
A67: Pelhřimov | B67: 26 | C67: 20 | D67: 76.92307692 | E67: 4 | F67: 15.38461538 | G67: 1 | H67: 3.846153846
A68: Třebíč | B68: 31 | C68: 20 | D68: 64.51612903 | E68: 3 | F68: 9.677419355 | G68: 2 | H68: 6.451612903
A69: Žďár n/Sáz. | B69: 50 | C69: 26 | D69: 52 | E69: 10 | F69: 20 | G69: 1 | H69: 2
A70: Jihomoravský kraj celkem | B70: 541 | C70: 366 | D70: 67.65249538 | E70: 78 | F70: =E70/B70*100 -> 14.41774492 | G70: 35 | H70: =G70/B70*100 -> 6.469500924
A71: Blansko | B71: 45 | C71: 27 | D71: =C71/B71*100 -> 60 | E71: 6 | F71: 13.33333333 | G71: - | H71: -
A72: Brno-město | B72: 259 | C72: 178 | D72: 68.72586873 | E72: 44 | F72: 16.98841699 | G72: 20 | H72: 7.722007722
A73: Brno-venkov | B73: 56 | C73: 38 | D73: 67.85714286 | E73: 5 | F73: 8.928571429 | G73: - | H73: -
A74: Břeclav | B74: 33 | C74: 29 | D74: 87.87878788 | E74: 5 | F74: 15.15151515 | G74: 2 | H74: 6.060606061
A75: Hodonín | B75: 70 | C75: 40 | D75: 57.14285714 | E75: 9 | F75: 12.85714286 | G75: 8 | H75: 11.42857143
A76: Vyškov | B76: 29 | C76: 23 | D76: 79.31034483 | E76: 2 | F76: 6.896551724 | G76: 2 | H76: 6.896551724
A77: Znojmo | B77: 49 | C77: 31 | D77: 63.26530612 | E77: 7 | F77: 14.28571429 | G77: 3 | H77: 6.12244898
A78: Olomoucký kraj celkem | B78: 293 | C78: 222 | D78: 75.76791809 | E78: 36 | F78: 12.28668942 | G78: 11 | H78: 3.754266212
A79: Jeseník | B79: 12 | C79: 11 | D79: 91.66666667 | E79: 1 | F79: 8.333333333 | G79: - | H79: -
A80: Olomouc | B80: 131 | C80: 101 | D80: 77.09923664 | E80: 16 | F80: 12.21374046 | G80: 3 | H80: 2.290076336
A81: Prostějov | B81: 49 | C81: 37 | D81: 75.51020408 | E81: 4 | F81: 8.163265306 | G81: 4 | H81: 8.163265306
A82: Přerov | B82: 48 | C82: 30 | D82: 62.5 | E82: 3 | F82: 6.25 | G82: - | H82: -
A83: Šumperk | B83: 53 | C83: 43 | D83: 81.13207547 | E83: 12 | F83: 22.64150943 | G83: 4 | H83: 7.547169811
A84: Zlínský kraj celkem | B84: 269 | C84: 212 | D84: 78.81040892 | E84: 48 | F84: 17.84386617 | G84: 20 | H84: 7.434944238
A85: Kroměříž | B85: 42 | C85: 33 | D85: 78.57142857 | E85: 8 | F85: 19.04761905 | G85: 3 | H85: 7.142857143
A86: Uherské Hradiště | B86: 67 | C86: 53 | D86: 79.10447761 | E86: 8 | F86: 11.94029851 | G86: 7 | H86: 10.44776119
A87: Vsetín | B87: 62 | C87: 47 | D87: 75.80645161 | E87: 14 | F87: 22.58064516 | G87: 6 | H87: 9.677419355
A88: Zlín | B88: 98 | C88: 79 | D88: 80.6122449 | E88: 18 | F88: 18.36734694 | G88: 4 | H88: 4.081632653
A89: Moravskoslezský kraj celkem | B89: 490 | C89: 388 | D89: 79.18367347 | E89: 107 | F89: 21.83673469 | G89: 35 | H89: 7.142857143
A90: Bruntál | B90: 23 | C90: 21 | D90: 91.30434783 | E90: 6 | F90: 26.08695652 | G90: 3 | H90: 13.04347826
A91: Frýdek-Místek | B91: 93 | C91: 75 | D91: 80.64516129 | E91: 24 | F91: 25.80645161 | G91: 4 | H91: 4.301075269
A92: Karviná | B92: 87 | C92: 68 | D92: 78.16091954 | E92: 23 | F92: 26.43678161 | G92: 8 | H92: 9.195402299
A93: Nový Jičín | B93: 50 | C93: 40 | D93: 80 | E93: 5 | F93: 10 | G93: 1 | H93: 2
A94: Opava | B94: 69 | C94: 51 | D94: 73.91304348 | E94: 3 | F94: 4.347826087 | G94: 1 | H94: 1.449275362
A95: Ostrava-město | B95: 168 | C95: 133 | D95: 79.16666667 | E95: 46 | F95: 27.38095238 | G95: 18 | H95: 10.71428571
H96: Zdroj: Ústav zdravotnických informací a statistiky ČR a vlastní dopočty ČSÚ
A97: * % zdravotnických zařízení daného typu, která se zúčastnila šetření
A98: ** celkový počet ordinací, které odevzdaly výkaz

Sheet T20
A1: Tab. 20: Funkce elektronického systému v samostatných ordinacích gynekologa v okresech a krajích ČR; 2024
A2: zpět na seznam
B3: Celkový počet ordinací** | C3: Předepisování léků | E3: Upozornění na lékové interakce | G3: Objednání a obdržení výsledků laboratorních vyšetření
C4: počet | D4: %* | E4: počet | F4: %* | G4: počet | H4: %*
A5: Celkem ČR | B5: 1121 | C5: 949 | D5: =C5/B5*100 -> 84.65655665 | E5: 497 | F5: =E5/B5*100 -> 44.33541481 | G5: 796 | H5: =G5/B5*100 -> 71.00802855
A6: Hl. m. Praha | B6: 152 | C6: 129 | D6: =C6/B6*100 -> 84.86842105 | E6: 63 | F6: =E6/B6*100 -> 41.44736842 | G6: 114 | H6: =G6/B6*100 -> 75
A7: Středočeský kraj celkem | B7: 112 | C7: 94 | D7: =C7/B7*100 -> 83.92857143 | E7: 52 | F7: =E7/B7*100 -> 46.42857143 | G7: 76 | H7: 67.85714286
A8: Benešov | B8: 9 | C8: 7 | D8: 77.77777778 | E8: 3 | F8: 33.33333333 | G8: 3 | H8: 33.33333333
A9: Beroun | B9: 8 | C9: 6 | D9: 75 | E9: 4 | F9: 50 | G9: 5 | H9: 62.5
A10: Kladno | B10: 19 | C10: 14 | D10: =C10/B10*100 -> 73.68421053 | E10: 7 | F10: 36.84210526 | G10: 14 | H10: 73.68421053
A11: Kolín | B11: 10 | C11: 9 | D11: 90 | E11: 5 | F11: 50 | G11: 8 | H11: 80
A12: Kutná Hora | B12: 6 | C12: 6 | D12: 100 | E12: 4 | F12: 66.66666667 | G12: 5 | H12: 83.33333333
A13: Mělník | B13: 10 | C13: 10 | D13: 100 | E13: 6 | F13: 60 | G13: 8 | H13: 80
A14: Mladá Boleslav | B14: 7 | C14: 6 | D14: 85.71428571 | E14: 5 | F14: 71.42857143 | G14: 5 | H14: 71.42857143
A15: Nymburk | B15: 10 | C15: 8 | D15: 80 | E15: 5 | F15: 50 | G15: 6 | H15: 60
A16: Praha-východ | B16: 10 | C16: 10 | D16: 100 | E16: 5 | F16: 50 | G16: 8 | H16: 80
A17: Praha-západ | B17: 7 | C17: 6 | D17: 85.71428571 | E17: 1 | F17: 14.28571429 | G17: 5 | H17: 71.42857143
A18: Příbram | B18: 11 | C18: 9 | D18: 81.81818182 | E18: 5 | F18: 45.45454545 | G18: 6 | H18: 54.54545455
A19: Rakovník | B19: 5 | C19: 3 | D19: 60 | E19: 2 | F19: 40 | G19: 3 | H19: 60
A20: Jihočeský kraj celkem | B20: 73 | C20: 62 | D20: 84.93150685 | E20: 28 | F20: 38.35616438 | G20: 48 | H20: 65.75342466
A21: České Budějovice | B21: 20 | C21: 15 | D21: 75 | E21: 7 | F21: 35 | G21: 12 | H21: 60
A22: Český Krumlov | B22: 7 | C22: 7 | D22: 100 | E22: 4 | F22: 57.14285714 | G22: 4 | H22: 57.14285714
A23: Jindřichův Hradec | B23: 11 | C23: 9 | D23: 81.81818182 | E23: 4 | F23: 36.36363636 | G23: 7 | H23: 63.63636364
A24: Písek | B24: 8 | C24: 8 | D24: 100 | E24: 2 | F24: 25 | G24: 6 | H24: 75
A25: Prachatice | B25: 6 | C25: 4 | D25: 66.66666667 | E25: 1 | F25: 16.66666667 | G25: 3 | H25: 50
A26: Strakonice | B26: 9 | C26: 8 | D26: 88.88888889 | E26: 4 | F26: 44.44444444 | G26: 7 | H26: 77.77777778
A27: Tábor | B27: 12 | C27: 11 | D27: 91.66666667 | E27: 6 | F27: 50 | G27: 9 | H27: 75
A28: Plzeňský kraj celkem | B28: 61 | C28: 52 | D28: 85.24590164 | E28: 26 | F28: 42.62295082 | G28: 48 | H28: 78.68852459
A29: Domažlice | B29: 6 | C29: 5 | D29: 83.33333333 | E29: 3 | F29: 50 | G29: 4 | H29: 66.66666667
A30: Klatovy | B30: 9 | C30: 8 | D30: 88.88888889 | E30: 5 | F30: 55.55555556 | G30: 7 | H30: 77.77777778
A31: Plzeň-město | B31: 27 | C31: 22 | D31: 81.48148148 | E31: 7 | F31: 25.92592593 | G31: 20 | H31: 74.07407407
A32: Plzeň-jih | B32: 4 | C32: 3 | D32: 75 | E32: 2 | F32: 50 | G32: 3 | H32: 75
A33: Plzeň-sever | B33: 5 | C33: 5 | D33: 100 | E33: 2 | F33: 40 | G33: 5 | H33: 100
A34: Rokycany | B34: 4 | C34: 3 | D34: 75 | E34: 1 | F34: 25 | G34: 3 | H34: 75
A35: Tachov | B35: 6 | C35: 6 | D35: 100 | E35: 6 | F35: 100 | G35: 6 | H35: 100
A36: Karlovarský kraj celkem | B36: 35 | C36: 26 | D36: 74.28571429 | E36: 12 | F36: 34.28571429 | G36: 23 | H36: 65.71428571
A37: Cheb | B37: 11 | C37: 7 | D37: 63.63636364 | E37: 2 | F37: 18.18181818 | G37: 5 | H37: 45.45454545
A38: Karlovy Vary | B38: 14 | C38: 11 | D38: 78.57142857 | E38: 8 | F38: 57.14285714 | G38: 10 | H38: 71.42857143
A39: Sokolov | B39: 10 | C39: 8 | D39: 80 | E39: 2 | F39: 20 | G39: 8 | H39: 80
A40: Ústecký kraj celkem | B40: 101 | C40: 86 | D40: 85.14851485 | E40: 36 | F40: 35.64356436 | G40: 63 | H40: 62.37623762
A41: Děčín | B41: 15 | C41: 11 | D41: 73.33333333 | E41: 5 | F41: 33.33333333 | G41: 8 | H41: 53.33333333
A42: Chomutov | B42: 16 | C42: 15 | D42: 93.75 | E42: 8 | F42: 50 | G42: 14 | H42: 87.5
A43: Litoměřice | B43: 14 | C43: 13 | D43: 92.85714286 | E43: 8 | F43: 57.14285714 | G43: 9 | H43: 64.28571429
A44: Louny | B44: 7 | C44: 5 | D44: 71.42857143 | E44: 1 | F44: 14.28571429 | G44: 3 | H44: 42.85714286
A45: Most | B45: 14 | C45: 12 | D45: 85.71428571 | E45: 5 | F45: 35.71428571 | G45: 10 | H45: 71.42857143
A46: Teplice | B46: 12 | C46: 12 | D46: 100 | E46: 3 | F46: 25 | G46: 9 | H46: 75
A47: Ústí n/L | B47: 23 | C47: 18 | D47: 78.26086957 | E47: 6 | F47: 26.08695652 | G47: 10 | H47: 43.47826087
A48: Liberecký kraj celkem | B48: 43 | C48: 39 | D48: 90.69767442 | E48: 17 | F48: 39.53488372 | G48: 29 | H48: =G48/B48*100 -> 67.44186047
A49: Česká Lípa | B49: 9 | C49: 6 | D49: 66.66666667 | E49: 1 | F49: 11.11111111 | G49: 4 | H49: 44.44444444
A50: Jablonec n/N | B50: 10 | C50: 10 | D50: 100 | E50: 5 | F50: 50 | G50: 10 | H50: 100
A51: Liberec | B51: 17 | C51: 16 | D51: 94.11764706 | E51: 6 | F51: 35.29411765 | G51: 10 | H51: 58.82352941
A52: Semily | B52: 7 | C52: 7 | D52: 100 | E52: 5 | F52: 71.42857143 | G52: 5 | H52: 71.42857143
A53: Královéhradecký kraj celkem | B53: 56 | C53: 50 | D53: 89.28571429 | E53: 27 | F53: 48.21428571 | G53: 45 | H53: 80.35714286
A54: Hradec Králové | B54: 16 | C54: 16 | D54: 100 | E54: 10 | F54: 62.5 | G54: 16 | H54: 100
A55: Jičín | B55: 9 | C55: 6 | D55: 66.66666667 | E55: 4 | F55: 44.44444444 | G55: 4 | H55: 44.44444444
A56: Náchod | B56: 11 | C56: 11 | D56: 100 | E56: 7 | F56: 63.63636364 | G56: 11 | H56: 100
A57: Rychnov n/K | B57: 10 | C57: 8 | D57: 80 | E57: 2 | F57: 20 | G57: 8 | H57: 80
A58: Trutnov | B58: 10 | C58: 9 | D58: 90 | E58: 4 | F58: 40 | G58: 6 | H58: 60
A59: Pardubický kraj celkem | B59: 49 | C59: 45 | D59: 91.83673469 | E59: 23 | F59: 46.93877551 | G59: 33 | H59: 67.34693878
A60: Chrudim | B60: 12 | C60: 11 | D60: 91.66666667 | E60: 5 | F60: 41.66666667 | G60: 6 | H60: 50
A61: Pardubice | B61: 16 | C61: 15 | D61: 93.75 | E61: 9 | F61: 56.25 | G61: 12 | H61: 75
A62: Svitavy | B62: 9 | C62: 8 | D62: 88.88888889 | E62: 3 | F62: 33.33333333 | G62: 5 | H62: 55.55555556
A63: Ústí n/Orl. | B63: 12 | C63: 11 | D63: 91.66666667 | E63: 6 | F63: 50 | G63: 10 | H63: 83.33333333
A64: Vysočina celkem | B64: 52 | C64: 45 | D64: 86.53846154 | E64: 27 | F64: 51.92307692 | G64: 39 | H64: 75
A65: Havlíčkův Brod | B65: 8 | C65: 7 | D65: 87.5 | E65: 3 | F65: 37.5 | G65: 7 | H65: 87.5
A66: Jihlava | B66: 10 | C66: 7 | D66: 70 | E66: 5 | F66: 50 | G66: 7 | H66: 70
A67: Pelhřimov | B67: 9 | C67: 8 | D67: 88.88888889 | E67: 7 | F67: 77.77777778 | G67: 5 | H67: 55.55555556
A68: Třebíč | B68: 14 | C68: 12 | D68: 85.71428571 | E68: 7 | F68: 50 | G68: 10 | H68: 71.42857143
A69: Žďár n/Sáz. | B69: 11 | C69: 11 | D69: 100 | E69: 5 | F69: 45.45454545 | G69: 10 | H69: 90.90909091
A70: Jihomoravský kraj celkem | B70: 125 | C70: 100 | D70: 80 | E70: 62 | F70: =E70/B70*100 -> 49.6 | G70: 84 | H70: =G70/B70*100 -> 67.2
A71: Blansko | B71: 8 | C71: 6 | D71: =C71/B71*100 -> 75 | E71: 4 | F71: 50 | G71: 4 | H71: 50
A72: Brno-město | B72: 59 | C72: 42 | D72: 71.18644068 | E72: 21 | F72: 35.59322034 | G72: 34 | H72: 57.62711864
A73: Brno-venkov | B73: 16 | C73: 15 | D73: 93.75 | E73: 8 | F73: 50 | G73: 13 | H73: 81.25
A74: Břeclav | B74: 11 | C74: 9 | D74: 81.81818182 | E74: 6 | F74: 54.54545455 | G74: 8 | H74: 72.72727273
A75: Hodonín | B75: 14 | C75: 13 | D75: 92.85714286 | E75: 11 | F75: 78.57142857 | G75: 10 | H75: 71.42857143
A76: Vyškov | B76: 7 | C76: 7 | D76: 100 | E76: 5 | F76: 71.42857143 | G76: 7 | H76: 100
A77: Znojmo | B77: 10 | C77: 8 | D77: 80 | E77: 7 | F77: 70 | G77: 8 | H77: 80
A78: Olomoucký kraj celkem | B78: 61 | C78: 58 | D78: 95.08196721 | E78: 31 | F78: 50.81967213 | G78: 51 | H78: 83.60655738
A79: Jeseník | B79: 4 | C79: 4 | D79: 100 | E79: 4 | F79: 100 | G79: 4 | H79: 100
A80: Olomouc | B80: 23 | C80: 21 | D80: 91.30434783 | E80: 11 | F80: 47.82608696 | G80: 19 | H80: 82.60869565
A81: Prostějov | B81: 10 | C81: 10 | D81: 100 | E81: 6 | F81: 60 | G81: 9 | H81: 90
A82: Přerov | B82: 15 | C82: 14 | D82: 93.33333333 | E82: 10 | F82: 66.66666667 | G82: 12 | H82: 80
A83: Šumperk | B83: 9 | C83: 9 | D83: 100 | E83: - | F83: - | G83: 7 | H83: 77.77777778
A84: Zlínský kraj celkem | B84: 63 | C84: 51 | D84: 80.95238095 | E84: 32 | F84: 50.79365079 | G84: 42 | H84: 66.66666667
A85: Kroměříž | B85: 10 | C85: 9 | D85: 90 | E85: 6 | F85: 60 | G85: 7 | H85: 70
A86: Uherské Hradiště | B86: 16 | C86: 14 | D86: 87.5 | E86: 6 | F86: 37.5 | G86: 13 | H86: 81.25
A87: Vsetín | B87: 18 | C87: 16 | D87: 88.88888889 | E87: 14 | F87: 77.77777778 | G87: 13 | H87: 72.22222222
A88: Zlín | B88: 19 | C88: 12 | D88: 63.15789474 | E88: 6 | F88: 31.57894737 | G88: 9 | H88: 47.36842105
A89: Moravskoslezský kraj celkem | B89: 138 | C89: 112 | D89: 81.15942029 | E89: 61 | F89: 44.20289855 | G89: 101 | H89: 73.1884058
A90: Bruntál | B90: 12 | C90: 7 | D90: 58.33333333 | E90: 4 | F90: 33.33333333 | G90: 4 | H90: 33.33333333
A91: Frýdek-Místek | B91: 20 | C91: 17 | D91: 85 | E91: 11 | F91: 55 | G91: 17 | H91: 85
A92: Karviná | B92: 27 | C92: 22 | D92: 81.48148148 | E92: 10 | F92: 37.03703704 | G92: 19 | H92: 70.37037037
A93: Nový Jičín | B93: 18 | C93: 14 | D93: 77.77777778 | E93: 11 | F93: 61.11111111 | G93: 13 | H93: 72.22222222
A94: Opava | B94: 18 | C94: 12 | D94: 66.66666667 | E94: 3 | F94: 16.66666667 | G94: 10 | H94: 55.55555556
A95: Ostrava-město | B95: 43 | C95: 40 | D95: 93.02325581 | E95: 22 | F95: 51.1627907 | G95: 38 | H95: 88.37209302
H96: Zdroj: Ústav zdravotnických informací a statistiky ČR a vlastní dopočty ČSÚ
A97: * % zdravotnických zařízení daného typu, která se zúčastnila šetření
A98: ** celkový počet ordinací, které odevzdaly výkaz

Sheet T21
A1: Tab. 21: Funkce elektronického systému v samostatných ordinacích lékaře specialisty v okresech a krajích ČR; 2024
A2: zpět na seznam
B3: Celkový počet ordinací** | C3: Předepisování léků | E3: Upozornění na lékové interakce | G3: Objednání a obdržení výsledků laboratorních vyšetření
C4: počet | D4: %* | E4: počet | F4: %* | G4: počet | H4: %*
A5: Celkem ČR | B5: 6813 | C5: 4806 | D5: =C5/B5*100 -> 70.54161162 | E5: 2459 | F5: =E5/B5*100 -> 36.09276383 | G5: 2604 | H5: =G5/B5*100 -> 38.221048
A6: Hl. m. Praha | B6: 1336 | C6: 813 | D6: =C6/B6*100 -> 60.85329341 | E6: 427 | F6: =E6/B6*100 -> 31.96107784 | G6: 442 | H6: =G6/B6*100 -> 33.08383234
A7: Středočeský kraj celkem | B7: 584 | C7: 398 | D7: =C7/B7*100 -> 68.15068493 | E7: 217 | F7: =E7/B7*100 -> 37.15753425 | G7: 205 | H7: 35.10273973
A8: Benešov | B8: 42 | C8: 24 | D8: 57.14285714 | E8: 9 | F8: 21.42857143 | G8: 12 | H8: 28.57142857
A9: Beroun | B9: 48 | C9: 22 | D9: 45.83333333 | E9: 19 | F9: 39.58333333 | G9: 18 | H9: 37.5
A10: Kladno | B10: 79 | C10: 60 | D10: =C10/B10*100 -> 75.94936709 | E10: 30 | F10: 37.97468354 | G10: 23 | H10: 29.11392405
A11: Kolín | B11: 34 | C11: 21 | D11: 61.76470588 | E11: 14 | F11: 41.17647059 | G11: 13 | H11: 38.23529412
A12: Kutná Hora | B12: 27 | C12: 16 | D12: 59.25925926 | E12: 8 | F12: 29.62962963 | G12: 8 | H12: 29.62962963
A13: Mělník | B13: 51 | C13: 35 | D13: 68.62745098 | E13: 20 | F13: 39.21568627 | G13: 16 | H13: 31.37254902
A14: Mladá Boleslav | B14: 53 | C14: 41 | D14: 77.35849057 | E14: 24 | F14: 45.28301887 | G14: 25 | H14: 47.16981132
A15: Nymburk | B15: 56 | C15: 36 | D15: 64.28571429 | E15: 18 | F15: 32.14285714 | G15: 17 | H15: 30.35714286
A16: Praha-východ | B16: 54 | C16: 42 | D16: 77.77777778 | E16: 22 | F16: 40.74074074 | G16: 22 | H16: 40.74074074
A17: Praha-západ | B17: 64 | C17: 44 | D17: 68.75 | E17: 23 | F17: 35.9375 | G17: 26 | H17: 40.625
A18: Příbram | B18: 54 | C18: 37 | D18: 68.51851852 | E18: 20 | F18: 37.03703704 | G18: 16 | H18: 29.62962963
A19: Rakovník | B19: 22 | C19: 20 | D19: 90.90909091 | E19: 10 | F19: 45.45454545 | G19: 9 | H19: 40.90909091
A20: Jihočeský kraj celkem | B20: 359 | C20: 262 | D20: 72.98050139 | E20: 130 | F20: 36.21169916 | G20: 137 | H20: 38.16155989
A21: České Budějovice | B21: 144 | C21: 102 | D21: 70.83333333 | E21: 42 | F21: 29.16666667 | G21: 53 | H21: 36.80555556
A22: Český Krumlov | B22: 25 | C22: 16 | D22: 64 | E22: 10 | F22: 40 | G22: 11 | H22: 44
A23: Jindřichův Hradec | B23: 49 | C23: 37 | D23: 75.51020408 | E23: 22 | F23: 44.89795918 | G23: 18 | H23: 36.73469388
A24: Písek | B24: 32 | C24: 27 | D24: 84.375 | E24: 16 | F24: 50 | G24: 13 | H24: 40.625
A25: Prachatice | B25: 24 | C25: 15 | D25: 62.5 | E25: 8 | F25: 33.33333333 | G25: 8 | H25: 33.33333333
A26: Strakonice | B26: 30 | C26: 24 | D26: 80 | E26: 13 | F26: 43.33333333 | G26: 9 | H26: 30
A27: Tábor | B27: 55 | C27: 41 | D27: 74.54545455 | E27: 19 | F27: 34.54545455 | G27: 25 | H27: 45.45454545
A28: Plzeňský kraj celkem | B28: 365 | C28: 261 | D28: 71.50684932 | E28: 130 | F28: 35.61643836 | G28: 151 | H28: 41.36986301
A29: Domažlice | B29: 25 | C29: 20 | D29: 80 | E29: 11 | F29: 44 | G29: 11 | H29: 44
A30: Klatovy | B30: 38 | C30: 31 | D30: 81.57894737 | E30: 20 | F30: 52.63157895 | G30: 20 | H30: 52.63157895
A31: Plzeň-město | B31: 195 | C31: 136 | D31: 69.74358974 | E31: 68 | F31: 34.87179487 | G31: 79 | H31: 40.51282051
A32: Plzeň-jih | B32: 27 | C32: 17 | D32: 62.96296296 | E32: 6 | F32: 22.22222222 | G32: 13 | H32: 48.14814815
A33: Plzeň-sever | B33: 21 | C33: 17 | D33: 80.95238095 | E33: 8 | F33: 38.0952381 | G33: 8 | H33: 38.0952381
A34: Rokycany | B34: 24 | C34: 20 | D34: 83.33333333 | E34: 9 | F34: 37.5 | G34: 9 | H34: 37.5
A35: Tachov | B35: 35 | C35: 20 | D35: 57.14285714 | E35: 8 | F35: 22.85714286 | G35: 11 | H35: 31.42857143
A36: Karlovarský kraj celkem | B36: 239 | C36: 148 | D36: 61.92468619 | E36: 74 | F36: 30.9623431 | G36: 93 | H36: 38.91213389
A37: Cheb | B37: 76 | C37: 49 | D37: 64.47368421 | E37: 20 | F37: 26.31578947 | G37: 24 | H37: 31.57894737
A38: Karlovy Vary | B38: 116 | C38: 65 | D38: 56.03448276 | E38: 38 | F38: 32.75862069 | G38: 47 | H38: 40.51724138
A39: Sokolov | B39: 47 | C39: 34 | D39: 72.34042553 | E39: 16 | F39: 34.04255319 | G39: 22 | H39: 46.80851064
A40: Ústecký kraj celkem | B40: 436 | C40: 332 | D40: 76.14678899 | E40: 161 | F40: 36.9266055 | G40: 170 | H40: 38.99082569
A41: Děčín | B41: 61 | C41: 48 | D41: 78.68852459 | E41: 24 | F41: 39.3442623 | G41: 24 | H41: 39.3442623
A42: Chomutov | B42: 58 | C42: 45 | D42: 77.5862069 | E42: 23 | F42: 39.65517241 | G42: 21 | H42: 36.20689655
A43: Litoměřice | B43: 76 | C43: 62 | D43: 81.57894737 | E43: 26 | F43: 34.21052632 | G43: 29 | H43: 38.15789474
A44: Louny | B44: 50 | C44: 39 | D44: 78 | E44: 21 | F44: 42 | G44: 20 | H44: 40
A45: Most | B45: 44 | C45: 35 | D45: 79.54545455 | E45: 14 | F45: 31.81818182 | G45: 19 | H45: 43.18181818
A46: Teplice | B46: 54 | C46: 38 | D46: 70.37037037 | E46: 17 | F46: 31.48148148 | G46: 21 | H46: 38.88888889
A47: Ústí n/L | B47: 93 | C47: 65 | D47: 69.89247312 | E47: 36 | F47: 38.70967742 | G47: 36 | H47: 38.70967742
A48: Liberecký kraj celkem | B48: 239 | C48: 160 | D48: 66.94560669 | E48: 81 | F48: 33.89121339 | G48: 69 | H48: =G48/B48*100 -> 28.87029289
A49: Česká Lípa | B49: 60 | C49: 42 | D49: 70 | E49: 22 | F49: 36.66666667 | G49: 16 | H49: 26.66666667
A50: Jablonec n/N | B50: 49 | C50: 31 | D50: 63.26530612 | E50: 13 | F50: 26.53061224 | G50: 16 | H50: 32.65306122
A51: Liberec | B51: 80 | C51: 58 | D51: 72.5 | E51: 28 | F51: 35 | G51: 25 | H51: 31.25
A52: Semily | B52: 50 | C52: 29 | D52: 58 | E52: 18 | F52: 36 | G52: 12 | H52: 24
A53: Královéhradecký kraj celkem | B53: 318 | C53: 229 | D53: 72.01257862 | E53: 117 | F53: 36.79245283 | G53: 138 | H53: 43.39622642
A54: Hradec Králové | B54: 117 | C54: 76 | D54: 64.95726496 | E54: 36 | F54: 30.76923077 | G54: 45 | H54: 38.46153846
A55: Jičín | B55: 46 | C55: 37 | D55: 80.43478261 | E55: 19 | F55: 41.30434783 | G55: 21 | H55: 45.65217391
A56: Náchod | B56: 45 | C56: 37 | D56: 82.22222222 | E56: 19 | F56: 42.22222222 | G56: 26 | H56: 57.77777778
A57: Rychnov n/K | B57: 45 | C57: 33 | D57: 73.33333333 | E57: 13 | F57: 28.88888889 | G57: 23 | H57: 51.11111111
A58: Trutnov | B58: 65 | C58: 46 | D58: 70.76923077 | E58: 30 | F58: 46.15384615 | G58: 23 | H58: 35.38461538
A59: Pardubický kraj celkem | B59: 319 | C59: 238 | D59: 74.60815047 | E59: 133 | F59: 41.69278997 | G59: 131 | H59: 41.06583072
A60: Chrudim | B60: 56 | C60: 47 | D60: 83.92857143 | E60: 23 | F60: 41.07142857 | G60: 26 | H60: 46.42857143
A61: Pardubice | B61: 129 | C61: 94 | D61: 72.86821705 | E61: 61 | F61: 47.28682171 | G61: 55 | H61: 42.63565891
A62: Svitavy | B62: 61 | C62: 46 | D62: 75.40983607 | E62: 19 | F62: 31.14754098 | G62: 21 | H62: 34.42622951
A63: Ústí n/Orl. | B63: 73 | C63: 51 | D63: 69.8630137 | E63: 30 | F63: 41.09589041 | G63: 29 | H63: 39.7260274
A64: Vysočina celkem | B64: 299 | C64: 225 | D64: 75.25083612 | E64: 106 | F64: 35.45150502 | G64: 107 | H64: 35.78595318
A65: Havlíčkův Brod | B65: 58 | C65: 42 | D65: 72.4137931 | E65: 21 | F65: 36.20689655 | G65: 18 | H65: 31.03448276
A66: Jihlava | B66: 74 | C66: 56 | D66: 75.67567568 | E66: 32 | F66: 43.24324324 | G66: 28 | H66: 37.83783784
A67: Pelhřimov | B67: 37 | C67: 33 | D67: 89.18918919 | E67: 11 | F67: 29.72972973 | G67: 7 | H67: 18.91891892
A68: Třebíč | B68: 59 | C68: 46 | D68: 77.96610169 | E68: 17 | F68: 28.81355932 | G68: 28 | H68: 47.45762712
A69: Žďár n/Sáz. | B69: 71 | C69: 48 | D69: 67.6056338 | E69: 25 | F69: 35.21126761 | G69: 26 | H69: 36.61971831
A70: Jihomoravský kraj celkem | B70: 797 | C70: 599 | D70: 75.15683814 | E70: 310 | F70: =E70/B70*100 -> 38.89585947 | G70: 351 | H70: =G70/B70*100 -> 44.04015056
A71: Blansko | B71: 44 | C71: 34 | D71: =C71/B71*100 -> 77.27272727 | E71: 21 | F71: 47.72727273 | G71: 17 | H71: 38.63636364
A72: Brno-město | B72: 458 | C72: 329 | D72: 71.83406114 | E72: 163 | F72: 35.58951965 | G72: 193 | H72: 42.13973799
A73: Brno-venkov | B73: 74 | C73: 59 | D73: 79.72972973 | E73: 29 | F73: 39.18918919 | G73: 29 | H73: 39.18918919
A74: Břeclav | B74: 55 | C74: 45 | D74: 81.81818182 | E74: 25 | F74: 45.45454545 | G74: 30 | H74: 54.54545455
A75: Hodonín | B75: 73 | C75: 57 | D75: 78.08219178 | E75: 35 | F75: 47.94520548 | G75: 30 | H75: 41.09589041
A76: Vyškov | B76: 42 | C76: 35 | D76: 83.33333333 | E76: 18 | F76: 42.85714286 | G76: 19 | H76: 45.23809524
A77: Znojmo | B77: 51 | C77: 40 | D77: 78.43137255 | E77: 19 | F77: 37.25490196 | G77: 33 | H77: 64.70588235
A78: Olomoucký kraj celkem | B78: 420 | C78: 308 | D78: 73.33333333 | E78: 157 | F78: 37.38095238 | G78: 154 | H78: 36.66666667
A79: Jeseník | B79: 17 | C79: 12 | D79: 70.58823529 | E79: 6 | F79: 35.29411765 | G79: 8 | H79: 47.05882353
A80: Olomouc | B80: 186 | C80: 141 | D80: 75.80645161 | E80: 72 | F80: 38.70967742 | G80: 67 | H80: 36.02150538
A81: Prostějov | B81: 79 | C81: 58 | D81: 73.41772152 | E81: 25 | F81: 31.64556962 | G81: 29 | H81: 36.70886076
A82: Přerov | B82: 73 | C82: 48 | D82: 65.75342466 | E82: 22 | F82: 30.1369863 | G82: 24 | H82: 32.87671233
A83: Šumperk | B83: 65 | C83: 49 | D83: 75.38461538 | E83: 32 | F83: 49.23076923 | G83: 26 | H83: 40
A84: Zlínský kraj celkem | B84: 362 | C84: 269 | D84: 74.30939227 | E84: 127 | F84: 35.08287293 | G84: 156 | H84: 43.09392265
A85: Kroměříž | B85: 72 | C85: 48 | D85: 66.66666667 | E85: 23 | F85: 31.94444444 | G85: 23 | H85: 31.94444444
A86: Uherské Hradiště | B86: 75 | C86: 60 | D86: 80 | E86: 27 | F86: 36 | G86: 36 | H86: 48
A87: Vsetín | B87: 90 | C87: 72 | D87: 80 | E87: 42 | F87: 46.66666667 | G87: 41 | H87: 45.55555556
A88: Zlín | B88: 125 | C88: 89 | D88: 71.2 | E88: 35 | F88: 28 | G88: 56 | H88: 44.8
A89: Moravskoslezský kraj celkem | B89: 740 | C89: 564 | D89: 76.21621622 | E89: 289 | F89: 39.05405405 | G89: 300 | H89: 40.54054054
A90: Bruntál | B90: 50 | C90: 39 | D90: 78 | E90: 19 | F90: 38 | G90: 17 | H90: 34
A91: Frýdek-Místek | B91: 119 | C91: 96 | D91: 80.67226891 | E91: 46 | F91: 38.65546218 | G91: 49 | H91: 41.17647059
A92: Karviná | B92: 133 | C92: 97 | D92: 72.93233083 | E92: 48 | F92: 36.09022556 | G92: 51 | H92: 38.34586466
A93: Nový Jičín | B93: 68 | C93: 56 | D93: 82.35294118 | E93: 36 | F93: 52.94117647 | G93: 29 | H93: 42.64705882
A94: Opava | B94: 96 | C94: 75 | D94: 78.125 | E94: 36 | F94: 37.5 | G94: 41 | H94: 42.70833333
A95: Ostrava-město | B95: 274 | C95: 201 | D95: 73.35766423 | E95: 104 | F95: 37.95620438 | G95: 113 | H95: 41.24087591
H96: Zdroj: Ústav zdravotnických informací a statistiky ČR a vlastní dopočty ČSÚ
A97: * % zdravotnických zařízení daného typu, která se zúčastnila šetření
A98: ** celkový počet ordinací, které odevzdaly výkaz

Sheet T22
A1: Tab. 22: Vedení zdravotnické dokumentace samostatnými ordinacemi lékaře
A2: zpět na seznam | D2: %*
B3: 2016 | C3: 2020 | D3: 2024
A4: V PLNĚ LISTINNÉ FORMĚ
A5: Celkem | B5: 31.35066791 | C5: 18.27423309 | D5: 15.42841195
A6: Praktický lékař pro dospělé | B6: 25.85401819 | C6: 11.90344062 | D6: 11.17632049
A7: Praktický lékař pro děti a dorost | B7: 35.23171413 | C7: 18.63313991 | D7: 14.9934811
A8: Zubní lékař | B8: 41.11021722 | C8: 25.75330587 | D8: 20.05300353
A9: Gynekolog | B9: 25.13812155 | C9: 12.95546559 | D9: 12.39964318
A10: Lékař specialista | B10: 27.14809501 | C10: 17.12753477 | D10: 15.39703508
A11: V LISTINNÉ A ELEKTRONICKÉ FORMĚ (KOMBINACE)
A12: Celkem | B12: 59.78780716 | C12: 69.14429229 | D12: 67.75327937
A13: Praktický lékař pro dospělé | B13: 68.83755222 | C13: 83.01886792 | D13: 82.13830059
A14: Praktický lékař pro děti a dorost | B14: 61.80904523 | C14: 79.11025145 | D14: 77.18383312
A15: Zubní lékař | B15: 46.50040225 | C15: 55.47366139 | D15: 54.21819788
A16: Gynekolog | B16: 67.86372007 | C16: 77.32793522 | D16: 77.4308653
A17: Lékař specialista | B17: 62.47409533 | C17: 67.3872968 | D17: 64.75854983
A18: V PLNĚ ELEKTRONICKÉ FORMĚ
A19: Celkem | B19: 7.855532956 | C19: 9.645398553 | D19: 13.64778119
A20: Praktický lékař pro dospělé | B20: 4.792332268 | C20: 3.773584906 | D20: 5.307476397
A21: Praktický lékař pro děti a dorost | B21: 2.06588498 | C21: 1.353965184 | D21: 6.453715776
A22: Zubní lékař | B22: 11.56476267 | C22: 16.80034685 | D22: 24.2270318
A23: Gynekolog | B23: 6.445672192 | C23: 6.680161943 | D23: 7.493309545
A24: Lékař specialista | B24: 8.799617408 | C24: 10.30668678 | D24: 14.04667547
D25: Zdroj: Ústav zdravotnických informací a statistiky ČR a vlastní dopočty ČSÚ
A26: * % zdravotnických zařízení daného typu, která se zúčastnila šetření

Sheet T23
A1: Tab. 23: Vedení zdravotnické dokumentace samostatnými ordinacemi lékaře v okresech a krajích ČR
A2: zpět na seznam
B3: Celkový počet ordinací** | E3: V plně listinné formě | H3: V listinné a elektronické formě (kombinace) | K3: V plně elektronické formě
B4: 2016 | C4: 2020 | D4: 2024 | E4: 2016 | F4: 2020 | G4: 2024 | H4: 2016 | I4: 2020 | J4: 2024 | K4: 2016 | L4: 2020 | M4: 2024
E5: %* | F5: %* | G5: %* | H5: %* | I5: %* | J5: %* | K5: %* | L5: %* | M5: %*
A6: Celkem ČR | B6: 18191 | C6: 16723 | D6: 17915 | E6: 31.35066791 | F6: 18.27423309 | G6: 15.42841195 | H6: 59.78780716 | I6: 69.14429229 | J6: 67.75327937 | K6: 7.855532956 | L6: 9.645398553 | M6: 13.64778119
A7: Hl. m. Praha | B7: 2853 | C7: 2559 | D7: 3020 | E7: 33.85909569 | F7: 21.0629152 | G7: 16.82119205 | H7: 56.74728356 | I7: 64.90816725 | J7: 63.44370861 | K7: 8.06168945 | L7: 9.45681907 | M7: 14.83443709
A8: Středočeský kraj celkem | B8: 1745 | C8: 1542 | D8: 1786 | E8: 31.69054441 | F8: 19.84435798 | G8: 15.78947368 | H8: 60.11461318 | I8: 68.02853437 | J8: 68.36506159 | K8: 6.934097421 | L8: 9.468223087 | M8: 12.65397536
A9: Benešov | B9: 138 | C9: 113 | D9: 135 | E9: 33.33333333 | F9: 24.77876106 | G9: 22.22222222 | H9: 60.14492754 | I9: 69.91150442 | J9: 67.40740741 | K9: 5.797101449 | L9: 3.539823009 | M9: 6.666666667
A10: Beroun | B10: 129 | C10: 116 | D10: 129 | E10: 27.13178295 | F10: 27.5862069 | G10: 20.93023256 | H10: 67.44186047 | I10: 61.20689655 | J10: 62.79069767 | K10: 4.651162791 | L10: 8.620689655 | M10: 11.62790698
A11: Kladno | B11: 238 | C11: 191 | D11: 231 | E11: 28.57142857 | F11: 23.03664921 | G11: 15.15151515 | H11: 60.50420168 | I11: 63.87434555 | J11: 65.36796537 | K11: 9.243697479 | L11: 12.04188482 | M11: 16.01731602
A12: Kolín | B12: 127 | C12: 102 | D12: 128 | E12: 37.00787402 | F12: 20.58823529 | G12: 17.96875 | H12: 60.62992126 | I12: 72.54901961 | J12: 70.3125 | K12: 1.57480315 | L12: 5.882352941 | M12: 9.375
A13: Kutná Hora | B13: 116 | C13: 108 | D13: 102 | E13: 33.62068966 | F13: 21.2962963 | G13: 16.66666667 | H13: 62.06896552 | I13: 65.74074074 | J13: 67.64705882 | K13: 2.586206897 | L13: 8.333333333 | M13: 13.7254902
A14: Mělník | B14: 137 | C14: 119 | D14: 143 | E14: 35.76642336 | F14: 12.60504202 | G14: 15.38461538 | H14: 52.55474453 | I14: 72.26890756 | J14: 65.03496503 | K14: 10.2189781 | L14: 13.44537815 | M14: 15.38461538
A15: Mladá Boleslav | B15: 163 | C15: 147 | D15: 174 | E15: 24.5398773 | F15: 14.28571429 | G15: 10.91954023 | H15: 61.34969325 | I15: 70.74829932 | J15: 74.71264368 | K15: 14.11042945 | L15: 12.92517007 | M15: 13.79310345
A16: Nymburk | B16: 139 | C16: 126 | D16: 149 | E16: 35.25179856 | F16: 23.01587302 | G16: 20.80536913 | H16: 55.39568345 | I16: 64.28571429 | J16: 67.11409396 | K16: 6.474820144 | L16: 7.142857143 | M16: 10.06711409
A17: Praha-východ | B17: 174 | C17: 152 | D17: 178 | E17: 30.45977011 | F17: 15.13157895 | G17: 10.6741573 | H17: 62.64367816 | I17: 75 | J17: 75.28089888 | K17: 5.747126437 | L17: 9.210526316 | M17: 12.92134831
A18: Praha-západ | B18: 142 | C18: 154 | D18: 177 | E18: 26.76056338 | F18: 16.88311688 | G18: 15.25423729 | H18: 67.6056338 | I18: 66.88311688 | J18: 64.40677966 | K18: 4.929577465 | L18: 11.03896104 | M18: 12.42937853
A19: Příbram | B19: 161 | C19: 146 | D19: 166 | E19: 35.40372671 | F19: 23.28767123 | G19: 12.65060241 | H19: 53.41614907 | I19: 63.69863014 | J19: 66.86746988 | K19: 9.316770186 | L19: 10.2739726 | M19: 16.26506024
A20: Rakovník | B20: 81 | C20: 65 | D20: 74 | E20: 39.50617284 | F20: 15.38461538 | G20: 14.86486486 | H20: 56.79012346 | I20: 78.46153846 | J20: 77.02702703 | K20: 2.469135802 | L20: 6.153846154 | M20: 8.108108108
A21: Jihočeský kraj celkem | B21: 1059 | C21: 954 | D21: 1030 | E21: 27.95089707 | F21: 18.23899371 | G21: 15.04854369 | H21: 63.45609065 | I21: 68.86792453 | J21: 68.25242718 | K21: 8.026440038 | L21: 10.06289308 | M21: 14.46601942
A22: České Budějovice | B22: 352 | C22: 304 | D22: 359 | E22: 28.40909091 | F22: 17.10526316 | G22: 17.82729805 | H22: 64.20454545 | I22: 69.73684211 | J22: 65.1810585 | K22: 6.25 | L22: 10.85526316 | M22: 15.04178273
A23: Český Krumlov | B23: 87 | C23: 75 | D23: 79 | E23: 34.48275862 | F23: 22.66666667 | G23: 21.51898734 | H23: 59.77011494 | I23: 68 | J23: 63.29113924 | K23: 4.597701149 | L23: 5.333333333 | M23: 12.65822785
A24: Jindřichův Hradec | B24: 160 | C24: 135 | D24: 152 | E24: 21.875 | F24: 13.33333333 | G24: 12.5 | H24: 68.75 | I24: 67.40740741 | J24: 71.05263158 | K24: 8.75 | L24: 11.85185185 | M24: 14.47368421
A25: Písek | B25: 104 | C25: 96 | D25: 105 | E25: 24.03846154 | F25: 18.75 | G25: 7.619047619 | H25: 69.23076923 | I25: 76.04166667 | J25: 77.14285714 | K25: 6.730769231 | L25: 4.166666667 | M25: 13.33333333
A26: Prachatice | B26: 77 | C26: 76 | D26: 73 | E26: 29.87012987 | F26: 18.42105263 | G26: 13.69863014 | H26: 64.93506494 | I26: 73.68421053 | J26: 69.8630137 | K26: 5.194805195 | L26: 7.894736842 | M26: 13.69863014
A27: Strakonice | B27: 108 | C27: 98 | D27: 97 | E27: 29.62962963 | F27: 17.34693878 | G27: 15.46391753 | H27: 61.11111111 | I27: 69.3877551 | J27: 70.10309278 | K27: 9.259259259 | L27: 11.2244898 | M27: 11.34020619
A28: Tábor | B28: 171 | C28: 170 | D28: 165 | E28: 29.8245614 | F28: 22.35294118 | G28: 13.33333333 | H28: 56.14035088 | I28: 62.35294118 | J28: 67.27272727 | K28: 14.03508772 | L28: 12.94117647 | M28: 16.96969697
A29: Plzeňský kraj celkem | B29: 976 | C29: 878 | D29: 965 | E29: 31.65983607 | F29: 17.99544419 | G29: 14.40414508 | H29: 60.04098361 | I29: 70.38724374 | J29: 70.46632124 | K29: 7.274590164 | L29: 8.769931663 | M29: 12.12435233
A30: Domažlice | B30: 86 | C30: 68 | D30: 72 | E30: 22.09302326 | F30: 8.823529412 | G30: 6.944444444 | H30: 66.27906977 | I30: 80.88235294 | J30: 87.5 | K30: 11.62790698 | L30: 7.352941176 | M30: 2.777777778
A31: Klatovy | B31: 133 | C31: 114 | D31: 127 | E31: 30.07518797 | F31: 19.29824561 | G31: 14.96062992 | H31: 55.63909774 | I31: 64.03508772 | J31: 66.14173228 | K31: 13.53383459 | L31: 14.9122807 | M31: 15.7480315
A32: Plzeň-město | B32: 428 | C32: 399 | D32: 447 | E32: 34.57943925 | F32: 16.54135338 | G32: 13.64653244 | H32: 58.64485981 | I32: 71.17794486 | J32: 68.90380313 | K32: 5.607476636 | L32: 8.771929825 | M32: 13.64653244
A33: Plzeň-jih | B33: 76 | C33: 72 | D33: 86 | E33: 35.52631579 | F33: 22.22222222 | G33: 19.76744186 | H33: 61.84210526 | I33: 69.44444444 | J33: 67.44186047 | K33: 2.631578947 | L33: 5.555555556 | M33: 9.302325581
A34: Plzeň-sever | B34: 97 | C34: 84 | D34: 83 | E34: 31.95876289 | F34: 22.61904762 | G34: 15.6626506 | H34: 60.82474227 | I34: 69.04761905 | J34: 71.08433735 | K34: 7.216494845 | L34: 5.952380952 | M34: 13.25301205
A35: Rokycany | B35: 70 | C35: 66 | D35: 65 | E35: 31.42857143 | F35: 21.21212121 | G35: 13.84615385 | H35: 65.71428571 | I35: 71.21212121 | J35: 80 | K35: 1.428571429 | L35: 6.060606061 | M35: 6.153846154
A36: Tachov | B36: 86 | C36: 75 | D36: 85 | E36: 25.58139535 | F36: 20 | G36: 17.64705882 | H36: 60.46511628 | I36: 68 | J36: 65.88235294 | K36: 10.46511628 | L36: 9.333333333 | M36: 12.94117647
A37: Karlovarský kraj celkem | B37: 534 | C37: 445 | D37: 522 | E37: 34.45692884 | F37: 21.57303371 | G37: 18.3908046 | H37: 57.86516854 | I37: 64.26966292 | J37: 64.75095785 | K37: 6.554307116 | L37: 8.764044944 | M37: 10.72796935
A38: Cheb | B38: 168 | C38: 140 | D38: 165 | E38: 30.95238095 | F38: 22.14285714 | G38: 14.54545455 | H38: 63.69047619 | I38: 62.14285714 | J38: 66.66666667 | K38: 4.761904762 | L38: 11.42857143 | M38: 12.72727273
A39: Karlovy Vary | B39: 238 | C39: 202 | D39: 243 | E39: 34.45378151 | F39: 20.2970297 | G39: 19.34156379 | H39: 53.78151261 | I39: 63.36633663 | J39: 62.1399177 | K39: 9.663865546 | L39: 9.405940594 | M39: 10.69958848
A40: Sokolov | B40: 128 | C40: 103 | D40: 114 | E40: 39.0625 | F40: 23.30097087 | G40: 21.92982456 | H40: 57.8125 | I40: 68.93203883 | J40: 67.54385965 | K40: 3.125 | L40: 3.883495146 | M40: 7.894736842
A41: Ústecký kraj celkem | B41: 1267 | C41: 1110 | D41: 1145 | E41: 30.54459353 | F41: 17.74774775 | G41: 17.55458515 | H41: 60.53670087 | I41: 69.54954955 | J41: 66.55021834 | K41: 7.655880032 | L41: 10 | M41: 12.48908297
A42: Děčín | B42: 212 | C42: 172 | D42: 177 | E42: 30.66037736 | F42: 24.41860465 | G42: 24.29378531 | H42: 61.79245283 | I42: 66.86046512 | J42: 62.14689266 | K42: 6.132075472 | L42: 7.558139535 | M42: 9.604519774
A43: Chomutov | B43: 180 | C43: 156 | D43: 169 | E43: 32.77777778 | F43: 22.43589744 | G43: 19.52662722 | H43: 61.66666667 | I43: 68.58974359 | J43: 68.04733728 | K43: 3.888888889 | L43: 8.333333333 | M43: 11.24260355
A44: Litoměřice | B44: 190 | C44: 156 | D44: 186 | E44: 31.57894737 | F44: 13.46153846 | G44: 17.74193548 | H44: 55.78947368 | I44: 73.07692308 | J44: 65.05376344 | K44: 12.63157895 | L44: 12.17948718 | M44: 14.51612903
A45: Louny | B45: 140 | C45: 121 | D45: 118 | E45: 29.28571429 | F45: 17.3553719 | G45: 19.49152542 | H45: 60 | I45: 69.4214876 | J45: 63.55932203 | K45: 10 | L45: 11.57024793 | M45: 15.25423729
A46: Most | B46: 169 | C46: 148 | D46: 139 | E46: 24.26035503 | F46: 14.86486486 | G46: 12.94964029 | H46: 65.0887574 | I46: 68.91891892 | J46: 71.22302158 | K46: 8.875739645 | L46: 9.459459459 | M46: 13.66906475
A47: Teplice | B47: 155 | C47: 145 | D47: 154 | E47: 32.90322581 | F47: 13.79310345 | G47: 16.23376623 | H47: 60.64516129 | I47: 73.79310345 | J47: 65.58441558 | K47: 5.806451613 | L47: 8.965517241 | M47: 14.28571429
A48: Ústí n/L | B48: 221 | C48: 212 | D48: 202 | E48: 31.67420814 | F48: 16.98113208 | G48: 12.87128713 | H48: 59.2760181 | I48: 67.45283019 | J48: 69.8019802 | K48: 6.787330317 | L48: 11.79245283 | M48: 10.3960396
A49: Liberecký kraj celkem | B49: 698 | C49: 598 | D49: 695 | E49: 28.65329513 | F49: 17.05685619 | G49: 12.6618705 | H49: 62.46418338 | I49: 69.56521739 | J49: 66.18705036 | K49: 8.022922636 | L49: 10.86956522 | M49: 16.54676259
A50: Česká Lípa | B50: 153 | C50: 136 | D50: 160 | E50: 30.06535948 | F50: 21.32352941 | G50: 15 | H50: 63.39869281 | I50: 67.64705882 | J50: 63.75 | K50: 5.22875817 | L50: 8.823529412 | M50: 15
A51: Jablonec n/N | B51: 141 | C51: 125 | D51: 143 | E51: 31.91489362 | F51: 20 | G51: 13.28671329 | H51: 55.31914894 | I51: 61.6 | J51: 65.03496503 | K51: 12.76595745 | L51: 16 | M51: 18.88111888
A52: Liberec | B52: 278 | C52: 232 | D52: 266 | E52: 21.22302158 | F52: 15.51724138 | G52: 9.022556391 | H52: 68.70503597 | I52: 72.4137931 | J52: 71.42857143 | K52: 8.633093525 | L52: 9.482758621 | M52: 15.41353383
A53: Semily | B53: 126 | C53: 105 | D53: 126 | E53: 39.68253968 | F53: 11.42857143 | G53: 16.66666667 | H53: 55.55555556 | I53: 75.23809524 | J53: 59.52380952 | K53: 4.761904762 | L53: 10.47619048 | M53: 18.25396825
A54: Královéhradecký kraj celkem | B54: 959 | C54: 898 | D54: 906 | E54: 31.28258603 | F54: 17.48329621 | G54: 16.22516556 | H54: 61.52241919 | I54: 71.9376392 | J54: 68.54304636 | K54: 6.882168926 | L54: 9.576837416 | M54: 13.24503311
A55: Hradec Králové | B55: 323 | C55: 305 | D55: 314 | E55: 28.79256966 | F55: 10.49180328 | G55: 14.33121019 | H55: 61.60990712 | I55: 75.73770492 | J55: 70.06369427 | K55: 9.287925697 | L55: 12.13114754 | M55: 14.01273885
A56: Jičín | B56: 140 | C56: 127 | D56: 125 | E56: 36.42857143 | F56: 24.40944882 | G56: 17.6 | H56: 58.57142857 | I56: 62.20472441 | J56: 63.2 | K56: 5 | L56: 12.5984252 | M56: 17.6
A57: Náchod | B57: 170 | C57: 161 | D57: 154 | E57: 29.41176471 | F57: 18.01242236 | G57: 12.98701299 | H57: 64.70588235 | I57: 75.1552795 | J57: 73.37662338 | K57: 5.294117647 | L57: 6.832298137 | M57: 11.68831169
A58: Rychnov n/K | B58: 132 | C58: 120 | D58: 122 | E58: 31.81818182 | F58: 21.66666667 | G58: 17.21311475 | H58: 62.12121212 | I58: 72.5 | J58: 68.85245902 | K58: 6.060606061 | L58: 5.833333333 | M58: 12.29508197
A59: Trutnov | B59: 194 | C59: 185 | D59: 191 | E59: 32.98969072 | F59: 21.08108108 | G59: 20.41884817 | H59: 60.30927835 | I59: 69.18918919 | J59: 65.44502618 | K59: 6.18556701 | L59: 8.108108108 | M59: 10.9947644
A60: Pardubický kraj celkem | B60: 842 | C60: 778 | D60: 824 | E60: 28.97862233 | F60: 16.58097686 | G60: 13.22815534 | H60: 60.09501188 | I60: 72.10796915 | J60: 71.3592233 | K60: 9.976247031 | L60: 9.254498715 | M60: 12.01456311
A61: Chrudim | B61: 172 | C61: 160 | D61: 158 | E61: 26.74418605 | F61: 15.625 | G61: 11.39240506 | H61: 62.20930233 | I61: 73.125 | J61: 72.15189873 | K61: 9.88372093 | L61: 10 | M61: 15.18987342
A62: Pardubice | B62: 290 | C62: 272 | D62: 304 | E62: 26.55172414 | F62: 13.60294118 | G62: 12.17105263 | H62: 60.34482759 | I62: 72.42647059 | J62: 71.71052632 | K62: 11.03448276 | L62: 12.5 | M62: 11.51315789
A63: Svitavy | B63: 163 | C63: 148 | D63: 150 | E63: 31.28834356 | F63: 18.91891892 | G63: 14 | H63: 60.73619632 | I63: 73.64864865 | J63: 74.66666667 | K63: 7.975460123 | L63: 4.054054054 | M63: 8.666666667
A64: Ústí n/Orl. | B64: 217 | C64: 198 | D64: 212 | E64: 32.25806452 | F64: 19.6969697 | G64: 15.56603774 | H64: 57.60368664 | I64: 69.6969697 | J64: 67.9245283 | K64: 10.13824885 | L64: 8.080808081 | M64: 12.73584906
A65: Vysočina celkem | B65: 822 | C65: 794 | D65: 814 | E65: 33.81995134 | F65: 17.25440806 | G65: 16.33906634 | H65: 59.6107056 | I65: 71.28463476 | J65: 68.3046683 | K65: 5.474452555 | L65: 8.690176322 | M65: 12.77641278
A66: Havlíčkův Brod | B66: 160 | C66: 154 | D66: 155 | E66: 33.125 | F66: 16.88311688 | G66: 17.41935484 | H66: 61.875 | I66: 69.48051948 | J66: 66.4516129 | K66: 3.75 | L66: 9.74025974 | M66: 14.19354839
A67: Jihlava | B67: 197 | C67: 189 | D67: 193 | E67: 27.41116751 | F67: 13.75661376 | G67: 12.95336788 | H67: 62.43654822 | I67: 72.48677249 | J67: 70.46632124 | K67: 7.614213198 | L67: 8.465608466 | M67: 13.47150259
A68: Pelhřimov | B68: 114 | C68: 108 | D68: 111 | E68: 26.31578947 | F68: 8.333333333 | G68: 6.306306306 | H68: 65.78947368 | I68: 80.55555556 | J68: 72.97297297 | K68: 7.01754386 | L68: 8.333333333 | M68: 18.01801802
A69: Třebíč | B69: 172 | C69: 155 | D69: 160 | E69: 45.34883721 | F69: 21.29032258 | G69: 20.625 | H69: 48.25581395 | I69: 68.38709677 | J69: 68.75 | K69: 6.395348837 | L69: 10.32258065 | M69: 10
A70: Žďár n/Sáz. | B70: 179 | C70: 188 | D70: 195 | E70: 35.19553073 | F70: 22.87234043 | G70: 21.02564103 | H70: 61.45251397 | I70: 68.61702128 | J70: 64.61538462 | K70: 2.793296089 | L70: 6.914893617 | M70: 10.25641026
A71: Jihomoravský kraj celkem | B71: 2189 | C71: 2086 | D71: 2121 | E71: 34.26222019 | F71: 19.36720997 | G71: 16.64309288 | H71: 57.37779808 | I71: 68.69606903 | J71: 68.26968411 | K71: 7.08085884 | L71: 8.964525407 | M71: 13.62564828
A72: Blansko | B72: 165 | C72: 148 | D72: 155 | E72: 41.21212121 | F72: 16.89189189 | G72: 19.35483871 | H72: 50.3030303 | I72: 74.32432432 | J72: 68.38709677 | K72: 7.272727273 | L72: 7.432432432 | M72: 10.96774194
A73: Brno-město | B73: 1056 | C73: 1022 | D73: 1035 | E73: 33.14393939 | F73: 19.76516634 | G73: 16.52173913 | H73: 58.90151515 | I73: 67.80821918 | J73: 68.11594203 | K73: 6.534090909 | L73: 8.414872798 | M73: 13.52657005
A74: Brno-venkov | B74: 261 | C74: 240 | D74: 247 | E74: 40.61302682 | F74: 18.33333333 | G74: 16.19433198 | H74: 51.34099617 | I74: 72.91666667 | J74: 70.85020243 | K74: 6.513409962 | L74: 7.5 | M74: 12.55060729
A75: Břeclav | B75: 155 | C75: 158 | D75: 158 | E75: 26.4516129 | F75: 16.4556962 | G75: 10.75949367 | H75: 65.16129032 | I75: 68.98734177 | J75: 70.88607595 | K75: 5.806451613 | L75: 11.39240506 | M75: 15.82278481
A76: Hodonín | B76: 254 | C76: 236 | D76: 242 | E76: 29.52755906 | F76: 22.45762712 | G76: 21.48760331 | H76: 62.99212598 | I76: 67.37288136 | J76: 64.87603306 | K76: 6.299212598 | L76: 8.474576271 | M76: 11.98347107
A77: Vyškov | B77: 131 | C77: 118 | D77: 124 | E77: 33.58778626 | F77: 11.86440678 | G77: 12.90322581 | H77: 54.19847328 | I77: 70.33898305 | J77: 67.74193548 | K77: 12.21374046 | L77: 16.10169492 | M77: 19.35483871
A78: Znojmo | B78: 167 | C78: 164 | D78: 160 | E78: 39.52095808 | F78: 24.3902439 | G78: 16.875 | H78: 50.89820359 | I78: 63.41463415 | J78: 68.125 | K78: 9.580838323 | L78: 9.146341463 | M78: 14.375
A79: Olomoucký kraj celkem | B79: 1140 | C79: 1128 | D79: 1119 | E79: 29.38596491 | F79: 17.46453901 | G79: 13.49419124 | H79: 61.49122807 | I79: 72.16312057 | J79: 72.92225201 | K79: 8.333333333 | L79: 7.624113475 | M79: 10.63449508
A80: Jeseník | B80: 55 | C80: 53 | D80: 51 | E80: 18.18181818 | F80: 11.32075472 | G80: 9.803921569 | H80: 61.81818182 | I80: 67.9245283 | J80: 78.43137255 | K80: 18.18181818 | L80: 16.98113208 | M80: 9.803921569
A81: Olomouc | B81: 458 | C81: 470 | D81: 478 | E81: 28.60262009 | F81: 15.95744681 | G81: 11.50627615 | H81: 62.66375546 | I81: 73.40425532 | J81: 73.64016736 | K81: 7.860262009 | L81: 7.659574468 | M81: 11.71548117
A82: Prostějov | B82: 200 | C82: 199 | D82: 200 | E82: 34.5 | F82: 17.5879397 | G82: 12.5 | H82: 58 | I82: 71.85929648 | J82: 73 | K82: 6.5 | L82: 7.035175879 | M82: 10
A83: Přerov | B83: 217 | C83: 211 | D83: 200 | E83: 31.79723502 | F83: 22.74881517 | G83: 21 | H83: 61.29032258 | I83: 69.66824645 | J83: 69.5 | K83: 5.99078341 | L83: 4.739336493 | M83: 6.5
A84: Šumperk | B84: 210 | C84: 195 | D84: 190 | E84: 26.66666667 | F84: 16.92307692 | G84: 12.63157895 | H84: 62.38095238 | I84: 73.33333333 | J84: 73.15789474 | K84: 10.95238095 | L84: 8.717948718 | M84: 13.15789474
A85: Zlínský kraj celkem | B85: 1056 | C85: 1007 | D85: 1006 | E85: 29.26136364 | F85: 17.17974181 | G85: 14.91053678 | H85: 59.46969697 | I85: 68.61966236 | J85: 65.20874751 | K85: 9.848484848 | L85: 11.61866931 | M85: 17.19681909
A86: Kroměříž | B86: 196 | C86: 179 | D86: 182 | E86: 31.63265306 | F86: 22.90502793 | G86: 20.87912088 | H86: 59.18367347 | I86: 65.36312849 | J86: 63.18681319 | K86: 7.653061224 | L86: 8.938547486 | M86: 14.28571429
A87: Uherské Hradiště | B87: 252 | C87: 233 | D87: 240 | E87: 28.57142857 | F87: 12.44635193 | G87: 12.08333333 | H87: 60.71428571 | I87: 72.96137339 | J87: 70 | K87: 10.31746032 | L87: 10.30042918 | M87: 15.83333333
A88: Vsetín | B88: 259 | C88: 245 | D88: 242 | E88: 31.66023166 | F88: 17.55102041 | G88: 14.46280992 | H88: 57.52895753 | I88: 69.3877551 | J88: 65.2892562 | K88: 9.652509653 | L88: 11.42857143 | M88: 16.52892562
A89: Zlín | B89: 349 | C89: 350 | D89: 342 | E89: 26.64756447 | F89: 17.14285714 | G89: 14.03508772 | H89: 60.17191977 | I89: 66.85714286 | J89: 62.86549708 | K89: 10.88825215 | L89: 14 | M89: 20.1754386
A90: Moravskoslezský kraj celkem | B90: 2051 | C90: 1946 | D90: 1962 | E90: 28.8639688 | F90: 14.74820144 | G90: 12.8440367 | H90: 61.77474403 | I90: 71.58273381 | J90: 69.97961264 | K90: 9.019990249 | L90: 11.30524152 | M90: 14.62793068
A91: Bruntál | B91: 149 | C91: 137 | D91: 130 | E91: 30.87248322 | F91: 16.78832117 | G91: 16.15384615 | H91: 62.41610738 | I91: 70.80291971 | J91: 73.84615385 | K91: 5.369127517 | L91: 10.2189781 | M91: 7.692307692
A92: Frýdek-Místek | B92: 336 | C92: 320 | D92: 335 | E92: 27.97619048 | F92: 17.1875 | G92: 13.13432836 | H92: 60.41666667 | I92: 68.4375 | J92: 66.26865672 | K92: 10.71428571 | L92: 12.8125 | M92: 18.50746269
A93: Karviná | B93: 391 | C93: 382 | D93: 367 | E93: 23.27365729 | F93: 14.13612565 | G93: 10.35422343 | H93: 68.54219949 | I93: 74.34554974 | J93: 76.56675749 | K93: 8.184143223 | L93: 9.162303665 | M93: 10.08174387
A94: Nový Jičín | B94: 232 | C94: 227 | D94: 213 | E94: 27.15517241 | F94: 13.21585903 | G94: 13.14553991 | H94: 65.94827586 | I94: 77.53303965 | J94: 70.89201878 | K94: 6.896551724 | L94: 8.370044053 | M94: 14.55399061
A95: Opava | B95: 293 | C95: 251 | D95: 269 | E95: 30.71672355 | F95: 15.13944223 | G95: 15.24163569 | H95: 61.4334471 | I95: 68.92430279 | J95: 65.42750929 | K95: 7.508532423 | L95: 14.34262948 | M95: 18.21561338
A96: Ostrava-město | B96: 650 | C96: 629 | D96: 648 | E96: 32 | F96: 13.83147854 | G96: 12.34567901 | H96: 56.92307692 | I96: 70.58823529 | J96: 68.98148148 | K96: 10.92307692 | L96: 11.92368839 | M96: 15.12345679
M97: Zdroj: Ústav zdravotnických informací a statistiky ČR a vlastní dopočty ČSÚ
A98: * % zdravotnických zařízení daného typu, která se zúčastnila šetření
A99: ** celkový počet ordinací, které odevzdaly výkaz

Sheet T24
A1: Tab. 24: Vedení zdravotnické dokumentace samostatnými ordinacemi PL pro dospělé v okresech a krajích ČR; 2024
A2: zpět na seznam
B3: Celkový počet ordinací** | C3: V plně listinné formě | E3: V listinné a elektronické formě (kombinace) | G3: V plně elektronické formě
C4: počet | D4: %* | E4: počet | F4: %* | G4: počet | H4: %*
A5: Celkem ČR | B5: 3919 | C5: 438 | D5: =C5/B5*100 -> 11.17632049 | E5: 3219 | F5: =E5/B5*100 -> 82.13830059 | G5: 208 | H5: =G5/B5*100 -> 5.307476397
A6: Hl. m. Praha | B6: 508 | C6: 57 | D6: =C6/B6*100 -> 11.22047244 | E6: 427 | F6: =E6/B6*100 -> 84.05511811 | G6: 14 | H6: =G6/B6*100 -> 2.755905512
A7: Středočeský kraj celkem | B7: 448 | C7: 57 | D7: 12.72321429 | E7: 364 | F7: =E7/B7*100 -> 81.25 | G7: 21 | H7: 4.6875
A8: Benešov | B8: 37 | C8: 5 | D8: 13.51351351 | E8: 32 | F8: 86.48648649 | G8: - | H8: -
A9: Beroun | B9: 27 | C9: 3 | D9: 11.11111111 | E9: 24 | F9: 88.88888889 | G9: - | H9: -
A10: Kladno | B10: 50 | C10: 5 | D10: =C10/B10*100 -> 10 | E10: 38 | F10: 76 | G10: 6 | H10: 12
A11: Kolín | B11: 36 | C11: 4 | D11: 11.11111111 | E11: 30 | F11: 83.33333333 | G11: 2 | H11: 5.555555556
A12: Kutná Hora | B12: 34 | C12: 4 | D12: 11.76470588 | E12: 26 | F12: 76.47058824 | G12: 4 | H12: 11.76470588
A13: Mělník | B13: 37 | C13: 5 | D13: 13.51351351 | E13: 28 | F13: 75.67567568 | G13: 3 | H13: 8.108108108
A14: Mladá Boleslav | B14: 43 | C14: 3 | D14: 6.976744186 | E14: 39 | F14: 90.69767442 | G14: - | H14: -
A15: Nymburk | B15: 35 | C15: 12 | D15: 34.28571429 | E15: 23 | F15: 65.71428571 | G15: - | H15: -
A16: Praha-východ | B16: 50 | C16: 5 | D16: 10 | E16: 43 | F16: 86 | G16: 2 | H16: 4
A17: Praha-západ | B17: 40 | C17: 3 | D17: 7.5 | E17: 33 | F17: 82.5 | G17: 1 | H17: 2.5
A18: Příbram | B18: 39 | C18: 5 | D18: 12.82051282 | E18: 32 | F18: 82.05128205 | G18: 2 | H18: 5.128205128
A19: Rakovník | B19: 20 | C19: 3 | D19: 15 | E19: 16 | F19: 80 | G19: 1 | H19: 5
A20: Jihočeský kraj celkem | B20: 241 | C20: 20 | D20: 8.298755187 | E20: 203 | F20: 84.23236515 | G20: 16 | H20: 6.639004149
A21: České Budějovice | B21: 64 | C21: 6 | D21: 9.375 | E21: 52 | F21: 81.25 | G21: 5 | H21: 7.8125
A22: Český Krumlov | B22: 17 | C22: 3 | D22: 17.64705882 | E22: 13 | F22: 76.47058824 | G22: 1 | H22: 5.882352941
A23: Jindřichův Hradec | B23: 34 | C23: 2 | D23: 5.882352941 | E23: 32 | F23: 94.11764706 | G23: - | H23: -
A24: Písek | B24: 31 | C24: 2 | D24: 6.451612903 | E24: 27 | F24: 87.09677419 | G24: 1 | H24: 3.225806452
A25: Prachatice | B25: 24 | C25: 2 | D25: 8.333333333 | E25: 20 | F25: 83.33333333 | G25: 2 | H25: 8.333333333
A26: Strakonice | B26: 26 | C26: 2 | D26: 7.692307692 | E26: 24 | F26: 92.30769231 | G26: - | H26: -
A27: Tábor | B27: 45 | C27: 3 | D27: 6.666666667 | E27: 35 | F27: 77.77777778 | G27: 7 | H27: 15.55555556
A28: Plzeňský kraj celkem | B28: 215 | C28: 18 | D28: 8.372093023 | E28: 175 | F28: 81.39534884 | G28: 16 | H28: 7.441860465
A29: Domažlice | B29: 17 | C29: - | D29: - | E29: 16 | F29: 94.11764706 | G29: - | H29: -
A30: Klatovy | B30: 34 | C30: 5 | D30: 14.70588235 | E30: 24 | F30: 70.58823529 | G30: 5 | H30: 14.70588235
A31: Plzeň-město | B31: 76 | C31: 5 | D31: 6.578947368 | E31: 64 | F31: 84.21052632 | G31: 4 | H31: 5.263157895
A32: Plzeň-jih | B32: 25 | C32: 4 | D32: 16 | E32: 20 | F32: 80 | G32: - | H32: -
A33: Plzeň-sever | B33: 26 | C33: 2 | D33: 7.692307692 | E33: 19 | F33: 73.07692308 | G33: 5 | H33: 19.23076923
A34: Rokycany | B34: 18 | C34: - | D34: - | E34: 18 | F34: 100 | G34: - | H34: -
A35: Tachov | B35: 19 | C35: 2 | D35: 10.52631579 | E35: 14 | F35: 73.68421053 | G35: 2 | H35: 10.52631579
A36: Karlovarský kraj celkem | B36: 101 | C36: 13 | D36: 12.87128713 | E36: 83 | F36: 82.17821782 | G36: 4 | H36: 3.96039604
A37: Cheb | B37: 31 | C37: 2 | D37: 6.451612903 | E37: 26 | F37: 83.87096774 | G37: 2 | H37: 6.451612903
A38: Karlovy Vary | B38: 43 | C38: 6 | D38: 13.95348837 | E38: 37 | F38: 86.04651163 | G38: - | H38: -
A39: Sokolov | B39: 27 | C39: 5 | D39: 18.51851852 | E39: 20 | F39: 74.07407407 | G39: 2 | H39: 7.407407407
A40: Ústecký kraj celkem | B40: 263 | C40: 45 | D40: 17.11026616 | E40: 190 | F40: 72.24334601 | G40: 21 | H40: 7.984790875
A41: Děčín | B41: 44 | C41: 11 | D41: 25 | E41: 27 | F41: 61.36363636 | G41: 3 | H41: 6.818181818
A42: Chomutov | B42: 37 | C42: 10 | D42: 27.02702703 | E42: 24 | F42: 64.86486486 | G42: 3 | H42: 8.108108108
A43: Litoměřice | B43: 44 | C43: 11 | D43: 25 | E43: 30 | F43: 68.18181818 | G43: 3 | H43: 6.818181818
A44: Louny | B44: 30 | C44: 4 | D44: 13.33333333 | E44: 22 | F44: 73.33333333 | G44: 3 | H44: 10
A45: Most | B45: 34 | C45: 1 | D45: 2.941176471 | E45: 28 | F45: 82.35294118 | G45: 5 | H45: 14.70588235
A46: Teplice | B46: 35 | C46: 4 | D46: 11.42857143 | E46: 27 | F46: 77.14285714 | G46: 3 | H46: 8.571428571
A47: Ústí n/L | B47: 39 | C47: 4 | D47: 10.25641026 | E47: 32 | F47: 82.05128205 | G47: 1 | H47: 2.564102564
A48: Liberecký kraj celkem | B48: 169 | C48: 10 | D48: 5.917159763 | E48: 136 | F48: 80.47337278 | G48: 20 | H48: 11.83431953
A49: Česká Lípa | B49: 37 | C49: 3 | D49: 8.108108108 | E49: 26 | F49: 70.27027027 | G49: 6 | H49: 16.21621622
A50: Jablonec n/N | B50: 36 | C50: 1 | D50: 2.777777778 | E50: 31 | F50: 86.11111111 | G50: 4 | H50: 11.11111111
A51: Liberec | B51: 64 | C51: 1 | D51: 1.5625 | E51: 56 | F51: 87.5 | G51: 7 | H51: 10.9375
A52: Semily | B52: 32 | C52: 5 | D52: 15.625 | E52: 23 | F52: 71.875 | G52: 3 | H52: 9.375
A53: Královéhradecký kraj celkem | B53: 208 | C53: 17 | D53: 8.173076923 | E53: 170 | F53: 81.73076923 | G53: 19 | H53: 9.134615385
A54: Hradec Králové | B54: 62 | C54: 5 | D54: 8.064516129 | E54: 53 | F54: 85.48387097 | G54: 4 | H54: 6.451612903
A55: Jičín | B55: 32 | C55: 2 | D55: 6.25 | E55: 22 | F55: 68.75 | G55: 8 | H55: 25
A56: Náchod | B56: 41 | C56: 3 | D56: 7.317073171 | E56: 34 | F56: 82.92682927 | G56: 3 | H56: 7.317073171
A57: Rychnov n/K | B57: 31 | C57: 3 | D57: 9.677419355 | E57: 26 | F57: 83.87096774 | G57: 1 | H57: 3.225806452
A58: Trutnov | B58: 42 | C58: 4 | D58: 9.523809524 | E58: 35 | F58: 83.33333333 | G58: 3 | H58: 7.142857143
A59: Pardubický kraj celkem | B59: 186 | C59: 14 | D59: 7.52688172 | E59: 160 | F59: 86.02150538 | G59: 8 | H59: 4.301075269
A60: Chrudim | B60: 37 | C60: 3 | D60: 8.108108108 | E60: 32 | F60: 86.48648649 | G60: 2 | H60: 5.405405405
A61: Pardubice | B61: 61 | C61: 4 | D61: 6.557377049 | E61: 55 | F61: 90.16393443 | G61: - | H61: -
A62: Svitavy | B62: 34 | C62: 2 | D62: 5.882352941 | E62: 28 | F62: 82.35294118 | G62: 3 | H62: 8.823529412
A63: Ústí n/Orl. | B63: 54 | C63: 5 | D63: 9.259259259 | E63: 45 | F63: 83.33333333 | G63: 3 | H63: 5.555555556
A64: Vysočina celkem | B64: 191 | C64: 15 | D64: 7.853403141 | E64: 162 | F64: 84.81675393 | G64: 13 | H64: 6.806282723
A65: Havlíčkův Brod | B65: 33 | C65: 1 | D65: 3.03030303 | E65: 28 | F65: 84.84848485 | G65: 4 | H65: 12.12121212
A66: Jihlava | B66: 46 | C66: 3 | D66: 6.52173913 | E66: 41 | F66: 89.13043478 | G66: 1 | H66: 2.173913043
A67: Pelhřimov | B67: 30 | C67: 2 | D67: 6.666666667 | E67: 25 | F67: 83.33333333 | G67: 3 | H67: 10
A68: Třebíč | B68: 39 | C68: 4 | D68: 10.25641026 | E68: 32 | F68: 82.05128205 | G68: 3 | H68: 7.692307692
A69: Žďár n/Sáz. | B69: 43 | C69: 5 | D69: 11.62790698 | E69: 36 | F69: 83.72093023 | G69: 2 | H69: 4.651162791
A70: Jihomoravský kraj celkem | B70: 480 | C70: 57 | D70: =C70/B70*100 -> 11.875 | E70: 386 | F70: =E70/B70*100 -> 80.41666667 | G70: 31 | H70: =G70/B70*100 -> 6.458333333
A71: Blansko | B71: 45 | C71: 7 | D71: 15.55555556 | E71: 37 | F71: 82.22222222 | G71: 1 | H71: 2.222222222
A72: Brno-město | B72: 191 | C72: 22 | D72: 11.51832461 | E72: 160 | F72: 83.76963351 | G72: 6 | H72: 3.141361257
A73: Brno-venkov | B73: 69 | C73: 7 | D73: 10.14492754 | E73: 55 | F73: 79.71014493 | G73: 6 | H73: 8.695652174
A74: Břeclav | B74: 43 | C74: 6 | D74: 13.95348837 | E74: 30 | F74: 69.76744186 | G74: 6 | H74: 13.95348837
A75: Hodonín | B75: 60 | C75: 7 | D75: 11.66666667 | E75: 47 | F75: 78.33333333 | G75: 5 | H75: 8.333333333
A76: Vyškov | B76: 33 | C76: 6 | D76: 18.18181818 | E76: 23 | F76: 69.6969697 | G76: 4 | H76: 12.12121212
A77: Znojmo | B77: 39 | C77: 2 | D77: 5.128205128 | E77: 34 | F77: 87.17948718 | G77: 3 | H77: 7.692307692
A78: Olomoucký kraj celkem | B78: 250 | C78: 24 | D78: 9.6 | E78: 216 | F78: 86.4 | G78: 9 | H78: 3.6
A79: Jeseník | B79: 11 | C79: - | D79: - | E79: 11 | F79: 100 | G79: - | H79: -
A80: Olomouc | B80: 97 | C80: 10 | D80: 10.30927835 | E80: 84 | F80: 86.59793814 | G80: 2 | H80: 2.06185567
A81: Prostějov | B81: 43 | C81: 4 | D81: 9.302325581 | E81: 38 | F81: 88.37209302 | G81: 1 | H81: 2.325581395
A82: Přerov | B82: 48 | C82: 6 | D82: 12.5 | E82: 37 | F82: 77.08333333 | G82: 5 | H82: 10.41666667
A83: Šumperk | B83: 51 | C83: 4 | D83: 7.843137255 | E83: 46 | F83: 90.19607843 | G83: 1 | H83: 1.960784314
A84: Zlínský kraj celkem | B84: 227 | C84: 41 | D84: 18.06167401 | E84: 178 | F84: 78.41409692 | G84: 6 | H84: 2.643171806
A85: Kroměříž | B85: 41 | C85: 13 | D85: 31.70731707 | E85: 25 | F85: 60.97560976 | G85: 2 | H85: 4.87804878
A86: Uherské Hradiště | B86: 64 | C86: 5 | D86: 7.8125 | E86: 59 | F86: 92.1875 | G86: - | H86: -
A87: Vsetín | B87: 51 | C87: 10 | D87: 19.60784314 | E87: 37 | F87: 72.54901961 | G87: 3 | H87: 5.882352941
A88: Zlín | B88: 71 | C88: 13 | D88: 18.30985915 | E88: 57 | F88: 80.28169014 | G88: 1 | H88: 1.408450704
A89: Moravskoslezský kraj celkem | B89: 432 | C89: 50 | D89: 11.57407407 | E89: 369 | F89: 85.41666667 | G89: 10 | H89: 2.314814815
A90: Bruntál | B90: 31 | C90: 4 | D90: 12.90322581 | E90: 26 | F90: 83.87096774 | G90: 1 | H90: 3.225806452
A91: Frýdek-Místek | B91: 75 | C91: 7 | D91: 9.333333333 | E91: 64 | F91: 85.33333333 | G91: 3 | H91: 4
A92: Karviná | B92: 86 | C92: 9 | D92: 10.46511628 | E92: 75 | F92: 87.20930233 | G92: 2 | H92: 2.325581395
A93: Nový Jičín | B93: 57 | C93: 6 | D93: 10.52631579 | E93: 50 | F93: 87.71929825 | G93: - | H93: -
A94: Opava | B94: 65 | C94: 11 | D94: 16.92307692 | E94: 52 | F94: 80 | G94: 1 | H94: 1.538461538
A95: Ostrava-město | B95: 118 | C95: 13 | D95: 11.01694915 | E95: 102 | F95: 86.44067797 | G95: 3 | H95: 2.542372881
C96: 438 | E96: 3219 | G96: 208 | H96: Zdroj: Ústav zdravotnických informací a statistiky ČR a vlastní dopočty ČSÚ
A97: * % zdravotnických zařízení daného typu, která se zúčastnila šetření
A98: ** celkový počet ordinací, které odevzdaly výkaz

Sheet T25
A1: Tab. 25: Vedení zdravotnické dokumentace samostatnými ordinacemi PL pro děti a dorost v okresech a krajích ČR; 2024
A2: zpět na seznam
B3: Celkový počet ordinací** | C3: V plně listinné formě | E3: V listinné a elektronické formě (kombinace) | G3: V plně elektronické formě
C4: počet | D4: %* | E4: počet | F4: %* | G4: počet | H4: %*
A5: Celkem ČR | B5: 1534 | C5: 230 | D5: 14.9934811 | E5: 1184 | F5: 77.18383312 | G5: 99 | H5: 6.453715776
A6: Hl. m. Praha | B6: 184 | C6: 33 | D6: 17.93478261 | E6: 123 | F6: 66.84782609 | G6: 21 | H6: 11.41304348
A7: Středočeský kraj celkem | B7: 197 | C7: 35 | D7: 17.76649746 | E7: 145 | F7: 73.60406091 | G7: 16 | H7: 8.121827411
A8: Benešov | B8: 15 | C8: 2 | D8: 13.33333333 | E8: 11 | F8: 73.33333333 | G8: 2 | H8: 13.33333333
A9: Beroun | B9: 13 | C9: 5 | D9: 38.46153846 | E9: 6 | F9: 46.15384615 | G9: 2 | H9: 15.38461538
A10: Kladno | B10: 25 | C10: 4 | D10: 16 | E10: 21 | F10: 84 | G10: - | H10: -
A11: Kolín | B11: 15 | C11: 4 | D11: 26.66666667 | E11: 9 | F11: 60 | G11: 2 | H11: 13.33333333
A12: Kutná Hora | B12: 9 | C12: 1 | D12: 11.11111111 | E12: 8 | F12: 88.88888889 | G12: - | H12: -
A13: Mělník | B13: 15 | C13: 7 | D13: 46.66666667 | E13: 7 | F13: 46.66666667 | G13: 1 | H13: 6.666666667
A14: Mladá Boleslav | B14: 24 | C14: 4 | D14: 16.66666667 | E14: 20 | F14: 83.33333333 | G14: - | H14: -
A15: Nymburk | B15: 13 | C15: 1 | D15: 7.692307692 | E15: 11 | F15: 84.61538462 | G15: 1 | H15: 7.692307692
A16: Praha-východ | B16: 21 | C16: 1 | D16: 4.761904762 | E16: 18 | F16: 85.71428571 | G16: 2 | H16: 9.523809524
A17: Praha-západ | B17: 26 | C17: 4 | D17: 15.38461538 | E17: 17 | F17: 65.38461538 | G17: 4 | H17: 15.38461538
A18: Příbram | B18: 14 | C18: - | D18: - | E18: 12 | F18: 85.71428571 | G18: 2 | H18: 14.28571429
A19: Rakovník | B19: 7 | C19: 2 | D19: 28.57142857 | E19: 5 | F19: 71.42857143 | G19: - | H19: -
A20: Jihočeský kraj celkem | B20: 90 | C20: 16 | D20: 17.77777778 | E20: 65 | F20: 72.22222222 | G20: 6 | H20: 6.666666667
A21: České Budějovice | B21: 21 | C21: 9 | D21: 42.85714286 | E21: 9 | F21: 42.85714286 | G21: 3 | H21: 14.28571429
A22: Český Krumlov | B22: 9 | C22: 2 | D22: 22.22222222 | E22: 6 | F22: 66.66666667 | G22: - | H22: -
A23: Jindřichův Hradec | B23: 18 | C23: 2 | D23: 11.11111111 | E23: 15 | F23: 83.33333333 | G23: - | H23: -
A24: Písek | B24: 10 | C24: - | D24: - | E24: 8 | F24: 80 | G24: 2 | H24: 20
A25: Prachatice | B25: 8 | C25: - | D25: - | E25: 8 | F25: 100 | G25: - | H25: -
A26: Strakonice | B26: 11 | C26: 2 | D26: 18.18181818 | E26: 8 | F26: 72.72727273 | G26: 1 | H26: 9.090909091
A27: Tábor | B27: 13 | C27: 1 | D27: 7.692307692 | E27: 11 | F27: 84.61538462 | G27: - | H27: -
A28: Plzeňský kraj celkem | B28: 82 | C28: 11 | D28: 13.41463415 | E28: 70 | F28: 85.36585366 | G28: 1 | H28: 1.219512195
A29: Domažlice | B29: 6 | C29: - | D29: - | E29: 6 | F29: 100 | G29: - | H29: -
A30: Klatovy | B30: 11 | C30: - | D30: - | E30: 11 | F30: 100 | G30: - | H30: -
A31: Plzeň-město | B31: 33 | C31: 2 | D31: 6.060606061 | E31: 31 | F31: 93.93939394 | G31: - | H31: -
A32: Plzeň-jih | B32: 9 | C32: 2 | D32: 22.22222222 | E32: 7 | F32: 77.77777778 | G32: - | H32: -
A33: Plzeň-sever | B33: 12 | C33: 4 | D33: 33.33333333 | E33: 7 | F33: 58.33333333 | G33: 1 | H33: 8.333333333
A34: Rokycany | B34: 7 | C34: 3 | D34: 42.85714286 | E34: 4 | F34: 57.14285714 | G34: - | H34: -
A35: Tachov | B35: 4 | C35: - | D35: - | E35: 4 | F35: 100 | G35: - | H35: -
A36: Karlovarský kraj celkem | B36: 41 | C36: 7 | D36: 17.07317073 | E36: 30 | F36: 73.17073171 | G36: 2 | H36: 4.87804878
A37: Cheb | B37: 14 | C37: 3 | D37: 21.42857143 | E37: 9 | F37: 64.28571429 | G37: 2 | H37: 14.28571429
A38: Karlovy Vary | B38: 17 | C38: 3 | D38: 17.64705882 | E38: 13 | F38: 76.47058824 | G38: - | H38: -
A39: Sokolov | B39: 10 | C39: 1 | D39: 10 | E39: 8 | F39: 80 | G39: - | H39: -
A40: Ústecký kraj celkem | B40: 113 | C40: 23 | D40: 20.3539823 | E40: 86 | F40: 76.10619469 | G40: 3 | H40: 2.654867257
A41: Děčín | B41: 19 | C41: 4 | D41: 21.05263158 | E41: 15 | F41: 78.94736842 | G41: - | H41: -
A42: Chomutov | B42: 19 | C42: 3 | D42: 15.78947368 | E42: 15 | F42: 78.94736842 | G42: 1 | H42: 5.263157895
A43: Litoměřice | B43: 17 | C43: 3 | D43: 17.64705882 | E43: 12 | F43: 70.58823529 | G43: 1 | H43: 5.882352941
A44: Louny | B44: 8 | C44: 5 | D44: 62.5 | E44: 3 | F44: 37.5 | G44: - | H44: -
A45: Most | B45: 19 | C45: 3 | D45: 15.78947368 | E45: 16 | F45: 84.21052632 | G45: - | H45: -
A46: Teplice | B46: 16 | C46: 3 | D46: 18.75 | E46: 12 | F46: 75 | G46: 1 | H46: 6.25
A47: Ústí n/L | B47: 15 | C47: 2 | D47: 13.33333333 | E47: 13 | F47: 86.66666667 | G47: - | H47: -
A48: Liberecký kraj celkem | B48: 68 | C48: 9 | D48: 13.23529412 | E48: 51 | F48: 75 | G48: 7 | H48: 10.29411765
A49: Česká Lípa | B49: 15 | C49: 3 | D49: 20 | E49: 10 | F49: 66.66666667 | G49: 2 | H49: 13.33333333
A50: Jablonec n/N | B50: 15 | C50: 4 | D50: 26.66666667 | E50: 10 | F50: 66.66666667 | G50: 1 | H50: 6.666666667
A51: Liberec | B51: 25 | C51: 1 | D51: 4 | E51: 20 | F51: 80 | G51: 3 | H51: 12
A52: Semily | B52: 13 | C52: 1 | D52: 7.692307692 | E52: 11 | F52: 84.61538462 | G52: 1 | H52: 7.692307692
A53: Královéhradecký kraj celkem | B53: 86 | C53: 18 | D53: 20.93023256 | E53: 63 | F53: 73.25581395 | G53: 3 | H53: 3.488372093
A54: Hradec Králové | B54: 28 | C54: 4 | D54: 14.28571429 | E54: 23 | F54: 82.14285714 | G54: 1 | H54: 3.571428571
A55: Jičín | B55: 11 | C55: 3 | D55: 27.27272727 | E55: 8 | F55: 72.72727273 | G55: - | H55: -
A56: Náchod | B56: 12 | C56: 2 | D56: 16.66666667 | E56: 8 | F56: 66.66666667 | G56: 2 | H56: 16.66666667
A57: Rychnov n/K | B57: 13 | C57: 2 | D57: 15.38461538 | E57: 11 | F57: 84.61538462 | G57: - | H57: -
A58: Trutnov | B58: 22 | C58: 7 | D58: 31.81818182 | E58: 13 | F58: 59.09090909 | G58: - | H58: -
A59: Pardubický kraj celkem | B59: 80 | C59: 7 | D59: 8.75 | E59: 71 | F59: 88.75 | G59: 2 | H59: 2.5
A60: Chrudim | B60: 17 | C60: 1 | D60: 5.882352941 | E60: 15 | F60: 88.23529412 | G60: 1 | H60: 5.882352941
A61: Pardubice | B61: 25 | C61: 3 | D61: 12 | E61: 22 | F61: 88 | G61: - | H61: -
A62: Svitavy | B62: 16 | C62: 1 | D62: 6.25 | E62: 14 | F62: 87.5 | G62: 1 | H62: 6.25
A63: Ústí n/Orl. | B63: 22 | C63: 2 | D63: 9.090909091 | E63: 20 | F63: 90.90909091 | G63: - | H63: -
A64: Vysočina celkem | B64: 73 | C64: 12 | D64: 16.43835616 | E64: 56 | F64: 76.71232877 | G64: 4 | H64: 5.479452055
A65: Havlíčkův Brod | B65: 13 | C65: 2 | D65: 15.38461538 | E65: 11 | F65: 84.61538462 | G65: - | H65: -
A66: Jihlava | B66: 14 | C66: - | D66: - | E66: 13 | F66: 92.85714286 | G66: 1 | H66: 7.142857143
A67: Pelhřimov | B67: 9 | C67: - | D67: - | E67: 7 | F67: 77.77777778 | G67: 2 | H67: 22.22222222
A68: Třebíč | B68: 17 | C68: 7 | D68: 41.17647059 | E68: 10 | F68: 58.82352941 | G68: - | H68: -
A69: Žďár n/Sáz. | B69: 20 | C69: 3 | D69: 15 | E69: 15 | F69: 75 | G69: 1 | H69: 5
A70: Jihomoravský kraj celkem | B70: 178 | C70: 19 | D70: 10.6741573 | E70: 142 | F70: 79.7752809 | G70: 17 | H70: 9.550561798
A71: Blansko | B71: 13 | C71: - | D71: - | E71: 12 | F71: 92.30769231 | G71: 1 | H71: 7.692307692
A72: Brno-město | B72: 68 | C72: 6 | D72: 8.823529412 | E72: 52 | F72: 76.47058824 | G72: 10 | H72: 14.70588235
A73: Brno-venkov | B73: 32 | C73: 4 | D73: 12.5 | E73: 25 | F73: 78.125 | G73: 3 | H73: 9.375
A74: Břeclav | B74: 16 | C74: - | D74: - | E74: 14 | F74: 87.5 | G74: 2 | H74: 12.5
A75: Hodonín | B75: 25 | C75: 8 | D75: 32 | E75: 17 | F75: 68 | G75: - | H75: -
A76: Vyškov | B76: 13 | C76: 1 | D76: 7.692307692 | E76: 12 | F76: 92.30769231 | G76: - | H76: -
A77: Znojmo | B77: 11 | C77: - | D77: - | E77: 10 | F77: 90.90909091 | G77: 1 | H77: 9.090909091
A78: Olomoucký kraj celkem | B78: 95 | C78: 12 | D78: 12.63157895 | E78: 76 | F78: 80 | G78: 6 | H78: 6.315789474
A79: Jeseník | B79: 7 | C79: 1 | D79: 14.28571429 | E79: 6 | F79: 85.71428571 | G79: - | H79: -
A80: Olomouc | B80: 41 | C80: 6 | D80: 14.63414634 | E80: 31 | F80: 75.6097561 | G80: 4 | H80: 9.756097561
A81: Prostějov | B81: 19 | C81: 1 | D81: 5.263157895 | E81: 15 | F81: 78.94736842 | G81: 2 | H81: 10.52631579
A82: Přerov | B82: 16 | C82: 3 | D82: 18.75 | E82: 13 | F82: 81.25 | G82: - | H82: -
A83: Šumperk | B83: 12 | C83: 1 | D83: 8.333333333 | E83: 11 | F83: 91.66666667 | G83: - | H83: -
A84: Zlínský kraj celkem | B84: 85 | C84: 12 | D84: 14.11764706 | E84: 68 | F84: 80 | G84: 5 | H84: 5.882352941
A85: Kroměříž | B85: 17 | C85: 2 | D85: 11.76470588 | E85: 14 | F85: 82.35294118 | G85: 1 | H85: 5.882352941
A86: Uherské Hradiště | B86: 18 | C86: 2 | D86: 11.11111111 | E86: 16 | F86: 88.88888889 | G86: - | H86: -
A87: Vsetín | B87: 21 | C87: 5 | D87: 23.80952381 | E87: 14 | F87: 66.66666667 | G87: 2 | H87: 9.523809524
A88: Zlín | B88: 29 | C88: 3 | D88: 10.34482759 | E88: 24 | F88: 82.75862069 | G88: 2 | H88: 6.896551724
A89: Moravskoslezský kraj celkem | B89: 162 | C89: 16 | D89: 9.87654321 | E89: 138 | F89: 85.18518519 | G89: 6 | H89: 3.703703704
A90: Bruntál | B90: 14 | C90: 2 | D90: 14.28571429 | E90: 11 | F90: 78.57142857 | G90: - | H90: -
A91: Frýdek-Místek | B91: 28 | C91: 4 | D91: 14.28571429 | E91: 24 | F91: 85.71428571 | G91: - | H91: -
A92: Karviná | B92: 34 | C92: 1 | D92: 2.941176471 | E92: 32 | F92: 94.11764706 | G92: - | H92: -
A93: Nový Jičín | B93: 20 | C93: 4 | D93: 20 | E93: 15 | F93: 75 | G93: 1 | H93: 5
A94: Opava | B94: 21 | C94: 1 | D94: 4.761904762 | E94: 17 | F94: 80.95238095 | G94: 3 | H94: 14.28571429
A95: Ostrava-město | B95: 45 | C95: 4 | D95: 8.888888889 | E95: 39 | F95: 86.66666667 | G95: 2 | H95: 4.444444444
H96: Zdroj: Ústav zdravotnických informací a statistiky ČR a vlastní dopočty ČSÚ
A97: * % zdravotnických zařízení daného typu, která se zúčastnila šetření
A98: ** celkový počet ordinací, které odevzdaly výkaz

Sheet T26
A1: Tab. 26: Vedení zdravotnické dokumentace samostatnými ordinacemi zubního lékaře v okresech a krajích ČR; 2024
A2: zpět na seznam
B3: Celkový počet ordinací** | C3: V plně listinné formě | E3: V listinné a elektronické formě (kombinace) | G3: V plně elektronické formě
C4: počet | D4: %* | E4: počet | F4: %* | G4: počet | H4: %*
A5: Celkem ČR | B5: 4528 | C5: 908 | D5: =C5/B5*100 -> 20.05300353 | E5: 2455 | F5: =E5/B5*100 -> 54.21819788 | G5: 1097 | H5: =G5/B5*100 -> 24.2270318
A6: Hl. m. Praha | B6: 840 | C6: 139 | D6: =C6/B6*100 -> 16.54761905 | E6: 445 | F6: =E6/B6*100 -> 52.97619048 | G6: 237 | H6: =G6/B6*100 -> 28.21428571
A7: Středočeský kraj celkem | B7: 445 | C7: 80 | D7: 17.97752809 | E7: 273 | F7: =E7/B7*100 -> 61.34831461 | G7: 87 | H7: 19.5505618
A8: Benešov | B8: 32 | C8: 10 | D8: 31.25 | E8: 18 | F8: 56.25 | G8: 3 | H8: 9.375
A9: Beroun | B9: 33 | C9: 7 | D9: 21.21212121 | E9: 20 | F9: 60.60606061 | G9: 6 | H9: 18.18181818
A10: Kladno | B10: 58 | C10: 13 | D10: =C10/B10*100 -> 22.4137931 | E10: 32 | F10: 55.17241379 | G10: 12 | H10: 20.68965517
A11: Kolín | B11: 33 | C11: 5 | D11: 15.15151515 | E11: 22 | F11: 66.66666667 | G11: 5 | H11: 15.15151515
A12: Kutná Hora | B12: 26 | C12: 6 | D12: 23.07692308 | E12: 16 | F12: 61.53846154 | G12: 4 | H12: 15.38461538
A13: Mělník | B13: 30 | C13: 6 | D13: 20 | E13: 16 | F13: 53.33333333 | G13: 8 | H13: 26.66666667
A14: Mladá Boleslav | B14: 47 | C14: 3 | D14: 6.382978723 | E14: 32 | F14: 68.08510638 | G14: 12 | H14: 25.53191489
A15: Nymburk | B15: 35 | C15: 3 | D15: 8.571428571 | E15: 26 | F15: 74.28571429 | G15: 6 | H15: 17.14285714
A16: Praha-východ | B16: 43 | C16: 5 | D16: 11.62790698 | E16: 28 | F16: 65.11627907 | G16: 10 | H16: 23.25581395
A17: Praha-západ | B17: 40 | C17: 10 | D17: 25 | E17: 26 | F17: 65 | G17: 4 | H17: 10
A18: Příbram | B18: 48 | C18: 9 | D18: 18.75 | E18: 23 | F18: 47.91666667 | G18: 14 | H18: 29.16666667
A19: Rakovník | B19: 20 | C19: 3 | D19: 15 | E19: 14 | F19: 70 | G19: 3 | H19: 15
A20: Jihočeský kraj celkem | B20: 267 | C20: 59 | D20: 22.09737828 | E20: 141 | F20: 52.80898876 | G20: 64 | H20: 23.97003745
A21: České Budějovice | B21: 110 | C21: 20 | D21: 18.18181818 | E21: 62 | F21: 56.36363636 | G21: 26 | H21: 23.63636364
A22: Český Krumlov | B22: 21 | C22: 8 | D22: 38.0952381 | E22: 8 | F22: 38.0952381 | G22: 5 | H22: 23.80952381
A23: Jindřichův Hradec | B23: 40 | C23: 6 | D23: 15 | E23: 21 | F23: 52.5 | G23: 13 | H23: 32.5
A24: Písek | B24: 24 | C24: 4 | D24: 16.66666667 | E24: 14 | F24: 58.33333333 | G24: 6 | H24: 25
A25: Prachatice | B25: 11 | C25: 2 | D25: 18.18181818 | E25: 6 | F25: 54.54545455 | G25: 3 | H25: 27.27272727
A26: Strakonice | B26: 21 | C26: 6 | D26: 28.57142857 | E26: 10 | F26: 47.61904762 | G26: 4 | H26: 19.04761905
A27: Tábor | B27: 40 | C27: 13 | D27: 32.5 | E27: 20 | F27: 50 | G27: 7 | H27: 17.5
A28: Plzeňský kraj celkem | B28: 242 | C28: 51 | D28: 21.07438017 | E28: 138 | F28: 57.02479339 | G28: 51 | H28: 21.07438017
A29: Domažlice | B29: 18 | C29: 2 | D29: 11.11111111 | E29: 15 | F29: 83.33333333 | G29: 1 | H29: 5.555555556
A30: Klatovy | B30: 35 | C30: 9 | D30: 25.71428571 | E30: 17 | F30: 48.57142857 | G30: 8 | H30: 22.85714286
A31: Plzeň-město | B31: 116 | C31: 24 | D31: 20.68965517 | E31: 65 | F31: 56.03448276 | G31: 26 | H31: 22.4137931
A32: Plzeň-jih | B32: 21 | C32: 6 | D32: 28.57142857 | E32: 10 | F32: 47.61904762 | G32: 5 | H32: 23.80952381
A33: Plzeň-sever | B33: 19 | C33: 5 | D33: 26.31578947 | E33: 11 | F33: 57.89473684 | G33: 3 | H33: 15.78947368
A34: Rokycany | B34: 12 | C34: 2 | D34: 16.66666667 | E34: 7 | F34: 58.33333333 | G34: 3 | H34: 25
A35: Tachov | B35: 21 | C35: 3 | D35: 14.28571429 | E35: 13 | F35: 61.9047619 | G35: 5 | H35: 23.80952381
A36: Karlovarský kraj celkem | B36: 106 | C36: 25 | D36: 23.58490566 | E36: 58 | F36: 54.71698113 | G36: 20 | H36: 18.86792453
A37: Cheb | B37: 33 | C37: 5 | D37: 15.15151515 | E37: 18 | F37: 54.54545455 | G37: 10 | H37: 30.3030303
A38: Karlovy Vary | B38: 53 | C38: 11 | D38: 20.75471698 | E38: 30 | F38: 56.60377358 | G38: 9 | H38: 16.98113208
A39: Sokolov | B39: 20 | C39: 9 | D39: 45 | E39: 10 | F39: 50 | G39: 1 | H39: 5
A40: Ústecký kraj celkem | B40: 232 | C40: 60 | D40: 25.86206897 | E40: 106 | F40: 45.68965517 | G40: 61 | H40: 26.29310345
A41: Děčín | B41: 38 | C41: 16 | D41: 42.10526316 | E41: 15 | F41: 39.47368421 | G41: 6 | H41: 15.78947368
A42: Chomutov | B42: 39 | C42: 14 | D42: 35.8974359 | E42: 15 | F42: 38.46153846 | G42: 10 | H42: 25.64102564
A43: Litoměřice | B43: 35 | C43: 9 | D43: 25.71428571 | E43: 14 | F43: 40 | G43: 11 | H43: 31.42857143
A44: Louny | B44: 23 | C44: 3 | D44: 13.04347826 | E44: 12 | F44: 52.17391304 | G44: 8 | H44: 34.7826087
A45: Most | B45: 28 | C45: 6 | D45: 21.42857143 | E45: 11 | F45: 39.28571429 | G45: 9 | H45: 32.14285714
A46: Teplice | B46: 37 | C46: 7 | D46: 18.91891892 | E46: 21 | F46: 56.75675676 | G46: 9 | H46: 24.32432432
A47: Ústí n/L | B47: 32 | C47: 5 | D47: 15.625 | E47: 18 | F47: 56.25 | G47: 8 | H47: 25
A48: Liberecký kraj celkem | B48: 176 | C48: 29 | D48: 16.47727273 | E48: 93 | F48: 52.84090909 | G48: 47 | H48: 26.70454545
A49: Česká Lípa | B49: 39 | C49: 7 | D49: 17.94871795 | E49: 22 | F49: 56.41025641 | G49: 8 | H49: 20.51282051
A50: Jablonec n/N | B50: 33 | C50: 4 | D50: 12.12121212 | E50: 19 | F50: 57.57575758 | G50: 10 | H50: 30.3030303
A51: Liberec | B51: 80 | C51: 13 | D51: 16.25 | E51: 42 | F51: 52.5 | G51: 21 | H51: 26.25
A52: Semily | B52: 24 | C52: 5 | D52: 20.83333333 | E52: 10 | F52: 41.66666667 | G52: 8 | H52: 33.33333333
A53: Královéhradecký kraj celkem | B53: 238 | C53: 51 | D53: 21.42857143 | E53: 130 | F53: 54.62184874 | G53: 53 | H53: 22.26890756
A54: Hradec Králové | B54: 91 | C54: 11 | D54: 12.08791209 | E54: 57 | F54: 62.63736264 | G54: 22 | H54: 24.17582418
A55: Jičín | B55: 27 | C55: 11 | D55: 40.74074074 | E55: 10 | F55: 37.03703704 | G55: 6 | H55: 22.22222222
A56: Náchod | B56: 45 | C56: 8 | D56: 17.77777778 | E56: 27 | F56: 60 | G56: 9 | H56: 20
A57: Rychnov n/K | B57: 23 | C57: 5 | D57: 21.73913043 | E57: 13 | F57: 56.52173913 | G57: 4 | H57: 17.39130435
A58: Trutnov | B58: 52 | C58: 16 | D58: 30.76923077 | E58: 23 | F58: 44.23076923 | G58: 12 | H58: 23.07692308
A59: Pardubický kraj celkem | B59: 190 | C59: 51 | D59: 26.84210526 | E59: 92 | F59: 48.42105263 | G59: 45 | H59: 23.68421053
A60: Chrudim | B60: 36 | C60: 8 | D60: 22.22222222 | E60: 18 | F60: 50 | G60: 10 | H60: 27.77777778
A61: Pardubice | B61: 73 | C61: 15 | D61: 20.54794521 | E61: 37 | F61: 50.68493151 | G61: 20 | H61: 27.39726027
A62: Svitavy | B62: 30 | C62: 11 | D62: 36.66666667 | E62: 12 | F62: 40 | G62: 6 | H62: 20
A63: Ústí n/Orl. | B63: 51 | C63: 17 | D63: 33.33333333 | E63: 25 | F63: 49.01960784 | G63: 9 | H63: 17.64705882
A64: Vysočina celkem | B64: 199 | C64: 55 | D64: 27.63819095 | E64: 110 | F64: 55.27638191 | G64: 31 | H64: 15.57788945
A65: Havlíčkův Brod | B65: 43 | C65: 14 | D65: 32.55813953 | E65: 23 | F65: 53.48837209 | G65: 5 | H65: 11.62790698
A66: Jihlava | B66: 49 | C66: 9 | D66: 18.36734694 | E66: 33 | F66: 67.34693878 | G66: 7 | H66: 14.28571429
A67: Pelhřimov | B67: 26 | C67: 3 | D67: 11.53846154 | E67: 17 | F67: 65.38461538 | G67: 5 | H67: 19.23076923
A68: Třebíč | B68: 31 | C68: 9 | D68: 29.03225806 | E68: 18 | F68: 58.06451613 | G68: 4 | H68: 12.90322581
A69: Žďár n/Sáz. | B69: 50 | C69: 20 | D69: 40 | E69: 19 | F69: 38 | G69: 10 | H69: 20
A70: Jihomoravský kraj celkem | B70: 541 | C70: 145 | D70: =C70/B70*100 -> 26.80221811 | E70: 279 | F70: =E70/B70*100 -> 51.57116451 | G70: 114 | H70: =G70/B70*100 -> 21.07208872
A71: Blansko | B71: 45 | C71: 16 | D71: 35.55555556 | E71: 22 | F71: 48.88888889 | G71: 7 | H71: 15.55555556
A72: Brno-město | B72: 259 | C72: 60 | D72: 23.16602317 | E72: 139 | F72: 53.66795367 | G72: 57 | H72: 22.00772201
A73: Brno-venkov | B73: 56 | C73: 16 | D73: 28.57142857 | E73: 31 | F73: 55.35714286 | G73: 9 | H73: 16.07142857
A74: Břeclav | B74: 33 | C74: 4 | D74: 12.12121212 | E74: 22 | F74: 66.66666667 | G74: 7 | H74: 21.21212121
A75: Hodonín | B75: 70 | C75: 26 | D75: 37.14285714 | E75: 32 | F75: 45.71428571 | G75: 12 | H75: 17.14285714
A76: Vyškov | B76: 29 | C76: 6 | D76: 20.68965517 | E76: 13 | F76: 44.82758621 | G76: 10 | H76: 34.48275862
A77: Znojmo | B77: 49 | C77: 17 | D77: 34.69387755 | E77: 20 | F77: 40.81632653 | G77: 12 | H77: 24.48979592
A78: Olomoucký kraj celkem | B78: 293 | C78: 53 | D78: 18.0887372 | E78: 181 | F78: 61.77474403 | G78: 56 | H78: 19.11262799
A79: Jeseník | B79: 12 | C79: 1 | D79: 8.333333333 | E79: 6 | F79: 50 | G79: 5 | H79: 41.66666667
A80: Olomouc | B80: 131 | C80: 19 | D80: 14.50381679 | E80: 85 | F80: 64.88549618 | G80: 25 | H80: 19.08396947
A81: Prostějov | B81: 49 | C81: 9 | D81: 18.36734694 | E81: 29 | F81: 59.18367347 | G81: 11 | H81: 22.44897959
A82: Přerov | B82: 48 | C82: 15 | D82: 31.25 | E82: 28 | F82: 58.33333333 | G82: 4 | H82: 8.333333333
A83: Šumperk | B83: 53 | C83: 9 | D83: 16.98113208 | E83: 33 | F83: 62.26415094 | G83: 11 | H83: 20.75471698
A84: Zlínský kraj celkem | B84: 269 | C84: 40 | D84: 14.86988848 | E84: 139 | F84: 51.67286245 | G84: 86 | H84: 31.97026022
A85: Kroměříž | B85: 42 | C85: 8 | D85: 19.04761905 | E85: 22 | F85: 52.38095238 | G85: 12 | H85: 28.57142857
A86: Uherské Hradiště | B86: 67 | C86: 11 | D86: 16.41791045 | E86: 33 | F86: 49.25373134 | G86: 21 | H86: 31.34328358
A87: Vsetín | B87: 62 | C87: 9 | D87: 14.51612903 | E87: 36 | F87: 58.06451613 | G87: 16 | H87: 25.80645161
A88: Zlín | B88: 98 | C88: 12 | D88: 12.24489796 | E88: 48 | F88: 48.97959184 | G88: 37 | H88: =G88/B88*100 -> 37.75510204
A89: Moravskoslezský kraj celkem | B89: 490 | C89: 70 | D89: 14.28571429 | E89: 270 | F89: 55.10204082 | G89: 145 | H89: 29.59183673
A90: Bruntál | B90: 23 | C90: 2 | D90: 8.695652174 | E90: 15 | F90: 65.2173913 | G90: 5 | H90: 21.73913043
A91: Frýdek-Místek | B91: 93 | C91: 16 | D91: 17.20430108 | E91: 36 | F91: 38.70967742 | G91: 41 | H91: 44.08602151
A92: Karviná | B92: 87 | C92: 12 | D92: 13.79310345 | E92: 58 | F92: 66.66666667 | G92: 16 | H92: 18.3908046
A93: Nový Jičín | B93: 50 | C93: 7 | D93: 14 | E93: 27 | F93: 54 | G93: 16 | H93: 32
A94: Opava | B94: 69 | C94: 10 | D94: 14.49275362 | E94: 38 | F94: 55.07246377 | G94: 21 | H94: 30.43478261
A95: Ostrava-město | B95: 168 | C95: 23 | D95: 13.69047619 | E95: 96 | F95: 57.14285714 | G95: 46 | H95: 27.38095238
H96: Zdroj: Ústav zdravotnických informací a statistiky ČR a vlastní dopočty ČSÚ
A97: * % zdravotnických zařízení daného typu, která se zúčastnila šetření
A98: ** celkový počet ordinací, které odevzdaly výkaz

Sheet T27
A1: Tab. 27: Vedení zdravotnické dokumentace samostatnými ordinacemi gynekologa v okresech a krajích ČR; 2024
A2: zpět na seznam
B3: Celkový počet ordinací** | C3: V plně listinné formě | E3: V listinné a elektronické formě (kombinace) | G3: V plně elektronické formě
C4: počet | D4: %* | E4: počet | F4: %* | G4: počet | H4: %*
A5: Celkem ČR | B5: 1121 | C5: 139 | D5: =C5/B5*100 -> 12.39964318 | E5: 868 | F5: =E5/B5*100 -> 77.4308653 | G5: 84 | H5: =G5/B5*100 -> 7.493309545
A6: Hl. m. Praha | B6: 152 | C6: 19 | D6: =C6/B6*100 -> 12.5 | E6: 119 | F6: =E6/B6*100 -> 78.28947368 | G6: 11 | H6: =G6/B6*100 -> 7.236842105
A7: Středočeský kraj celkem | B7: 112 | C7: 17 | D7: =C7/B7*100 -> 15.17857143 | E7: 86 | F7: =E7/B7*100 -> 76.78571429 | G7: 8 | H7: 7.142857143
A8: Benešov | B8: 9 | C8: 2 | D8: 22.22222222 | E8: 7 | F8: 77.77777778 | G8: - | H8: -
A9: Beroun | B9: 8 | C9: 2 | D9: 25 | E9: 4 | F9: 50 | G9: 2 | H9: 25
A10: Kladno | B10: 19 | C10: 5 | D10: =C10/B10*100 -> 26.31578947 | E10: 13 | F10: 68.42105263 | G10: 1 | H10: 5.263157895
A11: Kolín | B11: 10 | C11: 1 | D11: 10 | E11: 9 | F11: 90 | G11: - | H11: -
A12: Kutná Hora | B12: 6 | C12: - | D12: - | E12: 5 | F12: 83.33333333 | G12: 1 | H12: 16.66666667
A13: Mělník | B13: 10 | C13: - | D13: - | E13: 10 | F13: 100 | G13: - | H13: -
